{"text_format":"2","workbook":"xlsx","n_sheets":6,"sheets":["Capacity Summary","Allocated Tasks","Employees","Leave","Settings","Data - Tasks"],"not_rendered":{"charts":0,"images":0,"macros":0,"external_links":0,"defined_names":8,"comments":0,"pivot_tables":2},"unopened":[],"bounds":{"document_bytes":16777216,"sheet_cells":100000,"run_cost":"one","rows_first":2000,"rows_last":500,"rows_between":2000,"halvings":0,"cell_chars":16384,"cell_head_chars":4096},"cells_cut":0,"cells_raw":0,"read":"whole","date_system":"1900"}

{"sheet":"Capacity Summary","index":0,"n_rows":12,"n_cols":6,"rows_kept":12,"cut":false,"hidden":false,"merged":[[0,5,2,7]]}
[{"$nulls":5},"Capacity Summary"]
["Job Partner","(blank)"]
["Job Manager","(blank)"]
["User Role","(blank)"]
[]
[null,"Column Labels"]
[null,"Total"]
["Row Labels"]
["Total  Availability",0]
["Total  Leave",0]
["Total  Allocated",0]
["Total  Capacity",0]

{"sheet":"Allocated Tasks","index":1,"n_rows":8,"n_cols":9,"rows_kept":8,"cut":false,"hidden":false,"merged":[]}
[]
[null,null,"Allocated Tasks"]
[]
["Job Partner","(blank)"]
["Job Manager","(blank)"]
["User Role","(blank)"]
[]
["Assignee","Subject","Group","Client","Job","Due date","Time","Job Link","Month"]

{"sheet":"Employees","index":2,"n_rows":504,"n_cols":4,"rows_kept":504,"cut":false,"hidden":false,"merged":[[1,0,1,3]]}
[]
["Employee List"]
[]
["Name","Weekly Hours","Productivity","Available Hours"]
[null,null,null,{"$f":"B5*C5","v":0}]
[null,null,null,0]
[null,null,null,0]
[null,null,null,0]
[null,null,null,0]
[null,null,null,0]
[null,null,null,0]
[null,null,null,0]
[null,null,null,0]
[null,null,null,0]
[null,null,null,0]
[null,null,null,0]
[null,null,null,0]
[null,null,null,0]
[null,null,null,0]
[null,null,null,0]
[null,null,null,0]
[null,null,null,0]
[null,null,null,0]
[null,null,null,0]
[null,null,null,0]
[null,null,null,0]
[null,null,null,0]
[null,null,null,0]
[null,null,null,0]
[null,null,null,0]
[null,null,null,0]
[null,null,null,0]
[null,null,null,0]
[null,null,null,0]
[null,null,null,0]
[null,null,null,0]
[null,null,null,0]
[null,null,null,0]
[null,null,null,0]
[null,null,null,0]
[null,null,null,0]
[null,null,null,0]
[null,null,null,0]
[null,null,null,0]
[null,null,null,0]
[null,null,null,0]
[null,null,null,0]
[null,null,null,0]
[null,null,null,0]
[null,null,null,0]
[null,null,null,0]
[null,null,null,0]
[null,null,null,0]
[null,null,null,0]
[null,null,null,0]
[null,null,null,0]
[null,null,null,0]
[null,null,null,0]
[null,null,null,0]
[null,null,null,0]
[null,null,null,0]
[null,null,null,0]
[null,null,null,0]
[null,null,null,0]
[null,null,null,0]
[null,null,null,0]
[null,null,null,0]
[null,null,null,0]
[null,null,null,{"$f":"B69*C69","v":0}]
[null,null,null,0]
[null,null,null,0]
[null,null,null,0]
[null,null,null,0]
[null,null,null,0]
[null,null,null,0]
[null,null,null,0]
[null,null,null,0]
[null,null,null,0]
[null,null,null,0]
[null,null,null,0]
[null,null,null,0]
[null,null,null,0]
[null,null,null,0]
[null,null,null,0]
[null,null,null,0]
[null,null,null,0]
[null,null,null,0]
[null,null,null,0]
[null,null,null,0]
[null,null,null,0]
[null,null,null,0]
[null,null,null,0]
[null,null,null,0]
[null,null,null,0]
[null,null,null,0]
[null,null,null,0]
[null,null,null,0]
[null,null,null,0]
[null,null,null,0]
[null,null,null,0]
[null,null,null,0]
[null,null,null,0]
[null,null,null,0]
[null,null,null,0]
[null,null,null,0]
[null,null,null,0]
[null,null,null,0]
[null,null,null,0]
[null,null,null,0]
[null,null,null,0]
[null,null,null,0]
[null,null,null,0]
[null,null,null,0]
[null,null,null,0]
[null,null,null,0]
[null,null,null,0]
[null,null,null,0]
[null,null,null,0]
[null,null,null,0]
[null,null,null,0]
[null,null,null,0]
[null,null,null,0]
[null,null,null,0]
[null,null,null,0]
[null,null,null,0]
[null,null,null,0]
[null,null,null,0]
[null,null,null,0]
[null,null,null,0]
[null,null,null,0]
[null,null,null,0]
[null,null,null,0]
[null,null,null,{"$f":"B133*C133","v":0}]
[null,null,null,0]
[null,null,null,0]
[null,null,null,0]
[null,null,null,0]
[null,null,null,0]
[null,null,null,0]
[null,null,null,0]
[null,null,null,0]
[null,null,null,0]
[null,null,null,0]
[null,null,null,0]
[null,null,null,0]
[null,null,null,0]
[null,null,null,0]
[null,null,null,0]
[null,null,null,0]
[null,null,null,0]
[null,null,null,0]
[null,null,null,0]
[null,null,null,0]
[null,null,null,0]
[null,null,null,0]
[null,null,null,0]
[null,null,null,0]
[null,null,null,0]
[null,null,null,0]
[null,null,null,0]
[null,null,null,0]
[null,null,null,0]
[null,null,null,0]
[null,null,null,0]
[null,null,null,0]
[null,null,null,0]
[null,null,null,0]
[null,null,null,0]
[null,null,null,0]
[null,null,null,0]
[null,null,null,0]
[null,null,null,0]
[null,null,null,0]
[null,null,null,0]
[null,null,null,0]
[null,null,null,0]
[null,null,null,0]
[null,null,null,0]
[null,null,null,0]
[null,null,null,0]
[null,null,null,0]
[null,null,null,0]
[null,null,null,0]
[null,null,null,0]
[null,null,null,0]
[null,null,null,0]
[null,null,null,0]
[null,null,null,0]
[null,null,null,0]
[null,null,null,0]
[null,null,null,0]
[null,null,null,0]
[null,null,null,0]
[null,null,null,0]
[null,null,null,0]
[null,null,null,0]
[null,null,null,{"$f":"B197*C197","v":0}]
[null,null,null,0]
[null,null,null,0]
[null,null,null,0]
[null,null,null,0]
[null,null,null,0]
[null,null,null,0]
[null,null,null,0]
[null,null,null,0]
[null,null,null,0]
[null,null,null,0]
[null,null,null,0]
[null,null,null,0]
[null,null,null,0]
[null,null,null,0]
[null,null,null,0]
[null,null,null,0]
[null,null,null,0]
[null,null,null,0]
[null,null,null,0]
[null,null,null,0]
[null,null,null,0]
[null,null,null,0]
[null,null,null,0]
[null,null,null,0]
[null,null,null,0]
[null,null,null,0]
[null,null,null,0]
[null,null,null,0]
[null,null,null,0]
[null,null,null,0]
[null,null,null,0]
[null,null,null,0]
[null,null,null,0]
[null,null,null,0]
[null,null,null,0]
[null,null,null,0]
[null,null,null,0]
[null,null,null,0]
[null,null,null,0]
[null,null,null,0]
[null,null,null,0]
[null,null,null,0]
[null,null,null,0]
[null,null,null,0]
[null,null,null,0]
[null,null,null,0]
[null,null,null,0]
[null,null,null,0]
[null,null,null,0]
[null,null,null,0]
[null,null,null,0]
[null,null,null,0]
[null,null,null,0]
[null,null,null,0]
[null,null,null,0]
[null,null,null,0]
[null,null,null,0]
[null,null,null,0]
[null,null,null,0]
[null,null,null,0]
[null,null,null,0]
[null,null,null,0]
[null,null,null,0]
[null,null,null,{"$f":"B261*C261","v":0}]
[null,null,null,0]
[null,null,null,0]
[null,null,null,0]
[null,null,null,0]
[null,null,null,0]
[null,null,null,0]
[null,null,null,0]
[null,null,null,0]
[null,null,null,0]
[null,null,null,0]
[null,null,null,0]
[null,null,null,0]
[null,null,null,0]
[null,null,null,0]
[null,null,null,0]
[null,null,null,0]
[null,null,null,0]
[null,null,null,0]
[null,null,null,0]
[null,null,null,0]
[null,null,null,0]
[null,null,null,0]
[null,null,null,0]
[null,null,null,0]
[null,null,null,0]
[null,null,null,0]
[null,null,null,0]
[null,null,null,0]
[null,null,null,0]
[null,null,null,0]
[null,null,null,0]
[null,null,null,0]
[null,null,null,0]
[null,null,null,0]
[null,null,null,0]
[null,null,null,0]
[null,null,null,0]
[null,null,null,0]
[null,null,null,0]
[null,null,null,0]
[null,null,null,0]
[null,null,null,0]
[null,null,null,0]
[null,null,null,0]
[null,null,null,0]
[null,null,null,0]
[null,null,null,0]
[null,null,null,0]
[null,null,null,0]
[null,null,null,0]
[null,null,null,0]
[null,null,null,0]
[null,null,null,0]
[null,null,null,0]
[null,null,null,0]
[null,null,null,0]
[null,null,null,0]
[null,null,null,0]
[null,null,null,0]
[null,null,null,0]
[null,null,null,0]
[null,null,null,0]
[null,null,null,0]
[null,null,null,{"$f":"B325*C325","v":0}]
[null,null,null,0]
[null,null,null,0]
[null,null,null,0]
[null,null,null,0]
[null,null,null,0]
[null,null,null,0]
[null,null,null,0]
[null,null,null,0]
[null,null,null,0]
[null,null,null,0]
[null,null,null,0]
[null,null,null,0]
[null,null,null,0]
[null,null,null,0]
[null,null,null,0]
[null,null,null,0]
[null,null,null,0]
[null,null,null,0]
[null,null,null,0]
[null,null,null,0]
[null,null,null,0]
[null,null,null,0]
[null,null,null,0]
[null,null,null,0]
[null,null,null,0]
[null,null,null,0]
[null,null,null,0]
[null,null,null,0]
[null,null,null,0]
[null,null,null,0]
[null,null,null,0]
[null,null,null,0]
[null,null,null,0]
[null,null,null,0]
[null,null,null,0]
[null,null,null,0]
[null,null,null,0]
[null,null,null,0]
[null,null,null,0]
[null,null,null,0]
[null,null,null,0]
[null,null,null,0]
[null,null,null,0]
[null,null,null,0]
[null,null,null,0]
[null,null,null,0]
[null,null,null,0]
[null,null,null,0]
[null,null,null,0]
[null,null,null,0]
[null,null,null,0]
[null,null,null,0]
[null,null,null,0]
[null,null,null,0]
[null,null,null,0]
[null,null,null,0]
[null,null,null,0]
[null,null,null,0]
[null,null,null,0]
[null,null,null,0]
[null,null,null,0]
[null,null,null,0]
[null,null,null,0]
[null,null,null,{"$f":"B389*C389","v":0}]
[null,null,null,0]
[null,null,null,0]
[null,null,null,0]
[null,null,null,0]
[null,null,null,0]
[null,null,null,0]
[null,null,null,0]
[null,null,null,0]
[null,null,null,0]
[null,null,null,0]
[null,null,null,0]
[null,null,null,0]
[null,null,null,0]
[null,null,null,0]
[null,null,null,0]
[null,null,null,0]
[null,null,null,0]
[null,null,null,0]
[null,null,null,0]
[null,null,null,0]
[null,null,null,0]
[null,null,null,0]
[null,null,null,0]
[null,null,null,0]
[null,null,null,0]
[null,null,null,0]
[null,null,null,0]
[null,null,null,0]
[null,null,null,0]
[null,null,null,0]
[null,null,null,0]
[null,null,null,0]
[null,null,null,0]
[null,null,null,0]
[null,null,null,0]
[null,null,null,0]
[null,null,null,0]
[null,null,null,0]
[null,null,null,0]
[null,null,null,0]
[null,null,null,0]
[null,null,null,0]
[null,null,null,0]
[null,null,null,0]
[null,null,null,0]
[null,null,null,0]
[null,null,null,0]
[null,null,null,0]
[null,null,null,0]
[null,null,null,0]
[null,null,null,0]
[null,null,null,0]
[null,null,null,0]
[null,null,null,0]
[null,null,null,0]
[null,null,null,0]
[null,null,null,0]
[null,null,null,0]
[null,null,null,0]
[null,null,null,0]
[null,null,null,0]
[null,null,null,0]
[null,null,null,0]
[null,null,null,{"$f":"B453*C453","v":0}]
[null,null,null,0]
[null,null,null,0]
[null,null,null,0]
[null,null,null,0]
[null,null,null,0]
[null,null,null,0]
[null,null,null,0]
[null,null,null,0]
[null,null,null,0]
[null,null,null,0]
[null,null,null,0]
[null,null,null,0]
[null,null,null,0]
[null,null,null,0]
[null,null,null,0]
[null,null,null,0]
[null,null,null,0]
[null,null,null,0]
[null,null,null,0]
[null,null,null,0]
[null,null,null,0]
[null,null,null,0]
[null,null,null,0]
[null,null,null,0]
[null,null,null,0]
[null,null,null,0]
[null,null,null,0]
[null,null,null,0]
[null,null,null,0]
[null,null,null,0]
[null,null,null,0]
[null,null,null,0]
[null,null,null,0]
[null,null,null,0]
[null,null,null,0]
[null,null,null,0]
[null,null,null,0]
[null,null,null,0]
[null,null,null,0]
[null,null,null,0]
[null,null,null,0]
[null,null,null,0]
[null,null,null,0]
[null,null,null,0]
[null,null,null,0]
[null,null,null,0]
[null,null,null,0]
[null,null,null,0]
[null,null,null,0]
[null,null,null,0]
[null,null,null,0]

{"sheet":"Leave","index":3,"n_rows":1004,"n_cols":4,"rows_kept":1004,"cut":false,"hidden":false,"merged":[]}
[]
[null,"Leave Planner"]
[]
["Name","Date","Leave Hours","Leave ID"]
[null,null,null,{"$f":"IF(AvailabilityTable[[#This Row],[Name]]&\"-\"&RIGHT(\"0\"&WEEKNUM(AvailabilityTable[[#This Row],[Date]],2)-Start_week,2)&YEAR(AvailabilityTable[[#This Row],[Date]])<>\"-0-\",AvailabilityTable[[#This Row],[Name]]&\"-\"&RIGHT(\"0\"&WEEKNUM(AvailabilityTable[[#This Row],[Date]],2)-Start_week,2)&YEAR(AvailabilityTable[[#This Row],[Date]]),\"\")","v":"-011900"}]
[null,null,null,{"$f":"IF(AvailabilityTable[[#This Row],[Name]]&\"-\"&RIGHT(\"0\"&WEEKNUM(AvailabilityTable[[#This Row],[Date]],2)-Start_week,2)<>\"-0-\",AvailabilityTable[[#This Row],[Name]]&\"-\"&RIGHT(\"0\"&WEEKNUM(AvailabilityTable[[#This Row],[Date]],2)-Start_week,2)&YEAR(AvailabilityTable[[#This Row],[Date]]),\"\")","v":"-011900"}]
[null,null,null,{"$f":"IF(AvailabilityTable[[#This Row],[Name]]&\"-\"&RIGHT(\"0\"&WEEKNUM(AvailabilityTable[[#This Row],[Date]],2)-Start_week,2)<>\"-0-\",AvailabilityTable[[#This Row],[Name]]&\"-\"&RIGHT(\"0\"&WEEKNUM(AvailabilityTable[[#This Row],[Date]],2)-Start_week,2)&YEAR(AvailabilityTable[[#This Row],[Date]]),\"\")","v":"-011900"}]
[null,null,null,{"$f":"IF(AvailabilityTable[[#This Row],[Name]]&\"-\"&RIGHT(\"0\"&WEEKNUM(AvailabilityTable[[#This Row],[Date]],2)-Start_week,2)<>\"-0-\",AvailabilityTable[[#This Row],[Name]]&\"-\"&RIGHT(\"0\"&WEEKNUM(AvailabilityTable[[#This Row],[Date]],2)-Start_week,2)&YEAR(AvailabilityTable[[#This Row],[Date]]),\"\")","v":"-011900"}]
[null,null,null,{"$f":"IF(AvailabilityTable[[#This Row],[Name]]&\"-\"&RIGHT(\"0\"&WEEKNUM(AvailabilityTable[[#This Row],[Date]],2)-Start_week,2)<>\"-0-\",AvailabilityTable[[#This Row],[Name]]&\"-\"&RIGHT(\"0\"&WEEKNUM(AvailabilityTable[[#This Row],[Date]],2)-Start_week,2)&YEAR(AvailabilityTable[[#This Row],[Date]]),\"\")","v":"-011900"}]
[null,null,null,{"$f":"IF(AvailabilityTable[[#This Row],[Name]]&\"-\"&RIGHT(\"0\"&WEEKNUM(AvailabilityTable[[#This Row],[Date]],2)-Start_week,2)<>\"-0-\",AvailabilityTable[[#This Row],[Name]]&\"-\"&RIGHT(\"0\"&WEEKNUM(AvailabilityTable[[#This Row],[Date]],2)-Start_week,2)&YEAR(AvailabilityTable[[#This Row],[Date]]),\"\")","v":"-011900"}]
[null,null,null,{"$f":"IF(AvailabilityTable[[#This Row],[Name]]&\"-\"&RIGHT(\"0\"&WEEKNUM(AvailabilityTable[[#This Row],[Date]],2)-Start_week,2)<>\"-0-\",AvailabilityTable[[#This Row],[Name]]&\"-\"&RIGHT(\"0\"&WEEKNUM(AvailabilityTable[[#This Row],[Date]],2)-Start_week,2)&YEAR(AvailabilityTable[[#This Row],[Date]]),\"\")","v":"-011900"}]
[null,null,null,{"$f":"IF(AvailabilityTable[[#This Row],[Name]]&\"-\"&RIGHT(\"0\"&WEEKNUM(AvailabilityTable[[#This Row],[Date]],2)-Start_week,2)<>\"-0-\",AvailabilityTable[[#This Row],[Name]]&\"-\"&RIGHT(\"0\"&WEEKNUM(AvailabilityTable[[#This Row],[Date]],2)-Start_week,2)&YEAR(AvailabilityTable[[#This Row],[Date]]),\"\")","v":"-011900"}]
[null,null,null,{"$f":"IF(AvailabilityTable[[#This Row],[Name]]&\"-\"&RIGHT(\"0\"&WEEKNUM(AvailabilityTable[[#This Row],[Date]],2)-Start_week,2)<>\"-0-\",AvailabilityTable[[#This Row],[Name]]&\"-\"&RIGHT(\"0\"&WEEKNUM(AvailabilityTable[[#This Row],[Date]],2)-Start_week,2)&YEAR(AvailabilityTable[[#This Row],[Date]]),\"\")","v":"-011900"}]
[null,null,null,{"$f":"IF(AvailabilityTable[[#This Row],[Name]]&\"-\"&RIGHT(\"0\"&WEEKNUM(AvailabilityTable[[#This Row],[Date]],2)-Start_week,2)<>\"-0-\",AvailabilityTable[[#This Row],[Name]]&\"-\"&RIGHT(\"0\"&WEEKNUM(AvailabilityTable[[#This Row],[Date]],2)-Start_week,2)&YEAR(AvailabilityTable[[#This Row],[Date]]),\"\")","v":"-011900"}]
[null,null,null,{"$f":"IF(AvailabilityTable[[#This Row],[Name]]&\"-\"&RIGHT(\"0\"&WEEKNUM(AvailabilityTable[[#This Row],[Date]],2)-Start_week,2)<>\"-0-\",AvailabilityTable[[#This Row],[Name]]&\"-\"&RIGHT(\"0\"&WEEKNUM(AvailabilityTable[[#This Row],[Date]],2)-Start_week,2)&YEAR(AvailabilityTable[[#This Row],[Date]]),\"\")","v":"-011900"}]
[null,null,null,{"$f":"IF(AvailabilityTable[[#This Row],[Name]]&\"-\"&RIGHT(\"0\"&WEEKNUM(AvailabilityTable[[#This Row],[Date]],2)-Start_week,2)<>\"-0-\",AvailabilityTable[[#This Row],[Name]]&\"-\"&RIGHT(\"0\"&WEEKNUM(AvailabilityTable[[#This Row],[Date]],2)-Start_week,2)&YEAR(AvailabilityTable[[#This Row],[Date]]),\"\")","v":"-011900"}]
[null,null,null,{"$f":"IF(AvailabilityTable[[#This Row],[Name]]&\"-\"&RIGHT(\"0\"&WEEKNUM(AvailabilityTable[[#This Row],[Date]],2)-Start_week,2)<>\"-0-\",AvailabilityTable[[#This Row],[Name]]&\"-\"&RIGHT(\"0\"&WEEKNUM(AvailabilityTable[[#This Row],[Date]],2)-Start_week,2)&YEAR(AvailabilityTable[[#This Row],[Date]]),\"\")","v":"-011900"}]
[null,null,null,{"$f":"IF(AvailabilityTable[[#This Row],[Name]]&\"-\"&RIGHT(\"0\"&WEEKNUM(AvailabilityTable[[#This Row],[Date]],2)-Start_week,2)<>\"-0-\",AvailabilityTable[[#This Row],[Name]]&\"-\"&RIGHT(\"0\"&WEEKNUM(AvailabilityTable[[#This Row],[Date]],2)-Start_week,2)&YEAR(AvailabilityTable[[#This Row],[Date]]),\"\")","v":"-011900"}]
[null,null,null,{"$f":"IF(AvailabilityTable[[#This Row],[Name]]&\"-\"&RIGHT(\"0\"&WEEKNUM(AvailabilityTable[[#This Row],[Date]],2)-Start_week,2)<>\"-0-\",AvailabilityTable[[#This Row],[Name]]&\"-\"&RIGHT(\"0\"&WEEKNUM(AvailabilityTable[[#This Row],[Date]],2)-Start_week,2)&YEAR(AvailabilityTable[[#This Row],[Date]]),\"\")","v":"-011900"}]
[null,null,null,{"$f":"IF(AvailabilityTable[[#This Row],[Name]]&\"-\"&RIGHT(\"0\"&WEEKNUM(AvailabilityTable[[#This Row],[Date]],2)-Start_week,2)<>\"-0-\",AvailabilityTable[[#This Row],[Name]]&\"-\"&RIGHT(\"0\"&WEEKNUM(AvailabilityTable[[#This Row],[Date]],2)-Start_week,2)&YEAR(AvailabilityTable[[#This Row],[Date]]),\"\")","v":"-011900"}]
[null,null,null,{"$f":"IF(AvailabilityTable[[#This Row],[Name]]&\"-\"&RIGHT(\"0\"&WEEKNUM(AvailabilityTable[[#This Row],[Date]],2)-Start_week,2)<>\"-0-\",AvailabilityTable[[#This Row],[Name]]&\"-\"&RIGHT(\"0\"&WEEKNUM(AvailabilityTable[[#This Row],[Date]],2)-Start_week,2)&YEAR(AvailabilityTable[[#This Row],[Date]]),\"\")","v":"-011900"}]
[null,null,null,{"$f":"IF(AvailabilityTable[[#This Row],[Name]]&\"-\"&RIGHT(\"0\"&WEEKNUM(AvailabilityTable[[#This Row],[Date]],2)-Start_week,2)<>\"-0-\",AvailabilityTable[[#This Row],[Name]]&\"-\"&RIGHT(\"0\"&WEEKNUM(AvailabilityTable[[#This Row],[Date]],2)-Start_week,2)&YEAR(AvailabilityTable[[#This Row],[Date]]),\"\")","v":"-011900"}]
[null,null,null,{"$f":"IF(AvailabilityTable[[#This Row],[Name]]&\"-\"&RIGHT(\"0\"&WEEKNUM(AvailabilityTable[[#This Row],[Date]],2)-Start_week,2)<>\"-0-\",AvailabilityTable[[#This Row],[Name]]&\"-\"&RIGHT(\"0\"&WEEKNUM(AvailabilityTable[[#This Row],[Date]],2)-Start_week,2)&YEAR(AvailabilityTable[[#This Row],[Date]]),\"\")","v":"-011900"}]
[null,null,null,{"$f":"IF(AvailabilityTable[[#This Row],[Name]]&\"-\"&RIGHT(\"0\"&WEEKNUM(AvailabilityTable[[#This Row],[Date]],2)-Start_week,2)<>\"-0-\",AvailabilityTable[[#This Row],[Name]]&\"-\"&RIGHT(\"0\"&WEEKNUM(AvailabilityTable[[#This Row],[Date]],2)-Start_week,2)&YEAR(AvailabilityTable[[#This Row],[Date]]),\"\")","v":"-011900"}]
[null,null,null,{"$f":"IF(AvailabilityTable[[#This Row],[Name]]&\"-\"&RIGHT(\"0\"&WEEKNUM(AvailabilityTable[[#This Row],[Date]],2)-Start_week,2)<>\"-0-\",AvailabilityTable[[#This Row],[Name]]&\"-\"&RIGHT(\"0\"&WEEKNUM(AvailabilityTable[[#This Row],[Date]],2)-Start_week,2)&YEAR(AvailabilityTable[[#This Row],[Date]]),\"\")","v":"-011900"}]
[null,null,null,{"$f":"IF(AvailabilityTable[[#This Row],[Name]]&\"-\"&RIGHT(\"0\"&WEEKNUM(AvailabilityTable[[#This Row],[Date]],2)-Start_week,2)<>\"-0-\",AvailabilityTable[[#This Row],[Name]]&\"-\"&RIGHT(\"0\"&WEEKNUM(AvailabilityTable[[#This Row],[Date]],2)-Start_week,2)&YEAR(AvailabilityTable[[#This Row],[Date]]),\"\")","v":"-011900"}]
[null,null,null,{"$f":"IF(AvailabilityTable[[#This Row],[Name]]&\"-\"&RIGHT(\"0\"&WEEKNUM(AvailabilityTable[[#This Row],[Date]],2)-Start_week,2)<>\"-0-\",AvailabilityTable[[#This Row],[Name]]&\"-\"&RIGHT(\"0\"&WEEKNUM(AvailabilityTable[[#This Row],[Date]],2)-Start_week,2)&YEAR(AvailabilityTable[[#This Row],[Date]]),\"\")","v":"-011900"}]
[null,null,null,{"$f":"IF(AvailabilityTable[[#This Row],[Name]]&\"-\"&RIGHT(\"0\"&WEEKNUM(AvailabilityTable[[#This Row],[Date]],2)-Start_week,2)<>\"-0-\",AvailabilityTable[[#This Row],[Name]]&\"-\"&RIGHT(\"0\"&WEEKNUM(AvailabilityTable[[#This Row],[Date]],2)-Start_week,2)&YEAR(AvailabilityTable[[#This Row],[Date]]),\"\")","v":"-011900"}]
[null,null,null,{"$f":"IF(AvailabilityTable[[#This Row],[Name]]&\"-\"&RIGHT(\"0\"&WEEKNUM(AvailabilityTable[[#This Row],[Date]],2)-Start_week,2)<>\"-0-\",AvailabilityTable[[#This Row],[Name]]&\"-\"&RIGHT(\"0\"&WEEKNUM(AvailabilityTable[[#This Row],[Date]],2)-Start_week,2)&YEAR(AvailabilityTable[[#This Row],[Date]]),\"\")","v":"-011900"}]
[null,null,null,{"$f":"IF(AvailabilityTable[[#This Row],[Name]]&\"-\"&RIGHT(\"0\"&WEEKNUM(AvailabilityTable[[#This Row],[Date]],2)-Start_week,2)<>\"-0-\",AvailabilityTable[[#This Row],[Name]]&\"-\"&RIGHT(\"0\"&WEEKNUM(AvailabilityTable[[#This Row],[Date]],2)-Start_week,2)&YEAR(AvailabilityTable[[#This Row],[Date]]),\"\")","v":"-011900"}]
[null,null,null,{"$f":"IF(AvailabilityTable[[#This Row],[Name]]&\"-\"&RIGHT(\"0\"&WEEKNUM(AvailabilityTable[[#This Row],[Date]],2)-Start_week,2)<>\"-0-\",AvailabilityTable[[#This Row],[Name]]&\"-\"&RIGHT(\"0\"&WEEKNUM(AvailabilityTable[[#This Row],[Date]],2)-Start_week,2)&YEAR(AvailabilityTable[[#This Row],[Date]]),\"\")","v":"-011900"}]
[null,null,null,{"$f":"IF(AvailabilityTable[[#This Row],[Name]]&\"-\"&RIGHT(\"0\"&WEEKNUM(AvailabilityTable[[#This Row],[Date]],2)-Start_week,2)<>\"-0-\",AvailabilityTable[[#This Row],[Name]]&\"-\"&RIGHT(\"0\"&WEEKNUM(AvailabilityTable[[#This Row],[Date]],2)-Start_week,2)&YEAR(AvailabilityTable[[#This Row],[Date]]),\"\")","v":"-011900"}]
[null,null,null,{"$f":"IF(AvailabilityTable[[#This Row],[Name]]&\"-\"&RIGHT(\"0\"&WEEKNUM(AvailabilityTable[[#This Row],[Date]],2)-Start_week,2)<>\"-0-\",AvailabilityTable[[#This Row],[Name]]&\"-\"&RIGHT(\"0\"&WEEKNUM(AvailabilityTable[[#This Row],[Date]],2)-Start_week,2)&YEAR(AvailabilityTable[[#This Row],[Date]]),\"\")","v":"-011900"}]
[null,null,null,{"$f":"IF(AvailabilityTable[[#This Row],[Name]]&\"-\"&RIGHT(\"0\"&WEEKNUM(AvailabilityTable[[#This Row],[Date]],2)-Start_week,2)<>\"-0-\",AvailabilityTable[[#This Row],[Name]]&\"-\"&RIGHT(\"0\"&WEEKNUM(AvailabilityTable[[#This Row],[Date]],2)-Start_week,2)&YEAR(AvailabilityTable[[#This Row],[Date]]),\"\")","v":"-011900"}]
[null,null,null,{"$f":"IF(AvailabilityTable[[#This Row],[Name]]&\"-\"&RIGHT(\"0\"&WEEKNUM(AvailabilityTable[[#This Row],[Date]],2)-Start_week,2)<>\"-0-\",AvailabilityTable[[#This Row],[Name]]&\"-\"&RIGHT(\"0\"&WEEKNUM(AvailabilityTable[[#This Row],[Date]],2)-Start_week,2)&YEAR(AvailabilityTable[[#This Row],[Date]]),\"\")","v":"-011900"}]
[null,null,null,{"$f":"IF(AvailabilityTable[[#This Row],[Name]]&\"-\"&RIGHT(\"0\"&WEEKNUM(AvailabilityTable[[#This Row],[Date]],2)-Start_week,2)<>\"-0-\",AvailabilityTable[[#This Row],[Name]]&\"-\"&RIGHT(\"0\"&WEEKNUM(AvailabilityTable[[#This Row],[Date]],2)-Start_week,2)&YEAR(AvailabilityTable[[#This Row],[Date]]),\"\")","v":"-011900"}]
[null,null,null,{"$f":"IF(AvailabilityTable[[#This Row],[Name]]&\"-\"&RIGHT(\"0\"&WEEKNUM(AvailabilityTable[[#This Row],[Date]],2)-Start_week,2)<>\"-0-\",AvailabilityTable[[#This Row],[Name]]&\"-\"&RIGHT(\"0\"&WEEKNUM(AvailabilityTable[[#This Row],[Date]],2)-Start_week,2)&YEAR(AvailabilityTable[[#This Row],[Date]]),\"\")","v":"-011900"}]
[null,null,null,{"$f":"IF(AvailabilityTable[[#This Row],[Name]]&\"-\"&RIGHT(\"0\"&WEEKNUM(AvailabilityTable[[#This Row],[Date]],2)-Start_week,2)<>\"-0-\",AvailabilityTable[[#This Row],[Name]]&\"-\"&RIGHT(\"0\"&WEEKNUM(AvailabilityTable[[#This Row],[Date]],2)-Start_week,2)&YEAR(AvailabilityTable[[#This Row],[Date]]),\"\")","v":"-011900"}]
[null,null,null,{"$f":"IF(AvailabilityTable[[#This Row],[Name]]&\"-\"&RIGHT(\"0\"&WEEKNUM(AvailabilityTable[[#This Row],[Date]],2)-Start_week,2)<>\"-0-\",AvailabilityTable[[#This Row],[Name]]&\"-\"&RIGHT(\"0\"&WEEKNUM(AvailabilityTable[[#This Row],[Date]],2)-Start_week,2)&YEAR(AvailabilityTable[[#This Row],[Date]]),\"\")","v":"-011900"}]
[null,null,null,{"$f":"IF(AvailabilityTable[[#This Row],[Name]]&\"-\"&RIGHT(\"0\"&WEEKNUM(AvailabilityTable[[#This Row],[Date]],2)-Start_week,2)<>\"-0-\",AvailabilityTable[[#This Row],[Name]]&\"-\"&RIGHT(\"0\"&WEEKNUM(AvailabilityTable[[#This Row],[Date]],2)-Start_week,2)&YEAR(AvailabilityTable[[#This Row],[Date]]),\"\")","v":"-011900"}]
[null,null,null,{"$f":"IF(AvailabilityTable[[#This Row],[Name]]&\"-\"&RIGHT(\"0\"&WEEKNUM(AvailabilityTable[[#This Row],[Date]],2)-Start_week,2)<>\"-0-\",AvailabilityTable[[#This Row],[Name]]&\"-\"&RIGHT(\"0\"&WEEKNUM(AvailabilityTable[[#This Row],[Date]],2)-Start_week,2)&YEAR(AvailabilityTable[[#This Row],[Date]]),\"\")","v":"-011900"}]
[null,null,null,{"$f":"IF(AvailabilityTable[[#This Row],[Name]]&\"-\"&RIGHT(\"0\"&WEEKNUM(AvailabilityTable[[#This Row],[Date]],2)-Start_week,2)<>\"-0-\",AvailabilityTable[[#This Row],[Name]]&\"-\"&RIGHT(\"0\"&WEEKNUM(AvailabilityTable[[#This Row],[Date]],2)-Start_week,2)&YEAR(AvailabilityTable[[#This Row],[Date]]),\"\")","v":"-011900"}]
[null,null,null,{"$f":"IF(AvailabilityTable[[#This Row],[Name]]&\"-\"&RIGHT(\"0\"&WEEKNUM(AvailabilityTable[[#This Row],[Date]],2)-Start_week,2)<>\"-0-\",AvailabilityTable[[#This Row],[Name]]&\"-\"&RIGHT(\"0\"&WEEKNUM(AvailabilityTable[[#This Row],[Date]],2)-Start_week,2)&YEAR(AvailabilityTable[[#This Row],[Date]]),\"\")","v":"-011900"}]
[null,null,null,{"$f":"IF(AvailabilityTable[[#This Row],[Name]]&\"-\"&RIGHT(\"0\"&WEEKNUM(AvailabilityTable[[#This Row],[Date]],2)-Start_week,2)<>\"-0-\",AvailabilityTable[[#This Row],[Name]]&\"-\"&RIGHT(\"0\"&WEEKNUM(AvailabilityTable[[#This Row],[Date]],2)-Start_week,2)&YEAR(AvailabilityTable[[#This Row],[Date]]),\"\")","v":"-011900"}]
[null,null,null,{"$f":"IF(AvailabilityTable[[#This Row],[Name]]&\"-\"&RIGHT(\"0\"&WEEKNUM(AvailabilityTable[[#This Row],[Date]],2)-Start_week,2)<>\"-0-\",AvailabilityTable[[#This Row],[Name]]&\"-\"&RIGHT(\"0\"&WEEKNUM(AvailabilityTable[[#This Row],[Date]],2)-Start_week,2)&YEAR(AvailabilityTable[[#This Row],[Date]]),\"\")","v":"-011900"}]
[null,null,null,{"$f":"IF(AvailabilityTable[[#This Row],[Name]]&\"-\"&RIGHT(\"0\"&WEEKNUM(AvailabilityTable[[#This Row],[Date]],2)-Start_week,2)<>\"-0-\",AvailabilityTable[[#This Row],[Name]]&\"-\"&RIGHT(\"0\"&WEEKNUM(AvailabilityTable[[#This Row],[Date]],2)-Start_week,2)&YEAR(AvailabilityTable[[#This Row],[Date]]),\"\")","v":"-011900"}]
[null,null,null,{"$f":"IF(AvailabilityTable[[#This Row],[Name]]&\"-\"&RIGHT(\"0\"&WEEKNUM(AvailabilityTable[[#This Row],[Date]],2)-Start_week,2)<>\"-0-\",AvailabilityTable[[#This Row],[Name]]&\"-\"&RIGHT(\"0\"&WEEKNUM(AvailabilityTable[[#This Row],[Date]],2)-Start_week,2)&YEAR(AvailabilityTable[[#This Row],[Date]]),\"\")","v":"-011900"}]
[null,null,null,{"$f":"IF(AvailabilityTable[[#This Row],[Name]]&\"-\"&RIGHT(\"0\"&WEEKNUM(AvailabilityTable[[#This Row],[Date]],2)-Start_week,2)<>\"-0-\",AvailabilityTable[[#This Row],[Name]]&\"-\"&RIGHT(\"0\"&WEEKNUM(AvailabilityTable[[#This Row],[Date]],2)-Start_week,2)&YEAR(AvailabilityTable[[#This Row],[Date]]),\"\")","v":"-011900"}]
[null,null,null,{"$f":"IF(AvailabilityTable[[#This Row],[Name]]&\"-\"&RIGHT(\"0\"&WEEKNUM(AvailabilityTable[[#This Row],[Date]],2)-Start_week,2)<>\"-0-\",AvailabilityTable[[#This Row],[Name]]&\"-\"&RIGHT(\"0\"&WEEKNUM(AvailabilityTable[[#This Row],[Date]],2)-Start_week,2)&YEAR(AvailabilityTable[[#This Row],[Date]]),\"\")","v":"-011900"}]
[null,null,null,{"$f":"IF(AvailabilityTable[[#This Row],[Name]]&\"-\"&RIGHT(\"0\"&WEEKNUM(AvailabilityTable[[#This Row],[Date]],2)-Start_week,2)<>\"-0-\",AvailabilityTable[[#This Row],[Name]]&\"-\"&RIGHT(\"0\"&WEEKNUM(AvailabilityTable[[#This Row],[Date]],2)-Start_week,2)&YEAR(AvailabilityTable[[#This Row],[Date]]),\"\")","v":"-011900"}]
[null,null,null,{"$f":"IF(AvailabilityTable[[#This Row],[Name]]&\"-\"&RIGHT(\"0\"&WEEKNUM(AvailabilityTable[[#This Row],[Date]],2)-Start_week,2)<>\"-0-\",AvailabilityTable[[#This Row],[Name]]&\"-\"&RIGHT(\"0\"&WEEKNUM(AvailabilityTable[[#This Row],[Date]],2)-Start_week,2)&YEAR(AvailabilityTable[[#This Row],[Date]]),\"\")","v":"-011900"}]
[null,null,null,{"$f":"IF(AvailabilityTable[[#This Row],[Name]]&\"-\"&RIGHT(\"0\"&WEEKNUM(AvailabilityTable[[#This Row],[Date]],2)-Start_week,2)<>\"-0-\",AvailabilityTable[[#This Row],[Name]]&\"-\"&RIGHT(\"0\"&WEEKNUM(AvailabilityTable[[#This Row],[Date]],2)-Start_week,2)&YEAR(AvailabilityTable[[#This Row],[Date]]),\"\")","v":"-011900"}]
[null,null,null,{"$f":"IF(AvailabilityTable[[#This Row],[Name]]&\"-\"&RIGHT(\"0\"&WEEKNUM(AvailabilityTable[[#This Row],[Date]],2)-Start_week,2)<>\"-0-\",AvailabilityTable[[#This Row],[Name]]&\"-\"&RIGHT(\"0\"&WEEKNUM(AvailabilityTable[[#This Row],[Date]],2)-Start_week,2)&YEAR(AvailabilityTable[[#This Row],[Date]]),\"\")","v":"-011900"}]
[null,null,null,{"$f":"IF(AvailabilityTable[[#This Row],[Name]]&\"-\"&RIGHT(\"0\"&WEEKNUM(AvailabilityTable[[#This Row],[Date]],2)-Start_week,2)<>\"-0-\",AvailabilityTable[[#This Row],[Name]]&\"-\"&RIGHT(\"0\"&WEEKNUM(AvailabilityTable[[#This Row],[Date]],2)-Start_week,2)&YEAR(AvailabilityTable[[#This Row],[Date]]),\"\")","v":"-011900"}]
[null,null,null,{"$f":"IF(AvailabilityTable[[#This Row],[Name]]&\"-\"&RIGHT(\"0\"&WEEKNUM(AvailabilityTable[[#This Row],[Date]],2)-Start_week,2)<>\"-0-\",AvailabilityTable[[#This Row],[Name]]&\"-\"&RIGHT(\"0\"&WEEKNUM(AvailabilityTable[[#This Row],[Date]],2)-Start_week,2)&YEAR(AvailabilityTable[[#This Row],[Date]]),\"\")","v":"-011900"}]
[null,null,null,{"$f":"IF(AvailabilityTable[[#This Row],[Name]]&\"-\"&RIGHT(\"0\"&WEEKNUM(AvailabilityTable[[#This Row],[Date]],2)-Start_week,2)<>\"-0-\",AvailabilityTable[[#This Row],[Name]]&\"-\"&RIGHT(\"0\"&WEEKNUM(AvailabilityTable[[#This Row],[Date]],2)-Start_week,2)&YEAR(AvailabilityTable[[#This Row],[Date]]),\"\")","v":"-011900"}]
[null,null,null,{"$f":"IF(AvailabilityTable[[#This Row],[Name]]&\"-\"&RIGHT(\"0\"&WEEKNUM(AvailabilityTable[[#This Row],[Date]],2)-Start_week,2)<>\"-0-\",AvailabilityTable[[#This Row],[Name]]&\"-\"&RIGHT(\"0\"&WEEKNUM(AvailabilityTable[[#This Row],[Date]],2)-Start_week,2)&YEAR(AvailabilityTable[[#This Row],[Date]]),\"\")","v":"-011900"}]
[null,null,null,{"$f":"IF(AvailabilityTable[[#This Row],[Name]]&\"-\"&RIGHT(\"0\"&WEEKNUM(AvailabilityTable[[#This Row],[Date]],2)-Start_week,2)<>\"-0-\",AvailabilityTable[[#This Row],[Name]]&\"-\"&RIGHT(\"0\"&WEEKNUM(AvailabilityTable[[#This Row],[Date]],2)-Start_week,2)&YEAR(AvailabilityTable[[#This Row],[Date]]),\"\")","v":"-011900"}]
[null,null,null,{"$f":"IF(AvailabilityTable[[#This Row],[Name]]&\"-\"&RIGHT(\"0\"&WEEKNUM(AvailabilityTable[[#This Row],[Date]],2)-Start_week,2)<>\"-0-\",AvailabilityTable[[#This Row],[Name]]&\"-\"&RIGHT(\"0\"&WEEKNUM(AvailabilityTable[[#This Row],[Date]],2)-Start_week,2)&YEAR(AvailabilityTable[[#This Row],[Date]]),\"\")","v":"-011900"}]
[null,null,null,{"$f":"IF(AvailabilityTable[[#This Row],[Name]]&\"-\"&RIGHT(\"0\"&WEEKNUM(AvailabilityTable[[#This Row],[Date]],2)-Start_week,2)<>\"-0-\",AvailabilityTable[[#This Row],[Name]]&\"-\"&RIGHT(\"0\"&WEEKNUM(AvailabilityTable[[#This Row],[Date]],2)-Start_week,2)&YEAR(AvailabilityTable[[#This Row],[Date]]),\"\")","v":"-011900"}]
[null,null,null,{"$f":"IF(AvailabilityTable[[#This Row],[Name]]&\"-\"&RIGHT(\"0\"&WEEKNUM(AvailabilityTable[[#This Row],[Date]],2)-Start_week,2)<>\"-0-\",AvailabilityTable[[#This Row],[Name]]&\"-\"&RIGHT(\"0\"&WEEKNUM(AvailabilityTable[[#This Row],[Date]],2)-Start_week,2)&YEAR(AvailabilityTable[[#This Row],[Date]]),\"\")","v":"-011900"}]
[null,null,null,{"$f":"IF(AvailabilityTable[[#This Row],[Name]]&\"-\"&RIGHT(\"0\"&WEEKNUM(AvailabilityTable[[#This Row],[Date]],2)-Start_week,2)<>\"-0-\",AvailabilityTable[[#This Row],[Name]]&\"-\"&RIGHT(\"0\"&WEEKNUM(AvailabilityTable[[#This Row],[Date]],2)-Start_week,2)&YEAR(AvailabilityTable[[#This Row],[Date]]),\"\")","v":"-011900"}]
[null,null,null,{"$f":"IF(AvailabilityTable[[#This Row],[Name]]&\"-\"&RIGHT(\"0\"&WEEKNUM(AvailabilityTable[[#This Row],[Date]],2)-Start_week,2)<>\"-0-\",AvailabilityTable[[#This Row],[Name]]&\"-\"&RIGHT(\"0\"&WEEKNUM(AvailabilityTable[[#This Row],[Date]],2)-Start_week,2)&YEAR(AvailabilityTable[[#This Row],[Date]]),\"\")","v":"-011900"}]
[null,null,null,{"$f":"IF(AvailabilityTable[[#This Row],[Name]]&\"-\"&RIGHT(\"0\"&WEEKNUM(AvailabilityTable[[#This Row],[Date]],2)-Start_week,2)<>\"-0-\",AvailabilityTable[[#This Row],[Name]]&\"-\"&RIGHT(\"0\"&WEEKNUM(AvailabilityTable[[#This Row],[Date]],2)-Start_week,2)&YEAR(AvailabilityTable[[#This Row],[Date]]),\"\")","v":"-011900"}]
[null,null,null,{"$f":"IF(AvailabilityTable[[#This Row],[Name]]&\"-\"&RIGHT(\"0\"&WEEKNUM(AvailabilityTable[[#This Row],[Date]],2)-Start_week,2)<>\"-0-\",AvailabilityTable[[#This Row],[Name]]&\"-\"&RIGHT(\"0\"&WEEKNUM(AvailabilityTable[[#This Row],[Date]],2)-Start_week,2)&YEAR(AvailabilityTable[[#This Row],[Date]]),\"\")","v":"-011900"}]
[null,null,null,{"$f":"IF(AvailabilityTable[[#This Row],[Name]]&\"-\"&RIGHT(\"0\"&WEEKNUM(AvailabilityTable[[#This Row],[Date]],2)-Start_week,2)<>\"-0-\",AvailabilityTable[[#This Row],[Name]]&\"-\"&RIGHT(\"0\"&WEEKNUM(AvailabilityTable[[#This Row],[Date]],2)-Start_week,2)&YEAR(AvailabilityTable[[#This Row],[Date]]),\"\")","v":"-011900"}]
[null,null,null,{"$f":"IF(AvailabilityTable[[#This Row],[Name]]&\"-\"&RIGHT(\"0\"&WEEKNUM(AvailabilityTable[[#This Row],[Date]],2)-Start_week,2)<>\"-0-\",AvailabilityTable[[#This Row],[Name]]&\"-\"&RIGHT(\"0\"&WEEKNUM(AvailabilityTable[[#This Row],[Date]],2)-Start_week,2)&YEAR(AvailabilityTable[[#This Row],[Date]]),\"\")","v":"-011900"}]
[null,null,null,{"$f":"IF(AvailabilityTable[[#This Row],[Name]]&\"-\"&RIGHT(\"0\"&WEEKNUM(AvailabilityTable[[#This Row],[Date]],2)-Start_week,2)<>\"-0-\",AvailabilityTable[[#This Row],[Name]]&\"-\"&RIGHT(\"0\"&WEEKNUM(AvailabilityTable[[#This Row],[Date]],2)-Start_week,2)&YEAR(AvailabilityTable[[#This Row],[Date]]),\"\")","v":"-011900"}]
[null,null,null,{"$f":"IF(AvailabilityTable[[#This Row],[Name]]&\"-\"&RIGHT(\"0\"&WEEKNUM(AvailabilityTable[[#This Row],[Date]],2)-Start_week,2)<>\"-0-\",AvailabilityTable[[#This Row],[Name]]&\"-\"&RIGHT(\"0\"&WEEKNUM(AvailabilityTable[[#This Row],[Date]],2)-Start_week,2)&YEAR(AvailabilityTable[[#This Row],[Date]]),\"\")","v":"-011900"}]
[null,null,null,{"$f":"IF(AvailabilityTable[[#This Row],[Name]]&\"-\"&RIGHT(\"0\"&WEEKNUM(AvailabilityTable[[#This Row],[Date]],2)-Start_week,2)<>\"-0-\",AvailabilityTable[[#This Row],[Name]]&\"-\"&RIGHT(\"0\"&WEEKNUM(AvailabilityTable[[#This Row],[Date]],2)-Start_week,2)&YEAR(AvailabilityTable[[#This Row],[Date]]),\"\")","v":"-011900"}]
[null,null,null,{"$f":"IF(AvailabilityTable[[#This Row],[Name]]&\"-\"&RIGHT(\"0\"&WEEKNUM(AvailabilityTable[[#This Row],[Date]],2)-Start_week,2)<>\"-0-\",AvailabilityTable[[#This Row],[Name]]&\"-\"&RIGHT(\"0\"&WEEKNUM(AvailabilityTable[[#This Row],[Date]],2)-Start_week,2)&YEAR(AvailabilityTable[[#This Row],[Date]]),\"\")","v":"-011900"}]
[null,null,null,{"$f":"IF(AvailabilityTable[[#This Row],[Name]]&\"-\"&RIGHT(\"0\"&WEEKNUM(AvailabilityTable[[#This Row],[Date]],2)-Start_week,2)<>\"-0-\",AvailabilityTable[[#This Row],[Name]]&\"-\"&RIGHT(\"0\"&WEEKNUM(AvailabilityTable[[#This Row],[Date]],2)-Start_week,2)&YEAR(AvailabilityTable[[#This Row],[Date]]),\"\")","v":"-011900"}]
[null,null,null,{"$f":"IF(AvailabilityTable[[#This Row],[Name]]&\"-\"&RIGHT(\"0\"&WEEKNUM(AvailabilityTable[[#This Row],[Date]],2)-Start_week,2)<>\"-0-\",AvailabilityTable[[#This Row],[Name]]&\"-\"&RIGHT(\"0\"&WEEKNUM(AvailabilityTable[[#This Row],[Date]],2)-Start_week,2)&YEAR(AvailabilityTable[[#This Row],[Date]]),\"\")","v":"-011900"}]
[null,null,null,{"$f":"IF(AvailabilityTable[[#This Row],[Name]]&\"-\"&RIGHT(\"0\"&WEEKNUM(AvailabilityTable[[#This Row],[Date]],2)-Start_week,2)<>\"-0-\",AvailabilityTable[[#This Row],[Name]]&\"-\"&RIGHT(\"0\"&WEEKNUM(AvailabilityTable[[#This Row],[Date]],2)-Start_week,2)&YEAR(AvailabilityTable[[#This Row],[Date]]),\"\")","v":"-011900"}]
[null,null,null,{"$f":"IF(AvailabilityTable[[#This Row],[Name]]&\"-\"&RIGHT(\"0\"&WEEKNUM(AvailabilityTable[[#This Row],[Date]],2)-Start_week,2)<>\"-0-\",AvailabilityTable[[#This Row],[Name]]&\"-\"&RIGHT(\"0\"&WEEKNUM(AvailabilityTable[[#This Row],[Date]],2)-Start_week,2)&YEAR(AvailabilityTable[[#This Row],[Date]]),\"\")","v":"-011900"}]
[null,null,null,{"$f":"IF(AvailabilityTable[[#This Row],[Name]]&\"-\"&RIGHT(\"0\"&WEEKNUM(AvailabilityTable[[#This Row],[Date]],2)-Start_week,2)<>\"-0-\",AvailabilityTable[[#This Row],[Name]]&\"-\"&RIGHT(\"0\"&WEEKNUM(AvailabilityTable[[#This Row],[Date]],2)-Start_week,2)&YEAR(AvailabilityTable[[#This Row],[Date]]),\"\")","v":"-011900"}]
[null,null,null,{"$f":"IF(AvailabilityTable[[#This Row],[Name]]&\"-\"&RIGHT(\"0\"&WEEKNUM(AvailabilityTable[[#This Row],[Date]],2)-Start_week,2)<>\"-0-\",AvailabilityTable[[#This Row],[Name]]&\"-\"&RIGHT(\"0\"&WEEKNUM(AvailabilityTable[[#This Row],[Date]],2)-Start_week,2)&YEAR(AvailabilityTable[[#This Row],[Date]]),\"\")","v":"-011900"}]
[null,null,null,{"$f":"IF(AvailabilityTable[[#This Row],[Name]]&\"-\"&RIGHT(\"0\"&WEEKNUM(AvailabilityTable[[#This Row],[Date]],2)-Start_week,2)<>\"-0-\",AvailabilityTable[[#This Row],[Name]]&\"-\"&RIGHT(\"0\"&WEEKNUM(AvailabilityTable[[#This Row],[Date]],2)-Start_week,2)&YEAR(AvailabilityTable[[#This Row],[Date]]),\"\")","v":"-011900"}]
[null,null,null,{"$f":"IF(AvailabilityTable[[#This Row],[Name]]&\"-\"&RIGHT(\"0\"&WEEKNUM(AvailabilityTable[[#This Row],[Date]],2)-Start_week,2)<>\"-0-\",AvailabilityTable[[#This Row],[Name]]&\"-\"&RIGHT(\"0\"&WEEKNUM(AvailabilityTable[[#This Row],[Date]],2)-Start_week,2)&YEAR(AvailabilityTable[[#This Row],[Date]]),\"\")","v":"-011900"}]
[null,null,null,{"$f":"IF(AvailabilityTable[[#This Row],[Name]]&\"-\"&RIGHT(\"0\"&WEEKNUM(AvailabilityTable[[#This Row],[Date]],2)-Start_week,2)<>\"-0-\",AvailabilityTable[[#This Row],[Name]]&\"-\"&RIGHT(\"0\"&WEEKNUM(AvailabilityTable[[#This Row],[Date]],2)-Start_week,2)&YEAR(AvailabilityTable[[#This Row],[Date]]),\"\")","v":"-011900"}]
[null,null,null,{"$f":"IF(AvailabilityTable[[#This Row],[Name]]&\"-\"&RIGHT(\"0\"&WEEKNUM(AvailabilityTable[[#This Row],[Date]],2)-Start_week,2)<>\"-0-\",AvailabilityTable[[#This Row],[Name]]&\"-\"&RIGHT(\"0\"&WEEKNUM(AvailabilityTable[[#This Row],[Date]],2)-Start_week,2)&YEAR(AvailabilityTable[[#This Row],[Date]]),\"\")","v":"-011900"}]
[null,null,null,{"$f":"IF(AvailabilityTable[[#This Row],[Name]]&\"-\"&RIGHT(\"0\"&WEEKNUM(AvailabilityTable[[#This Row],[Date]],2)-Start_week,2)<>\"-0-\",AvailabilityTable[[#This Row],[Name]]&\"-\"&RIGHT(\"0\"&WEEKNUM(AvailabilityTable[[#This Row],[Date]],2)-Start_week,2)&YEAR(AvailabilityTable[[#This Row],[Date]]),\"\")","v":"-011900"}]
[null,null,null,{"$f":"IF(AvailabilityTable[[#This Row],[Name]]&\"-\"&RIGHT(\"0\"&WEEKNUM(AvailabilityTable[[#This Row],[Date]],2)-Start_week,2)<>\"-0-\",AvailabilityTable[[#This Row],[Name]]&\"-\"&RIGHT(\"0\"&WEEKNUM(AvailabilityTable[[#This Row],[Date]],2)-Start_week,2)&YEAR(AvailabilityTable[[#This Row],[Date]]),\"\")","v":"-011900"}]
[null,null,null,{"$f":"IF(AvailabilityTable[[#This Row],[Name]]&\"-\"&RIGHT(\"0\"&WEEKNUM(AvailabilityTable[[#This Row],[Date]],2)-Start_week,2)<>\"-0-\",AvailabilityTable[[#This Row],[Name]]&\"-\"&RIGHT(\"0\"&WEEKNUM(AvailabilityTable[[#This Row],[Date]],2)-Start_week,2)&YEAR(AvailabilityTable[[#This Row],[Date]]),\"\")","v":"-011900"}]
[null,null,null,{"$f":"IF(AvailabilityTable[[#This Row],[Name]]&\"-\"&RIGHT(\"0\"&WEEKNUM(AvailabilityTable[[#This Row],[Date]],2)-Start_week,2)<>\"-0-\",AvailabilityTable[[#This Row],[Name]]&\"-\"&RIGHT(\"0\"&WEEKNUM(AvailabilityTable[[#This Row],[Date]],2)-Start_week,2)&YEAR(AvailabilityTable[[#This Row],[Date]]),\"\")","v":"-011900"}]
[null,null,null,{"$f":"IF(AvailabilityTable[[#This Row],[Name]]&\"-\"&RIGHT(\"0\"&WEEKNUM(AvailabilityTable[[#This Row],[Date]],2)-Start_week,2)<>\"-0-\",AvailabilityTable[[#This Row],[Name]]&\"-\"&RIGHT(\"0\"&WEEKNUM(AvailabilityTable[[#This Row],[Date]],2)-Start_week,2)&YEAR(AvailabilityTable[[#This Row],[Date]]),\"\")","v":"-011900"}]
[null,null,null,{"$f":"IF(AvailabilityTable[[#This Row],[Name]]&\"-\"&RIGHT(\"0\"&WEEKNUM(AvailabilityTable[[#This Row],[Date]],2)-Start_week,2)<>\"-0-\",AvailabilityTable[[#This Row],[Name]]&\"-\"&RIGHT(\"0\"&WEEKNUM(AvailabilityTable[[#This Row],[Date]],2)-Start_week,2)&YEAR(AvailabilityTable[[#This Row],[Date]]),\"\")","v":"-011900"}]
[null,null,null,{"$f":"IF(AvailabilityTable[[#This Row],[Name]]&\"-\"&RIGHT(\"0\"&WEEKNUM(AvailabilityTable[[#This Row],[Date]],2)-Start_week,2)<>\"-0-\",AvailabilityTable[[#This Row],[Name]]&\"-\"&RIGHT(\"0\"&WEEKNUM(AvailabilityTable[[#This Row],[Date]],2)-Start_week,2)&YEAR(AvailabilityTable[[#This Row],[Date]]),\"\")","v":"-011900"}]
[null,null,null,{"$f":"IF(AvailabilityTable[[#This Row],[Name]]&\"-\"&RIGHT(\"0\"&WEEKNUM(AvailabilityTable[[#This Row],[Date]],2)-Start_week,2)<>\"-0-\",AvailabilityTable[[#This Row],[Name]]&\"-\"&RIGHT(\"0\"&WEEKNUM(AvailabilityTable[[#This Row],[Date]],2)-Start_week,2)&YEAR(AvailabilityTable[[#This Row],[Date]]),\"\")","v":"-011900"}]
[null,null,null,{"$f":"IF(AvailabilityTable[[#This Row],[Name]]&\"-\"&RIGHT(\"0\"&WEEKNUM(AvailabilityTable[[#This Row],[Date]],2)-Start_week,2)<>\"-0-\",AvailabilityTable[[#This Row],[Name]]&\"-\"&RIGHT(\"0\"&WEEKNUM(AvailabilityTable[[#This Row],[Date]],2)-Start_week,2)&YEAR(AvailabilityTable[[#This Row],[Date]]),\"\")","v":"-011900"}]
[null,null,null,{"$f":"IF(AvailabilityTable[[#This Row],[Name]]&\"-\"&RIGHT(\"0\"&WEEKNUM(AvailabilityTable[[#This Row],[Date]],2)-Start_week,2)<>\"-0-\",AvailabilityTable[[#This Row],[Name]]&\"-\"&RIGHT(\"0\"&WEEKNUM(AvailabilityTable[[#This Row],[Date]],2)-Start_week,2)&YEAR(AvailabilityTable[[#This Row],[Date]]),\"\")","v":"-011900"}]
[null,null,null,{"$f":"IF(AvailabilityTable[[#This Row],[Name]]&\"-\"&RIGHT(\"0\"&WEEKNUM(AvailabilityTable[[#This Row],[Date]],2)-Start_week,2)<>\"-0-\",AvailabilityTable[[#This Row],[Name]]&\"-\"&RIGHT(\"0\"&WEEKNUM(AvailabilityTable[[#This Row],[Date]],2)-Start_week,2)&YEAR(AvailabilityTable[[#This Row],[Date]]),\"\")","v":"-011900"}]
[null,null,null,{"$f":"IF(AvailabilityTable[[#This Row],[Name]]&\"-\"&RIGHT(\"0\"&WEEKNUM(AvailabilityTable[[#This Row],[Date]],2)-Start_week,2)<>\"-0-\",AvailabilityTable[[#This Row],[Name]]&\"-\"&RIGHT(\"0\"&WEEKNUM(AvailabilityTable[[#This Row],[Date]],2)-Start_week,2)&YEAR(AvailabilityTable[[#This Row],[Date]]),\"\")","v":"-011900"}]
[null,null,null,{"$f":"IF(AvailabilityTable[[#This Row],[Name]]&\"-\"&RIGHT(\"0\"&WEEKNUM(AvailabilityTable[[#This Row],[Date]],2)-Start_week,2)<>\"-0-\",AvailabilityTable[[#This Row],[Name]]&\"-\"&RIGHT(\"0\"&WEEKNUM(AvailabilityTable[[#This Row],[Date]],2)-Start_week,2)&YEAR(AvailabilityTable[[#This Row],[Date]]),\"\")","v":"-011900"}]
[null,null,null,{"$f":"IF(AvailabilityTable[[#This Row],[Name]]&\"-\"&RIGHT(\"0\"&WEEKNUM(AvailabilityTable[[#This Row],[Date]],2)-Start_week,2)<>\"-0-\",AvailabilityTable[[#This Row],[Name]]&\"-\"&RIGHT(\"0\"&WEEKNUM(AvailabilityTable[[#This Row],[Date]],2)-Start_week,2)&YEAR(AvailabilityTable[[#This Row],[Date]]),\"\")","v":"-011900"}]
[null,null,null,{"$f":"IF(AvailabilityTable[[#This Row],[Name]]&\"-\"&RIGHT(\"0\"&WEEKNUM(AvailabilityTable[[#This Row],[Date]],2)-Start_week,2)<>\"-0-\",AvailabilityTable[[#This Row],[Name]]&\"-\"&RIGHT(\"0\"&WEEKNUM(AvailabilityTable[[#This Row],[Date]],2)-Start_week,2)&YEAR(AvailabilityTable[[#This Row],[Date]]),\"\")","v":"-011900"}]
[null,null,null,{"$f":"IF(AvailabilityTable[[#This Row],[Name]]&\"-\"&RIGHT(\"0\"&WEEKNUM(AvailabilityTable[[#This Row],[Date]],2)-Start_week,2)<>\"-0-\",AvailabilityTable[[#This Row],[Name]]&\"-\"&RIGHT(\"0\"&WEEKNUM(AvailabilityTable[[#This Row],[Date]],2)-Start_week,2)&YEAR(AvailabilityTable[[#This Row],[Date]]),\"\")","v":"-011900"}]
[null,null,null,{"$f":"IF(AvailabilityTable[[#This Row],[Name]]&\"-\"&RIGHT(\"0\"&WEEKNUM(AvailabilityTable[[#This Row],[Date]],2)-Start_week,2)<>\"-0-\",AvailabilityTable[[#This Row],[Name]]&\"-\"&RIGHT(\"0\"&WEEKNUM(AvailabilityTable[[#This Row],[Date]],2)-Start_week,2)&YEAR(AvailabilityTable[[#This Row],[Date]]),\"\")","v":"-011900"}]
[null,null,null,{"$f":"IF(AvailabilityTable[[#This Row],[Name]]&\"-\"&RIGHT(\"0\"&WEEKNUM(AvailabilityTable[[#This Row],[Date]],2)-Start_week,2)<>\"-0-\",AvailabilityTable[[#This Row],[Name]]&\"-\"&RIGHT(\"0\"&WEEKNUM(AvailabilityTable[[#This Row],[Date]],2)-Start_week,2)&YEAR(AvailabilityTable[[#This Row],[Date]]),\"\")","v":"-011900"}]
[null,null,null,{"$f":"IF(AvailabilityTable[[#This Row],[Name]]&\"-\"&RIGHT(\"0\"&WEEKNUM(AvailabilityTable[[#This Row],[Date]],2)-Start_week,2)<>\"-0-\",AvailabilityTable[[#This Row],[Name]]&\"-\"&RIGHT(\"0\"&WEEKNUM(AvailabilityTable[[#This Row],[Date]],2)-Start_week,2)&YEAR(AvailabilityTable[[#This Row],[Date]]),\"\")","v":"-011900"}]
[null,null,null,{"$f":"IF(AvailabilityTable[[#This Row],[Name]]&\"-\"&RIGHT(\"0\"&WEEKNUM(AvailabilityTable[[#This Row],[Date]],2)-Start_week,2)<>\"-0-\",AvailabilityTable[[#This Row],[Name]]&\"-\"&RIGHT(\"0\"&WEEKNUM(AvailabilityTable[[#This Row],[Date]],2)-Start_week,2)&YEAR(AvailabilityTable[[#This Row],[Date]]),\"\")","v":"-011900"}]
[null,null,null,{"$f":"IF(AvailabilityTable[[#This Row],[Name]]&\"-\"&RIGHT(\"0\"&WEEKNUM(AvailabilityTable[[#This Row],[Date]],2)-Start_week,2)<>\"-0-\",AvailabilityTable[[#This Row],[Name]]&\"-\"&RIGHT(\"0\"&WEEKNUM(AvailabilityTable[[#This Row],[Date]],2)-Start_week,2)&YEAR(AvailabilityTable[[#This Row],[Date]]),\"\")","v":"-011900"}]
[null,null,null,{"$f":"IF(AvailabilityTable[[#This Row],[Name]]&\"-\"&RIGHT(\"0\"&WEEKNUM(AvailabilityTable[[#This Row],[Date]],2)-Start_week,2)<>\"-0-\",AvailabilityTable[[#This Row],[Name]]&\"-\"&RIGHT(\"0\"&WEEKNUM(AvailabilityTable[[#This Row],[Date]],2)-Start_week,2)&YEAR(AvailabilityTable[[#This Row],[Date]]),\"\")","v":"-011900"}]
[null,null,null,{"$f":"IF(AvailabilityTable[[#This Row],[Name]]&\"-\"&RIGHT(\"0\"&WEEKNUM(AvailabilityTable[[#This Row],[Date]],2)-Start_week,2)<>\"-0-\",AvailabilityTable[[#This Row],[Name]]&\"-\"&RIGHT(\"0\"&WEEKNUM(AvailabilityTable[[#This Row],[Date]],2)-Start_week,2)&YEAR(AvailabilityTable[[#This Row],[Date]]),\"\")","v":"-011900"}]
[null,null,null,{"$f":"IF(AvailabilityTable[[#This Row],[Name]]&\"-\"&RIGHT(\"0\"&WEEKNUM(AvailabilityTable[[#This Row],[Date]],2)-Start_week,2)<>\"-0-\",AvailabilityTable[[#This Row],[Name]]&\"-\"&RIGHT(\"0\"&WEEKNUM(AvailabilityTable[[#This Row],[Date]],2)-Start_week,2)&YEAR(AvailabilityTable[[#This Row],[Date]]),\"\")","v":"-011900"}]
[null,null,null,{"$f":"IF(AvailabilityTable[[#This Row],[Name]]&\"-\"&RIGHT(\"0\"&WEEKNUM(AvailabilityTable[[#This Row],[Date]],2)-Start_week,2)<>\"-0-\",AvailabilityTable[[#This Row],[Name]]&\"-\"&RIGHT(\"0\"&WEEKNUM(AvailabilityTable[[#This Row],[Date]],2)-Start_week,2)&YEAR(AvailabilityTable[[#This Row],[Date]]),\"\")","v":"-011900"}]
[null,null,null,{"$f":"IF(AvailabilityTable[[#This Row],[Name]]&\"-\"&RIGHT(\"0\"&WEEKNUM(AvailabilityTable[[#This Row],[Date]],2)-Start_week,2)<>\"-0-\",AvailabilityTable[[#This Row],[Name]]&\"-\"&RIGHT(\"0\"&WEEKNUM(AvailabilityTable[[#This Row],[Date]],2)-Start_week,2)&YEAR(AvailabilityTable[[#This Row],[Date]]),\"\")","v":"-011900"}]
[null,null,null,{"$f":"IF(AvailabilityTable[[#This Row],[Name]]&\"-\"&RIGHT(\"0\"&WEEKNUM(AvailabilityTable[[#This Row],[Date]],2)-Start_week,2)<>\"-0-\",AvailabilityTable[[#This Row],[Name]]&\"-\"&RIGHT(\"0\"&WEEKNUM(AvailabilityTable[[#This Row],[Date]],2)-Start_week,2)&YEAR(AvailabilityTable[[#This Row],[Date]]),\"\")","v":"-011900"}]
[null,null,null,{"$f":"IF(AvailabilityTable[[#This Row],[Name]]&\"-\"&RIGHT(\"0\"&WEEKNUM(AvailabilityTable[[#This Row],[Date]],2)-Start_week,2)<>\"-0-\",AvailabilityTable[[#This Row],[Name]]&\"-\"&RIGHT(\"0\"&WEEKNUM(AvailabilityTable[[#This Row],[Date]],2)-Start_week,2)&YEAR(AvailabilityTable[[#This Row],[Date]]),\"\")","v":"-011900"}]
[null,null,null,{"$f":"IF(AvailabilityTable[[#This Row],[Name]]&\"-\"&RIGHT(\"0\"&WEEKNUM(AvailabilityTable[[#This Row],[Date]],2)-Start_week,2)<>\"-0-\",AvailabilityTable[[#This Row],[Name]]&\"-\"&RIGHT(\"0\"&WEEKNUM(AvailabilityTable[[#This Row],[Date]],2)-Start_week,2)&YEAR(AvailabilityTable[[#This Row],[Date]]),\"\")","v":"-011900"}]
[null,null,null,{"$f":"IF(AvailabilityTable[[#This Row],[Name]]&\"-\"&RIGHT(\"0\"&WEEKNUM(AvailabilityTable[[#This Row],[Date]],2)-Start_week,2)<>\"-0-\",AvailabilityTable[[#This Row],[Name]]&\"-\"&RIGHT(\"0\"&WEEKNUM(AvailabilityTable[[#This Row],[Date]],2)-Start_week,2)&YEAR(AvailabilityTable[[#This Row],[Date]]),\"\")","v":"-011900"}]
[null,null,null,{"$f":"IF(AvailabilityTable[[#This Row],[Name]]&\"-\"&RIGHT(\"0\"&WEEKNUM(AvailabilityTable[[#This Row],[Date]],2)-Start_week,2)<>\"-0-\",AvailabilityTable[[#This Row],[Name]]&\"-\"&RIGHT(\"0\"&WEEKNUM(AvailabilityTable[[#This Row],[Date]],2)-Start_week,2)&YEAR(AvailabilityTable[[#This Row],[Date]]),\"\")","v":"-011900"}]
[null,null,null,{"$f":"IF(AvailabilityTable[[#This Row],[Name]]&\"-\"&RIGHT(\"0\"&WEEKNUM(AvailabilityTable[[#This Row],[Date]],2)-Start_week,2)<>\"-0-\",AvailabilityTable[[#This Row],[Name]]&\"-\"&RIGHT(\"0\"&WEEKNUM(AvailabilityTable[[#This Row],[Date]],2)-Start_week,2)&YEAR(AvailabilityTable[[#This Row],[Date]]),\"\")","v":"-011900"}]
[null,null,null,{"$f":"IF(AvailabilityTable[[#This Row],[Name]]&\"-\"&RIGHT(\"0\"&WEEKNUM(AvailabilityTable[[#This Row],[Date]],2)-Start_week,2)<>\"-0-\",AvailabilityTable[[#This Row],[Name]]&\"-\"&RIGHT(\"0\"&WEEKNUM(AvailabilityTable[[#This Row],[Date]],2)-Start_week,2)&YEAR(AvailabilityTable[[#This Row],[Date]]),\"\")","v":"-011900"}]
[null,null,null,{"$f":"IF(AvailabilityTable[[#This Row],[Name]]&\"-\"&RIGHT(\"0\"&WEEKNUM(AvailabilityTable[[#This Row],[Date]],2)-Start_week,2)<>\"-0-\",AvailabilityTable[[#This Row],[Name]]&\"-\"&RIGHT(\"0\"&WEEKNUM(AvailabilityTable[[#This Row],[Date]],2)-Start_week,2)&YEAR(AvailabilityTable[[#This Row],[Date]]),\"\")","v":"-011900"}]
[null,null,null,{"$f":"IF(AvailabilityTable[[#This Row],[Name]]&\"-\"&RIGHT(\"0\"&WEEKNUM(AvailabilityTable[[#This Row],[Date]],2)-Start_week,2)<>\"-0-\",AvailabilityTable[[#This Row],[Name]]&\"-\"&RIGHT(\"0\"&WEEKNUM(AvailabilityTable[[#This Row],[Date]],2)-Start_week,2)&YEAR(AvailabilityTable[[#This Row],[Date]]),\"\")","v":"-011900"}]
[null,null,null,{"$f":"IF(AvailabilityTable[[#This Row],[Name]]&\"-\"&RIGHT(\"0\"&WEEKNUM(AvailabilityTable[[#This Row],[Date]],2)-Start_week,2)<>\"-0-\",AvailabilityTable[[#This Row],[Name]]&\"-\"&RIGHT(\"0\"&WEEKNUM(AvailabilityTable[[#This Row],[Date]],2)-Start_week,2)&YEAR(AvailabilityTable[[#This Row],[Date]]),\"\")","v":"-011900"}]
[null,null,null,{"$f":"IF(AvailabilityTable[[#This Row],[Name]]&\"-\"&RIGHT(\"0\"&WEEKNUM(AvailabilityTable[[#This Row],[Date]],2)-Start_week,2)<>\"-0-\",AvailabilityTable[[#This Row],[Name]]&\"-\"&RIGHT(\"0\"&WEEKNUM(AvailabilityTable[[#This Row],[Date]],2)-Start_week,2)&YEAR(AvailabilityTable[[#This Row],[Date]]),\"\")","v":"-011900"}]
[null,null,null,{"$f":"IF(AvailabilityTable[[#This Row],[Name]]&\"-\"&RIGHT(\"0\"&WEEKNUM(AvailabilityTable[[#This Row],[Date]],2)-Start_week,2)<>\"-0-\",AvailabilityTable[[#This Row],[Name]]&\"-\"&RIGHT(\"0\"&WEEKNUM(AvailabilityTable[[#This Row],[Date]],2)-Start_week,2)&YEAR(AvailabilityTable[[#This Row],[Date]]),\"\")","v":"-011900"}]
[null,null,null,{"$f":"IF(AvailabilityTable[[#This Row],[Name]]&\"-\"&RIGHT(\"0\"&WEEKNUM(AvailabilityTable[[#This Row],[Date]],2)-Start_week,2)<>\"-0-\",AvailabilityTable[[#This Row],[Name]]&\"-\"&RIGHT(\"0\"&WEEKNUM(AvailabilityTable[[#This Row],[Date]],2)-Start_week,2)&YEAR(AvailabilityTable[[#This Row],[Date]]),\"\")","v":"-011900"}]
[null,null,null,{"$f":"IF(AvailabilityTable[[#This Row],[Name]]&\"-\"&RIGHT(\"0\"&WEEKNUM(AvailabilityTable[[#This Row],[Date]],2)-Start_week,2)<>\"-0-\",AvailabilityTable[[#This Row],[Name]]&\"-\"&RIGHT(\"0\"&WEEKNUM(AvailabilityTable[[#This Row],[Date]],2)-Start_week,2)&YEAR(AvailabilityTable[[#This Row],[Date]]),\"\")","v":"-011900"}]
[null,null,null,{"$f":"IF(AvailabilityTable[[#This Row],[Name]]&\"-\"&RIGHT(\"0\"&WEEKNUM(AvailabilityTable[[#This Row],[Date]],2)-Start_week,2)<>\"-0-\",AvailabilityTable[[#This Row],[Name]]&\"-\"&RIGHT(\"0\"&WEEKNUM(AvailabilityTable[[#This Row],[Date]],2)-Start_week,2)&YEAR(AvailabilityTable[[#This Row],[Date]]),\"\")","v":"-011900"}]
[null,null,null,{"$f":"IF(AvailabilityTable[[#This Row],[Name]]&\"-\"&RIGHT(\"0\"&WEEKNUM(AvailabilityTable[[#This Row],[Date]],2)-Start_week,2)<>\"-0-\",AvailabilityTable[[#This Row],[Name]]&\"-\"&RIGHT(\"0\"&WEEKNUM(AvailabilityTable[[#This Row],[Date]],2)-Start_week,2)&YEAR(AvailabilityTable[[#This Row],[Date]]),\"\")","v":"-011900"}]
[null,null,null,{"$f":"IF(AvailabilityTable[[#This Row],[Name]]&\"-\"&RIGHT(\"0\"&WEEKNUM(AvailabilityTable[[#This Row],[Date]],2)-Start_week,2)<>\"-0-\",AvailabilityTable[[#This Row],[Name]]&\"-\"&RIGHT(\"0\"&WEEKNUM(AvailabilityTable[[#This Row],[Date]],2)-Start_week,2)&YEAR(AvailabilityTable[[#This Row],[Date]]),\"\")","v":"-011900"}]
[null,null,null,{"$f":"IF(AvailabilityTable[[#This Row],[Name]]&\"-\"&RIGHT(\"0\"&WEEKNUM(AvailabilityTable[[#This Row],[Date]],2)-Start_week,2)<>\"-0-\",AvailabilityTable[[#This Row],[Name]]&\"-\"&RIGHT(\"0\"&WEEKNUM(AvailabilityTable[[#This Row],[Date]],2)-Start_week,2)&YEAR(AvailabilityTable[[#This Row],[Date]]),\"\")","v":"-011900"}]
[null,null,null,{"$f":"IF(AvailabilityTable[[#This Row],[Name]]&\"-\"&RIGHT(\"0\"&WEEKNUM(AvailabilityTable[[#This Row],[Date]],2)-Start_week,2)<>\"-0-\",AvailabilityTable[[#This Row],[Name]]&\"-\"&RIGHT(\"0\"&WEEKNUM(AvailabilityTable[[#This Row],[Date]],2)-Start_week,2)&YEAR(AvailabilityTable[[#This Row],[Date]]),\"\")","v":"-011900"}]
[null,null,null,{"$f":"IF(AvailabilityTable[[#This Row],[Name]]&\"-\"&RIGHT(\"0\"&WEEKNUM(AvailabilityTable[[#This Row],[Date]],2)-Start_week,2)<>\"-0-\",AvailabilityTable[[#This Row],[Name]]&\"-\"&RIGHT(\"0\"&WEEKNUM(AvailabilityTable[[#This Row],[Date]],2)-Start_week,2)&YEAR(AvailabilityTable[[#This Row],[Date]]),\"\")","v":"-011900"}]
[null,null,null,{"$f":"IF(AvailabilityTable[[#This Row],[Name]]&\"-\"&RIGHT(\"0\"&WEEKNUM(AvailabilityTable[[#This Row],[Date]],2)-Start_week,2)<>\"-0-\",AvailabilityTable[[#This Row],[Name]]&\"-\"&RIGHT(\"0\"&WEEKNUM(AvailabilityTable[[#This Row],[Date]],2)-Start_week,2)&YEAR(AvailabilityTable[[#This Row],[Date]]),\"\")","v":"-011900"}]
[null,null,null,{"$f":"IF(AvailabilityTable[[#This Row],[Name]]&\"-\"&RIGHT(\"0\"&WEEKNUM(AvailabilityTable[[#This Row],[Date]],2)-Start_week,2)<>\"-0-\",AvailabilityTable[[#This Row],[Name]]&\"-\"&RIGHT(\"0\"&WEEKNUM(AvailabilityTable[[#This Row],[Date]],2)-Start_week,2)&YEAR(AvailabilityTable[[#This Row],[Date]]),\"\")","v":"-011900"}]
[null,null,null,{"$f":"IF(AvailabilityTable[[#This Row],[Name]]&\"-\"&RIGHT(\"0\"&WEEKNUM(AvailabilityTable[[#This Row],[Date]],2)-Start_week,2)<>\"-0-\",AvailabilityTable[[#This Row],[Name]]&\"-\"&RIGHT(\"0\"&WEEKNUM(AvailabilityTable[[#This Row],[Date]],2)-Start_week,2)&YEAR(AvailabilityTable[[#This Row],[Date]]),\"\")","v":"-011900"}]
[null,null,null,{"$f":"IF(AvailabilityTable[[#This Row],[Name]]&\"-\"&RIGHT(\"0\"&WEEKNUM(AvailabilityTable[[#This Row],[Date]],2)-Start_week,2)<>\"-0-\",AvailabilityTable[[#This Row],[Name]]&\"-\"&RIGHT(\"0\"&WEEKNUM(AvailabilityTable[[#This Row],[Date]],2)-Start_week,2)&YEAR(AvailabilityTable[[#This Row],[Date]]),\"\")","v":"-011900"}]
[null,null,null,{"$f":"IF(AvailabilityTable[[#This Row],[Name]]&\"-\"&RIGHT(\"0\"&WEEKNUM(AvailabilityTable[[#This Row],[Date]],2)-Start_week,2)<>\"-0-\",AvailabilityTable[[#This Row],[Name]]&\"-\"&RIGHT(\"0\"&WEEKNUM(AvailabilityTable[[#This Row],[Date]],2)-Start_week,2)&YEAR(AvailabilityTable[[#This Row],[Date]]),\"\")","v":"-011900"}]
[null,null,null,{"$f":"IF(AvailabilityTable[[#This Row],[Name]]&\"-\"&RIGHT(\"0\"&WEEKNUM(AvailabilityTable[[#This Row],[Date]],2)-Start_week,2)<>\"-0-\",AvailabilityTable[[#This Row],[Name]]&\"-\"&RIGHT(\"0\"&WEEKNUM(AvailabilityTable[[#This Row],[Date]],2)-Start_week,2)&YEAR(AvailabilityTable[[#This Row],[Date]]),\"\")","v":"-011900"}]
[null,null,null,{"$f":"IF(AvailabilityTable[[#This Row],[Name]]&\"-\"&RIGHT(\"0\"&WEEKNUM(AvailabilityTable[[#This Row],[Date]],2)-Start_week,2)<>\"-0-\",AvailabilityTable[[#This Row],[Name]]&\"-\"&RIGHT(\"0\"&WEEKNUM(AvailabilityTable[[#This Row],[Date]],2)-Start_week,2)&YEAR(AvailabilityTable[[#This Row],[Date]]),\"\")","v":"-011900"}]
[null,null,null,{"$f":"IF(AvailabilityTable[[#This Row],[Name]]&\"-\"&RIGHT(\"0\"&WEEKNUM(AvailabilityTable[[#This Row],[Date]],2)-Start_week,2)<>\"-0-\",AvailabilityTable[[#This Row],[Name]]&\"-\"&RIGHT(\"0\"&WEEKNUM(AvailabilityTable[[#This Row],[Date]],2)-Start_week,2)&YEAR(AvailabilityTable[[#This Row],[Date]]),\"\")","v":"-011900"}]
[null,null,null,{"$f":"IF(AvailabilityTable[[#This Row],[Name]]&\"-\"&RIGHT(\"0\"&WEEKNUM(AvailabilityTable[[#This Row],[Date]],2)-Start_week,2)<>\"-0-\",AvailabilityTable[[#This Row],[Name]]&\"-\"&RIGHT(\"0\"&WEEKNUM(AvailabilityTable[[#This Row],[Date]],2)-Start_week,2)&YEAR(AvailabilityTable[[#This Row],[Date]]),\"\")","v":"-011900"}]
[null,null,null,{"$f":"IF(AvailabilityTable[[#This Row],[Name]]&\"-\"&RIGHT(\"0\"&WEEKNUM(AvailabilityTable[[#This Row],[Date]],2)-Start_week,2)<>\"-0-\",AvailabilityTable[[#This Row],[Name]]&\"-\"&RIGHT(\"0\"&WEEKNUM(AvailabilityTable[[#This Row],[Date]],2)-Start_week,2)&YEAR(AvailabilityTable[[#This Row],[Date]]),\"\")","v":"-011900"}]
[null,null,null,{"$f":"IF(AvailabilityTable[[#This Row],[Name]]&\"-\"&RIGHT(\"0\"&WEEKNUM(AvailabilityTable[[#This Row],[Date]],2)-Start_week,2)<>\"-0-\",AvailabilityTable[[#This Row],[Name]]&\"-\"&RIGHT(\"0\"&WEEKNUM(AvailabilityTable[[#This Row],[Date]],2)-Start_week,2)&YEAR(AvailabilityTable[[#This Row],[Date]]),\"\")","v":"-011900"}]
[null,null,null,{"$f":"IF(AvailabilityTable[[#This Row],[Name]]&\"-\"&RIGHT(\"0\"&WEEKNUM(AvailabilityTable[[#This Row],[Date]],2)-Start_week,2)<>\"-0-\",AvailabilityTable[[#This Row],[Name]]&\"-\"&RIGHT(\"0\"&WEEKNUM(AvailabilityTable[[#This Row],[Date]],2)-Start_week,2)&YEAR(AvailabilityTable[[#This Row],[Date]]),\"\")","v":"-011900"}]
[null,null,null,{"$f":"IF(AvailabilityTable[[#This Row],[Name]]&\"-\"&RIGHT(\"0\"&WEEKNUM(AvailabilityTable[[#This Row],[Date]],2)-Start_week,2)<>\"-0-\",AvailabilityTable[[#This Row],[Name]]&\"-\"&RIGHT(\"0\"&WEEKNUM(AvailabilityTable[[#This Row],[Date]],2)-Start_week,2)&YEAR(AvailabilityTable[[#This Row],[Date]]),\"\")","v":"-011900"}]
[null,null,null,{"$f":"IF(AvailabilityTable[[#This Row],[Name]]&\"-\"&RIGHT(\"0\"&WEEKNUM(AvailabilityTable[[#This Row],[Date]],2)-Start_week,2)<>\"-0-\",AvailabilityTable[[#This Row],[Name]]&\"-\"&RIGHT(\"0\"&WEEKNUM(AvailabilityTable[[#This Row],[Date]],2)-Start_week,2)&YEAR(AvailabilityTable[[#This Row],[Date]]),\"\")","v":"-011900"}]
[null,null,null,{"$f":"IF(AvailabilityTable[[#This Row],[Name]]&\"-\"&RIGHT(\"0\"&WEEKNUM(AvailabilityTable[[#This Row],[Date]],2)-Start_week,2)<>\"-0-\",AvailabilityTable[[#This Row],[Name]]&\"-\"&RIGHT(\"0\"&WEEKNUM(AvailabilityTable[[#This Row],[Date]],2)-Start_week,2)&YEAR(AvailabilityTable[[#This Row],[Date]]),\"\")","v":"-011900"}]
[null,null,null,{"$f":"IF(AvailabilityTable[[#This Row],[Name]]&\"-\"&RIGHT(\"0\"&WEEKNUM(AvailabilityTable[[#This Row],[Date]],2)-Start_week,2)<>\"-0-\",AvailabilityTable[[#This Row],[Name]]&\"-\"&RIGHT(\"0\"&WEEKNUM(AvailabilityTable[[#This Row],[Date]],2)-Start_week,2)&YEAR(AvailabilityTable[[#This Row],[Date]]),\"\")","v":"-011900"}]
[null,null,null,{"$f":"IF(AvailabilityTable[[#This Row],[Name]]&\"-\"&RIGHT(\"0\"&WEEKNUM(AvailabilityTable[[#This Row],[Date]],2)-Start_week,2)<>\"-0-\",AvailabilityTable[[#This Row],[Name]]&\"-\"&RIGHT(\"0\"&WEEKNUM(AvailabilityTable[[#This Row],[Date]],2)-Start_week,2)&YEAR(AvailabilityTable[[#This Row],[Date]]),\"\")","v":"-011900"}]
[null,null,null,{"$f":"IF(AvailabilityTable[[#This Row],[Name]]&\"-\"&RIGHT(\"0\"&WEEKNUM(AvailabilityTable[[#This Row],[Date]],2)-Start_week,2)<>\"-0-\",AvailabilityTable[[#This Row],[Name]]&\"-\"&RIGHT(\"0\"&WEEKNUM(AvailabilityTable[[#This Row],[Date]],2)-Start_week,2)&YEAR(AvailabilityTable[[#This Row],[Date]]),\"\")","v":"-011900"}]
[null,null,null,{"$f":"IF(AvailabilityTable[[#This Row],[Name]]&\"-\"&RIGHT(\"0\"&WEEKNUM(AvailabilityTable[[#This Row],[Date]],2)-Start_week,2)<>\"-0-\",AvailabilityTable[[#This Row],[Name]]&\"-\"&RIGHT(\"0\"&WEEKNUM(AvailabilityTable[[#This Row],[Date]],2)-Start_week,2)&YEAR(AvailabilityTable[[#This Row],[Date]]),\"\")","v":"-011900"}]
[null,null,null,{"$f":"IF(AvailabilityTable[[#This Row],[Name]]&\"-\"&RIGHT(\"0\"&WEEKNUM(AvailabilityTable[[#This Row],[Date]],2)-Start_week,2)<>\"-0-\",AvailabilityTable[[#This Row],[Name]]&\"-\"&RIGHT(\"0\"&WEEKNUM(AvailabilityTable[[#This Row],[Date]],2)-Start_week,2)&YEAR(AvailabilityTable[[#This Row],[Date]]),\"\")","v":"-011900"}]
[null,null,null,{"$f":"IF(AvailabilityTable[[#This Row],[Name]]&\"-\"&RIGHT(\"0\"&WEEKNUM(AvailabilityTable[[#This Row],[Date]],2)-Start_week,2)<>\"-0-\",AvailabilityTable[[#This Row],[Name]]&\"-\"&RIGHT(\"0\"&WEEKNUM(AvailabilityTable[[#This Row],[Date]],2)-Start_week,2)&YEAR(AvailabilityTable[[#This Row],[Date]]),\"\")","v":"-011900"}]
[null,null,null,{"$f":"IF(AvailabilityTable[[#This Row],[Name]]&\"-\"&RIGHT(\"0\"&WEEKNUM(AvailabilityTable[[#This Row],[Date]],2)-Start_week,2)<>\"-0-\",AvailabilityTable[[#This Row],[Name]]&\"-\"&RIGHT(\"0\"&WEEKNUM(AvailabilityTable[[#This Row],[Date]],2)-Start_week,2)&YEAR(AvailabilityTable[[#This Row],[Date]]),\"\")","v":"-011900"}]
[null,null,null,{"$f":"IF(AvailabilityTable[[#This Row],[Name]]&\"-\"&RIGHT(\"0\"&WEEKNUM(AvailabilityTable[[#This Row],[Date]],2)-Start_week,2)<>\"-0-\",AvailabilityTable[[#This Row],[Name]]&\"-\"&RIGHT(\"0\"&WEEKNUM(AvailabilityTable[[#This Row],[Date]],2)-Start_week,2)&YEAR(AvailabilityTable[[#This Row],[Date]]),\"\")","v":"-011900"}]
[null,null,null,{"$f":"IF(AvailabilityTable[[#This Row],[Name]]&\"-\"&RIGHT(\"0\"&WEEKNUM(AvailabilityTable[[#This Row],[Date]],2)-Start_week,2)<>\"-0-\",AvailabilityTable[[#This Row],[Name]]&\"-\"&RIGHT(\"0\"&WEEKNUM(AvailabilityTable[[#This Row],[Date]],2)-Start_week,2)&YEAR(AvailabilityTable[[#This Row],[Date]]),\"\")","v":"-011900"}]
[null,null,null,{"$f":"IF(AvailabilityTable[[#This Row],[Name]]&\"-\"&RIGHT(\"0\"&WEEKNUM(AvailabilityTable[[#This Row],[Date]],2)-Start_week,2)<>\"-0-\",AvailabilityTable[[#This Row],[Name]]&\"-\"&RIGHT(\"0\"&WEEKNUM(AvailabilityTable[[#This Row],[Date]],2)-Start_week,2)&YEAR(AvailabilityTable[[#This Row],[Date]]),\"\")","v":"-011900"}]
[null,null,null,{"$f":"IF(AvailabilityTable[[#This Row],[Name]]&\"-\"&RIGHT(\"0\"&WEEKNUM(AvailabilityTable[[#This Row],[Date]],2)-Start_week,2)<>\"-0-\",AvailabilityTable[[#This Row],[Name]]&\"-\"&RIGHT(\"0\"&WEEKNUM(AvailabilityTable[[#This Row],[Date]],2)-Start_week,2)&YEAR(AvailabilityTable[[#This Row],[Date]]),\"\")","v":"-011900"}]
[null,null,null,{"$f":"IF(AvailabilityTable[[#This Row],[Name]]&\"-\"&RIGHT(\"0\"&WEEKNUM(AvailabilityTable[[#This Row],[Date]],2)-Start_week,2)<>\"-0-\",AvailabilityTable[[#This Row],[Name]]&\"-\"&RIGHT(\"0\"&WEEKNUM(AvailabilityTable[[#This Row],[Date]],2)-Start_week,2)&YEAR(AvailabilityTable[[#This Row],[Date]]),\"\")","v":"-011900"}]
[null,null,null,{"$f":"IF(AvailabilityTable[[#This Row],[Name]]&\"-\"&RIGHT(\"0\"&WEEKNUM(AvailabilityTable[[#This Row],[Date]],2)-Start_week,2)<>\"-0-\",AvailabilityTable[[#This Row],[Name]]&\"-\"&RIGHT(\"0\"&WEEKNUM(AvailabilityTable[[#This Row],[Date]],2)-Start_week,2)&YEAR(AvailabilityTable[[#This Row],[Date]]),\"\")","v":"-011900"}]
[null,null,null,{"$f":"IF(AvailabilityTable[[#This Row],[Name]]&\"-\"&RIGHT(\"0\"&WEEKNUM(AvailabilityTable[[#This Row],[Date]],2)-Start_week,2)<>\"-0-\",AvailabilityTable[[#This Row],[Name]]&\"-\"&RIGHT(\"0\"&WEEKNUM(AvailabilityTable[[#This Row],[Date]],2)-Start_week,2)&YEAR(AvailabilityTable[[#This Row],[Date]]),\"\")","v":"-011900"}]
[null,null,null,{"$f":"IF(AvailabilityTable[[#This Row],[Name]]&\"-\"&RIGHT(\"0\"&WEEKNUM(AvailabilityTable[[#This Row],[Date]],2)-Start_week,2)<>\"-0-\",AvailabilityTable[[#This Row],[Name]]&\"-\"&RIGHT(\"0\"&WEEKNUM(AvailabilityTable[[#This Row],[Date]],2)-Start_week,2)&YEAR(AvailabilityTable[[#This Row],[Date]]),\"\")","v":"-011900"}]
[null,null,null,{"$f":"IF(AvailabilityTable[[#This Row],[Name]]&\"-\"&RIGHT(\"0\"&WEEKNUM(AvailabilityTable[[#This Row],[Date]],2)-Start_week,2)<>\"-0-\",AvailabilityTable[[#This Row],[Name]]&\"-\"&RIGHT(\"0\"&WEEKNUM(AvailabilityTable[[#This Row],[Date]],2)-Start_week,2)&YEAR(AvailabilityTable[[#This Row],[Date]]),\"\")","v":"-011900"}]
[null,null,null,{"$f":"IF(AvailabilityTable[[#This Row],[Name]]&\"-\"&RIGHT(\"0\"&WEEKNUM(AvailabilityTable[[#This Row],[Date]],2)-Start_week,2)<>\"-0-\",AvailabilityTable[[#This Row],[Name]]&\"-\"&RIGHT(\"0\"&WEEKNUM(AvailabilityTable[[#This Row],[Date]],2)-Start_week,2)&YEAR(AvailabilityTable[[#This Row],[Date]]),\"\")","v":"-011900"}]
[null,null,null,{"$f":"IF(AvailabilityTable[[#This Row],[Name]]&\"-\"&RIGHT(\"0\"&WEEKNUM(AvailabilityTable[[#This Row],[Date]],2)-Start_week,2)<>\"-0-\",AvailabilityTable[[#This Row],[Name]]&\"-\"&RIGHT(\"0\"&WEEKNUM(AvailabilityTable[[#This Row],[Date]],2)-Start_week,2)&YEAR(AvailabilityTable[[#This Row],[Date]]),\"\")","v":"-011900"}]
[null,null,null,{"$f":"IF(AvailabilityTable[[#This Row],[Name]]&\"-\"&RIGHT(\"0\"&WEEKNUM(AvailabilityTable[[#This Row],[Date]],2)-Start_week,2)<>\"-0-\",AvailabilityTable[[#This Row],[Name]]&\"-\"&RIGHT(\"0\"&WEEKNUM(AvailabilityTable[[#This Row],[Date]],2)-Start_week,2)&YEAR(AvailabilityTable[[#This Row],[Date]]),\"\")","v":"-011900"}]
[null,null,null,{"$f":"IF(AvailabilityTable[[#This Row],[Name]]&\"-\"&RIGHT(\"0\"&WEEKNUM(AvailabilityTable[[#This Row],[Date]],2)-Start_week,2)<>\"-0-\",AvailabilityTable[[#This Row],[Name]]&\"-\"&RIGHT(\"0\"&WEEKNUM(AvailabilityTable[[#This Row],[Date]],2)-Start_week,2)&YEAR(AvailabilityTable[[#This Row],[Date]]),\"\")","v":"-011900"}]
[null,null,null,{"$f":"IF(AvailabilityTable[[#This Row],[Name]]&\"-\"&RIGHT(\"0\"&WEEKNUM(AvailabilityTable[[#This Row],[Date]],2)-Start_week,2)<>\"-0-\",AvailabilityTable[[#This Row],[Name]]&\"-\"&RIGHT(\"0\"&WEEKNUM(AvailabilityTable[[#This Row],[Date]],2)-Start_week,2)&YEAR(AvailabilityTable[[#This Row],[Date]]),\"\")","v":"-011900"}]
[null,null,null,{"$f":"IF(AvailabilityTable[[#This Row],[Name]]&\"-\"&RIGHT(\"0\"&WEEKNUM(AvailabilityTable[[#This Row],[Date]],2)-Start_week,2)<>\"-0-\",AvailabilityTable[[#This Row],[Name]]&\"-\"&RIGHT(\"0\"&WEEKNUM(AvailabilityTable[[#This Row],[Date]],2)-Start_week,2)&YEAR(AvailabilityTable[[#This Row],[Date]]),\"\")","v":"-011900"}]
[null,null,null,{"$f":"IF(AvailabilityTable[[#This Row],[Name]]&\"-\"&RIGHT(\"0\"&WEEKNUM(AvailabilityTable[[#This Row],[Date]],2)-Start_week,2)<>\"-0-\",AvailabilityTable[[#This Row],[Name]]&\"-\"&RIGHT(\"0\"&WEEKNUM(AvailabilityTable[[#This Row],[Date]],2)-Start_week,2)&YEAR(AvailabilityTable[[#This Row],[Date]]),\"\")","v":"-011900"}]
[null,null,null,{"$f":"IF(AvailabilityTable[[#This Row],[Name]]&\"-\"&RIGHT(\"0\"&WEEKNUM(AvailabilityTable[[#This Row],[Date]],2)-Start_week,2)<>\"-0-\",AvailabilityTable[[#This Row],[Name]]&\"-\"&RIGHT(\"0\"&WEEKNUM(AvailabilityTable[[#This Row],[Date]],2)-Start_week,2)&YEAR(AvailabilityTable[[#This Row],[Date]]),\"\")","v":"-011900"}]
[null,null,null,{"$f":"IF(AvailabilityTable[[#This Row],[Name]]&\"-\"&RIGHT(\"0\"&WEEKNUM(AvailabilityTable[[#This Row],[Date]],2)-Start_week,2)<>\"-0-\",AvailabilityTable[[#This Row],[Name]]&\"-\"&RIGHT(\"0\"&WEEKNUM(AvailabilityTable[[#This Row],[Date]],2)-Start_week,2)&YEAR(AvailabilityTable[[#This Row],[Date]]),\"\")","v":"-011900"}]
[null,null,null,{"$f":"IF(AvailabilityTable[[#This Row],[Name]]&\"-\"&RIGHT(\"0\"&WEEKNUM(AvailabilityTable[[#This Row],[Date]],2)-Start_week,2)<>\"-0-\",AvailabilityTable[[#This Row],[Name]]&\"-\"&RIGHT(\"0\"&WEEKNUM(AvailabilityTable[[#This Row],[Date]],2)-Start_week,2)&YEAR(AvailabilityTable[[#This Row],[Date]]),\"\")","v":"-011900"}]
[null,null,null,{"$f":"IF(AvailabilityTable[[#This Row],[Name]]&\"-\"&RIGHT(\"0\"&WEEKNUM(AvailabilityTable[[#This Row],[Date]],2)-Start_week,2)<>\"-0-\",AvailabilityTable[[#This Row],[Name]]&\"-\"&RIGHT(\"0\"&WEEKNUM(AvailabilityTable[[#This Row],[Date]],2)-Start_week,2)&YEAR(AvailabilityTable[[#This Row],[Date]]),\"\")","v":"-011900"}]
[null,null,null,{"$f":"IF(AvailabilityTable[[#This Row],[Name]]&\"-\"&RIGHT(\"0\"&WEEKNUM(AvailabilityTable[[#This Row],[Date]],2)-Start_week,2)<>\"-0-\",AvailabilityTable[[#This Row],[Name]]&\"-\"&RIGHT(\"0\"&WEEKNUM(AvailabilityTable[[#This Row],[Date]],2)-Start_week,2)&YEAR(AvailabilityTable[[#This Row],[Date]]),\"\")","v":"-011900"}]
[null,null,null,{"$f":"IF(AvailabilityTable[[#This Row],[Name]]&\"-\"&RIGHT(\"0\"&WEEKNUM(AvailabilityTable[[#This Row],[Date]],2)-Start_week,2)<>\"-0-\",AvailabilityTable[[#This Row],[Name]]&\"-\"&RIGHT(\"0\"&WEEKNUM(AvailabilityTable[[#This Row],[Date]],2)-Start_week,2)&YEAR(AvailabilityTable[[#This Row],[Date]]),\"\")","v":"-011900"}]
[null,null,null,{"$f":"IF(AvailabilityTable[[#This Row],[Name]]&\"-\"&RIGHT(\"0\"&WEEKNUM(AvailabilityTable[[#This Row],[Date]],2)-Start_week,2)<>\"-0-\",AvailabilityTable[[#This Row],[Name]]&\"-\"&RIGHT(\"0\"&WEEKNUM(AvailabilityTable[[#This Row],[Date]],2)-Start_week,2)&YEAR(AvailabilityTable[[#This Row],[Date]]),\"\")","v":"-011900"}]
[null,null,null,{"$f":"IF(AvailabilityTable[[#This Row],[Name]]&\"-\"&RIGHT(\"0\"&WEEKNUM(AvailabilityTable[[#This Row],[Date]],2)-Start_week,2)<>\"-0-\",AvailabilityTable[[#This Row],[Name]]&\"-\"&RIGHT(\"0\"&WEEKNUM(AvailabilityTable[[#This Row],[Date]],2)-Start_week,2)&YEAR(AvailabilityTable[[#This Row],[Date]]),\"\")","v":"-011900"}]
[null,null,null,{"$f":"IF(AvailabilityTable[[#This Row],[Name]]&\"-\"&RIGHT(\"0\"&WEEKNUM(AvailabilityTable[[#This Row],[Date]],2)-Start_week,2)<>\"-0-\",AvailabilityTable[[#This Row],[Name]]&\"-\"&RIGHT(\"0\"&WEEKNUM(AvailabilityTable[[#This Row],[Date]],2)-Start_week,2)&YEAR(AvailabilityTable[[#This Row],[Date]]),\"\")","v":"-011900"}]
[null,null,null,{"$f":"IF(AvailabilityTable[[#This Row],[Name]]&\"-\"&RIGHT(\"0\"&WEEKNUM(AvailabilityTable[[#This Row],[Date]],2)-Start_week,2)<>\"-0-\",AvailabilityTable[[#This Row],[Name]]&\"-\"&RIGHT(\"0\"&WEEKNUM(AvailabilityTable[[#This Row],[Date]],2)-Start_week,2)&YEAR(AvailabilityTable[[#This Row],[Date]]),\"\")","v":"-011900"}]
[null,null,null,{"$f":"IF(AvailabilityTable[[#This Row],[Name]]&\"-\"&RIGHT(\"0\"&WEEKNUM(AvailabilityTable[[#This Row],[Date]],2)-Start_week,2)<>\"-0-\",AvailabilityTable[[#This Row],[Name]]&\"-\"&RIGHT(\"0\"&WEEKNUM(AvailabilityTable[[#This Row],[Date]],2)-Start_week,2)&YEAR(AvailabilityTable[[#This Row],[Date]]),\"\")","v":"-011900"}]
[null,null,null,{"$f":"IF(AvailabilityTable[[#This Row],[Name]]&\"-\"&RIGHT(\"0\"&WEEKNUM(AvailabilityTable[[#This Row],[Date]],2)-Start_week,2)<>\"-0-\",AvailabilityTable[[#This Row],[Name]]&\"-\"&RIGHT(\"0\"&WEEKNUM(AvailabilityTable[[#This Row],[Date]],2)-Start_week,2)&YEAR(AvailabilityTable[[#This Row],[Date]]),\"\")","v":"-011900"}]
[null,null,null,{"$f":"IF(AvailabilityTable[[#This Row],[Name]]&\"-\"&RIGHT(\"0\"&WEEKNUM(AvailabilityTable[[#This Row],[Date]],2)-Start_week,2)<>\"-0-\",AvailabilityTable[[#This Row],[Name]]&\"-\"&RIGHT(\"0\"&WEEKNUM(AvailabilityTable[[#This Row],[Date]],2)-Start_week,2)&YEAR(AvailabilityTable[[#This Row],[Date]]),\"\")","v":"-011900"}]
[null,null,null,{"$f":"IF(AvailabilityTable[[#This Row],[Name]]&\"-\"&RIGHT(\"0\"&WEEKNUM(AvailabilityTable[[#This Row],[Date]],2)-Start_week,2)<>\"-0-\",AvailabilityTable[[#This Row],[Name]]&\"-\"&RIGHT(\"0\"&WEEKNUM(AvailabilityTable[[#This Row],[Date]],2)-Start_week,2)&YEAR(AvailabilityTable[[#This Row],[Date]]),\"\")","v":"-011900"}]
[null,null,null,{"$f":"IF(AvailabilityTable[[#This Row],[Name]]&\"-\"&RIGHT(\"0\"&WEEKNUM(AvailabilityTable[[#This Row],[Date]],2)-Start_week,2)<>\"-0-\",AvailabilityTable[[#This Row],[Name]]&\"-\"&RIGHT(\"0\"&WEEKNUM(AvailabilityTable[[#This Row],[Date]],2)-Start_week,2)&YEAR(AvailabilityTable[[#This Row],[Date]]),\"\")","v":"-011900"}]
[null,null,null,{"$f":"IF(AvailabilityTable[[#This Row],[Name]]&\"-\"&RIGHT(\"0\"&WEEKNUM(AvailabilityTable[[#This Row],[Date]],2)-Start_week,2)<>\"-0-\",AvailabilityTable[[#This Row],[Name]]&\"-\"&RIGHT(\"0\"&WEEKNUM(AvailabilityTable[[#This Row],[Date]],2)-Start_week,2)&YEAR(AvailabilityTable[[#This Row],[Date]]),\"\")","v":"-011900"}]
[null,null,null,{"$f":"IF(AvailabilityTable[[#This Row],[Name]]&\"-\"&RIGHT(\"0\"&WEEKNUM(AvailabilityTable[[#This Row],[Date]],2)-Start_week,2)<>\"-0-\",AvailabilityTable[[#This Row],[Name]]&\"-\"&RIGHT(\"0\"&WEEKNUM(AvailabilityTable[[#This Row],[Date]],2)-Start_week,2)&YEAR(AvailabilityTable[[#This Row],[Date]]),\"\")","v":"-011900"}]
[null,null,null,{"$f":"IF(AvailabilityTable[[#This Row],[Name]]&\"-\"&RIGHT(\"0\"&WEEKNUM(AvailabilityTable[[#This Row],[Date]],2)-Start_week,2)<>\"-0-\",AvailabilityTable[[#This Row],[Name]]&\"-\"&RIGHT(\"0\"&WEEKNUM(AvailabilityTable[[#This Row],[Date]],2)-Start_week,2)&YEAR(AvailabilityTable[[#This Row],[Date]]),\"\")","v":"-011900"}]
[null,null,null,{"$f":"IF(AvailabilityTable[[#This Row],[Name]]&\"-\"&RIGHT(\"0\"&WEEKNUM(AvailabilityTable[[#This Row],[Date]],2)-Start_week,2)<>\"-0-\",AvailabilityTable[[#This Row],[Name]]&\"-\"&RIGHT(\"0\"&WEEKNUM(AvailabilityTable[[#This Row],[Date]],2)-Start_week,2)&YEAR(AvailabilityTable[[#This Row],[Date]]),\"\")","v":"-011900"}]
[null,null,null,{"$f":"IF(AvailabilityTable[[#This Row],[Name]]&\"-\"&RIGHT(\"0\"&WEEKNUM(AvailabilityTable[[#This Row],[Date]],2)-Start_week,2)<>\"-0-\",AvailabilityTable[[#This Row],[Name]]&\"-\"&RIGHT(\"0\"&WEEKNUM(AvailabilityTable[[#This Row],[Date]],2)-Start_week,2)&YEAR(AvailabilityTable[[#This Row],[Date]]),\"\")","v":"-011900"}]
[null,null,null,{"$f":"IF(AvailabilityTable[[#This Row],[Name]]&\"-\"&RIGHT(\"0\"&WEEKNUM(AvailabilityTable[[#This Row],[Date]],2)-Start_week,2)<>\"-0-\",AvailabilityTable[[#This Row],[Name]]&\"-\"&RIGHT(\"0\"&WEEKNUM(AvailabilityTable[[#This Row],[Date]],2)-Start_week,2)&YEAR(AvailabilityTable[[#This Row],[Date]]),\"\")","v":"-011900"}]
[null,null,null,{"$f":"IF(AvailabilityTable[[#This Row],[Name]]&\"-\"&RIGHT(\"0\"&WEEKNUM(AvailabilityTable[[#This Row],[Date]],2)-Start_week,2)<>\"-0-\",AvailabilityTable[[#This Row],[Name]]&\"-\"&RIGHT(\"0\"&WEEKNUM(AvailabilityTable[[#This Row],[Date]],2)-Start_week,2)&YEAR(AvailabilityTable[[#This Row],[Date]]),\"\")","v":"-011900"}]
[null,null,null,{"$f":"IF(AvailabilityTable[[#This Row],[Name]]&\"-\"&RIGHT(\"0\"&WEEKNUM(AvailabilityTable[[#This Row],[Date]],2)-Start_week,2)<>\"-0-\",AvailabilityTable[[#This Row],[Name]]&\"-\"&RIGHT(\"0\"&WEEKNUM(AvailabilityTable[[#This Row],[Date]],2)-Start_week,2)&YEAR(AvailabilityTable[[#This Row],[Date]]),\"\")","v":"-011900"}]
[null,null,null,{"$f":"IF(AvailabilityTable[[#This Row],[Name]]&\"-\"&RIGHT(\"0\"&WEEKNUM(AvailabilityTable[[#This Row],[Date]],2)-Start_week,2)<>\"-0-\",AvailabilityTable[[#This Row],[Name]]&\"-\"&RIGHT(\"0\"&WEEKNUM(AvailabilityTable[[#This Row],[Date]],2)-Start_week,2)&YEAR(AvailabilityTable[[#This Row],[Date]]),\"\")","v":"-011900"}]
[null,null,null,{"$f":"IF(AvailabilityTable[[#This Row],[Name]]&\"-\"&RIGHT(\"0\"&WEEKNUM(AvailabilityTable[[#This Row],[Date]],2)-Start_week,2)<>\"-0-\",AvailabilityTable[[#This Row],[Name]]&\"-\"&RIGHT(\"0\"&WEEKNUM(AvailabilityTable[[#This Row],[Date]],2)-Start_week,2)&YEAR(AvailabilityTable[[#This Row],[Date]]),\"\")","v":"-011900"}]
[null,null,null,{"$f":"IF(AvailabilityTable[[#This Row],[Name]]&\"-\"&RIGHT(\"0\"&WEEKNUM(AvailabilityTable[[#This Row],[Date]],2)-Start_week,2)<>\"-0-\",AvailabilityTable[[#This Row],[Name]]&\"-\"&RIGHT(\"0\"&WEEKNUM(AvailabilityTable[[#This Row],[Date]],2)-Start_week,2)&YEAR(AvailabilityTable[[#This Row],[Date]]),\"\")","v":"-011900"}]
[null,null,null,{"$f":"IF(AvailabilityTable[[#This Row],[Name]]&\"-\"&RIGHT(\"0\"&WEEKNUM(AvailabilityTable[[#This Row],[Date]],2)-Start_week,2)<>\"-0-\",AvailabilityTable[[#This Row],[Name]]&\"-\"&RIGHT(\"0\"&WEEKNUM(AvailabilityTable[[#This Row],[Date]],2)-Start_week,2)&YEAR(AvailabilityTable[[#This Row],[Date]]),\"\")","v":"-011900"}]
[null,null,null,{"$f":"IF(AvailabilityTable[[#This Row],[Name]]&\"-\"&RIGHT(\"0\"&WEEKNUM(AvailabilityTable[[#This Row],[Date]],2)-Start_week,2)<>\"-0-\",AvailabilityTable[[#This Row],[Name]]&\"-\"&RIGHT(\"0\"&WEEKNUM(AvailabilityTable[[#This Row],[Date]],2)-Start_week,2)&YEAR(AvailabilityTable[[#This Row],[Date]]),\"\")","v":"-011900"}]
[null,null,null,{"$f":"IF(AvailabilityTable[[#This Row],[Name]]&\"-\"&RIGHT(\"0\"&WEEKNUM(AvailabilityTable[[#This Row],[Date]],2)-Start_week,2)<>\"-0-\",AvailabilityTable[[#This Row],[Name]]&\"-\"&RIGHT(\"0\"&WEEKNUM(AvailabilityTable[[#This Row],[Date]],2)-Start_week,2)&YEAR(AvailabilityTable[[#This Row],[Date]]),\"\")","v":"-011900"}]
[null,null,null,{"$f":"IF(AvailabilityTable[[#This Row],[Name]]&\"-\"&RIGHT(\"0\"&WEEKNUM(AvailabilityTable[[#This Row],[Date]],2)-Start_week,2)<>\"-0-\",AvailabilityTable[[#This Row],[Name]]&\"-\"&RIGHT(\"0\"&WEEKNUM(AvailabilityTable[[#This Row],[Date]],2)-Start_week,2)&YEAR(AvailabilityTable[[#This Row],[Date]]),\"\")","v":"-011900"}]
[null,null,null,{"$f":"IF(AvailabilityTable[[#This Row],[Name]]&\"-\"&RIGHT(\"0\"&WEEKNUM(AvailabilityTable[[#This Row],[Date]],2)-Start_week,2)<>\"-0-\",AvailabilityTable[[#This Row],[Name]]&\"-\"&RIGHT(\"0\"&WEEKNUM(AvailabilityTable[[#This Row],[Date]],2)-Start_week,2)&YEAR(AvailabilityTable[[#This Row],[Date]]),\"\")","v":"-011900"}]
[null,null,null,{"$f":"IF(AvailabilityTable[[#This Row],[Name]]&\"-\"&RIGHT(\"0\"&WEEKNUM(AvailabilityTable[[#This Row],[Date]],2)-Start_week,2)<>\"-0-\",AvailabilityTable[[#This Row],[Name]]&\"-\"&RIGHT(\"0\"&WEEKNUM(AvailabilityTable[[#This Row],[Date]],2)-Start_week,2)&YEAR(AvailabilityTable[[#This Row],[Date]]),\"\")","v":"-011900"}]
[null,null,null,{"$f":"IF(AvailabilityTable[[#This Row],[Name]]&\"-\"&RIGHT(\"0\"&WEEKNUM(AvailabilityTable[[#This Row],[Date]],2)-Start_week,2)<>\"-0-\",AvailabilityTable[[#This Row],[Name]]&\"-\"&RIGHT(\"0\"&WEEKNUM(AvailabilityTable[[#This Row],[Date]],2)-Start_week,2)&YEAR(AvailabilityTable[[#This Row],[Date]]),\"\")","v":"-011900"}]
[null,null,null,{"$f":"IF(AvailabilityTable[[#This Row],[Name]]&\"-\"&RIGHT(\"0\"&WEEKNUM(AvailabilityTable[[#This Row],[Date]],2)-Start_week,2)<>\"-0-\",AvailabilityTable[[#This Row],[Name]]&\"-\"&RIGHT(\"0\"&WEEKNUM(AvailabilityTable[[#This Row],[Date]],2)-Start_week,2)&YEAR(AvailabilityTable[[#This Row],[Date]]),\"\")","v":"-011900"}]
[null,null,null,{"$f":"IF(AvailabilityTable[[#This Row],[Name]]&\"-\"&RIGHT(\"0\"&WEEKNUM(AvailabilityTable[[#This Row],[Date]],2)-Start_week,2)<>\"-0-\",AvailabilityTable[[#This Row],[Name]]&\"-\"&RIGHT(\"0\"&WEEKNUM(AvailabilityTable[[#This Row],[Date]],2)-Start_week,2)&YEAR(AvailabilityTable[[#This Row],[Date]]),\"\")","v":"-011900"}]
[null,null,null,{"$f":"IF(AvailabilityTable[[#This Row],[Name]]&\"-\"&RIGHT(\"0\"&WEEKNUM(AvailabilityTable[[#This Row],[Date]],2)-Start_week,2)<>\"-0-\",AvailabilityTable[[#This Row],[Name]]&\"-\"&RIGHT(\"0\"&WEEKNUM(AvailabilityTable[[#This Row],[Date]],2)-Start_week,2)&YEAR(AvailabilityTable[[#This Row],[Date]]),\"\")","v":"-011900"}]
[null,null,null,{"$f":"IF(AvailabilityTable[[#This Row],[Name]]&\"-\"&RIGHT(\"0\"&WEEKNUM(AvailabilityTable[[#This Row],[Date]],2)-Start_week,2)<>\"-0-\",AvailabilityTable[[#This Row],[Name]]&\"-\"&RIGHT(\"0\"&WEEKNUM(AvailabilityTable[[#This Row],[Date]],2)-Start_week,2)&YEAR(AvailabilityTable[[#This Row],[Date]]),\"\")","v":"-011900"}]
[null,null,null,{"$f":"IF(AvailabilityTable[[#This Row],[Name]]&\"-\"&RIGHT(\"0\"&WEEKNUM(AvailabilityTable[[#This Row],[Date]],2)-Start_week,2)<>\"-0-\",AvailabilityTable[[#This Row],[Name]]&\"-\"&RIGHT(\"0\"&WEEKNUM(AvailabilityTable[[#This Row],[Date]],2)-Start_week,2)&YEAR(AvailabilityTable[[#This Row],[Date]]),\"\")","v":"-011900"}]
[null,null,null,{"$f":"IF(AvailabilityTable[[#This Row],[Name]]&\"-\"&RIGHT(\"0\"&WEEKNUM(AvailabilityTable[[#This Row],[Date]],2)-Start_week,2)<>\"-0-\",AvailabilityTable[[#This Row],[Name]]&\"-\"&RIGHT(\"0\"&WEEKNUM(AvailabilityTable[[#This Row],[Date]],2)-Start_week,2)&YEAR(AvailabilityTable[[#This Row],[Date]]),\"\")","v":"-011900"}]
[null,null,null,{"$f":"IF(AvailabilityTable[[#This Row],[Name]]&\"-\"&RIGHT(\"0\"&WEEKNUM(AvailabilityTable[[#This Row],[Date]],2)-Start_week,2)<>\"-0-\",AvailabilityTable[[#This Row],[Name]]&\"-\"&RIGHT(\"0\"&WEEKNUM(AvailabilityTable[[#This Row],[Date]],2)-Start_week,2)&YEAR(AvailabilityTable[[#This Row],[Date]]),\"\")","v":"-011900"}]
[null,null,null,{"$f":"IF(AvailabilityTable[[#This Row],[Name]]&\"-\"&RIGHT(\"0\"&WEEKNUM(AvailabilityTable[[#This Row],[Date]],2)-Start_week,2)<>\"-0-\",AvailabilityTable[[#This Row],[Name]]&\"-\"&RIGHT(\"0\"&WEEKNUM(AvailabilityTable[[#This Row],[Date]],2)-Start_week,2)&YEAR(AvailabilityTable[[#This Row],[Date]]),\"\")","v":"-011900"}]
[null,null,null,{"$f":"IF(AvailabilityTable[[#This Row],[Name]]&\"-\"&RIGHT(\"0\"&WEEKNUM(AvailabilityTable[[#This Row],[Date]],2)-Start_week,2)<>\"-0-\",AvailabilityTable[[#This Row],[Name]]&\"-\"&RIGHT(\"0\"&WEEKNUM(AvailabilityTable[[#This Row],[Date]],2)-Start_week,2)&YEAR(AvailabilityTable[[#This Row],[Date]]),\"\")","v":"-011900"}]
[null,null,null,{"$f":"IF(AvailabilityTable[[#This Row],[Name]]&\"-\"&RIGHT(\"0\"&WEEKNUM(AvailabilityTable[[#This Row],[Date]],2)-Start_week,2)<>\"-0-\",AvailabilityTable[[#This Row],[Name]]&\"-\"&RIGHT(\"0\"&WEEKNUM(AvailabilityTable[[#This Row],[Date]],2)-Start_week,2)&YEAR(AvailabilityTable[[#This Row],[Date]]),\"\")","v":"-011900"}]
[null,null,null,{"$f":"IF(AvailabilityTable[[#This Row],[Name]]&\"-\"&RIGHT(\"0\"&WEEKNUM(AvailabilityTable[[#This Row],[Date]],2)-Start_week,2)<>\"-0-\",AvailabilityTable[[#This Row],[Name]]&\"-\"&RIGHT(\"0\"&WEEKNUM(AvailabilityTable[[#This Row],[Date]],2)-Start_week,2)&YEAR(AvailabilityTable[[#This Row],[Date]]),\"\")","v":"-011900"}]
[null,null,null,{"$f":"IF(AvailabilityTable[[#This Row],[Name]]&\"-\"&RIGHT(\"0\"&WEEKNUM(AvailabilityTable[[#This Row],[Date]],2)-Start_week,2)<>\"-0-\",AvailabilityTable[[#This Row],[Name]]&\"-\"&RIGHT(\"0\"&WEEKNUM(AvailabilityTable[[#This Row],[Date]],2)-Start_week,2)&YEAR(AvailabilityTable[[#This Row],[Date]]),\"\")","v":"-011900"}]
[null,null,null,{"$f":"IF(AvailabilityTable[[#This Row],[Name]]&\"-\"&RIGHT(\"0\"&WEEKNUM(AvailabilityTable[[#This Row],[Date]],2)-Start_week,2)<>\"-0-\",AvailabilityTable[[#This Row],[Name]]&\"-\"&RIGHT(\"0\"&WEEKNUM(AvailabilityTable[[#This Row],[Date]],2)-Start_week,2)&YEAR(AvailabilityTable[[#This Row],[Date]]),\"\")","v":"-011900"}]
[null,null,null,{"$f":"IF(AvailabilityTable[[#This Row],[Name]]&\"-\"&RIGHT(\"0\"&WEEKNUM(AvailabilityTable[[#This Row],[Date]],2)-Start_week,2)<>\"-0-\",AvailabilityTable[[#This Row],[Name]]&\"-\"&RIGHT(\"0\"&WEEKNUM(AvailabilityTable[[#This Row],[Date]],2)-Start_week,2)&YEAR(AvailabilityTable[[#This Row],[Date]]),\"\")","v":"-011900"}]
[null,null,null,{"$f":"IF(AvailabilityTable[[#This Row],[Name]]&\"-\"&RIGHT(\"0\"&WEEKNUM(AvailabilityTable[[#This Row],[Date]],2)-Start_week,2)<>\"-0-\",AvailabilityTable[[#This Row],[Name]]&\"-\"&RIGHT(\"0\"&WEEKNUM(AvailabilityTable[[#This Row],[Date]],2)-Start_week,2)&YEAR(AvailabilityTable[[#This Row],[Date]]),\"\")","v":"-011900"}]
[null,null,null,{"$f":"IF(AvailabilityTable[[#This Row],[Name]]&\"-\"&RIGHT(\"0\"&WEEKNUM(AvailabilityTable[[#This Row],[Date]],2)-Start_week,2)<>\"-0-\",AvailabilityTable[[#This Row],[Name]]&\"-\"&RIGHT(\"0\"&WEEKNUM(AvailabilityTable[[#This Row],[Date]],2)-Start_week,2)&YEAR(AvailabilityTable[[#This Row],[Date]]),\"\")","v":"-011900"}]
[null,null,null,{"$f":"IF(AvailabilityTable[[#This Row],[Name]]&\"-\"&RIGHT(\"0\"&WEEKNUM(AvailabilityTable[[#This Row],[Date]],2)-Start_week,2)<>\"-0-\",AvailabilityTable[[#This Row],[Name]]&\"-\"&RIGHT(\"0\"&WEEKNUM(AvailabilityTable[[#This Row],[Date]],2)-Start_week,2)&YEAR(AvailabilityTable[[#This Row],[Date]]),\"\")","v":"-011900"}]
[null,null,null,{"$f":"IF(AvailabilityTable[[#This Row],[Name]]&\"-\"&RIGHT(\"0\"&WEEKNUM(AvailabilityTable[[#This Row],[Date]],2)-Start_week,2)<>\"-0-\",AvailabilityTable[[#This Row],[Name]]&\"-\"&RIGHT(\"0\"&WEEKNUM(AvailabilityTable[[#This Row],[Date]],2)-Start_week,2)&YEAR(AvailabilityTable[[#This Row],[Date]]),\"\")","v":"-011900"}]
[null,null,null,{"$f":"IF(AvailabilityTable[[#This Row],[Name]]&\"-\"&RIGHT(\"0\"&WEEKNUM(AvailabilityTable[[#This Row],[Date]],2)-Start_week,2)<>\"-0-\",AvailabilityTable[[#This Row],[Name]]&\"-\"&RIGHT(\"0\"&WEEKNUM(AvailabilityTable[[#This Row],[Date]],2)-Start_week,2)&YEAR(AvailabilityTable[[#This Row],[Date]]),\"\")","v":"-011900"}]
[null,null,null,{"$f":"IF(AvailabilityTable[[#This Row],[Name]]&\"-\"&RIGHT(\"0\"&WEEKNUM(AvailabilityTable[[#This Row],[Date]],2)-Start_week,2)<>\"-0-\",AvailabilityTable[[#This Row],[Name]]&\"-\"&RIGHT(\"0\"&WEEKNUM(AvailabilityTable[[#This Row],[Date]],2)-Start_week,2)&YEAR(AvailabilityTable[[#This Row],[Date]]),\"\")","v":"-011900"}]
[null,null,null,{"$f":"IF(AvailabilityTable[[#This Row],[Name]]&\"-\"&RIGHT(\"0\"&WEEKNUM(AvailabilityTable[[#This Row],[Date]],2)-Start_week,2)<>\"-0-\",AvailabilityTable[[#This Row],[Name]]&\"-\"&RIGHT(\"0\"&WEEKNUM(AvailabilityTable[[#This Row],[Date]],2)-Start_week,2)&YEAR(AvailabilityTable[[#This Row],[Date]]),\"\")","v":"-011900"}]
[null,null,null,{"$f":"IF(AvailabilityTable[[#This Row],[Name]]&\"-\"&RIGHT(\"0\"&WEEKNUM(AvailabilityTable[[#This Row],[Date]],2)-Start_week,2)<>\"-0-\",AvailabilityTable[[#This Row],[Name]]&\"-\"&RIGHT(\"0\"&WEEKNUM(AvailabilityTable[[#This Row],[Date]],2)-Start_week,2)&YEAR(AvailabilityTable[[#This Row],[Date]]),\"\")","v":"-011900"}]
[null,null,null,{"$f":"IF(AvailabilityTable[[#This Row],[Name]]&\"-\"&RIGHT(\"0\"&WEEKNUM(AvailabilityTable[[#This Row],[Date]],2)-Start_week,2)<>\"-0-\",AvailabilityTable[[#This Row],[Name]]&\"-\"&RIGHT(\"0\"&WEEKNUM(AvailabilityTable[[#This Row],[Date]],2)-Start_week,2)&YEAR(AvailabilityTable[[#This Row],[Date]]),\"\")","v":"-011900"}]
[null,null,null,{"$f":"IF(AvailabilityTable[[#This Row],[Name]]&\"-\"&RIGHT(\"0\"&WEEKNUM(AvailabilityTable[[#This Row],[Date]],2)-Start_week,2)<>\"-0-\",AvailabilityTable[[#This Row],[Name]]&\"-\"&RIGHT(\"0\"&WEEKNUM(AvailabilityTable[[#This Row],[Date]],2)-Start_week,2)&YEAR(AvailabilityTable[[#This Row],[Date]]),\"\")","v":"-011900"}]
[null,null,null,{"$f":"IF(AvailabilityTable[[#This Row],[Name]]&\"-\"&RIGHT(\"0\"&WEEKNUM(AvailabilityTable[[#This Row],[Date]],2)-Start_week,2)<>\"-0-\",AvailabilityTable[[#This Row],[Name]]&\"-\"&RIGHT(\"0\"&WEEKNUM(AvailabilityTable[[#This Row],[Date]],2)-Start_week,2)&YEAR(AvailabilityTable[[#This Row],[Date]]),\"\")","v":"-011900"}]
[null,null,null,{"$f":"IF(AvailabilityTable[[#This Row],[Name]]&\"-\"&RIGHT(\"0\"&WEEKNUM(AvailabilityTable[[#This Row],[Date]],2)-Start_week,2)<>\"-0-\",AvailabilityTable[[#This Row],[Name]]&\"-\"&RIGHT(\"0\"&WEEKNUM(AvailabilityTable[[#This Row],[Date]],2)-Start_week,2)&YEAR(AvailabilityTable[[#This Row],[Date]]),\"\")","v":"-011900"}]
[null,null,null,{"$f":"IF(AvailabilityTable[[#This Row],[Name]]&\"-\"&RIGHT(\"0\"&WEEKNUM(AvailabilityTable[[#This Row],[Date]],2)-Start_week,2)<>\"-0-\",AvailabilityTable[[#This Row],[Name]]&\"-\"&RIGHT(\"0\"&WEEKNUM(AvailabilityTable[[#This Row],[Date]],2)-Start_week,2)&YEAR(AvailabilityTable[[#This Row],[Date]]),\"\")","v":"-011900"}]
[null,null,null,{"$f":"IF(AvailabilityTable[[#This Row],[Name]]&\"-\"&RIGHT(\"0\"&WEEKNUM(AvailabilityTable[[#This Row],[Date]],2)-Start_week,2)<>\"-0-\",AvailabilityTable[[#This Row],[Name]]&\"-\"&RIGHT(\"0\"&WEEKNUM(AvailabilityTable[[#This Row],[Date]],2)-Start_week,2)&YEAR(AvailabilityTable[[#This Row],[Date]]),\"\")","v":"-011900"}]
[null,null,null,{"$f":"IF(AvailabilityTable[[#This Row],[Name]]&\"-\"&RIGHT(\"0\"&WEEKNUM(AvailabilityTable[[#This Row],[Date]],2)-Start_week,2)<>\"-0-\",AvailabilityTable[[#This Row],[Name]]&\"-\"&RIGHT(\"0\"&WEEKNUM(AvailabilityTable[[#This Row],[Date]],2)-Start_week,2)&YEAR(AvailabilityTable[[#This Row],[Date]]),\"\")","v":"-011900"}]
[null,null,null,{"$f":"IF(AvailabilityTable[[#This Row],[Name]]&\"-\"&RIGHT(\"0\"&WEEKNUM(AvailabilityTable[[#This Row],[Date]],2)-Start_week,2)<>\"-0-\",AvailabilityTable[[#This Row],[Name]]&\"-\"&RIGHT(\"0\"&WEEKNUM(AvailabilityTable[[#This Row],[Date]],2)-Start_week,2)&YEAR(AvailabilityTable[[#This Row],[Date]]),\"\")","v":"-011900"}]
[null,null,null,{"$f":"IF(AvailabilityTable[[#This Row],[Name]]&\"-\"&RIGHT(\"0\"&WEEKNUM(AvailabilityTable[[#This Row],[Date]],2)-Start_week,2)<>\"-0-\",AvailabilityTable[[#This Row],[Name]]&\"-\"&RIGHT(\"0\"&WEEKNUM(AvailabilityTable[[#This Row],[Date]],2)-Start_week,2)&YEAR(AvailabilityTable[[#This Row],[Date]]),\"\")","v":"-011900"}]
[null,null,null,{"$f":"IF(AvailabilityTable[[#This Row],[Name]]&\"-\"&RIGHT(\"0\"&WEEKNUM(AvailabilityTable[[#This Row],[Date]],2)-Start_week,2)<>\"-0-\",AvailabilityTable[[#This Row],[Name]]&\"-\"&RIGHT(\"0\"&WEEKNUM(AvailabilityTable[[#This Row],[Date]],2)-Start_week,2)&YEAR(AvailabilityTable[[#This Row],[Date]]),\"\")","v":"-011900"}]
[null,null,null,{"$f":"IF(AvailabilityTable[[#This Row],[Name]]&\"-\"&RIGHT(\"0\"&WEEKNUM(AvailabilityTable[[#This Row],[Date]],2)-Start_week,2)<>\"-0-\",AvailabilityTable[[#This Row],[Name]]&\"-\"&RIGHT(\"0\"&WEEKNUM(AvailabilityTable[[#This Row],[Date]],2)-Start_week,2)&YEAR(AvailabilityTable[[#This Row],[Date]]),\"\")","v":"-011900"}]
[null,null,null,{"$f":"IF(AvailabilityTable[[#This Row],[Name]]&\"-\"&RIGHT(\"0\"&WEEKNUM(AvailabilityTable[[#This Row],[Date]],2)-Start_week,2)<>\"-0-\",AvailabilityTable[[#This Row],[Name]]&\"-\"&RIGHT(\"0\"&WEEKNUM(AvailabilityTable[[#This Row],[Date]],2)-Start_week,2)&YEAR(AvailabilityTable[[#This Row],[Date]]),\"\")","v":"-011900"}]
[null,null,null,{"$f":"IF(AvailabilityTable[[#This Row],[Name]]&\"-\"&RIGHT(\"0\"&WEEKNUM(AvailabilityTable[[#This Row],[Date]],2)-Start_week,2)<>\"-0-\",AvailabilityTable[[#This Row],[Name]]&\"-\"&RIGHT(\"0\"&WEEKNUM(AvailabilityTable[[#This Row],[Date]],2)-Start_week,2)&YEAR(AvailabilityTable[[#This Row],[Date]]),\"\")","v":"-011900"}]
[null,null,null,{"$f":"IF(AvailabilityTable[[#This Row],[Name]]&\"-\"&RIGHT(\"0\"&WEEKNUM(AvailabilityTable[[#This Row],[Date]],2)-Start_week,2)<>\"-0-\",AvailabilityTable[[#This Row],[Name]]&\"-\"&RIGHT(\"0\"&WEEKNUM(AvailabilityTable[[#This Row],[Date]],2)-Start_week,2)&YEAR(AvailabilityTable[[#This Row],[Date]]),\"\")","v":"-011900"}]
[null,null,null,{"$f":"IF(AvailabilityTable[[#This Row],[Name]]&\"-\"&RIGHT(\"0\"&WEEKNUM(AvailabilityTable[[#This Row],[Date]],2)-Start_week,2)<>\"-0-\",AvailabilityTable[[#This Row],[Name]]&\"-\"&RIGHT(\"0\"&WEEKNUM(AvailabilityTable[[#This Row],[Date]],2)-Start_week,2)&YEAR(AvailabilityTable[[#This Row],[Date]]),\"\")","v":"-011900"}]
[null,null,null,{"$f":"IF(AvailabilityTable[[#This Row],[Name]]&\"-\"&RIGHT(\"0\"&WEEKNUM(AvailabilityTable[[#This Row],[Date]],2)-Start_week,2)<>\"-0-\",AvailabilityTable[[#This Row],[Name]]&\"-\"&RIGHT(\"0\"&WEEKNUM(AvailabilityTable[[#This Row],[Date]],2)-Start_week,2)&YEAR(AvailabilityTable[[#This Row],[Date]]),\"\")","v":"-011900"}]
[null,null,null,{"$f":"IF(AvailabilityTable[[#This Row],[Name]]&\"-\"&RIGHT(\"0\"&WEEKNUM(AvailabilityTable[[#This Row],[Date]],2)-Start_week,2)<>\"-0-\",AvailabilityTable[[#This Row],[Name]]&\"-\"&RIGHT(\"0\"&WEEKNUM(AvailabilityTable[[#This Row],[Date]],2)-Start_week,2)&YEAR(AvailabilityTable[[#This Row],[Date]]),\"\")","v":"-011900"}]
[null,null,null,{"$f":"IF(AvailabilityTable[[#This Row],[Name]]&\"-\"&RIGHT(\"0\"&WEEKNUM(AvailabilityTable[[#This Row],[Date]],2)-Start_week,2)<>\"-0-\",AvailabilityTable[[#This Row],[Name]]&\"-\"&RIGHT(\"0\"&WEEKNUM(AvailabilityTable[[#This Row],[Date]],2)-Start_week,2)&YEAR(AvailabilityTable[[#This Row],[Date]]),\"\")","v":"-011900"}]
[null,null,null,{"$f":"IF(AvailabilityTable[[#This Row],[Name]]&\"-\"&RIGHT(\"0\"&WEEKNUM(AvailabilityTable[[#This Row],[Date]],2)-Start_week,2)<>\"-0-\",AvailabilityTable[[#This Row],[Name]]&\"-\"&RIGHT(\"0\"&WEEKNUM(AvailabilityTable[[#This Row],[Date]],2)-Start_week,2)&YEAR(AvailabilityTable[[#This Row],[Date]]),\"\")","v":"-011900"}]
[null,null,null,{"$f":"IF(AvailabilityTable[[#This Row],[Name]]&\"-\"&RIGHT(\"0\"&WEEKNUM(AvailabilityTable[[#This Row],[Date]],2)-Start_week,2)<>\"-0-\",AvailabilityTable[[#This Row],[Name]]&\"-\"&RIGHT(\"0\"&WEEKNUM(AvailabilityTable[[#This Row],[Date]],2)-Start_week,2)&YEAR(AvailabilityTable[[#This Row],[Date]]),\"\")","v":"-011900"}]
[null,null,null,{"$f":"IF(AvailabilityTable[[#This Row],[Name]]&\"-\"&RIGHT(\"0\"&WEEKNUM(AvailabilityTable[[#This Row],[Date]],2)-Start_week,2)<>\"-0-\",AvailabilityTable[[#This Row],[Name]]&\"-\"&RIGHT(\"0\"&WEEKNUM(AvailabilityTable[[#This Row],[Date]],2)-Start_week,2)&YEAR(AvailabilityTable[[#This Row],[Date]]),\"\")","v":"-011900"}]
[null,null,null,{"$f":"IF(AvailabilityTable[[#This Row],[Name]]&\"-\"&RIGHT(\"0\"&WEEKNUM(AvailabilityTable[[#This Row],[Date]],2)-Start_week,2)<>\"-0-\",AvailabilityTable[[#This Row],[Name]]&\"-\"&RIGHT(\"0\"&WEEKNUM(AvailabilityTable[[#This Row],[Date]],2)-Start_week,2)&YEAR(AvailabilityTable[[#This Row],[Date]]),\"\")","v":"-011900"}]
[null,null,null,{"$f":"IF(AvailabilityTable[[#This Row],[Name]]&\"-\"&RIGHT(\"0\"&WEEKNUM(AvailabilityTable[[#This Row],[Date]],2)-Start_week,2)<>\"-0-\",AvailabilityTable[[#This Row],[Name]]&\"-\"&RIGHT(\"0\"&WEEKNUM(AvailabilityTable[[#This Row],[Date]],2)-Start_week,2)&YEAR(AvailabilityTable[[#This Row],[Date]]),\"\")","v":"-011900"}]
[null,null,null,{"$f":"IF(AvailabilityTable[[#This Row],[Name]]&\"-\"&RIGHT(\"0\"&WEEKNUM(AvailabilityTable[[#This Row],[Date]],2)-Start_week,2)<>\"-0-\",AvailabilityTable[[#This Row],[Name]]&\"-\"&RIGHT(\"0\"&WEEKNUM(AvailabilityTable[[#This Row],[Date]],2)-Start_week,2)&YEAR(AvailabilityTable[[#This Row],[Date]]),\"\")","v":"-011900"}]
[null,null,null,{"$f":"IF(AvailabilityTable[[#This Row],[Name]]&\"-\"&RIGHT(\"0\"&WEEKNUM(AvailabilityTable[[#This Row],[Date]],2)-Start_week,2)<>\"-0-\",AvailabilityTable[[#This Row],[Name]]&\"-\"&RIGHT(\"0\"&WEEKNUM(AvailabilityTable[[#This Row],[Date]],2)-Start_week,2)&YEAR(AvailabilityTable[[#This Row],[Date]]),\"\")","v":"-011900"}]
[null,null,null,{"$f":"IF(AvailabilityTable[[#This Row],[Name]]&\"-\"&RIGHT(\"0\"&WEEKNUM(AvailabilityTable[[#This Row],[Date]],2)-Start_week,2)<>\"-0-\",AvailabilityTable[[#This Row],[Name]]&\"-\"&RIGHT(\"0\"&WEEKNUM(AvailabilityTable[[#This Row],[Date]],2)-Start_week,2)&YEAR(AvailabilityTable[[#This Row],[Date]]),\"\")","v":"-011900"}]
[null,null,null,{"$f":"IF(AvailabilityTable[[#This Row],[Name]]&\"-\"&RIGHT(\"0\"&WEEKNUM(AvailabilityTable[[#This Row],[Date]],2)-Start_week,2)<>\"-0-\",AvailabilityTable[[#This Row],[Name]]&\"-\"&RIGHT(\"0\"&WEEKNUM(AvailabilityTable[[#This Row],[Date]],2)-Start_week,2)&YEAR(AvailabilityTable[[#This Row],[Date]]),\"\")","v":"-011900"}]
[null,null,null,{"$f":"IF(AvailabilityTable[[#This Row],[Name]]&\"-\"&RIGHT(\"0\"&WEEKNUM(AvailabilityTable[[#This Row],[Date]],2)-Start_week,2)<>\"-0-\",AvailabilityTable[[#This Row],[Name]]&\"-\"&RIGHT(\"0\"&WEEKNUM(AvailabilityTable[[#This Row],[Date]],2)-Start_week,2)&YEAR(AvailabilityTable[[#This Row],[Date]]),\"\")","v":"-011900"}]
[null,null,null,{"$f":"IF(AvailabilityTable[[#This Row],[Name]]&\"-\"&RIGHT(\"0\"&WEEKNUM(AvailabilityTable[[#This Row],[Date]],2)-Start_week,2)<>\"-0-\",AvailabilityTable[[#This Row],[Name]]&\"-\"&RIGHT(\"0\"&WEEKNUM(AvailabilityTable[[#This Row],[Date]],2)-Start_week,2)&YEAR(AvailabilityTable[[#This Row],[Date]]),\"\")","v":"-011900"}]
[null,null,null,{"$f":"IF(AvailabilityTable[[#This Row],[Name]]&\"-\"&RIGHT(\"0\"&WEEKNUM(AvailabilityTable[[#This Row],[Date]],2)-Start_week,2)<>\"-0-\",AvailabilityTable[[#This Row],[Name]]&\"-\"&RIGHT(\"0\"&WEEKNUM(AvailabilityTable[[#This Row],[Date]],2)-Start_week,2)&YEAR(AvailabilityTable[[#This Row],[Date]]),\"\")","v":"-011900"}]
[null,null,null,{"$f":"IF(AvailabilityTable[[#This Row],[Name]]&\"-\"&RIGHT(\"0\"&WEEKNUM(AvailabilityTable[[#This Row],[Date]],2)-Start_week,2)<>\"-0-\",AvailabilityTable[[#This Row],[Name]]&\"-\"&RIGHT(\"0\"&WEEKNUM(AvailabilityTable[[#This Row],[Date]],2)-Start_week,2)&YEAR(AvailabilityTable[[#This Row],[Date]]),\"\")","v":"-011900"}]
[null,null,null,{"$f":"IF(AvailabilityTable[[#This Row],[Name]]&\"-\"&RIGHT(\"0\"&WEEKNUM(AvailabilityTable[[#This Row],[Date]],2)-Start_week,2)<>\"-0-\",AvailabilityTable[[#This Row],[Name]]&\"-\"&RIGHT(\"0\"&WEEKNUM(AvailabilityTable[[#This Row],[Date]],2)-Start_week,2)&YEAR(AvailabilityTable[[#This Row],[Date]]),\"\")","v":"-011900"}]
[null,null,null,{"$f":"IF(AvailabilityTable[[#This Row],[Name]]&\"-\"&RIGHT(\"0\"&WEEKNUM(AvailabilityTable[[#This Row],[Date]],2)-Start_week,2)<>\"-0-\",AvailabilityTable[[#This Row],[Name]]&\"-\"&RIGHT(\"0\"&WEEKNUM(AvailabilityTable[[#This Row],[Date]],2)-Start_week,2)&YEAR(AvailabilityTable[[#This Row],[Date]]),\"\")","v":"-011900"}]
[null,null,null,{"$f":"IF(AvailabilityTable[[#This Row],[Name]]&\"-\"&RIGHT(\"0\"&WEEKNUM(AvailabilityTable[[#This Row],[Date]],2)-Start_week,2)<>\"-0-\",AvailabilityTable[[#This Row],[Name]]&\"-\"&RIGHT(\"0\"&WEEKNUM(AvailabilityTable[[#This Row],[Date]],2)-Start_week,2)&YEAR(AvailabilityTable[[#This Row],[Date]]),\"\")","v":"-011900"}]
[null,null,null,{"$f":"IF(AvailabilityTable[[#This Row],[Name]]&\"-\"&RIGHT(\"0\"&WEEKNUM(AvailabilityTable[[#This Row],[Date]],2)-Start_week,2)<>\"-0-\",AvailabilityTable[[#This Row],[Name]]&\"-\"&RIGHT(\"0\"&WEEKNUM(AvailabilityTable[[#This Row],[Date]],2)-Start_week,2)&YEAR(AvailabilityTable[[#This Row],[Date]]),\"\")","v":"-011900"}]
[null,null,null,{"$f":"IF(AvailabilityTable[[#This Row],[Name]]&\"-\"&RIGHT(\"0\"&WEEKNUM(AvailabilityTable[[#This Row],[Date]],2)-Start_week,2)<>\"-0-\",AvailabilityTable[[#This Row],[Name]]&\"-\"&RIGHT(\"0\"&WEEKNUM(AvailabilityTable[[#This Row],[Date]],2)-Start_week,2)&YEAR(AvailabilityTable[[#This Row],[Date]]),\"\")","v":"-011900"}]
[null,null,null,{"$f":"IF(AvailabilityTable[[#This Row],[Name]]&\"-\"&RIGHT(\"0\"&WEEKNUM(AvailabilityTable[[#This Row],[Date]],2)-Start_week,2)<>\"-0-\",AvailabilityTable[[#This Row],[Name]]&\"-\"&RIGHT(\"0\"&WEEKNUM(AvailabilityTable[[#This Row],[Date]],2)-Start_week,2)&YEAR(AvailabilityTable[[#This Row],[Date]]),\"\")","v":"-011900"}]
[null,null,null,{"$f":"IF(AvailabilityTable[[#This Row],[Name]]&\"-\"&RIGHT(\"0\"&WEEKNUM(AvailabilityTable[[#This Row],[Date]],2)-Start_week,2)<>\"-0-\",AvailabilityTable[[#This Row],[Name]]&\"-\"&RIGHT(\"0\"&WEEKNUM(AvailabilityTable[[#This Row],[Date]],2)-Start_week,2)&YEAR(AvailabilityTable[[#This Row],[Date]]),\"\")","v":"-011900"}]
[null,null,null,{"$f":"IF(AvailabilityTable[[#This Row],[Name]]&\"-\"&RIGHT(\"0\"&WEEKNUM(AvailabilityTable[[#This Row],[Date]],2)-Start_week,2)<>\"-0-\",AvailabilityTable[[#This Row],[Name]]&\"-\"&RIGHT(\"0\"&WEEKNUM(AvailabilityTable[[#This Row],[Date]],2)-Start_week,2)&YEAR(AvailabilityTable[[#This Row],[Date]]),\"\")","v":"-011900"}]
[null,null,null,{"$f":"IF(AvailabilityTable[[#This Row],[Name]]&\"-\"&RIGHT(\"0\"&WEEKNUM(AvailabilityTable[[#This Row],[Date]],2)-Start_week,2)<>\"-0-\",AvailabilityTable[[#This Row],[Name]]&\"-\"&RIGHT(\"0\"&WEEKNUM(AvailabilityTable[[#This Row],[Date]],2)-Start_week,2)&YEAR(AvailabilityTable[[#This Row],[Date]]),\"\")","v":"-011900"}]
[null,null,null,{"$f":"IF(AvailabilityTable[[#This Row],[Name]]&\"-\"&RIGHT(\"0\"&WEEKNUM(AvailabilityTable[[#This Row],[Date]],2)-Start_week,2)<>\"-0-\",AvailabilityTable[[#This Row],[Name]]&\"-\"&RIGHT(\"0\"&WEEKNUM(AvailabilityTable[[#This Row],[Date]],2)-Start_week,2)&YEAR(AvailabilityTable[[#This Row],[Date]]),\"\")","v":"-011900"}]
[null,null,null,{"$f":"IF(AvailabilityTable[[#This Row],[Name]]&\"-\"&RIGHT(\"0\"&WEEKNUM(AvailabilityTable[[#This Row],[Date]],2)-Start_week,2)<>\"-0-\",AvailabilityTable[[#This Row],[Name]]&\"-\"&RIGHT(\"0\"&WEEKNUM(AvailabilityTable[[#This Row],[Date]],2)-Start_week,2)&YEAR(AvailabilityTable[[#This Row],[Date]]),\"\")","v":"-011900"}]
[null,null,null,{"$f":"IF(AvailabilityTable[[#This Row],[Name]]&\"-\"&RIGHT(\"0\"&WEEKNUM(AvailabilityTable[[#This Row],[Date]],2)-Start_week,2)<>\"-0-\",AvailabilityTable[[#This Row],[Name]]&\"-\"&RIGHT(\"0\"&WEEKNUM(AvailabilityTable[[#This Row],[Date]],2)-Start_week,2)&YEAR(AvailabilityTable[[#This Row],[Date]]),\"\")","v":"-011900"}]
[null,null,null,{"$f":"IF(AvailabilityTable[[#This Row],[Name]]&\"-\"&RIGHT(\"0\"&WEEKNUM(AvailabilityTable[[#This Row],[Date]],2)-Start_week,2)<>\"-0-\",AvailabilityTable[[#This Row],[Name]]&\"-\"&RIGHT(\"0\"&WEEKNUM(AvailabilityTable[[#This Row],[Date]],2)-Start_week,2)&YEAR(AvailabilityTable[[#This Row],[Date]]),\"\")","v":"-011900"}]
[null,null,null,{"$f":"IF(AvailabilityTable[[#This Row],[Name]]&\"-\"&RIGHT(\"0\"&WEEKNUM(AvailabilityTable[[#This Row],[Date]],2)-Start_week,2)<>\"-0-\",AvailabilityTable[[#This Row],[Name]]&\"-\"&RIGHT(\"0\"&WEEKNUM(AvailabilityTable[[#This Row],[Date]],2)-Start_week,2)&YEAR(AvailabilityTable[[#This Row],[Date]]),\"\")","v":"-011900"}]
[null,null,null,{"$f":"IF(AvailabilityTable[[#This Row],[Name]]&\"-\"&RIGHT(\"0\"&WEEKNUM(AvailabilityTable[[#This Row],[Date]],2)-Start_week,2)<>\"-0-\",AvailabilityTable[[#This Row],[Name]]&\"-\"&RIGHT(\"0\"&WEEKNUM(AvailabilityTable[[#This Row],[Date]],2)-Start_week,2)&YEAR(AvailabilityTable[[#This Row],[Date]]),\"\")","v":"-011900"}]
[null,null,null,{"$f":"IF(AvailabilityTable[[#This Row],[Name]]&\"-\"&RIGHT(\"0\"&WEEKNUM(AvailabilityTable[[#This Row],[Date]],2)-Start_week,2)<>\"-0-\",AvailabilityTable[[#This Row],[Name]]&\"-\"&RIGHT(\"0\"&WEEKNUM(AvailabilityTable[[#This Row],[Date]],2)-Start_week,2)&YEAR(AvailabilityTable[[#This Row],[Date]]),\"\")","v":"-011900"}]
[null,null,null,{"$f":"IF(AvailabilityTable[[#This Row],[Name]]&\"-\"&RIGHT(\"0\"&WEEKNUM(AvailabilityTable[[#This Row],[Date]],2)-Start_week,2)<>\"-0-\",AvailabilityTable[[#This Row],[Name]]&\"-\"&RIGHT(\"0\"&WEEKNUM(AvailabilityTable[[#This Row],[Date]],2)-Start_week,2)&YEAR(AvailabilityTable[[#This Row],[Date]]),\"\")","v":"-011900"}]
[null,null,null,{"$f":"IF(AvailabilityTable[[#This Row],[Name]]&\"-\"&RIGHT(\"0\"&WEEKNUM(AvailabilityTable[[#This Row],[Date]],2)-Start_week,2)<>\"-0-\",AvailabilityTable[[#This Row],[Name]]&\"-\"&RIGHT(\"0\"&WEEKNUM(AvailabilityTable[[#This Row],[Date]],2)-Start_week,2)&YEAR(AvailabilityTable[[#This Row],[Date]]),\"\")","v":"-011900"}]
[null,null,null,{"$f":"IF(AvailabilityTable[[#This Row],[Name]]&\"-\"&RIGHT(\"0\"&WEEKNUM(AvailabilityTable[[#This Row],[Date]],2)-Start_week,2)<>\"-0-\",AvailabilityTable[[#This Row],[Name]]&\"-\"&RIGHT(\"0\"&WEEKNUM(AvailabilityTable[[#This Row],[Date]],2)-Start_week,2)&YEAR(AvailabilityTable[[#This Row],[Date]]),\"\")","v":"-011900"}]
[null,null,null,{"$f":"IF(AvailabilityTable[[#This Row],[Name]]&\"-\"&RIGHT(\"0\"&WEEKNUM(AvailabilityTable[[#This Row],[Date]],2)-Start_week,2)<>\"-0-\",AvailabilityTable[[#This Row],[Name]]&\"-\"&RIGHT(\"0\"&WEEKNUM(AvailabilityTable[[#This Row],[Date]],2)-Start_week,2)&YEAR(AvailabilityTable[[#This Row],[Date]]),\"\")","v":"-011900"}]
[null,null,null,{"$f":"IF(AvailabilityTable[[#This Row],[Name]]&\"-\"&RIGHT(\"0\"&WEEKNUM(AvailabilityTable[[#This Row],[Date]],2)-Start_week,2)<>\"-0-\",AvailabilityTable[[#This Row],[Name]]&\"-\"&RIGHT(\"0\"&WEEKNUM(AvailabilityTable[[#This Row],[Date]],2)-Start_week,2)&YEAR(AvailabilityTable[[#This Row],[Date]]),\"\")","v":"-011900"}]
[null,null,null,{"$f":"IF(AvailabilityTable[[#This Row],[Name]]&\"-\"&RIGHT(\"0\"&WEEKNUM(AvailabilityTable[[#This Row],[Date]],2)-Start_week,2)<>\"-0-\",AvailabilityTable[[#This Row],[Name]]&\"-\"&RIGHT(\"0\"&WEEKNUM(AvailabilityTable[[#This Row],[Date]],2)-Start_week,2)&YEAR(AvailabilityTable[[#This Row],[Date]]),\"\")","v":"-011900"}]
[null,null,null,{"$f":"IF(AvailabilityTable[[#This Row],[Name]]&\"-\"&RIGHT(\"0\"&WEEKNUM(AvailabilityTable[[#This Row],[Date]],2)-Start_week,2)<>\"-0-\",AvailabilityTable[[#This Row],[Name]]&\"-\"&RIGHT(\"0\"&WEEKNUM(AvailabilityTable[[#This Row],[Date]],2)-Start_week,2)&YEAR(AvailabilityTable[[#This Row],[Date]]),\"\")","v":"-011900"}]
[null,null,null,{"$f":"IF(AvailabilityTable[[#This Row],[Name]]&\"-\"&RIGHT(\"0\"&WEEKNUM(AvailabilityTable[[#This Row],[Date]],2)-Start_week,2)<>\"-0-\",AvailabilityTable[[#This Row],[Name]]&\"-\"&RIGHT(\"0\"&WEEKNUM(AvailabilityTable[[#This Row],[Date]],2)-Start_week,2)&YEAR(AvailabilityTable[[#This Row],[Date]]),\"\")","v":"-011900"}]
[null,null,null,{"$f":"IF(AvailabilityTable[[#This Row],[Name]]&\"-\"&RIGHT(\"0\"&WEEKNUM(AvailabilityTable[[#This Row],[Date]],2)-Start_week,2)<>\"-0-\",AvailabilityTable[[#This Row],[Name]]&\"-\"&RIGHT(\"0\"&WEEKNUM(AvailabilityTable[[#This Row],[Date]],2)-Start_week,2)&YEAR(AvailabilityTable[[#This Row],[Date]]),\"\")","v":"-011900"}]
[null,null,null,{"$f":"IF(AvailabilityTable[[#This Row],[Name]]&\"-\"&RIGHT(\"0\"&WEEKNUM(AvailabilityTable[[#This Row],[Date]],2)-Start_week,2)<>\"-0-\",AvailabilityTable[[#This Row],[Name]]&\"-\"&RIGHT(\"0\"&WEEKNUM(AvailabilityTable[[#This Row],[Date]],2)-Start_week,2)&YEAR(AvailabilityTable[[#This Row],[Date]]),\"\")","v":"-011900"}]
[null,null,null,{"$f":"IF(AvailabilityTable[[#This Row],[Name]]&\"-\"&RIGHT(\"0\"&WEEKNUM(AvailabilityTable[[#This Row],[Date]],2)-Start_week,2)<>\"-0-\",AvailabilityTable[[#This Row],[Name]]&\"-\"&RIGHT(\"0\"&WEEKNUM(AvailabilityTable[[#This Row],[Date]],2)-Start_week,2)&YEAR(AvailabilityTable[[#This Row],[Date]]),\"\")","v":"-011900"}]
[null,null,null,{"$f":"IF(AvailabilityTable[[#This Row],[Name]]&\"-\"&RIGHT(\"0\"&WEEKNUM(AvailabilityTable[[#This Row],[Date]],2)-Start_week,2)<>\"-0-\",AvailabilityTable[[#This Row],[Name]]&\"-\"&RIGHT(\"0\"&WEEKNUM(AvailabilityTable[[#This Row],[Date]],2)-Start_week,2)&YEAR(AvailabilityTable[[#This Row],[Date]]),\"\")","v":"-011900"}]
[null,null,null,{"$f":"IF(AvailabilityTable[[#This Row],[Name]]&\"-\"&RIGHT(\"0\"&WEEKNUM(AvailabilityTable[[#This Row],[Date]],2)-Start_week,2)<>\"-0-\",AvailabilityTable[[#This Row],[Name]]&\"-\"&RIGHT(\"0\"&WEEKNUM(AvailabilityTable[[#This Row],[Date]],2)-Start_week,2)&YEAR(AvailabilityTable[[#This Row],[Date]]),\"\")","v":"-011900"}]
[null,null,null,{"$f":"IF(AvailabilityTable[[#This Row],[Name]]&\"-\"&RIGHT(\"0\"&WEEKNUM(AvailabilityTable[[#This Row],[Date]],2)-Start_week,2)<>\"-0-\",AvailabilityTable[[#This Row],[Name]]&\"-\"&RIGHT(\"0\"&WEEKNUM(AvailabilityTable[[#This Row],[Date]],2)-Start_week,2)&YEAR(AvailabilityTable[[#This Row],[Date]]),\"\")","v":"-011900"}]
[null,null,null,{"$f":"IF(AvailabilityTable[[#This Row],[Name]]&\"-\"&RIGHT(\"0\"&WEEKNUM(AvailabilityTable[[#This Row],[Date]],2)-Start_week,2)<>\"-0-\",AvailabilityTable[[#This Row],[Name]]&\"-\"&RIGHT(\"0\"&WEEKNUM(AvailabilityTable[[#This Row],[Date]],2)-Start_week,2)&YEAR(AvailabilityTable[[#This Row],[Date]]),\"\")","v":"-011900"}]
[null,null,null,{"$f":"IF(AvailabilityTable[[#This Row],[Name]]&\"-\"&RIGHT(\"0\"&WEEKNUM(AvailabilityTable[[#This Row],[Date]],2)-Start_week,2)<>\"-0-\",AvailabilityTable[[#This Row],[Name]]&\"-\"&RIGHT(\"0\"&WEEKNUM(AvailabilityTable[[#This Row],[Date]],2)-Start_week,2)&YEAR(AvailabilityTable[[#This Row],[Date]]),\"\")","v":"-011900"}]
[null,null,null,{"$f":"IF(AvailabilityTable[[#This Row],[Name]]&\"-\"&RIGHT(\"0\"&WEEKNUM(AvailabilityTable[[#This Row],[Date]],2)-Start_week,2)<>\"-0-\",AvailabilityTable[[#This Row],[Name]]&\"-\"&RIGHT(\"0\"&WEEKNUM(AvailabilityTable[[#This Row],[Date]],2)-Start_week,2)&YEAR(AvailabilityTable[[#This Row],[Date]]),\"\")","v":"-011900"}]
[null,null,null,{"$f":"IF(AvailabilityTable[[#This Row],[Name]]&\"-\"&RIGHT(\"0\"&WEEKNUM(AvailabilityTable[[#This Row],[Date]],2)-Start_week,2)<>\"-0-\",AvailabilityTable[[#This Row],[Name]]&\"-\"&RIGHT(\"0\"&WEEKNUM(AvailabilityTable[[#This Row],[Date]],2)-Start_week,2)&YEAR(AvailabilityTable[[#This Row],[Date]]),\"\")","v":"-011900"}]
[null,null,null,{"$f":"IF(AvailabilityTable[[#This Row],[Name]]&\"-\"&RIGHT(\"0\"&WEEKNUM(AvailabilityTable[[#This Row],[Date]],2)-Start_week,2)<>\"-0-\",AvailabilityTable[[#This Row],[Name]]&\"-\"&RIGHT(\"0\"&WEEKNUM(AvailabilityTable[[#This Row],[Date]],2)-Start_week,2)&YEAR(AvailabilityTable[[#This Row],[Date]]),\"\")","v":"-011900"}]
[null,null,null,{"$f":"IF(AvailabilityTable[[#This Row],[Name]]&\"-\"&RIGHT(\"0\"&WEEKNUM(AvailabilityTable[[#This Row],[Date]],2)-Start_week,2)<>\"-0-\",AvailabilityTable[[#This Row],[Name]]&\"-\"&RIGHT(\"0\"&WEEKNUM(AvailabilityTable[[#This Row],[Date]],2)-Start_week,2)&YEAR(AvailabilityTable[[#This Row],[Date]]),\"\")","v":"-011900"}]
[null,null,null,{"$f":"IF(AvailabilityTable[[#This Row],[Name]]&\"-\"&RIGHT(\"0\"&WEEKNUM(AvailabilityTable[[#This Row],[Date]],2)-Start_week,2)<>\"-0-\",AvailabilityTable[[#This Row],[Name]]&\"-\"&RIGHT(\"0\"&WEEKNUM(AvailabilityTable[[#This Row],[Date]],2)-Start_week,2)&YEAR(AvailabilityTable[[#This Row],[Date]]),\"\")","v":"-011900"}]
[null,null,null,{"$f":"IF(AvailabilityTable[[#This Row],[Name]]&\"-\"&RIGHT(\"0\"&WEEKNUM(AvailabilityTable[[#This Row],[Date]],2)-Start_week,2)<>\"-0-\",AvailabilityTable[[#This Row],[Name]]&\"-\"&RIGHT(\"0\"&WEEKNUM(AvailabilityTable[[#This Row],[Date]],2)-Start_week,2)&YEAR(AvailabilityTable[[#This Row],[Date]]),\"\")","v":"-011900"}]
[null,null,null,{"$f":"IF(AvailabilityTable[[#This Row],[Name]]&\"-\"&RIGHT(\"0\"&WEEKNUM(AvailabilityTable[[#This Row],[Date]],2)-Start_week,2)<>\"-0-\",AvailabilityTable[[#This Row],[Name]]&\"-\"&RIGHT(\"0\"&WEEKNUM(AvailabilityTable[[#This Row],[Date]],2)-Start_week,2)&YEAR(AvailabilityTable[[#This Row],[Date]]),\"\")","v":"-011900"}]
[null,null,null,{"$f":"IF(AvailabilityTable[[#This Row],[Name]]&\"-\"&RIGHT(\"0\"&WEEKNUM(AvailabilityTable[[#This Row],[Date]],2)-Start_week,2)<>\"-0-\",AvailabilityTable[[#This Row],[Name]]&\"-\"&RIGHT(\"0\"&WEEKNUM(AvailabilityTable[[#This Row],[Date]],2)-Start_week,2)&YEAR(AvailabilityTable[[#This Row],[Date]]),\"\")","v":"-011900"}]
[null,null,null,{"$f":"IF(AvailabilityTable[[#This Row],[Name]]&\"-\"&RIGHT(\"0\"&WEEKNUM(AvailabilityTable[[#This Row],[Date]],2)-Start_week,2)<>\"-0-\",AvailabilityTable[[#This Row],[Name]]&\"-\"&RIGHT(\"0\"&WEEKNUM(AvailabilityTable[[#This Row],[Date]],2)-Start_week,2)&YEAR(AvailabilityTable[[#This Row],[Date]]),\"\")","v":"-011900"}]
[null,null,null,{"$f":"IF(AvailabilityTable[[#This Row],[Name]]&\"-\"&RIGHT(\"0\"&WEEKNUM(AvailabilityTable[[#This Row],[Date]],2)-Start_week,2)<>\"-0-\",AvailabilityTable[[#This Row],[Name]]&\"-\"&RIGHT(\"0\"&WEEKNUM(AvailabilityTable[[#This Row],[Date]],2)-Start_week,2)&YEAR(AvailabilityTable[[#This Row],[Date]]),\"\")","v":"-011900"}]
[null,null,null,{"$f":"IF(AvailabilityTable[[#This Row],[Name]]&\"-\"&RIGHT(\"0\"&WEEKNUM(AvailabilityTable[[#This Row],[Date]],2)-Start_week,2)<>\"-0-\",AvailabilityTable[[#This Row],[Name]]&\"-\"&RIGHT(\"0\"&WEEKNUM(AvailabilityTable[[#This Row],[Date]],2)-Start_week,2)&YEAR(AvailabilityTable[[#This Row],[Date]]),\"\")","v":"-011900"}]
[null,null,null,{"$f":"IF(AvailabilityTable[[#This Row],[Name]]&\"-\"&RIGHT(\"0\"&WEEKNUM(AvailabilityTable[[#This Row],[Date]],2)-Start_week,2)<>\"-0-\",AvailabilityTable[[#This Row],[Name]]&\"-\"&RIGHT(\"0\"&WEEKNUM(AvailabilityTable[[#This Row],[Date]],2)-Start_week,2)&YEAR(AvailabilityTable[[#This Row],[Date]]),\"\")","v":"-011900"}]
[null,null,null,{"$f":"IF(AvailabilityTable[[#This Row],[Name]]&\"-\"&RIGHT(\"0\"&WEEKNUM(AvailabilityTable[[#This Row],[Date]],2)-Start_week,2)<>\"-0-\",AvailabilityTable[[#This Row],[Name]]&\"-\"&RIGHT(\"0\"&WEEKNUM(AvailabilityTable[[#This Row],[Date]],2)-Start_week,2)&YEAR(AvailabilityTable[[#This Row],[Date]]),\"\")","v":"-011900"}]
[null,null,null,{"$f":"IF(AvailabilityTable[[#This Row],[Name]]&\"-\"&RIGHT(\"0\"&WEEKNUM(AvailabilityTable[[#This Row],[Date]],2)-Start_week,2)<>\"-0-\",AvailabilityTable[[#This Row],[Name]]&\"-\"&RIGHT(\"0\"&WEEKNUM(AvailabilityTable[[#This Row],[Date]],2)-Start_week,2)&YEAR(AvailabilityTable[[#This Row],[Date]]),\"\")","v":"-011900"}]
[null,null,null,{"$f":"IF(AvailabilityTable[[#This Row],[Name]]&\"-\"&RIGHT(\"0\"&WEEKNUM(AvailabilityTable[[#This Row],[Date]],2)-Start_week,2)<>\"-0-\",AvailabilityTable[[#This Row],[Name]]&\"-\"&RIGHT(\"0\"&WEEKNUM(AvailabilityTable[[#This Row],[Date]],2)-Start_week,2)&YEAR(AvailabilityTable[[#This Row],[Date]]),\"\")","v":"-011900"}]
[null,null,null,{"$f":"IF(AvailabilityTable[[#This Row],[Name]]&\"-\"&RIGHT(\"0\"&WEEKNUM(AvailabilityTable[[#This Row],[Date]],2)-Start_week,2)<>\"-0-\",AvailabilityTable[[#This Row],[Name]]&\"-\"&RIGHT(\"0\"&WEEKNUM(AvailabilityTable[[#This Row],[Date]],2)-Start_week,2)&YEAR(AvailabilityTable[[#This Row],[Date]]),\"\")","v":"-011900"}]
[null,null,null,{"$f":"IF(AvailabilityTable[[#This Row],[Name]]&\"-\"&RIGHT(\"0\"&WEEKNUM(AvailabilityTable[[#This Row],[Date]],2)-Start_week,2)<>\"-0-\",AvailabilityTable[[#This Row],[Name]]&\"-\"&RIGHT(\"0\"&WEEKNUM(AvailabilityTable[[#This Row],[Date]],2)-Start_week,2)&YEAR(AvailabilityTable[[#This Row],[Date]]),\"\")","v":"-011900"}]
[null,null,null,{"$f":"IF(AvailabilityTable[[#This Row],[Name]]&\"-\"&RIGHT(\"0\"&WEEKNUM(AvailabilityTable[[#This Row],[Date]],2)-Start_week,2)<>\"-0-\",AvailabilityTable[[#This Row],[Name]]&\"-\"&RIGHT(\"0\"&WEEKNUM(AvailabilityTable[[#This Row],[Date]],2)-Start_week,2)&YEAR(AvailabilityTable[[#This Row],[Date]]),\"\")","v":"-011900"}]
[null,null,null,{"$f":"IF(AvailabilityTable[[#This Row],[Name]]&\"-\"&RIGHT(\"0\"&WEEKNUM(AvailabilityTable[[#This Row],[Date]],2)-Start_week,2)<>\"-0-\",AvailabilityTable[[#This Row],[Name]]&\"-\"&RIGHT(\"0\"&WEEKNUM(AvailabilityTable[[#This Row],[Date]],2)-Start_week,2)&YEAR(AvailabilityTable[[#This Row],[Date]]),\"\")","v":"-011900"}]
[null,null,null,{"$f":"IF(AvailabilityTable[[#This Row],[Name]]&\"-\"&RIGHT(\"0\"&WEEKNUM(AvailabilityTable[[#This Row],[Date]],2)-Start_week,2)<>\"-0-\",AvailabilityTable[[#This Row],[Name]]&\"-\"&RIGHT(\"0\"&WEEKNUM(AvailabilityTable[[#This Row],[Date]],2)-Start_week,2)&YEAR(AvailabilityTable[[#This Row],[Date]]),\"\")","v":"-011900"}]
[null,null,null,{"$f":"IF(AvailabilityTable[[#This Row],[Name]]&\"-\"&RIGHT(\"0\"&WEEKNUM(AvailabilityTable[[#This Row],[Date]],2)-Start_week,2)<>\"-0-\",AvailabilityTable[[#This Row],[Name]]&\"-\"&RIGHT(\"0\"&WEEKNUM(AvailabilityTable[[#This Row],[Date]],2)-Start_week,2)&YEAR(AvailabilityTable[[#This Row],[Date]]),\"\")","v":"-011900"}]
[null,null,null,{"$f":"IF(AvailabilityTable[[#This Row],[Name]]&\"-\"&RIGHT(\"0\"&WEEKNUM(AvailabilityTable[[#This Row],[Date]],2)-Start_week,2)<>\"-0-\",AvailabilityTable[[#This Row],[Name]]&\"-\"&RIGHT(\"0\"&WEEKNUM(AvailabilityTable[[#This Row],[Date]],2)-Start_week,2)&YEAR(AvailabilityTable[[#This Row],[Date]]),\"\")","v":"-011900"}]
[null,null,null,{"$f":"IF(AvailabilityTable[[#This Row],[Name]]&\"-\"&RIGHT(\"0\"&WEEKNUM(AvailabilityTable[[#This Row],[Date]],2)-Start_week,2)<>\"-0-\",AvailabilityTable[[#This Row],[Name]]&\"-\"&RIGHT(\"0\"&WEEKNUM(AvailabilityTable[[#This Row],[Date]],2)-Start_week,2)&YEAR(AvailabilityTable[[#This Row],[Date]]),\"\")","v":"-011900"}]
[null,null,null,{"$f":"IF(AvailabilityTable[[#This Row],[Name]]&\"-\"&RIGHT(\"0\"&WEEKNUM(AvailabilityTable[[#This Row],[Date]],2)-Start_week,2)<>\"-0-\",AvailabilityTable[[#This Row],[Name]]&\"-\"&RIGHT(\"0\"&WEEKNUM(AvailabilityTable[[#This Row],[Date]],2)-Start_week,2)&YEAR(AvailabilityTable[[#This Row],[Date]]),\"\")","v":"-011900"}]
[null,null,null,{"$f":"IF(AvailabilityTable[[#This Row],[Name]]&\"-\"&RIGHT(\"0\"&WEEKNUM(AvailabilityTable[[#This Row],[Date]],2)-Start_week,2)<>\"-0-\",AvailabilityTable[[#This Row],[Name]]&\"-\"&RIGHT(\"0\"&WEEKNUM(AvailabilityTable[[#This Row],[Date]],2)-Start_week,2)&YEAR(AvailabilityTable[[#This Row],[Date]]),\"\")","v":"-011900"}]
[null,null,null,{"$f":"IF(AvailabilityTable[[#This Row],[Name]]&\"-\"&RIGHT(\"0\"&WEEKNUM(AvailabilityTable[[#This Row],[Date]],2)-Start_week,2)<>\"-0-\",AvailabilityTable[[#This Row],[Name]]&\"-\"&RIGHT(\"0\"&WEEKNUM(AvailabilityTable[[#This Row],[Date]],2)-Start_week,2)&YEAR(AvailabilityTable[[#This Row],[Date]]),\"\")","v":"-011900"}]
[null,null,null,{"$f":"IF(AvailabilityTable[[#This Row],[Name]]&\"-\"&RIGHT(\"0\"&WEEKNUM(AvailabilityTable[[#This Row],[Date]],2)-Start_week,2)<>\"-0-\",AvailabilityTable[[#This Row],[Name]]&\"-\"&RIGHT(\"0\"&WEEKNUM(AvailabilityTable[[#This Row],[Date]],2)-Start_week,2)&YEAR(AvailabilityTable[[#This Row],[Date]]),\"\")","v":"-011900"}]
[null,null,null,{"$f":"IF(AvailabilityTable[[#This Row],[Name]]&\"-\"&RIGHT(\"0\"&WEEKNUM(AvailabilityTable[[#This Row],[Date]],2)-Start_week,2)<>\"-0-\",AvailabilityTable[[#This Row],[Name]]&\"-\"&RIGHT(\"0\"&WEEKNUM(AvailabilityTable[[#This Row],[Date]],2)-Start_week,2)&YEAR(AvailabilityTable[[#This Row],[Date]]),\"\")","v":"-011900"}]
[null,null,null,{"$f":"IF(AvailabilityTable[[#This Row],[Name]]&\"-\"&RIGHT(\"0\"&WEEKNUM(AvailabilityTable[[#This Row],[Date]],2)-Start_week,2)<>\"-0-\",AvailabilityTable[[#This Row],[Name]]&\"-\"&RIGHT(\"0\"&WEEKNUM(AvailabilityTable[[#This Row],[Date]],2)-Start_week,2)&YEAR(AvailabilityTable[[#This Row],[Date]]),\"\")","v":"-011900"}]
[null,null,null,{"$f":"IF(AvailabilityTable[[#This Row],[Name]]&\"-\"&RIGHT(\"0\"&WEEKNUM(AvailabilityTable[[#This Row],[Date]],2)-Start_week,2)<>\"-0-\",AvailabilityTable[[#This Row],[Name]]&\"-\"&RIGHT(\"0\"&WEEKNUM(AvailabilityTable[[#This Row],[Date]],2)-Start_week,2)&YEAR(AvailabilityTable[[#This Row],[Date]]),\"\")","v":"-011900"}]
[null,null,null,{"$f":"IF(AvailabilityTable[[#This Row],[Name]]&\"-\"&RIGHT(\"0\"&WEEKNUM(AvailabilityTable[[#This Row],[Date]],2)-Start_week,2)<>\"-0-\",AvailabilityTable[[#This Row],[Name]]&\"-\"&RIGHT(\"0\"&WEEKNUM(AvailabilityTable[[#This Row],[Date]],2)-Start_week,2)&YEAR(AvailabilityTable[[#This Row],[Date]]),\"\")","v":"-011900"}]
[null,null,null,{"$f":"IF(AvailabilityTable[[#This Row],[Name]]&\"-\"&RIGHT(\"0\"&WEEKNUM(AvailabilityTable[[#This Row],[Date]],2)-Start_week,2)<>\"-0-\",AvailabilityTable[[#This Row],[Name]]&\"-\"&RIGHT(\"0\"&WEEKNUM(AvailabilityTable[[#This Row],[Date]],2)-Start_week,2)&YEAR(AvailabilityTable[[#This Row],[Date]]),\"\")","v":"-011900"}]
[null,null,null,{"$f":"IF(AvailabilityTable[[#This Row],[Name]]&\"-\"&RIGHT(\"0\"&WEEKNUM(AvailabilityTable[[#This Row],[Date]],2)-Start_week,2)<>\"-0-\",AvailabilityTable[[#This Row],[Name]]&\"-\"&RIGHT(\"0\"&WEEKNUM(AvailabilityTable[[#This Row],[Date]],2)-Start_week,2)&YEAR(AvailabilityTable[[#This Row],[Date]]),\"\")","v":"-011900"}]
[null,null,null,{"$f":"IF(AvailabilityTable[[#This Row],[Name]]&\"-\"&RIGHT(\"0\"&WEEKNUM(AvailabilityTable[[#This Row],[Date]],2)-Start_week,2)<>\"-0-\",AvailabilityTable[[#This Row],[Name]]&\"-\"&RIGHT(\"0\"&WEEKNUM(AvailabilityTable[[#This Row],[Date]],2)-Start_week,2)&YEAR(AvailabilityTable[[#This Row],[Date]]),\"\")","v":"-011900"}]
[null,null,null,{"$f":"IF(AvailabilityTable[[#This Row],[Name]]&\"-\"&RIGHT(\"0\"&WEEKNUM(AvailabilityTable[[#This Row],[Date]],2)-Start_week,2)<>\"-0-\",AvailabilityTable[[#This Row],[Name]]&\"-\"&RIGHT(\"0\"&WEEKNUM(AvailabilityTable[[#This Row],[Date]],2)-Start_week,2)&YEAR(AvailabilityTable[[#This Row],[Date]]),\"\")","v":"-011900"}]
[null,null,null,{"$f":"IF(AvailabilityTable[[#This Row],[Name]]&\"-\"&RIGHT(\"0\"&WEEKNUM(AvailabilityTable[[#This Row],[Date]],2)-Start_week,2)<>\"-0-\",AvailabilityTable[[#This Row],[Name]]&\"-\"&RIGHT(\"0\"&WEEKNUM(AvailabilityTable[[#This Row],[Date]],2)-Start_week,2)&YEAR(AvailabilityTable[[#This Row],[Date]]),\"\")","v":"-011900"}]
[null,null,null,{"$f":"IF(AvailabilityTable[[#This Row],[Name]]&\"-\"&RIGHT(\"0\"&WEEKNUM(AvailabilityTable[[#This Row],[Date]],2)-Start_week,2)<>\"-0-\",AvailabilityTable[[#This Row],[Name]]&\"-\"&RIGHT(\"0\"&WEEKNUM(AvailabilityTable[[#This Row],[Date]],2)-Start_week,2)&YEAR(AvailabilityTable[[#This Row],[Date]]),\"\")","v":"-011900"}]
[null,null,null,{"$f":"IF(AvailabilityTable[[#This Row],[Name]]&\"-\"&RIGHT(\"0\"&WEEKNUM(AvailabilityTable[[#This Row],[Date]],2)-Start_week,2)<>\"-0-\",AvailabilityTable[[#This Row],[Name]]&\"-\"&RIGHT(\"0\"&WEEKNUM(AvailabilityTable[[#This Row],[Date]],2)-Start_week,2)&YEAR(AvailabilityTable[[#This Row],[Date]]),\"\")","v":"-011900"}]
[null,null,null,{"$f":"IF(AvailabilityTable[[#This Row],[Name]]&\"-\"&RIGHT(\"0\"&WEEKNUM(AvailabilityTable[[#This Row],[Date]],2)-Start_week,2)<>\"-0-\",AvailabilityTable[[#This Row],[Name]]&\"-\"&RIGHT(\"0\"&WEEKNUM(AvailabilityTable[[#This Row],[Date]],2)-Start_week,2)&YEAR(AvailabilityTable[[#This Row],[Date]]),\"\")","v":"-011900"}]
[null,null,null,{"$f":"IF(AvailabilityTable[[#This Row],[Name]]&\"-\"&RIGHT(\"0\"&WEEKNUM(AvailabilityTable[[#This Row],[Date]],2)-Start_week,2)<>\"-0-\",AvailabilityTable[[#This Row],[Name]]&\"-\"&RIGHT(\"0\"&WEEKNUM(AvailabilityTable[[#This Row],[Date]],2)-Start_week,2)&YEAR(AvailabilityTable[[#This Row],[Date]]),\"\")","v":"-011900"}]
[null,null,null,{"$f":"IF(AvailabilityTable[[#This Row],[Name]]&\"-\"&RIGHT(\"0\"&WEEKNUM(AvailabilityTable[[#This Row],[Date]],2)-Start_week,2)<>\"-0-\",AvailabilityTable[[#This Row],[Name]]&\"-\"&RIGHT(\"0\"&WEEKNUM(AvailabilityTable[[#This Row],[Date]],2)-Start_week,2)&YEAR(AvailabilityTable[[#This Row],[Date]]),\"\")","v":"-011900"}]
[null,null,null,{"$f":"IF(AvailabilityTable[[#This Row],[Name]]&\"-\"&RIGHT(\"0\"&WEEKNUM(AvailabilityTable[[#This Row],[Date]],2)-Start_week,2)<>\"-0-\",AvailabilityTable[[#This Row],[Name]]&\"-\"&RIGHT(\"0\"&WEEKNUM(AvailabilityTable[[#This Row],[Date]],2)-Start_week,2)&YEAR(AvailabilityTable[[#This Row],[Date]]),\"\")","v":"-011900"}]
[null,null,null,{"$f":"IF(AvailabilityTable[[#This Row],[Name]]&\"-\"&RIGHT(\"0\"&WEEKNUM(AvailabilityTable[[#This Row],[Date]],2)-Start_week,2)<>\"-0-\",AvailabilityTable[[#This Row],[Name]]&\"-\"&RIGHT(\"0\"&WEEKNUM(AvailabilityTable[[#This Row],[Date]],2)-Start_week,2)&YEAR(AvailabilityTable[[#This Row],[Date]]),\"\")","v":"-011900"}]
[null,null,null,{"$f":"IF(AvailabilityTable[[#This Row],[Name]]&\"-\"&RIGHT(\"0\"&WEEKNUM(AvailabilityTable[[#This Row],[Date]],2)-Start_week,2)<>\"-0-\",AvailabilityTable[[#This Row],[Name]]&\"-\"&RIGHT(\"0\"&WEEKNUM(AvailabilityTable[[#This Row],[Date]],2)-Start_week,2)&YEAR(AvailabilityTable[[#This Row],[Date]]),\"\")","v":"-011900"}]
[null,null,null,{"$f":"IF(AvailabilityTable[[#This Row],[Name]]&\"-\"&RIGHT(\"0\"&WEEKNUM(AvailabilityTable[[#This Row],[Date]],2)-Start_week,2)<>\"-0-\",AvailabilityTable[[#This Row],[Name]]&\"-\"&RIGHT(\"0\"&WEEKNUM(AvailabilityTable[[#This Row],[Date]],2)-Start_week,2)&YEAR(AvailabilityTable[[#This Row],[Date]]),\"\")","v":"-011900"}]
[null,null,null,{"$f":"IF(AvailabilityTable[[#This Row],[Name]]&\"-\"&RIGHT(\"0\"&WEEKNUM(AvailabilityTable[[#This Row],[Date]],2)-Start_week,2)<>\"-0-\",AvailabilityTable[[#This Row],[Name]]&\"-\"&RIGHT(\"0\"&WEEKNUM(AvailabilityTable[[#This Row],[Date]],2)-Start_week,2)&YEAR(AvailabilityTable[[#This Row],[Date]]),\"\")","v":"-011900"}]
[null,null,null,{"$f":"IF(AvailabilityTable[[#This Row],[Name]]&\"-\"&RIGHT(\"0\"&WEEKNUM(AvailabilityTable[[#This Row],[Date]],2)-Start_week,2)<>\"-0-\",AvailabilityTable[[#This Row],[Name]]&\"-\"&RIGHT(\"0\"&WEEKNUM(AvailabilityTable[[#This Row],[Date]],2)-Start_week,2)&YEAR(AvailabilityTable[[#This Row],[Date]]),\"\")","v":"-011900"}]
[null,null,null,{"$f":"IF(AvailabilityTable[[#This Row],[Name]]&\"-\"&RIGHT(\"0\"&WEEKNUM(AvailabilityTable[[#This Row],[Date]],2)-Start_week,2)<>\"-0-\",AvailabilityTable[[#This Row],[Name]]&\"-\"&RIGHT(\"0\"&WEEKNUM(AvailabilityTable[[#This Row],[Date]],2)-Start_week,2)&YEAR(AvailabilityTable[[#This Row],[Date]]),\"\")","v":"-011900"}]
[null,null,null,{"$f":"IF(AvailabilityTable[[#This Row],[Name]]&\"-\"&RIGHT(\"0\"&WEEKNUM(AvailabilityTable[[#This Row],[Date]],2)-Start_week,2)<>\"-0-\",AvailabilityTable[[#This Row],[Name]]&\"-\"&RIGHT(\"0\"&WEEKNUM(AvailabilityTable[[#This Row],[Date]],2)-Start_week,2)&YEAR(AvailabilityTable[[#This Row],[Date]]),\"\")","v":"-011900"}]
[null,null,null,{"$f":"IF(AvailabilityTable[[#This Row],[Name]]&\"-\"&RIGHT(\"0\"&WEEKNUM(AvailabilityTable[[#This Row],[Date]],2)-Start_week,2)<>\"-0-\",AvailabilityTable[[#This Row],[Name]]&\"-\"&RIGHT(\"0\"&WEEKNUM(AvailabilityTable[[#This Row],[Date]],2)-Start_week,2)&YEAR(AvailabilityTable[[#This Row],[Date]]),\"\")","v":"-011900"}]
[null,null,null,{"$f":"IF(AvailabilityTable[[#This Row],[Name]]&\"-\"&RIGHT(\"0\"&WEEKNUM(AvailabilityTable[[#This Row],[Date]],2)-Start_week,2)<>\"-0-\",AvailabilityTable[[#This Row],[Name]]&\"-\"&RIGHT(\"0\"&WEEKNUM(AvailabilityTable[[#This Row],[Date]],2)-Start_week,2)&YEAR(AvailabilityTable[[#This Row],[Date]]),\"\")","v":"-011900"}]
[null,null,null,{"$f":"IF(AvailabilityTable[[#This Row],[Name]]&\"-\"&RIGHT(\"0\"&WEEKNUM(AvailabilityTable[[#This Row],[Date]],2)-Start_week,2)<>\"-0-\",AvailabilityTable[[#This Row],[Name]]&\"-\"&RIGHT(\"0\"&WEEKNUM(AvailabilityTable[[#This Row],[Date]],2)-Start_week,2)&YEAR(AvailabilityTable[[#This Row],[Date]]),\"\")","v":"-011900"}]
[null,null,null,{"$f":"IF(AvailabilityTable[[#This Row],[Name]]&\"-\"&RIGHT(\"0\"&WEEKNUM(AvailabilityTable[[#This Row],[Date]],2)-Start_week,2)<>\"-0-\",AvailabilityTable[[#This Row],[Name]]&\"-\"&RIGHT(\"0\"&WEEKNUM(AvailabilityTable[[#This Row],[Date]],2)-Start_week,2)&YEAR(AvailabilityTable[[#This Row],[Date]]),\"\")","v":"-011900"}]
[null,null,null,{"$f":"IF(AvailabilityTable[[#This Row],[Name]]&\"-\"&RIGHT(\"0\"&WEEKNUM(AvailabilityTable[[#This Row],[Date]],2)-Start_week,2)<>\"-0-\",AvailabilityTable[[#This Row],[Name]]&\"-\"&RIGHT(\"0\"&WEEKNUM(AvailabilityTable[[#This Row],[Date]],2)-Start_week,2)&YEAR(AvailabilityTable[[#This Row],[Date]]),\"\")","v":"-011900"}]
[null,null,null,{"$f":"IF(AvailabilityTable[[#This Row],[Name]]&\"-\"&RIGHT(\"0\"&WEEKNUM(AvailabilityTable[[#This Row],[Date]],2)-Start_week,2)<>\"-0-\",AvailabilityTable[[#This Row],[Name]]&\"-\"&RIGHT(\"0\"&WEEKNUM(AvailabilityTable[[#This Row],[Date]],2)-Start_week,2)&YEAR(AvailabilityTable[[#This Row],[Date]]),\"\")","v":"-011900"}]
[null,null,null,{"$f":"IF(AvailabilityTable[[#This Row],[Name]]&\"-\"&RIGHT(\"0\"&WEEKNUM(AvailabilityTable[[#This Row],[Date]],2)-Start_week,2)<>\"-0-\",AvailabilityTable[[#This Row],[Name]]&\"-\"&RIGHT(\"0\"&WEEKNUM(AvailabilityTable[[#This Row],[Date]],2)-Start_week,2)&YEAR(AvailabilityTable[[#This Row],[Date]]),\"\")","v":"-011900"}]
[null,null,null,{"$f":"IF(AvailabilityTable[[#This Row],[Name]]&\"-\"&RIGHT(\"0\"&WEEKNUM(AvailabilityTable[[#This Row],[Date]],2)-Start_week,2)<>\"-0-\",AvailabilityTable[[#This Row],[Name]]&\"-\"&RIGHT(\"0\"&WEEKNUM(AvailabilityTable[[#This Row],[Date]],2)-Start_week,2)&YEAR(AvailabilityTable[[#This Row],[Date]]),\"\")","v":"-011900"}]
[null,null,null,{"$f":"IF(AvailabilityTable[[#This Row],[Name]]&\"-\"&RIGHT(\"0\"&WEEKNUM(AvailabilityTable[[#This Row],[Date]],2)-Start_week,2)<>\"-0-\",AvailabilityTable[[#This Row],[Name]]&\"-\"&RIGHT(\"0\"&WEEKNUM(AvailabilityTable[[#This Row],[Date]],2)-Start_week,2)&YEAR(AvailabilityTable[[#This Row],[Date]]),\"\")","v":"-011900"}]
[null,null,null,{"$f":"IF(AvailabilityTable[[#This Row],[Name]]&\"-\"&RIGHT(\"0\"&WEEKNUM(AvailabilityTable[[#This Row],[Date]],2)-Start_week,2)<>\"-0-\",AvailabilityTable[[#This Row],[Name]]&\"-\"&RIGHT(\"0\"&WEEKNUM(AvailabilityTable[[#This Row],[Date]],2)-Start_week,2)&YEAR(AvailabilityTable[[#This Row],[Date]]),\"\")","v":"-011900"}]
[null,null,null,{"$f":"IF(AvailabilityTable[[#This Row],[Name]]&\"-\"&RIGHT(\"0\"&WEEKNUM(AvailabilityTable[[#This Row],[Date]],2)-Start_week,2)<>\"-0-\",AvailabilityTable[[#This Row],[Name]]&\"-\"&RIGHT(\"0\"&WEEKNUM(AvailabilityTable[[#This Row],[Date]],2)-Start_week,2)&YEAR(AvailabilityTable[[#This Row],[Date]]),\"\")","v":"-011900"}]
[null,null,null,{"$f":"IF(AvailabilityTable[[#This Row],[Name]]&\"-\"&RIGHT(\"0\"&WEEKNUM(AvailabilityTable[[#This Row],[Date]],2)-Start_week,2)<>\"-0-\",AvailabilityTable[[#This Row],[Name]]&\"-\"&RIGHT(\"0\"&WEEKNUM(AvailabilityTable[[#This Row],[Date]],2)-Start_week,2)&YEAR(AvailabilityTable[[#This Row],[Date]]),\"\")","v":"-011900"}]
[null,null,null,{"$f":"IF(AvailabilityTable[[#This Row],[Name]]&\"-\"&RIGHT(\"0\"&WEEKNUM(AvailabilityTable[[#This Row],[Date]],2)-Start_week,2)<>\"-0-\",AvailabilityTable[[#This Row],[Name]]&\"-\"&RIGHT(\"0\"&WEEKNUM(AvailabilityTable[[#This Row],[Date]],2)-Start_week,2)&YEAR(AvailabilityTable[[#This Row],[Date]]),\"\")","v":"-011900"}]
[null,null,null,{"$f":"IF(AvailabilityTable[[#This Row],[Name]]&\"-\"&RIGHT(\"0\"&WEEKNUM(AvailabilityTable[[#This Row],[Date]],2)-Start_week,2)<>\"-0-\",AvailabilityTable[[#This Row],[Name]]&\"-\"&RIGHT(\"0\"&WEEKNUM(AvailabilityTable[[#This Row],[Date]],2)-Start_week,2)&YEAR(AvailabilityTable[[#This Row],[Date]]),\"\")","v":"-011900"}]
[null,null,null,{"$f":"IF(AvailabilityTable[[#This Row],[Name]]&\"-\"&RIGHT(\"0\"&WEEKNUM(AvailabilityTable[[#This Row],[Date]],2)-Start_week,2)<>\"-0-\",AvailabilityTable[[#This Row],[Name]]&\"-\"&RIGHT(\"0\"&WEEKNUM(AvailabilityTable[[#This Row],[Date]],2)-Start_week,2)&YEAR(AvailabilityTable[[#This Row],[Date]]),\"\")","v":"-011900"}]
[null,null,null,{"$f":"IF(AvailabilityTable[[#This Row],[Name]]&\"-\"&RIGHT(\"0\"&WEEKNUM(AvailabilityTable[[#This Row],[Date]],2)-Start_week,2)<>\"-0-\",AvailabilityTable[[#This Row],[Name]]&\"-\"&RIGHT(\"0\"&WEEKNUM(AvailabilityTable[[#This Row],[Date]],2)-Start_week,2)&YEAR(AvailabilityTable[[#This Row],[Date]]),\"\")","v":"-011900"}]
[null,null,null,{"$f":"IF(AvailabilityTable[[#This Row],[Name]]&\"-\"&RIGHT(\"0\"&WEEKNUM(AvailabilityTable[[#This Row],[Date]],2)-Start_week,2)<>\"-0-\",AvailabilityTable[[#This Row],[Name]]&\"-\"&RIGHT(\"0\"&WEEKNUM(AvailabilityTable[[#This Row],[Date]],2)-Start_week,2)&YEAR(AvailabilityTable[[#This Row],[Date]]),\"\")","v":"-011900"}]
[null,null,null,{"$f":"IF(AvailabilityTable[[#This Row],[Name]]&\"-\"&RIGHT(\"0\"&WEEKNUM(AvailabilityTable[[#This Row],[Date]],2)-Start_week,2)<>\"-0-\",AvailabilityTable[[#This Row],[Name]]&\"-\"&RIGHT(\"0\"&WEEKNUM(AvailabilityTable[[#This Row],[Date]],2)-Start_week,2)&YEAR(AvailabilityTable[[#This Row],[Date]]),\"\")","v":"-011900"}]
[null,null,null,{"$f":"IF(AvailabilityTable[[#This Row],[Name]]&\"-\"&RIGHT(\"0\"&WEEKNUM(AvailabilityTable[[#This Row],[Date]],2)-Start_week,2)<>\"-0-\",AvailabilityTable[[#This Row],[Name]]&\"-\"&RIGHT(\"0\"&WEEKNUM(AvailabilityTable[[#This Row],[Date]],2)-Start_week,2)&YEAR(AvailabilityTable[[#This Row],[Date]]),\"\")","v":"-011900"}]
[null,null,null,{"$f":"IF(AvailabilityTable[[#This Row],[Name]]&\"-\"&RIGHT(\"0\"&WEEKNUM(AvailabilityTable[[#This Row],[Date]],2)-Start_week,2)<>\"-0-\",AvailabilityTable[[#This Row],[Name]]&\"-\"&RIGHT(\"0\"&WEEKNUM(AvailabilityTable[[#This Row],[Date]],2)-Start_week,2)&YEAR(AvailabilityTable[[#This Row],[Date]]),\"\")","v":"-011900"}]
[null,null,null,{"$f":"IF(AvailabilityTable[[#This Row],[Name]]&\"-\"&RIGHT(\"0\"&WEEKNUM(AvailabilityTable[[#This Row],[Date]],2)-Start_week,2)<>\"-0-\",AvailabilityTable[[#This Row],[Name]]&\"-\"&RIGHT(\"0\"&WEEKNUM(AvailabilityTable[[#This Row],[Date]],2)-Start_week,2)&YEAR(AvailabilityTable[[#This Row],[Date]]),\"\")","v":"-011900"}]
[null,null,null,{"$f":"IF(AvailabilityTable[[#This Row],[Name]]&\"-\"&RIGHT(\"0\"&WEEKNUM(AvailabilityTable[[#This Row],[Date]],2)-Start_week,2)<>\"-0-\",AvailabilityTable[[#This Row],[Name]]&\"-\"&RIGHT(\"0\"&WEEKNUM(AvailabilityTable[[#This Row],[Date]],2)-Start_week,2)&YEAR(AvailabilityTable[[#This Row],[Date]]),\"\")","v":"-011900"}]
[null,null,null,{"$f":"IF(AvailabilityTable[[#This Row],[Name]]&\"-\"&RIGHT(\"0\"&WEEKNUM(AvailabilityTable[[#This Row],[Date]],2)-Start_week,2)<>\"-0-\",AvailabilityTable[[#This Row],[Name]]&\"-\"&RIGHT(\"0\"&WEEKNUM(AvailabilityTable[[#This Row],[Date]],2)-Start_week,2)&YEAR(AvailabilityTable[[#This Row],[Date]]),\"\")","v":"-011900"}]
[null,null,null,{"$f":"IF(AvailabilityTable[[#This Row],[Name]]&\"-\"&RIGHT(\"0\"&WEEKNUM(AvailabilityTable[[#This Row],[Date]],2)-Start_week,2)<>\"-0-\",AvailabilityTable[[#This Row],[Name]]&\"-\"&RIGHT(\"0\"&WEEKNUM(AvailabilityTable[[#This Row],[Date]],2)-Start_week,2)&YEAR(AvailabilityTable[[#This Row],[Date]]),\"\")","v":"-011900"}]
[null,null,null,{"$f":"IF(AvailabilityTable[[#This Row],[Name]]&\"-\"&RIGHT(\"0\"&WEEKNUM(AvailabilityTable[[#This Row],[Date]],2)-Start_week,2)<>\"-0-\",AvailabilityTable[[#This Row],[Name]]&\"-\"&RIGHT(\"0\"&WEEKNUM(AvailabilityTable[[#This Row],[Date]],2)-Start_week,2)&YEAR(AvailabilityTable[[#This Row],[Date]]),\"\")","v":"-011900"}]
[null,null,null,{"$f":"IF(AvailabilityTable[[#This Row],[Name]]&\"-\"&RIGHT(\"0\"&WEEKNUM(AvailabilityTable[[#This Row],[Date]],2)-Start_week,2)<>\"-0-\",AvailabilityTable[[#This Row],[Name]]&\"-\"&RIGHT(\"0\"&WEEKNUM(AvailabilityTable[[#This Row],[Date]],2)-Start_week,2)&YEAR(AvailabilityTable[[#This Row],[Date]]),\"\")","v":"-011900"}]
[null,null,null,{"$f":"IF(AvailabilityTable[[#This Row],[Name]]&\"-\"&RIGHT(\"0\"&WEEKNUM(AvailabilityTable[[#This Row],[Date]],2)-Start_week,2)<>\"-0-\",AvailabilityTable[[#This Row],[Name]]&\"-\"&RIGHT(\"0\"&WEEKNUM(AvailabilityTable[[#This Row],[Date]],2)-Start_week,2)&YEAR(AvailabilityTable[[#This Row],[Date]]),\"\")","v":"-011900"}]
[null,null,null,{"$f":"IF(AvailabilityTable[[#This Row],[Name]]&\"-\"&RIGHT(\"0\"&WEEKNUM(AvailabilityTable[[#This Row],[Date]],2)-Start_week,2)<>\"-0-\",AvailabilityTable[[#This Row],[Name]]&\"-\"&RIGHT(\"0\"&WEEKNUM(AvailabilityTable[[#This Row],[Date]],2)-Start_week,2)&YEAR(AvailabilityTable[[#This Row],[Date]]),\"\")","v":"-011900"}]
[null,null,null,{"$f":"IF(AvailabilityTable[[#This Row],[Name]]&\"-\"&RIGHT(\"0\"&WEEKNUM(AvailabilityTable[[#This Row],[Date]],2)-Start_week,2)<>\"-0-\",AvailabilityTable[[#This Row],[Name]]&\"-\"&RIGHT(\"0\"&WEEKNUM(AvailabilityTable[[#This Row],[Date]],2)-Start_week,2)&YEAR(AvailabilityTable[[#This Row],[Date]]),\"\")","v":"-011900"}]
[null,null,null,{"$f":"IF(AvailabilityTable[[#This Row],[Name]]&\"-\"&RIGHT(\"0\"&WEEKNUM(AvailabilityTable[[#This Row],[Date]],2)-Start_week,2)<>\"-0-\",AvailabilityTable[[#This Row],[Name]]&\"-\"&RIGHT(\"0\"&WEEKNUM(AvailabilityTable[[#This Row],[Date]],2)-Start_week,2)&YEAR(AvailabilityTable[[#This Row],[Date]]),\"\")","v":"-011900"}]
[null,null,null,{"$f":"IF(AvailabilityTable[[#This Row],[Name]]&\"-\"&RIGHT(\"0\"&WEEKNUM(AvailabilityTable[[#This Row],[Date]],2)-Start_week,2)<>\"-0-\",AvailabilityTable[[#This Row],[Name]]&\"-\"&RIGHT(\"0\"&WEEKNUM(AvailabilityTable[[#This Row],[Date]],2)-Start_week,2)&YEAR(AvailabilityTable[[#This Row],[Date]]),\"\")","v":"-011900"}]
[null,null,null,{"$f":"IF(AvailabilityTable[[#This Row],[Name]]&\"-\"&RIGHT(\"0\"&WEEKNUM(AvailabilityTable[[#This Row],[Date]],2)-Start_week,2)<>\"-0-\",AvailabilityTable[[#This Row],[Name]]&\"-\"&RIGHT(\"0\"&WEEKNUM(AvailabilityTable[[#This Row],[Date]],2)-Start_week,2)&YEAR(AvailabilityTable[[#This Row],[Date]]),\"\")","v":"-011900"}]
[null,null,null,{"$f":"IF(AvailabilityTable[[#This Row],[Name]]&\"-\"&RIGHT(\"0\"&WEEKNUM(AvailabilityTable[[#This Row],[Date]],2)-Start_week,2)<>\"-0-\",AvailabilityTable[[#This Row],[Name]]&\"-\"&RIGHT(\"0\"&WEEKNUM(AvailabilityTable[[#This Row],[Date]],2)-Start_week,2)&YEAR(AvailabilityTable[[#This Row],[Date]]),\"\")","v":"-011900"}]
[null,null,null,{"$f":"IF(AvailabilityTable[[#This Row],[Name]]&\"-\"&RIGHT(\"0\"&WEEKNUM(AvailabilityTable[[#This Row],[Date]],2)-Start_week,2)<>\"-0-\",AvailabilityTable[[#This Row],[Name]]&\"-\"&RIGHT(\"0\"&WEEKNUM(AvailabilityTable[[#This Row],[Date]],2)-Start_week,2)&YEAR(AvailabilityTable[[#This Row],[Date]]),\"\")","v":"-011900"}]
[null,null,null,{"$f":"IF(AvailabilityTable[[#This Row],[Name]]&\"-\"&RIGHT(\"0\"&WEEKNUM(AvailabilityTable[[#This Row],[Date]],2)-Start_week,2)<>\"-0-\",AvailabilityTable[[#This Row],[Name]]&\"-\"&RIGHT(\"0\"&WEEKNUM(AvailabilityTable[[#This Row],[Date]],2)-Start_week,2)&YEAR(AvailabilityTable[[#This Row],[Date]]),\"\")","v":"-011900"}]
[null,null,null,{"$f":"IF(AvailabilityTable[[#This Row],[Name]]&\"-\"&RIGHT(\"0\"&WEEKNUM(AvailabilityTable[[#This Row],[Date]],2)-Start_week,2)<>\"-0-\",AvailabilityTable[[#This Row],[Name]]&\"-\"&RIGHT(\"0\"&WEEKNUM(AvailabilityTable[[#This Row],[Date]],2)-Start_week,2)&YEAR(AvailabilityTable[[#This Row],[Date]]),\"\")","v":"-011900"}]
[null,null,null,{"$f":"IF(AvailabilityTable[[#This Row],[Name]]&\"-\"&RIGHT(\"0\"&WEEKNUM(AvailabilityTable[[#This Row],[Date]],2)-Start_week,2)<>\"-0-\",AvailabilityTable[[#This Row],[Name]]&\"-\"&RIGHT(\"0\"&WEEKNUM(AvailabilityTable[[#This Row],[Date]],2)-Start_week,2)&YEAR(AvailabilityTable[[#This Row],[Date]]),\"\")","v":"-011900"}]
[null,null,null,{"$f":"IF(AvailabilityTable[[#This Row],[Name]]&\"-\"&RIGHT(\"0\"&WEEKNUM(AvailabilityTable[[#This Row],[Date]],2)-Start_week,2)<>\"-0-\",AvailabilityTable[[#This Row],[Name]]&\"-\"&RIGHT(\"0\"&WEEKNUM(AvailabilityTable[[#This Row],[Date]],2)-Start_week,2)&YEAR(AvailabilityTable[[#This Row],[Date]]),\"\")","v":"-011900"}]
[null,null,null,{"$f":"IF(AvailabilityTable[[#This Row],[Name]]&\"-\"&RIGHT(\"0\"&WEEKNUM(AvailabilityTable[[#This Row],[Date]],2)-Start_week,2)<>\"-0-\",AvailabilityTable[[#This Row],[Name]]&\"-\"&RIGHT(\"0\"&WEEKNUM(AvailabilityTable[[#This Row],[Date]],2)-Start_week,2)&YEAR(AvailabilityTable[[#This Row],[Date]]),\"\")","v":"-011900"}]
[null,null,null,{"$f":"IF(AvailabilityTable[[#This Row],[Name]]&\"-\"&RIGHT(\"0\"&WEEKNUM(AvailabilityTable[[#This Row],[Date]],2)-Start_week,2)<>\"-0-\",AvailabilityTable[[#This Row],[Name]]&\"-\"&RIGHT(\"0\"&WEEKNUM(AvailabilityTable[[#This Row],[Date]],2)-Start_week,2)&YEAR(AvailabilityTable[[#This Row],[Date]]),\"\")","v":"-011900"}]
[null,null,null,{"$f":"IF(AvailabilityTable[[#This Row],[Name]]&\"-\"&RIGHT(\"0\"&WEEKNUM(AvailabilityTable[[#This Row],[Date]],2)-Start_week,2)<>\"-0-\",AvailabilityTable[[#This Row],[Name]]&\"-\"&RIGHT(\"0\"&WEEKNUM(AvailabilityTable[[#This Row],[Date]],2)-Start_week,2)&YEAR(AvailabilityTable[[#This Row],[Date]]),\"\")","v":"-011900"}]
[null,null,null,{"$f":"IF(AvailabilityTable[[#This Row],[Name]]&\"-\"&RIGHT(\"0\"&WEEKNUM(AvailabilityTable[[#This Row],[Date]],2)-Start_week,2)<>\"-0-\",AvailabilityTable[[#This Row],[Name]]&\"-\"&RIGHT(\"0\"&WEEKNUM(AvailabilityTable[[#This Row],[Date]],2)-Start_week,2)&YEAR(AvailabilityTable[[#This Row],[Date]]),\"\")","v":"-011900"}]
[null,null,null,{"$f":"IF(AvailabilityTable[[#This Row],[Name]]&\"-\"&RIGHT(\"0\"&WEEKNUM(AvailabilityTable[[#This Row],[Date]],2)-Start_week,2)<>\"-0-\",AvailabilityTable[[#This Row],[Name]]&\"-\"&RIGHT(\"0\"&WEEKNUM(AvailabilityTable[[#This Row],[Date]],2)-Start_week,2)&YEAR(AvailabilityTable[[#This Row],[Date]]),\"\")","v":"-011900"}]
[null,null,null,{"$f":"IF(AvailabilityTable[[#This Row],[Name]]&\"-\"&RIGHT(\"0\"&WEEKNUM(AvailabilityTable[[#This Row],[Date]],2)-Start_week,2)<>\"-0-\",AvailabilityTable[[#This Row],[Name]]&\"-\"&RIGHT(\"0\"&WEEKNUM(AvailabilityTable[[#This Row],[Date]],2)-Start_week,2)&YEAR(AvailabilityTable[[#This Row],[Date]]),\"\")","v":"-011900"}]
[null,null,null,{"$f":"IF(AvailabilityTable[[#This Row],[Name]]&\"-\"&RIGHT(\"0\"&WEEKNUM(AvailabilityTable[[#This Row],[Date]],2)-Start_week,2)<>\"-0-\",AvailabilityTable[[#This Row],[Name]]&\"-\"&RIGHT(\"0\"&WEEKNUM(AvailabilityTable[[#This Row],[Date]],2)-Start_week,2)&YEAR(AvailabilityTable[[#This Row],[Date]]),\"\")","v":"-011900"}]
[null,null,null,{"$f":"IF(AvailabilityTable[[#This Row],[Name]]&\"-\"&RIGHT(\"0\"&WEEKNUM(AvailabilityTable[[#This Row],[Date]],2)-Start_week,2)<>\"-0-\",AvailabilityTable[[#This Row],[Name]]&\"-\"&RIGHT(\"0\"&WEEKNUM(AvailabilityTable[[#This Row],[Date]],2)-Start_week,2)&YEAR(AvailabilityTable[[#This Row],[Date]]),\"\")","v":"-011900"}]
[null,null,null,{"$f":"IF(AvailabilityTable[[#This Row],[Name]]&\"-\"&RIGHT(\"0\"&WEEKNUM(AvailabilityTable[[#This Row],[Date]],2)-Start_week,2)<>\"-0-\",AvailabilityTable[[#This Row],[Name]]&\"-\"&RIGHT(\"0\"&WEEKNUM(AvailabilityTable[[#This Row],[Date]],2)-Start_week,2)&YEAR(AvailabilityTable[[#This Row],[Date]]),\"\")","v":"-011900"}]
[null,null,null,{"$f":"IF(AvailabilityTable[[#This Row],[Name]]&\"-\"&RIGHT(\"0\"&WEEKNUM(AvailabilityTable[[#This Row],[Date]],2)-Start_week,2)<>\"-0-\",AvailabilityTable[[#This Row],[Name]]&\"-\"&RIGHT(\"0\"&WEEKNUM(AvailabilityTable[[#This Row],[Date]],2)-Start_week,2)&YEAR(AvailabilityTable[[#This Row],[Date]]),\"\")","v":"-011900"}]
[null,null,null,{"$f":"IF(AvailabilityTable[[#This Row],[Name]]&\"-\"&RIGHT(\"0\"&WEEKNUM(AvailabilityTable[[#This Row],[Date]],2)-Start_week,2)<>\"-0-\",AvailabilityTable[[#This Row],[Name]]&\"-\"&RIGHT(\"0\"&WEEKNUM(AvailabilityTable[[#This Row],[Date]],2)-Start_week,2)&YEAR(AvailabilityTable[[#This Row],[Date]]),\"\")","v":"-011900"}]
[null,null,null,{"$f":"IF(AvailabilityTable[[#This Row],[Name]]&\"-\"&RIGHT(\"0\"&WEEKNUM(AvailabilityTable[[#This Row],[Date]],2)-Start_week,2)<>\"-0-\",AvailabilityTable[[#This Row],[Name]]&\"-\"&RIGHT(\"0\"&WEEKNUM(AvailabilityTable[[#This Row],[Date]],2)-Start_week,2)&YEAR(AvailabilityTable[[#This Row],[Date]]),\"\")","v":"-011900"}]
[null,null,null,{"$f":"IF(AvailabilityTable[[#This Row],[Name]]&\"-\"&RIGHT(\"0\"&WEEKNUM(AvailabilityTable[[#This Row],[Date]],2)-Start_week,2)<>\"-0-\",AvailabilityTable[[#This Row],[Name]]&\"-\"&RIGHT(\"0\"&WEEKNUM(AvailabilityTable[[#This Row],[Date]],2)-Start_week,2)&YEAR(AvailabilityTable[[#This Row],[Date]]),\"\")","v":"-011900"}]
[null,null,null,{"$f":"IF(AvailabilityTable[[#This Row],[Name]]&\"-\"&RIGHT(\"0\"&WEEKNUM(AvailabilityTable[[#This Row],[Date]],2)-Start_week,2)<>\"-0-\",AvailabilityTable[[#This Row],[Name]]&\"-\"&RIGHT(\"0\"&WEEKNUM(AvailabilityTable[[#This Row],[Date]],2)-Start_week,2)&YEAR(AvailabilityTable[[#This Row],[Date]]),\"\")","v":"-011900"}]
[null,null,null,{"$f":"IF(AvailabilityTable[[#This Row],[Name]]&\"-\"&RIGHT(\"0\"&WEEKNUM(AvailabilityTable[[#This Row],[Date]],2)-Start_week,2)<>\"-0-\",AvailabilityTable[[#This Row],[Name]]&\"-\"&RIGHT(\"0\"&WEEKNUM(AvailabilityTable[[#This Row],[Date]],2)-Start_week,2)&YEAR(AvailabilityTable[[#This Row],[Date]]),\"\")","v":"-011900"}]
[null,null,null,{"$f":"IF(AvailabilityTable[[#This Row],[Name]]&\"-\"&RIGHT(\"0\"&WEEKNUM(AvailabilityTable[[#This Row],[Date]],2)-Start_week,2)<>\"-0-\",AvailabilityTable[[#This Row],[Name]]&\"-\"&RIGHT(\"0\"&WEEKNUM(AvailabilityTable[[#This Row],[Date]],2)-Start_week,2)&YEAR(AvailabilityTable[[#This Row],[Date]]),\"\")","v":"-011900"}]
[null,null,null,{"$f":"IF(AvailabilityTable[[#This Row],[Name]]&\"-\"&RIGHT(\"0\"&WEEKNUM(AvailabilityTable[[#This Row],[Date]],2)-Start_week,2)<>\"-0-\",AvailabilityTable[[#This Row],[Name]]&\"-\"&RIGHT(\"0\"&WEEKNUM(AvailabilityTable[[#This Row],[Date]],2)-Start_week,2)&YEAR(AvailabilityTable[[#This Row],[Date]]),\"\")","v":"-011900"}]
[null,null,null,{"$f":"IF(AvailabilityTable[[#This Row],[Name]]&\"-\"&RIGHT(\"0\"&WEEKNUM(AvailabilityTable[[#This Row],[Date]],2)-Start_week,2)<>\"-0-\",AvailabilityTable[[#This Row],[Name]]&\"-\"&RIGHT(\"0\"&WEEKNUM(AvailabilityTable[[#This Row],[Date]],2)-Start_week,2)&YEAR(AvailabilityTable[[#This Row],[Date]]),\"\")","v":"-011900"}]
[null,null,null,{"$f":"IF(AvailabilityTable[[#This Row],[Name]]&\"-\"&RIGHT(\"0\"&WEEKNUM(AvailabilityTable[[#This Row],[Date]],2)-Start_week,2)<>\"-0-\",AvailabilityTable[[#This Row],[Name]]&\"-\"&RIGHT(\"0\"&WEEKNUM(AvailabilityTable[[#This Row],[Date]],2)-Start_week,2)&YEAR(AvailabilityTable[[#This Row],[Date]]),\"\")","v":"-011900"}]
[null,null,null,{"$f":"IF(AvailabilityTable[[#This Row],[Name]]&\"-\"&RIGHT(\"0\"&WEEKNUM(AvailabilityTable[[#This Row],[Date]],2)-Start_week,2)<>\"-0-\",AvailabilityTable[[#This Row],[Name]]&\"-\"&RIGHT(\"0\"&WEEKNUM(AvailabilityTable[[#This Row],[Date]],2)-Start_week,2)&YEAR(AvailabilityTable[[#This Row],[Date]]),\"\")","v":"-011900"}]
[null,null,null,{"$f":"IF(AvailabilityTable[[#This Row],[Name]]&\"-\"&RIGHT(\"0\"&WEEKNUM(AvailabilityTable[[#This Row],[Date]],2)-Start_week,2)<>\"-0-\",AvailabilityTable[[#This Row],[Name]]&\"-\"&RIGHT(\"0\"&WEEKNUM(AvailabilityTable[[#This Row],[Date]],2)-Start_week,2)&YEAR(AvailabilityTable[[#This Row],[Date]]),\"\")","v":"-011900"}]
[null,null,null,{"$f":"IF(AvailabilityTable[[#This Row],[Name]]&\"-\"&RIGHT(\"0\"&WEEKNUM(AvailabilityTable[[#This Row],[Date]],2)-Start_week,2)<>\"-0-\",AvailabilityTable[[#This Row],[Name]]&\"-\"&RIGHT(\"0\"&WEEKNUM(AvailabilityTable[[#This Row],[Date]],2)-Start_week,2)&YEAR(AvailabilityTable[[#This Row],[Date]]),\"\")","v":"-011900"}]
[null,null,null,{"$f":"IF(AvailabilityTable[[#This Row],[Name]]&\"-\"&RIGHT(\"0\"&WEEKNUM(AvailabilityTable[[#This Row],[Date]],2)-Start_week,2)<>\"-0-\",AvailabilityTable[[#This Row],[Name]]&\"-\"&RIGHT(\"0\"&WEEKNUM(AvailabilityTable[[#This Row],[Date]],2)-Start_week,2)&YEAR(AvailabilityTable[[#This Row],[Date]]),\"\")","v":"-011900"}]
[null,null,null,{"$f":"IF(AvailabilityTable[[#This Row],[Name]]&\"-\"&RIGHT(\"0\"&WEEKNUM(AvailabilityTable[[#This Row],[Date]],2)-Start_week,2)<>\"-0-\",AvailabilityTable[[#This Row],[Name]]&\"-\"&RIGHT(\"0\"&WEEKNUM(AvailabilityTable[[#This Row],[Date]],2)-Start_week,2)&YEAR(AvailabilityTable[[#This Row],[Date]]),\"\")","v":"-011900"}]
[null,null,null,{"$f":"IF(AvailabilityTable[[#This Row],[Name]]&\"-\"&RIGHT(\"0\"&WEEKNUM(AvailabilityTable[[#This Row],[Date]],2)-Start_week,2)<>\"-0-\",AvailabilityTable[[#This Row],[Name]]&\"-\"&RIGHT(\"0\"&WEEKNUM(AvailabilityTable[[#This Row],[Date]],2)-Start_week,2)&YEAR(AvailabilityTable[[#This Row],[Date]]),\"\")","v":"-011900"}]
[null,null,null,{"$f":"IF(AvailabilityTable[[#This Row],[Name]]&\"-\"&RIGHT(\"0\"&WEEKNUM(AvailabilityTable[[#This Row],[Date]],2)-Start_week,2)<>\"-0-\",AvailabilityTable[[#This Row],[Name]]&\"-\"&RIGHT(\"0\"&WEEKNUM(AvailabilityTable[[#This Row],[Date]],2)-Start_week,2)&YEAR(AvailabilityTable[[#This Row],[Date]]),\"\")","v":"-011900"}]
[null,null,null,{"$f":"IF(AvailabilityTable[[#This Row],[Name]]&\"-\"&RIGHT(\"0\"&WEEKNUM(AvailabilityTable[[#This Row],[Date]],2)-Start_week,2)<>\"-0-\",AvailabilityTable[[#This Row],[Name]]&\"-\"&RIGHT(\"0\"&WEEKNUM(AvailabilityTable[[#This Row],[Date]],2)-Start_week,2)&YEAR(AvailabilityTable[[#This Row],[Date]]),\"\")","v":"-011900"}]
[null,null,null,{"$f":"IF(AvailabilityTable[[#This Row],[Name]]&\"-\"&RIGHT(\"0\"&WEEKNUM(AvailabilityTable[[#This Row],[Date]],2)-Start_week,2)<>\"-0-\",AvailabilityTable[[#This Row],[Name]]&\"-\"&RIGHT(\"0\"&WEEKNUM(AvailabilityTable[[#This Row],[Date]],2)-Start_week,2)&YEAR(AvailabilityTable[[#This Row],[Date]]),\"\")","v":"-011900"}]
[null,null,null,{"$f":"IF(AvailabilityTable[[#This Row],[Name]]&\"-\"&RIGHT(\"0\"&WEEKNUM(AvailabilityTable[[#This Row],[Date]],2)-Start_week,2)<>\"-0-\",AvailabilityTable[[#This Row],[Name]]&\"-\"&RIGHT(\"0\"&WEEKNUM(AvailabilityTable[[#This Row],[Date]],2)-Start_week,2)&YEAR(AvailabilityTable[[#This Row],[Date]]),\"\")","v":"-011900"}]
[null,null,null,{"$f":"IF(AvailabilityTable[[#This Row],[Name]]&\"-\"&RIGHT(\"0\"&WEEKNUM(AvailabilityTable[[#This Row],[Date]],2)-Start_week,2)<>\"-0-\",AvailabilityTable[[#This Row],[Name]]&\"-\"&RIGHT(\"0\"&WEEKNUM(AvailabilityTable[[#This Row],[Date]],2)-Start_week,2)&YEAR(AvailabilityTable[[#This Row],[Date]]),\"\")","v":"-011900"}]
[null,null,null,{"$f":"IF(AvailabilityTable[[#This Row],[Name]]&\"-\"&RIGHT(\"0\"&WEEKNUM(AvailabilityTable[[#This Row],[Date]],2)-Start_week,2)<>\"-0-\",AvailabilityTable[[#This Row],[Name]]&\"-\"&RIGHT(\"0\"&WEEKNUM(AvailabilityTable[[#This Row],[Date]],2)-Start_week,2)&YEAR(AvailabilityTable[[#This Row],[Date]]),\"\")","v":"-011900"}]
[null,null,null,{"$f":"IF(AvailabilityTable[[#This Row],[Name]]&\"-\"&RIGHT(\"0\"&WEEKNUM(AvailabilityTable[[#This Row],[Date]],2)-Start_week,2)<>\"-0-\",AvailabilityTable[[#This Row],[Name]]&\"-\"&RIGHT(\"0\"&WEEKNUM(AvailabilityTable[[#This Row],[Date]],2)-Start_week,2)&YEAR(AvailabilityTable[[#This Row],[Date]]),\"\")","v":"-011900"}]
[null,null,null,{"$f":"IF(AvailabilityTable[[#This Row],[Name]]&\"-\"&RIGHT(\"0\"&WEEKNUM(AvailabilityTable[[#This Row],[Date]],2)-Start_week,2)<>\"-0-\",AvailabilityTable[[#This Row],[Name]]&\"-\"&RIGHT(\"0\"&WEEKNUM(AvailabilityTable[[#This Row],[Date]],2)-Start_week,2)&YEAR(AvailabilityTable[[#This Row],[Date]]),\"\")","v":"-011900"}]
[null,null,null,{"$f":"IF(AvailabilityTable[[#This Row],[Name]]&\"-\"&RIGHT(\"0\"&WEEKNUM(AvailabilityTable[[#This Row],[Date]],2)-Start_week,2)<>\"-0-\",AvailabilityTable[[#This Row],[Name]]&\"-\"&RIGHT(\"0\"&WEEKNUM(AvailabilityTable[[#This Row],[Date]],2)-Start_week,2)&YEAR(AvailabilityTable[[#This Row],[Date]]),\"\")","v":"-011900"}]
[null,null,null,{"$f":"IF(AvailabilityTable[[#This Row],[Name]]&\"-\"&RIGHT(\"0\"&WEEKNUM(AvailabilityTable[[#This Row],[Date]],2)-Start_week,2)<>\"-0-\",AvailabilityTable[[#This Row],[Name]]&\"-\"&RIGHT(\"0\"&WEEKNUM(AvailabilityTable[[#This Row],[Date]],2)-Start_week,2)&YEAR(AvailabilityTable[[#This Row],[Date]]),\"\")","v":"-011900"}]
[null,null,null,{"$f":"IF(AvailabilityTable[[#This Row],[Name]]&\"-\"&RIGHT(\"0\"&WEEKNUM(AvailabilityTable[[#This Row],[Date]],2)-Start_week,2)<>\"-0-\",AvailabilityTable[[#This Row],[Name]]&\"-\"&RIGHT(\"0\"&WEEKNUM(AvailabilityTable[[#This Row],[Date]],2)-Start_week,2)&YEAR(AvailabilityTable[[#This Row],[Date]]),\"\")","v":"-011900"}]
[null,null,null,{"$f":"IF(AvailabilityTable[[#This Row],[Name]]&\"-\"&RIGHT(\"0\"&WEEKNUM(AvailabilityTable[[#This Row],[Date]],2)-Start_week,2)<>\"-0-\",AvailabilityTable[[#This Row],[Name]]&\"-\"&RIGHT(\"0\"&WEEKNUM(AvailabilityTable[[#This Row],[Date]],2)-Start_week,2)&YEAR(AvailabilityTable[[#This Row],[Date]]),\"\")","v":"-011900"}]
[null,null,null,{"$f":"IF(AvailabilityTable[[#This Row],[Name]]&\"-\"&RIGHT(\"0\"&WEEKNUM(AvailabilityTable[[#This Row],[Date]],2)-Start_week,2)<>\"-0-\",AvailabilityTable[[#This Row],[Name]]&\"-\"&RIGHT(\"0\"&WEEKNUM(AvailabilityTable[[#This Row],[Date]],2)-Start_week,2)&YEAR(AvailabilityTable[[#This Row],[Date]]),\"\")","v":"-011900"}]
[null,null,null,{"$f":"IF(AvailabilityTable[[#This Row],[Name]]&\"-\"&RIGHT(\"0\"&WEEKNUM(AvailabilityTable[[#This Row],[Date]],2)-Start_week,2)<>\"-0-\",AvailabilityTable[[#This Row],[Name]]&\"-\"&RIGHT(\"0\"&WEEKNUM(AvailabilityTable[[#This Row],[Date]],2)-Start_week,2)&YEAR(AvailabilityTable[[#This Row],[Date]]),\"\")","v":"-011900"}]
[null,null,null,{"$f":"IF(AvailabilityTable[[#This Row],[Name]]&\"-\"&RIGHT(\"0\"&WEEKNUM(AvailabilityTable[[#This Row],[Date]],2)-Start_week,2)<>\"-0-\",AvailabilityTable[[#This Row],[Name]]&\"-\"&RIGHT(\"0\"&WEEKNUM(AvailabilityTable[[#This Row],[Date]],2)-Start_week,2)&YEAR(AvailabilityTable[[#This Row],[Date]]),\"\")","v":"-011900"}]
[null,null,null,{"$f":"IF(AvailabilityTable[[#This Row],[Name]]&\"-\"&RIGHT(\"0\"&WEEKNUM(AvailabilityTable[[#This Row],[Date]],2)-Start_week,2)<>\"-0-\",AvailabilityTable[[#This Row],[Name]]&\"-\"&RIGHT(\"0\"&WEEKNUM(AvailabilityTable[[#This Row],[Date]],2)-Start_week,2)&YEAR(AvailabilityTable[[#This Row],[Date]]),\"\")","v":"-011900"}]
[null,null,null,{"$f":"IF(AvailabilityTable[[#This Row],[Name]]&\"-\"&RIGHT(\"0\"&WEEKNUM(AvailabilityTable[[#This Row],[Date]],2)-Start_week,2)<>\"-0-\",AvailabilityTable[[#This Row],[Name]]&\"-\"&RIGHT(\"0\"&WEEKNUM(AvailabilityTable[[#This Row],[Date]],2)-Start_week,2)&YEAR(AvailabilityTable[[#This Row],[Date]]),\"\")","v":"-011900"}]
[null,null,null,{"$f":"IF(AvailabilityTable[[#This Row],[Name]]&\"-\"&RIGHT(\"0\"&WEEKNUM(AvailabilityTable[[#This Row],[Date]],2)-Start_week,2)<>\"-0-\",AvailabilityTable[[#This Row],[Name]]&\"-\"&RIGHT(\"0\"&WEEKNUM(AvailabilityTable[[#This Row],[Date]],2)-Start_week,2)&YEAR(AvailabilityTable[[#This Row],[Date]]),\"\")","v":"-011900"}]
[null,null,null,{"$f":"IF(AvailabilityTable[[#This Row],[Name]]&\"-\"&RIGHT(\"0\"&WEEKNUM(AvailabilityTable[[#This Row],[Date]],2)-Start_week,2)<>\"-0-\",AvailabilityTable[[#This Row],[Name]]&\"-\"&RIGHT(\"0\"&WEEKNUM(AvailabilityTable[[#This Row],[Date]],2)-Start_week,2)&YEAR(AvailabilityTable[[#This Row],[Date]]),\"\")","v":"-011900"}]
[null,null,null,{"$f":"IF(AvailabilityTable[[#This Row],[Name]]&\"-\"&RIGHT(\"0\"&WEEKNUM(AvailabilityTable[[#This Row],[Date]],2)-Start_week,2)<>\"-0-\",AvailabilityTable[[#This Row],[Name]]&\"-\"&RIGHT(\"0\"&WEEKNUM(AvailabilityTable[[#This Row],[Date]],2)-Start_week,2)&YEAR(AvailabilityTable[[#This Row],[Date]]),\"\")","v":"-011900"}]
[null,null,null,{"$f":"IF(AvailabilityTable[[#This Row],[Name]]&\"-\"&RIGHT(\"0\"&WEEKNUM(AvailabilityTable[[#This Row],[Date]],2)-Start_week,2)<>\"-0-\",AvailabilityTable[[#This Row],[Name]]&\"-\"&RIGHT(\"0\"&WEEKNUM(AvailabilityTable[[#This Row],[Date]],2)-Start_week,2)&YEAR(AvailabilityTable[[#This Row],[Date]]),\"\")","v":"-011900"}]
[null,null,null,{"$f":"IF(AvailabilityTable[[#This Row],[Name]]&\"-\"&RIGHT(\"0\"&WEEKNUM(AvailabilityTable[[#This Row],[Date]],2)-Start_week,2)<>\"-0-\",AvailabilityTable[[#This Row],[Name]]&\"-\"&RIGHT(\"0\"&WEEKNUM(AvailabilityTable[[#This Row],[Date]],2)-Start_week,2)&YEAR(AvailabilityTable[[#This Row],[Date]]),\"\")","v":"-011900"}]
[null,null,null,{"$f":"IF(AvailabilityTable[[#This Row],[Name]]&\"-\"&RIGHT(\"0\"&WEEKNUM(AvailabilityTable[[#This Row],[Date]],2)-Start_week,2)<>\"-0-\",AvailabilityTable[[#This Row],[Name]]&\"-\"&RIGHT(\"0\"&WEEKNUM(AvailabilityTable[[#This Row],[Date]],2)-Start_week,2)&YEAR(AvailabilityTable[[#This Row],[Date]]),\"\")","v":"-011900"}]
[null,null,null,{"$f":"IF(AvailabilityTable[[#This Row],[Name]]&\"-\"&RIGHT(\"0\"&WEEKNUM(AvailabilityTable[[#This Row],[Date]],2)-Start_week,2)<>\"-0-\",AvailabilityTable[[#This Row],[Name]]&\"-\"&RIGHT(\"0\"&WEEKNUM(AvailabilityTable[[#This Row],[Date]],2)-Start_week,2)&YEAR(AvailabilityTable[[#This Row],[Date]]),\"\")","v":"-011900"}]
[null,null,null,{"$f":"IF(AvailabilityTable[[#This Row],[Name]]&\"-\"&RIGHT(\"0\"&WEEKNUM(AvailabilityTable[[#This Row],[Date]],2)-Start_week,2)<>\"-0-\",AvailabilityTable[[#This Row],[Name]]&\"-\"&RIGHT(\"0\"&WEEKNUM(AvailabilityTable[[#This Row],[Date]],2)-Start_week,2)&YEAR(AvailabilityTable[[#This Row],[Date]]),\"\")","v":"-011900"}]
[null,null,null,{"$f":"IF(AvailabilityTable[[#This Row],[Name]]&\"-\"&RIGHT(\"0\"&WEEKNUM(AvailabilityTable[[#This Row],[Date]],2)-Start_week,2)<>\"-0-\",AvailabilityTable[[#This Row],[Name]]&\"-\"&RIGHT(\"0\"&WEEKNUM(AvailabilityTable[[#This Row],[Date]],2)-Start_week,2)&YEAR(AvailabilityTable[[#This Row],[Date]]),\"\")","v":"-011900"}]
[null,null,null,{"$f":"IF(AvailabilityTable[[#This Row],[Name]]&\"-\"&RIGHT(\"0\"&WEEKNUM(AvailabilityTable[[#This Row],[Date]],2)-Start_week,2)<>\"-0-\",AvailabilityTable[[#This Row],[Name]]&\"-\"&RIGHT(\"0\"&WEEKNUM(AvailabilityTable[[#This Row],[Date]],2)-Start_week,2)&YEAR(AvailabilityTable[[#This Row],[Date]]),\"\")","v":"-011900"}]
[null,null,null,{"$f":"IF(AvailabilityTable[[#This Row],[Name]]&\"-\"&RIGHT(\"0\"&WEEKNUM(AvailabilityTable[[#This Row],[Date]],2)-Start_week,2)<>\"-0-\",AvailabilityTable[[#This Row],[Name]]&\"-\"&RIGHT(\"0\"&WEEKNUM(AvailabilityTable[[#This Row],[Date]],2)-Start_week,2)&YEAR(AvailabilityTable[[#This Row],[Date]]),\"\")","v":"-011900"}]
[null,null,null,{"$f":"IF(AvailabilityTable[[#This Row],[Name]]&\"-\"&RIGHT(\"0\"&WEEKNUM(AvailabilityTable[[#This Row],[Date]],2)-Start_week,2)<>\"-0-\",AvailabilityTable[[#This Row],[Name]]&\"-\"&RIGHT(\"0\"&WEEKNUM(AvailabilityTable[[#This Row],[Date]],2)-Start_week,2)&YEAR(AvailabilityTable[[#This Row],[Date]]),\"\")","v":"-011900"}]
[null,null,null,{"$f":"IF(AvailabilityTable[[#This Row],[Name]]&\"-\"&RIGHT(\"0\"&WEEKNUM(AvailabilityTable[[#This Row],[Date]],2)-Start_week,2)<>\"-0-\",AvailabilityTable[[#This Row],[Name]]&\"-\"&RIGHT(\"0\"&WEEKNUM(AvailabilityTable[[#This Row],[Date]],2)-Start_week,2)&YEAR(AvailabilityTable[[#This Row],[Date]]),\"\")","v":"-011900"}]
[null,null,null,{"$f":"IF(AvailabilityTable[[#This Row],[Name]]&\"-\"&RIGHT(\"0\"&WEEKNUM(AvailabilityTable[[#This Row],[Date]],2)-Start_week,2)<>\"-0-\",AvailabilityTable[[#This Row],[Name]]&\"-\"&RIGHT(\"0\"&WEEKNUM(AvailabilityTable[[#This Row],[Date]],2)-Start_week,2)&YEAR(AvailabilityTable[[#This Row],[Date]]),\"\")","v":"-011900"}]
[null,null,null,{"$f":"IF(AvailabilityTable[[#This Row],[Name]]&\"-\"&RIGHT(\"0\"&WEEKNUM(AvailabilityTable[[#This Row],[Date]],2)-Start_week,2)<>\"-0-\",AvailabilityTable[[#This Row],[Name]]&\"-\"&RIGHT(\"0\"&WEEKNUM(AvailabilityTable[[#This Row],[Date]],2)-Start_week,2)&YEAR(AvailabilityTable[[#This Row],[Date]]),\"\")","v":"-011900"}]
[null,null,null,{"$f":"IF(AvailabilityTable[[#This Row],[Name]]&\"-\"&RIGHT(\"0\"&WEEKNUM(AvailabilityTable[[#This Row],[Date]],2)-Start_week,2)<>\"-0-\",AvailabilityTable[[#This Row],[Name]]&\"-\"&RIGHT(\"0\"&WEEKNUM(AvailabilityTable[[#This Row],[Date]],2)-Start_week,2)&YEAR(AvailabilityTable[[#This Row],[Date]]),\"\")","v":"-011900"}]
[null,null,null,{"$f":"IF(AvailabilityTable[[#This Row],[Name]]&\"-\"&RIGHT(\"0\"&WEEKNUM(AvailabilityTable[[#This Row],[Date]],2)-Start_week,2)<>\"-0-\",AvailabilityTable[[#This Row],[Name]]&\"-\"&RIGHT(\"0\"&WEEKNUM(AvailabilityTable[[#This Row],[Date]],2)-Start_week,2)&YEAR(AvailabilityTable[[#This Row],[Date]]),\"\")","v":"-011900"}]
[null,null,null,{"$f":"IF(AvailabilityTable[[#This Row],[Name]]&\"-\"&RIGHT(\"0\"&WEEKNUM(AvailabilityTable[[#This Row],[Date]],2)-Start_week,2)<>\"-0-\",AvailabilityTable[[#This Row],[Name]]&\"-\"&RIGHT(\"0\"&WEEKNUM(AvailabilityTable[[#This Row],[Date]],2)-Start_week,2)&YEAR(AvailabilityTable[[#This Row],[Date]]),\"\")","v":"-011900"}]
[null,null,null,{"$f":"IF(AvailabilityTable[[#This Row],[Name]]&\"-\"&RIGHT(\"0\"&WEEKNUM(AvailabilityTable[[#This Row],[Date]],2)-Start_week,2)<>\"-0-\",AvailabilityTable[[#This Row],[Name]]&\"-\"&RIGHT(\"0\"&WEEKNUM(AvailabilityTable[[#This Row],[Date]],2)-Start_week,2)&YEAR(AvailabilityTable[[#This Row],[Date]]),\"\")","v":"-011900"}]
[null,null,null,{"$f":"IF(AvailabilityTable[[#This Row],[Name]]&\"-\"&RIGHT(\"0\"&WEEKNUM(AvailabilityTable[[#This Row],[Date]],2)-Start_week,2)<>\"-0-\",AvailabilityTable[[#This Row],[Name]]&\"-\"&RIGHT(\"0\"&WEEKNUM(AvailabilityTable[[#This Row],[Date]],2)-Start_week,2)&YEAR(AvailabilityTable[[#This Row],[Date]]),\"\")","v":"-011900"}]
[null,null,null,{"$f":"IF(AvailabilityTable[[#This Row],[Name]]&\"-\"&RIGHT(\"0\"&WEEKNUM(AvailabilityTable[[#This Row],[Date]],2)-Start_week,2)<>\"-0-\",AvailabilityTable[[#This Row],[Name]]&\"-\"&RIGHT(\"0\"&WEEKNUM(AvailabilityTable[[#This Row],[Date]],2)-Start_week,2)&YEAR(AvailabilityTable[[#This Row],[Date]]),\"\")","v":"-011900"}]
[null,null,null,{"$f":"IF(AvailabilityTable[[#This Row],[Name]]&\"-\"&RIGHT(\"0\"&WEEKNUM(AvailabilityTable[[#This Row],[Date]],2)-Start_week,2)<>\"-0-\",AvailabilityTable[[#This Row],[Name]]&\"-\"&RIGHT(\"0\"&WEEKNUM(AvailabilityTable[[#This Row],[Date]],2)-Start_week,2)&YEAR(AvailabilityTable[[#This Row],[Date]]),\"\")","v":"-011900"}]
[null,null,null,{"$f":"IF(AvailabilityTable[[#This Row],[Name]]&\"-\"&RIGHT(\"0\"&WEEKNUM(AvailabilityTable[[#This Row],[Date]],2)-Start_week,2)<>\"-0-\",AvailabilityTable[[#This Row],[Name]]&\"-\"&RIGHT(\"0\"&WEEKNUM(AvailabilityTable[[#This Row],[Date]],2)-Start_week,2)&YEAR(AvailabilityTable[[#This Row],[Date]]),\"\")","v":"-011900"}]
[null,null,null,{"$f":"IF(AvailabilityTable[[#This Row],[Name]]&\"-\"&RIGHT(\"0\"&WEEKNUM(AvailabilityTable[[#This Row],[Date]],2)-Start_week,2)<>\"-0-\",AvailabilityTable[[#This Row],[Name]]&\"-\"&RIGHT(\"0\"&WEEKNUM(AvailabilityTable[[#This Row],[Date]],2)-Start_week,2)&YEAR(AvailabilityTable[[#This Row],[Date]]),\"\")","v":"-011900"}]
[null,null,null,{"$f":"IF(AvailabilityTable[[#This Row],[Name]]&\"-\"&RIGHT(\"0\"&WEEKNUM(AvailabilityTable[[#This Row],[Date]],2)-Start_week,2)<>\"-0-\",AvailabilityTable[[#This Row],[Name]]&\"-\"&RIGHT(\"0\"&WEEKNUM(AvailabilityTable[[#This Row],[Date]],2)-Start_week,2)&YEAR(AvailabilityTable[[#This Row],[Date]]),\"\")","v":"-011900"}]
[null,null,null,{"$f":"IF(AvailabilityTable[[#This Row],[Name]]&\"-\"&RIGHT(\"0\"&WEEKNUM(AvailabilityTable[[#This Row],[Date]],2)-Start_week,2)<>\"-0-\",AvailabilityTable[[#This Row],[Name]]&\"-\"&RIGHT(\"0\"&WEEKNUM(AvailabilityTable[[#This Row],[Date]],2)-Start_week,2)&YEAR(AvailabilityTable[[#This Row],[Date]]),\"\")","v":"-011900"}]
[null,null,null,{"$f":"IF(AvailabilityTable[[#This Row],[Name]]&\"-\"&RIGHT(\"0\"&WEEKNUM(AvailabilityTable[[#This Row],[Date]],2)-Start_week,2)<>\"-0-\",AvailabilityTable[[#This Row],[Name]]&\"-\"&RIGHT(\"0\"&WEEKNUM(AvailabilityTable[[#This Row],[Date]],2)-Start_week,2)&YEAR(AvailabilityTable[[#This Row],[Date]]),\"\")","v":"-011900"}]
[null,null,null,{"$f":"IF(AvailabilityTable[[#This Row],[Name]]&\"-\"&RIGHT(\"0\"&WEEKNUM(AvailabilityTable[[#This Row],[Date]],2)-Start_week,2)<>\"-0-\",AvailabilityTable[[#This Row],[Name]]&\"-\"&RIGHT(\"0\"&WEEKNUM(AvailabilityTable[[#This Row],[Date]],2)-Start_week,2)&YEAR(AvailabilityTable[[#This Row],[Date]]),\"\")","v":"-011900"}]
[null,null,null,{"$f":"IF(AvailabilityTable[[#This Row],[Name]]&\"-\"&RIGHT(\"0\"&WEEKNUM(AvailabilityTable[[#This Row],[Date]],2)-Start_week,2)<>\"-0-\",AvailabilityTable[[#This Row],[Name]]&\"-\"&RIGHT(\"0\"&WEEKNUM(AvailabilityTable[[#This Row],[Date]],2)-Start_week,2)&YEAR(AvailabilityTable[[#This Row],[Date]]),\"\")","v":"-011900"}]
[null,null,null,{"$f":"IF(AvailabilityTable[[#This Row],[Name]]&\"-\"&RIGHT(\"0\"&WEEKNUM(AvailabilityTable[[#This Row],[Date]],2)-Start_week,2)<>\"-0-\",AvailabilityTable[[#This Row],[Name]]&\"-\"&RIGHT(\"0\"&WEEKNUM(AvailabilityTable[[#This Row],[Date]],2)-Start_week,2)&YEAR(AvailabilityTable[[#This Row],[Date]]),\"\")","v":"-011900"}]
[null,null,null,{"$f":"IF(AvailabilityTable[[#This Row],[Name]]&\"-\"&RIGHT(\"0\"&WEEKNUM(AvailabilityTable[[#This Row],[Date]],2)-Start_week,2)<>\"-0-\",AvailabilityTable[[#This Row],[Name]]&\"-\"&RIGHT(\"0\"&WEEKNUM(AvailabilityTable[[#This Row],[Date]],2)-Start_week,2)&YEAR(AvailabilityTable[[#This Row],[Date]]),\"\")","v":"-011900"}]
[null,null,null,{"$f":"IF(AvailabilityTable[[#This Row],[Name]]&\"-\"&RIGHT(\"0\"&WEEKNUM(AvailabilityTable[[#This Row],[Date]],2)-Start_week,2)<>\"-0-\",AvailabilityTable[[#This Row],[Name]]&\"-\"&RIGHT(\"0\"&WEEKNUM(AvailabilityTable[[#This Row],[Date]],2)-Start_week,2)&YEAR(AvailabilityTable[[#This Row],[Date]]),\"\")","v":"-011900"}]
[null,null,null,{"$f":"IF(AvailabilityTable[[#This Row],[Name]]&\"-\"&RIGHT(\"0\"&WEEKNUM(AvailabilityTable[[#This Row],[Date]],2)-Start_week,2)<>\"-0-\",AvailabilityTable[[#This Row],[Name]]&\"-\"&RIGHT(\"0\"&WEEKNUM(AvailabilityTable[[#This Row],[Date]],2)-Start_week,2)&YEAR(AvailabilityTable[[#This Row],[Date]]),\"\")","v":"-011900"}]
[null,null,null,{"$f":"IF(AvailabilityTable[[#This Row],[Name]]&\"-\"&RIGHT(\"0\"&WEEKNUM(AvailabilityTable[[#This Row],[Date]],2)-Start_week,2)<>\"-0-\",AvailabilityTable[[#This Row],[Name]]&\"-\"&RIGHT(\"0\"&WEEKNUM(AvailabilityTable[[#This Row],[Date]],2)-Start_week,2)&YEAR(AvailabilityTable[[#This Row],[Date]]),\"\")","v":"-011900"}]
[null,null,null,{"$f":"IF(AvailabilityTable[[#This Row],[Name]]&\"-\"&RIGHT(\"0\"&WEEKNUM(AvailabilityTable[[#This Row],[Date]],2)-Start_week,2)<>\"-0-\",AvailabilityTable[[#This Row],[Name]]&\"-\"&RIGHT(\"0\"&WEEKNUM(AvailabilityTable[[#This Row],[Date]],2)-Start_week,2)&YEAR(AvailabilityTable[[#This Row],[Date]]),\"\")","v":"-011900"}]
[null,null,null,{"$f":"IF(AvailabilityTable[[#This Row],[Name]]&\"-\"&RIGHT(\"0\"&WEEKNUM(AvailabilityTable[[#This Row],[Date]],2)-Start_week,2)<>\"-0-\",AvailabilityTable[[#This Row],[Name]]&\"-\"&RIGHT(\"0\"&WEEKNUM(AvailabilityTable[[#This Row],[Date]],2)-Start_week,2)&YEAR(AvailabilityTable[[#This Row],[Date]]),\"\")","v":"-011900"}]
[null,null,null,{"$f":"IF(AvailabilityTable[[#This Row],[Name]]&\"-\"&RIGHT(\"0\"&WEEKNUM(AvailabilityTable[[#This Row],[Date]],2)-Start_week,2)<>\"-0-\",AvailabilityTable[[#This Row],[Name]]&\"-\"&RIGHT(\"0\"&WEEKNUM(AvailabilityTable[[#This Row],[Date]],2)-Start_week,2)&YEAR(AvailabilityTable[[#This Row],[Date]]),\"\")","v":"-011900"}]
[null,null,null,{"$f":"IF(AvailabilityTable[[#This Row],[Name]]&\"-\"&RIGHT(\"0\"&WEEKNUM(AvailabilityTable[[#This Row],[Date]],2)-Start_week,2)<>\"-0-\",AvailabilityTable[[#This Row],[Name]]&\"-\"&RIGHT(\"0\"&WEEKNUM(AvailabilityTable[[#This Row],[Date]],2)-Start_week,2)&YEAR(AvailabilityTable[[#This Row],[Date]]),\"\")","v":"-011900"}]
[null,null,null,{"$f":"IF(AvailabilityTable[[#This Row],[Name]]&\"-\"&RIGHT(\"0\"&WEEKNUM(AvailabilityTable[[#This Row],[Date]],2)-Start_week,2)<>\"-0-\",AvailabilityTable[[#This Row],[Name]]&\"-\"&RIGHT(\"0\"&WEEKNUM(AvailabilityTable[[#This Row],[Date]],2)-Start_week,2)&YEAR(AvailabilityTable[[#This Row],[Date]]),\"\")","v":"-011900"}]
[null,null,null,{"$f":"IF(AvailabilityTable[[#This Row],[Name]]&\"-\"&RIGHT(\"0\"&WEEKNUM(AvailabilityTable[[#This Row],[Date]],2)-Start_week,2)<>\"-0-\",AvailabilityTable[[#This Row],[Name]]&\"-\"&RIGHT(\"0\"&WEEKNUM(AvailabilityTable[[#This Row],[Date]],2)-Start_week,2)&YEAR(AvailabilityTable[[#This Row],[Date]]),\"\")","v":"-011900"}]
[null,null,null,{"$f":"IF(AvailabilityTable[[#This Row],[Name]]&\"-\"&RIGHT(\"0\"&WEEKNUM(AvailabilityTable[[#This Row],[Date]],2)-Start_week,2)<>\"-0-\",AvailabilityTable[[#This Row],[Name]]&\"-\"&RIGHT(\"0\"&WEEKNUM(AvailabilityTable[[#This Row],[Date]],2)-Start_week,2)&YEAR(AvailabilityTable[[#This Row],[Date]]),\"\")","v":"-011900"}]
[null,null,null,{"$f":"IF(AvailabilityTable[[#This Row],[Name]]&\"-\"&RIGHT(\"0\"&WEEKNUM(AvailabilityTable[[#This Row],[Date]],2)-Start_week,2)<>\"-0-\",AvailabilityTable[[#This Row],[Name]]&\"-\"&RIGHT(\"0\"&WEEKNUM(AvailabilityTable[[#This Row],[Date]],2)-Start_week,2)&YEAR(AvailabilityTable[[#This Row],[Date]]),\"\")","v":"-011900"}]
[null,null,null,{"$f":"IF(AvailabilityTable[[#This Row],[Name]]&\"-\"&RIGHT(\"0\"&WEEKNUM(AvailabilityTable[[#This Row],[Date]],2)-Start_week,2)<>\"-0-\",AvailabilityTable[[#This Row],[Name]]&\"-\"&RIGHT(\"0\"&WEEKNUM(AvailabilityTable[[#This Row],[Date]],2)-Start_week,2)&YEAR(AvailabilityTable[[#This Row],[Date]]),\"\")","v":"-011900"}]
[null,null,null,{"$f":"IF(AvailabilityTable[[#This Row],[Name]]&\"-\"&RIGHT(\"0\"&WEEKNUM(AvailabilityTable[[#This Row],[Date]],2)-Start_week,2)<>\"-0-\",AvailabilityTable[[#This Row],[Name]]&\"-\"&RIGHT(\"0\"&WEEKNUM(AvailabilityTable[[#This Row],[Date]],2)-Start_week,2)&YEAR(AvailabilityTable[[#This Row],[Date]]),\"\")","v":"-011900"}]
[null,null,null,{"$f":"IF(AvailabilityTable[[#This Row],[Name]]&\"-\"&RIGHT(\"0\"&WEEKNUM(AvailabilityTable[[#This Row],[Date]],2)-Start_week,2)<>\"-0-\",AvailabilityTable[[#This Row],[Name]]&\"-\"&RIGHT(\"0\"&WEEKNUM(AvailabilityTable[[#This Row],[Date]],2)-Start_week,2)&YEAR(AvailabilityTable[[#This Row],[Date]]),\"\")","v":"-011900"}]
[null,null,null,{"$f":"IF(AvailabilityTable[[#This Row],[Name]]&\"-\"&RIGHT(\"0\"&WEEKNUM(AvailabilityTable[[#This Row],[Date]],2)-Start_week,2)<>\"-0-\",AvailabilityTable[[#This Row],[Name]]&\"-\"&RIGHT(\"0\"&WEEKNUM(AvailabilityTable[[#This Row],[Date]],2)-Start_week,2)&YEAR(AvailabilityTable[[#This Row],[Date]]),\"\")","v":"-011900"}]
[null,null,null,{"$f":"IF(AvailabilityTable[[#This Row],[Name]]&\"-\"&RIGHT(\"0\"&WEEKNUM(AvailabilityTable[[#This Row],[Date]],2)-Start_week,2)<>\"-0-\",AvailabilityTable[[#This Row],[Name]]&\"-\"&RIGHT(\"0\"&WEEKNUM(AvailabilityTable[[#This Row],[Date]],2)-Start_week,2)&YEAR(AvailabilityTable[[#This Row],[Date]]),\"\")","v":"-011900"}]
[null,null,null,{"$f":"IF(AvailabilityTable[[#This Row],[Name]]&\"-\"&RIGHT(\"0\"&WEEKNUM(AvailabilityTable[[#This Row],[Date]],2)-Start_week,2)<>\"-0-\",AvailabilityTable[[#This Row],[Name]]&\"-\"&RIGHT(\"0\"&WEEKNUM(AvailabilityTable[[#This Row],[Date]],2)-Start_week,2)&YEAR(AvailabilityTable[[#This Row],[Date]]),\"\")","v":"-011900"}]
[null,null,null,{"$f":"IF(AvailabilityTable[[#This Row],[Name]]&\"-\"&RIGHT(\"0\"&WEEKNUM(AvailabilityTable[[#This Row],[Date]],2)-Start_week,2)<>\"-0-\",AvailabilityTable[[#This Row],[Name]]&\"-\"&RIGHT(\"0\"&WEEKNUM(AvailabilityTable[[#This Row],[Date]],2)-Start_week,2)&YEAR(AvailabilityTable[[#This Row],[Date]]),\"\")","v":"-011900"}]
[null,null,null,{"$f":"IF(AvailabilityTable[[#This Row],[Name]]&\"-\"&RIGHT(\"0\"&WEEKNUM(AvailabilityTable[[#This Row],[Date]],2)-Start_week,2)<>\"-0-\",AvailabilityTable[[#This Row],[Name]]&\"-\"&RIGHT(\"0\"&WEEKNUM(AvailabilityTable[[#This Row],[Date]],2)-Start_week,2)&YEAR(AvailabilityTable[[#This Row],[Date]]),\"\")","v":"-011900"}]
[null,null,null,{"$f":"IF(AvailabilityTable[[#This Row],[Name]]&\"-\"&RIGHT(\"0\"&WEEKNUM(AvailabilityTable[[#This Row],[Date]],2)-Start_week,2)<>\"-0-\",AvailabilityTable[[#This Row],[Name]]&\"-\"&RIGHT(\"0\"&WEEKNUM(AvailabilityTable[[#This Row],[Date]],2)-Start_week,2)&YEAR(AvailabilityTable[[#This Row],[Date]]),\"\")","v":"-011900"}]
[null,null,null,{"$f":"IF(AvailabilityTable[[#This Row],[Name]]&\"-\"&RIGHT(\"0\"&WEEKNUM(AvailabilityTable[[#This Row],[Date]],2)-Start_week,2)<>\"-0-\",AvailabilityTable[[#This Row],[Name]]&\"-\"&RIGHT(\"0\"&WEEKNUM(AvailabilityTable[[#This Row],[Date]],2)-Start_week,2)&YEAR(AvailabilityTable[[#This Row],[Date]]),\"\")","v":"-011900"}]
[null,null,null,{"$f":"IF(AvailabilityTable[[#This Row],[Name]]&\"-\"&RIGHT(\"0\"&WEEKNUM(AvailabilityTable[[#This Row],[Date]],2)-Start_week,2)<>\"-0-\",AvailabilityTable[[#This Row],[Name]]&\"-\"&RIGHT(\"0\"&WEEKNUM(AvailabilityTable[[#This Row],[Date]],2)-Start_week,2)&YEAR(AvailabilityTable[[#This Row],[Date]]),\"\")","v":"-011900"}]
[null,null,null,{"$f":"IF(AvailabilityTable[[#This Row],[Name]]&\"-\"&RIGHT(\"0\"&WEEKNUM(AvailabilityTable[[#This Row],[Date]],2)-Start_week,2)<>\"-0-\",AvailabilityTable[[#This Row],[Name]]&\"-\"&RIGHT(\"0\"&WEEKNUM(AvailabilityTable[[#This Row],[Date]],2)-Start_week,2)&YEAR(AvailabilityTable[[#This Row],[Date]]),\"\")","v":"-011900"}]
[null,null,null,{"$f":"IF(AvailabilityTable[[#This Row],[Name]]&\"-\"&RIGHT(\"0\"&WEEKNUM(AvailabilityTable[[#This Row],[Date]],2)-Start_week,2)<>\"-0-\",AvailabilityTable[[#This Row],[Name]]&\"-\"&RIGHT(\"0\"&WEEKNUM(AvailabilityTable[[#This Row],[Date]],2)-Start_week,2)&YEAR(AvailabilityTable[[#This Row],[Date]]),\"\")","v":"-011900"}]
[null,null,null,{"$f":"IF(AvailabilityTable[[#This Row],[Name]]&\"-\"&RIGHT(\"0\"&WEEKNUM(AvailabilityTable[[#This Row],[Date]],2)-Start_week,2)<>\"-0-\",AvailabilityTable[[#This Row],[Name]]&\"-\"&RIGHT(\"0\"&WEEKNUM(AvailabilityTable[[#This Row],[Date]],2)-Start_week,2)&YEAR(AvailabilityTable[[#This Row],[Date]]),\"\")","v":"-011900"}]
[null,null,null,{"$f":"IF(AvailabilityTable[[#This Row],[Name]]&\"-\"&RIGHT(\"0\"&WEEKNUM(AvailabilityTable[[#This Row],[Date]],2)-Start_week,2)<>\"-0-\",AvailabilityTable[[#This Row],[Name]]&\"-\"&RIGHT(\"0\"&WEEKNUM(AvailabilityTable[[#This Row],[Date]],2)-Start_week,2)&YEAR(AvailabilityTable[[#This Row],[Date]]),\"\")","v":"-011900"}]
[null,null,null,{"$f":"IF(AvailabilityTable[[#This Row],[Name]]&\"-\"&RIGHT(\"0\"&WEEKNUM(AvailabilityTable[[#This Row],[Date]],2)-Start_week,2)<>\"-0-\",AvailabilityTable[[#This Row],[Name]]&\"-\"&RIGHT(\"0\"&WEEKNUM(AvailabilityTable[[#This Row],[Date]],2)-Start_week,2)&YEAR(AvailabilityTable[[#This Row],[Date]]),\"\")","v":"-011900"}]
[null,null,null,{"$f":"IF(AvailabilityTable[[#This Row],[Name]]&\"-\"&RIGHT(\"0\"&WEEKNUM(AvailabilityTable[[#This Row],[Date]],2)-Start_week,2)<>\"-0-\",AvailabilityTable[[#This Row],[Name]]&\"-\"&RIGHT(\"0\"&WEEKNUM(AvailabilityTable[[#This Row],[Date]],2)-Start_week,2)&YEAR(AvailabilityTable[[#This Row],[Date]]),\"\")","v":"-011900"}]
[null,null,null,{"$f":"IF(AvailabilityTable[[#This Row],[Name]]&\"-\"&RIGHT(\"0\"&WEEKNUM(AvailabilityTable[[#This Row],[Date]],2)-Start_week,2)<>\"-0-\",AvailabilityTable[[#This Row],[Name]]&\"-\"&RIGHT(\"0\"&WEEKNUM(AvailabilityTable[[#This Row],[Date]],2)-Start_week,2)&YEAR(AvailabilityTable[[#This Row],[Date]]),\"\")","v":"-011900"}]
[null,null,null,{"$f":"IF(AvailabilityTable[[#This Row],[Name]]&\"-\"&RIGHT(\"0\"&WEEKNUM(AvailabilityTable[[#This Row],[Date]],2)-Start_week,2)<>\"-0-\",AvailabilityTable[[#This Row],[Name]]&\"-\"&RIGHT(\"0\"&WEEKNUM(AvailabilityTable[[#This Row],[Date]],2)-Start_week,2)&YEAR(AvailabilityTable[[#This Row],[Date]]),\"\")","v":"-011900"}]
[null,null,null,{"$f":"IF(AvailabilityTable[[#This Row],[Name]]&\"-\"&RIGHT(\"0\"&WEEKNUM(AvailabilityTable[[#This Row],[Date]],2)-Start_week,2)<>\"-0-\",AvailabilityTable[[#This Row],[Name]]&\"-\"&RIGHT(\"0\"&WEEKNUM(AvailabilityTable[[#This Row],[Date]],2)-Start_week,2)&YEAR(AvailabilityTable[[#This Row],[Date]]),\"\")","v":"-011900"}]
[null,null,null,{"$f":"IF(AvailabilityTable[[#This Row],[Name]]&\"-\"&RIGHT(\"0\"&WEEKNUM(AvailabilityTable[[#This Row],[Date]],2)-Start_week,2)<>\"-0-\",AvailabilityTable[[#This Row],[Name]]&\"-\"&RIGHT(\"0\"&WEEKNUM(AvailabilityTable[[#This Row],[Date]],2)-Start_week,2)&YEAR(AvailabilityTable[[#This Row],[Date]]),\"\")","v":"-011900"}]
[null,null,null,{"$f":"IF(AvailabilityTable[[#This Row],[Name]]&\"-\"&RIGHT(\"0\"&WEEKNUM(AvailabilityTable[[#This Row],[Date]],2)-Start_week,2)<>\"-0-\",AvailabilityTable[[#This Row],[Name]]&\"-\"&RIGHT(\"0\"&WEEKNUM(AvailabilityTable[[#This Row],[Date]],2)-Start_week,2)&YEAR(AvailabilityTable[[#This Row],[Date]]),\"\")","v":"-011900"}]
[null,null,null,{"$f":"IF(AvailabilityTable[[#This Row],[Name]]&\"-\"&RIGHT(\"0\"&WEEKNUM(AvailabilityTable[[#This Row],[Date]],2)-Start_week,2)<>\"-0-\",AvailabilityTable[[#This Row],[Name]]&\"-\"&RIGHT(\"0\"&WEEKNUM(AvailabilityTable[[#This Row],[Date]],2)-Start_week,2)&YEAR(AvailabilityTable[[#This Row],[Date]]),\"\")","v":"-011900"}]
[null,null,null,{"$f":"IF(AvailabilityTable[[#This Row],[Name]]&\"-\"&RIGHT(\"0\"&WEEKNUM(AvailabilityTable[[#This Row],[Date]],2)-Start_week,2)<>\"-0-\",AvailabilityTable[[#This Row],[Name]]&\"-\"&RIGHT(\"0\"&WEEKNUM(AvailabilityTable[[#This Row],[Date]],2)-Start_week,2)&YEAR(AvailabilityTable[[#This Row],[Date]]),\"\")","v":"-011900"}]
[null,null,null,{"$f":"IF(AvailabilityTable[[#This Row],[Name]]&\"-\"&RIGHT(\"0\"&WEEKNUM(AvailabilityTable[[#This Row],[Date]],2)-Start_week,2)<>\"-0-\",AvailabilityTable[[#This Row],[Name]]&\"-\"&RIGHT(\"0\"&WEEKNUM(AvailabilityTable[[#This Row],[Date]],2)-Start_week,2)&YEAR(AvailabilityTable[[#This Row],[Date]]),\"\")","v":"-011900"}]
[null,null,null,{"$f":"IF(AvailabilityTable[[#This Row],[Name]]&\"-\"&RIGHT(\"0\"&WEEKNUM(AvailabilityTable[[#This Row],[Date]],2)-Start_week,2)<>\"-0-\",AvailabilityTable[[#This Row],[Name]]&\"-\"&RIGHT(\"0\"&WEEKNUM(AvailabilityTable[[#This Row],[Date]],2)-Start_week,2)&YEAR(AvailabilityTable[[#This Row],[Date]]),\"\")","v":"-011900"}]
[null,null,null,{"$f":"IF(AvailabilityTable[[#This Row],[Name]]&\"-\"&RIGHT(\"0\"&WEEKNUM(AvailabilityTable[[#This Row],[Date]],2)-Start_week,2)<>\"-0-\",AvailabilityTable[[#This Row],[Name]]&\"-\"&RIGHT(\"0\"&WEEKNUM(AvailabilityTable[[#This Row],[Date]],2)-Start_week,2)&YEAR(AvailabilityTable[[#This Row],[Date]]),\"\")","v":"-011900"}]
[null,null,null,{"$f":"IF(AvailabilityTable[[#This Row],[Name]]&\"-\"&RIGHT(\"0\"&WEEKNUM(AvailabilityTable[[#This Row],[Date]],2)-Start_week,2)<>\"-0-\",AvailabilityTable[[#This Row],[Name]]&\"-\"&RIGHT(\"0\"&WEEKNUM(AvailabilityTable[[#This Row],[Date]],2)-Start_week,2)&YEAR(AvailabilityTable[[#This Row],[Date]]),\"\")","v":"-011900"}]
[null,null,null,{"$f":"IF(AvailabilityTable[[#This Row],[Name]]&\"-\"&RIGHT(\"0\"&WEEKNUM(AvailabilityTable[[#This Row],[Date]],2)-Start_week,2)<>\"-0-\",AvailabilityTable[[#This Row],[Name]]&\"-\"&RIGHT(\"0\"&WEEKNUM(AvailabilityTable[[#This Row],[Date]],2)-Start_week,2)&YEAR(AvailabilityTable[[#This Row],[Date]]),\"\")","v":"-011900"}]
[null,null,null,{"$f":"IF(AvailabilityTable[[#This Row],[Name]]&\"-\"&RIGHT(\"0\"&WEEKNUM(AvailabilityTable[[#This Row],[Date]],2)-Start_week,2)<>\"-0-\",AvailabilityTable[[#This Row],[Name]]&\"-\"&RIGHT(\"0\"&WEEKNUM(AvailabilityTable[[#This Row],[Date]],2)-Start_week,2)&YEAR(AvailabilityTable[[#This Row],[Date]]),\"\")","v":"-011900"}]
[null,null,null,{"$f":"IF(AvailabilityTable[[#This Row],[Name]]&\"-\"&RIGHT(\"0\"&WEEKNUM(AvailabilityTable[[#This Row],[Date]],2)-Start_week,2)<>\"-0-\",AvailabilityTable[[#This Row],[Name]]&\"-\"&RIGHT(\"0\"&WEEKNUM(AvailabilityTable[[#This Row],[Date]],2)-Start_week,2)&YEAR(AvailabilityTable[[#This Row],[Date]]),\"\")","v":"-011900"}]
[null,null,null,{"$f":"IF(AvailabilityTable[[#This Row],[Name]]&\"-\"&RIGHT(\"0\"&WEEKNUM(AvailabilityTable[[#This Row],[Date]],2)-Start_week,2)<>\"-0-\",AvailabilityTable[[#This Row],[Name]]&\"-\"&RIGHT(\"0\"&WEEKNUM(AvailabilityTable[[#This Row],[Date]],2)-Start_week,2)&YEAR(AvailabilityTable[[#This Row],[Date]]),\"\")","v":"-011900"}]
[null,null,null,{"$f":"IF(AvailabilityTable[[#This Row],[Name]]&\"-\"&RIGHT(\"0\"&WEEKNUM(AvailabilityTable[[#This Row],[Date]],2)-Start_week,2)<>\"-0-\",AvailabilityTable[[#This Row],[Name]]&\"-\"&RIGHT(\"0\"&WEEKNUM(AvailabilityTable[[#This Row],[Date]],2)-Start_week,2)&YEAR(AvailabilityTable[[#This Row],[Date]]),\"\")","v":"-011900"}]
[null,null,null,{"$f":"IF(AvailabilityTable[[#This Row],[Name]]&\"-\"&RIGHT(\"0\"&WEEKNUM(AvailabilityTable[[#This Row],[Date]],2)-Start_week,2)<>\"-0-\",AvailabilityTable[[#This Row],[Name]]&\"-\"&RIGHT(\"0\"&WEEKNUM(AvailabilityTable[[#This Row],[Date]],2)-Start_week,2)&YEAR(AvailabilityTable[[#This Row],[Date]]),\"\")","v":"-011900"}]
[null,null,null,{"$f":"IF(AvailabilityTable[[#This Row],[Name]]&\"-\"&RIGHT(\"0\"&WEEKNUM(AvailabilityTable[[#This Row],[Date]],2)-Start_week,2)<>\"-0-\",AvailabilityTable[[#This Row],[Name]]&\"-\"&RIGHT(\"0\"&WEEKNUM(AvailabilityTable[[#This Row],[Date]],2)-Start_week,2)&YEAR(AvailabilityTable[[#This Row],[Date]]),\"\")","v":"-011900"}]
[null,null,null,{"$f":"IF(AvailabilityTable[[#This Row],[Name]]&\"-\"&RIGHT(\"0\"&WEEKNUM(AvailabilityTable[[#This Row],[Date]],2)-Start_week,2)<>\"-0-\",AvailabilityTable[[#This Row],[Name]]&\"-\"&RIGHT(\"0\"&WEEKNUM(AvailabilityTable[[#This Row],[Date]],2)-Start_week,2)&YEAR(AvailabilityTable[[#This Row],[Date]]),\"\")","v":"-011900"}]
[null,null,null,{"$f":"IF(AvailabilityTable[[#This Row],[Name]]&\"-\"&RIGHT(\"0\"&WEEKNUM(AvailabilityTable[[#This Row],[Date]],2)-Start_week,2)<>\"-0-\",AvailabilityTable[[#This Row],[Name]]&\"-\"&RIGHT(\"0\"&WEEKNUM(AvailabilityTable[[#This Row],[Date]],2)-Start_week,2)&YEAR(AvailabilityTable[[#This Row],[Date]]),\"\")","v":"-011900"}]
[null,null,null,{"$f":"IF(AvailabilityTable[[#This Row],[Name]]&\"-\"&RIGHT(\"0\"&WEEKNUM(AvailabilityTable[[#This Row],[Date]],2)-Start_week,2)<>\"-0-\",AvailabilityTable[[#This Row],[Name]]&\"-\"&RIGHT(\"0\"&WEEKNUM(AvailabilityTable[[#This Row],[Date]],2)-Start_week,2)&YEAR(AvailabilityTable[[#This Row],[Date]]),\"\")","v":"-011900"}]
[null,null,null,{"$f":"IF(AvailabilityTable[[#This Row],[Name]]&\"-\"&RIGHT(\"0\"&WEEKNUM(AvailabilityTable[[#This Row],[Date]],2)-Start_week,2)<>\"-0-\",AvailabilityTable[[#This Row],[Name]]&\"-\"&RIGHT(\"0\"&WEEKNUM(AvailabilityTable[[#This Row],[Date]],2)-Start_week,2)&YEAR(AvailabilityTable[[#This Row],[Date]]),\"\")","v":"-011900"}]
[null,null,null,{"$f":"IF(AvailabilityTable[[#This Row],[Name]]&\"-\"&RIGHT(\"0\"&WEEKNUM(AvailabilityTable[[#This Row],[Date]],2)-Start_week,2)<>\"-0-\",AvailabilityTable[[#This Row],[Name]]&\"-\"&RIGHT(\"0\"&WEEKNUM(AvailabilityTable[[#This Row],[Date]],2)-Start_week,2)&YEAR(AvailabilityTable[[#This Row],[Date]]),\"\")","v":"-011900"}]
[null,null,null,{"$f":"IF(AvailabilityTable[[#This Row],[Name]]&\"-\"&RIGHT(\"0\"&WEEKNUM(AvailabilityTable[[#This Row],[Date]],2)-Start_week,2)<>\"-0-\",AvailabilityTable[[#This Row],[Name]]&\"-\"&RIGHT(\"0\"&WEEKNUM(AvailabilityTable[[#This Row],[Date]],2)-Start_week,2)&YEAR(AvailabilityTable[[#This Row],[Date]]),\"\")","v":"-011900"}]
[null,null,null,{"$f":"IF(AvailabilityTable[[#This Row],[Name]]&\"-\"&RIGHT(\"0\"&WEEKNUM(AvailabilityTable[[#This Row],[Date]],2)-Start_week,2)<>\"-0-\",AvailabilityTable[[#This Row],[Name]]&\"-\"&RIGHT(\"0\"&WEEKNUM(AvailabilityTable[[#This Row],[Date]],2)-Start_week,2)&YEAR(AvailabilityTable[[#This Row],[Date]]),\"\")","v":"-011900"}]
[null,null,null,{"$f":"IF(AvailabilityTable[[#This Row],[Name]]&\"-\"&RIGHT(\"0\"&WEEKNUM(AvailabilityTable[[#This Row],[Date]],2)-Start_week,2)<>\"-0-\",AvailabilityTable[[#This Row],[Name]]&\"-\"&RIGHT(\"0\"&WEEKNUM(AvailabilityTable[[#This Row],[Date]],2)-Start_week,2)&YEAR(AvailabilityTable[[#This Row],[Date]]),\"\")","v":"-011900"}]
[null,null,null,{"$f":"IF(AvailabilityTable[[#This Row],[Name]]&\"-\"&RIGHT(\"0\"&WEEKNUM(AvailabilityTable[[#This Row],[Date]],2)-Start_week,2)<>\"-0-\",AvailabilityTable[[#This Row],[Name]]&\"-\"&RIGHT(\"0\"&WEEKNUM(AvailabilityTable[[#This Row],[Date]],2)-Start_week,2)&YEAR(AvailabilityTable[[#This Row],[Date]]),\"\")","v":"-011900"}]
[null,null,null,{"$f":"IF(AvailabilityTable[[#This Row],[Name]]&\"-\"&RIGHT(\"0\"&WEEKNUM(AvailabilityTable[[#This Row],[Date]],2)-Start_week,2)<>\"-0-\",AvailabilityTable[[#This Row],[Name]]&\"-\"&RIGHT(\"0\"&WEEKNUM(AvailabilityTable[[#This Row],[Date]],2)-Start_week,2)&YEAR(AvailabilityTable[[#This Row],[Date]]),\"\")","v":"-011900"}]
[null,null,null,{"$f":"IF(AvailabilityTable[[#This Row],[Name]]&\"-\"&RIGHT(\"0\"&WEEKNUM(AvailabilityTable[[#This Row],[Date]],2)-Start_week,2)<>\"-0-\",AvailabilityTable[[#This Row],[Name]]&\"-\"&RIGHT(\"0\"&WEEKNUM(AvailabilityTable[[#This Row],[Date]],2)-Start_week,2)&YEAR(AvailabilityTable[[#This Row],[Date]]),\"\")","v":"-011900"}]
[null,null,null,{"$f":"IF(AvailabilityTable[[#This Row],[Name]]&\"-\"&RIGHT(\"0\"&WEEKNUM(AvailabilityTable[[#This Row],[Date]],2)-Start_week,2)<>\"-0-\",AvailabilityTable[[#This Row],[Name]]&\"-\"&RIGHT(\"0\"&WEEKNUM(AvailabilityTable[[#This Row],[Date]],2)-Start_week,2)&YEAR(AvailabilityTable[[#This Row],[Date]]),\"\")","v":"-011900"}]
[null,null,null,{"$f":"IF(AvailabilityTable[[#This Row],[Name]]&\"-\"&RIGHT(\"0\"&WEEKNUM(AvailabilityTable[[#This Row],[Date]],2)-Start_week,2)<>\"-0-\",AvailabilityTable[[#This Row],[Name]]&\"-\"&RIGHT(\"0\"&WEEKNUM(AvailabilityTable[[#This Row],[Date]],2)-Start_week,2)&YEAR(AvailabilityTable[[#This Row],[Date]]),\"\")","v":"-011900"}]
[null,null,null,{"$f":"IF(AvailabilityTable[[#This Row],[Name]]&\"-\"&RIGHT(\"0\"&WEEKNUM(AvailabilityTable[[#This Row],[Date]],2)-Start_week,2)<>\"-0-\",AvailabilityTable[[#This Row],[Name]]&\"-\"&RIGHT(\"0\"&WEEKNUM(AvailabilityTable[[#This Row],[Date]],2)-Start_week,2)&YEAR(AvailabilityTable[[#This Row],[Date]]),\"\")","v":"-011900"}]
[null,null,null,{"$f":"IF(AvailabilityTable[[#This Row],[Name]]&\"-\"&RIGHT(\"0\"&WEEKNUM(AvailabilityTable[[#This Row],[Date]],2)-Start_week,2)<>\"-0-\",AvailabilityTable[[#This Row],[Name]]&\"-\"&RIGHT(\"0\"&WEEKNUM(AvailabilityTable[[#This Row],[Date]],2)-Start_week,2)&YEAR(AvailabilityTable[[#This Row],[Date]]),\"\")","v":"-011900"}]
[null,null,null,{"$f":"IF(AvailabilityTable[[#This Row],[Name]]&\"-\"&RIGHT(\"0\"&WEEKNUM(AvailabilityTable[[#This Row],[Date]],2)-Start_week,2)<>\"-0-\",AvailabilityTable[[#This Row],[Name]]&\"-\"&RIGHT(\"0\"&WEEKNUM(AvailabilityTable[[#This Row],[Date]],2)-Start_week,2)&YEAR(AvailabilityTable[[#This Row],[Date]]),\"\")","v":"-011900"}]
[null,null,null,{"$f":"IF(AvailabilityTable[[#This Row],[Name]]&\"-\"&RIGHT(\"0\"&WEEKNUM(AvailabilityTable[[#This Row],[Date]],2)-Start_week,2)<>\"-0-\",AvailabilityTable[[#This Row],[Name]]&\"-\"&RIGHT(\"0\"&WEEKNUM(AvailabilityTable[[#This Row],[Date]],2)-Start_week,2)&YEAR(AvailabilityTable[[#This Row],[Date]]),\"\")","v":"-011900"}]
[null,null,null,{"$f":"IF(AvailabilityTable[[#This Row],[Name]]&\"-\"&RIGHT(\"0\"&WEEKNUM(AvailabilityTable[[#This Row],[Date]],2)-Start_week,2)<>\"-0-\",AvailabilityTable[[#This Row],[Name]]&\"-\"&RIGHT(\"0\"&WEEKNUM(AvailabilityTable[[#This Row],[Date]],2)-Start_week,2)&YEAR(AvailabilityTable[[#This Row],[Date]]),\"\")","v":"-011900"}]
[null,null,null,{"$f":"IF(AvailabilityTable[[#This Row],[Name]]&\"-\"&RIGHT(\"0\"&WEEKNUM(AvailabilityTable[[#This Row],[Date]],2)-Start_week,2)<>\"-0-\",AvailabilityTable[[#This Row],[Name]]&\"-\"&RIGHT(\"0\"&WEEKNUM(AvailabilityTable[[#This Row],[Date]],2)-Start_week,2)&YEAR(AvailabilityTable[[#This Row],[Date]]),\"\")","v":"-011900"}]
[null,null,null,{"$f":"IF(AvailabilityTable[[#This Row],[Name]]&\"-\"&RIGHT(\"0\"&WEEKNUM(AvailabilityTable[[#This Row],[Date]],2)-Start_week,2)<>\"-0-\",AvailabilityTable[[#This Row],[Name]]&\"-\"&RIGHT(\"0\"&WEEKNUM(AvailabilityTable[[#This Row],[Date]],2)-Start_week,2)&YEAR(AvailabilityTable[[#This Row],[Date]]),\"\")","v":"-011900"}]
[null,null,null,{"$f":"IF(AvailabilityTable[[#This Row],[Name]]&\"-\"&RIGHT(\"0\"&WEEKNUM(AvailabilityTable[[#This Row],[Date]],2)-Start_week,2)<>\"-0-\",AvailabilityTable[[#This Row],[Name]]&\"-\"&RIGHT(\"0\"&WEEKNUM(AvailabilityTable[[#This Row],[Date]],2)-Start_week,2)&YEAR(AvailabilityTable[[#This Row],[Date]]),\"\")","v":"-011900"}]
[null,null,null,{"$f":"IF(AvailabilityTable[[#This Row],[Name]]&\"-\"&RIGHT(\"0\"&WEEKNUM(AvailabilityTable[[#This Row],[Date]],2)-Start_week,2)<>\"-0-\",AvailabilityTable[[#This Row],[Name]]&\"-\"&RIGHT(\"0\"&WEEKNUM(AvailabilityTable[[#This Row],[Date]],2)-Start_week,2)&YEAR(AvailabilityTable[[#This Row],[Date]]),\"\")","v":"-011900"}]
[null,null,null,{"$f":"IF(AvailabilityTable[[#This Row],[Name]]&\"-\"&RIGHT(\"0\"&WEEKNUM(AvailabilityTable[[#This Row],[Date]],2)-Start_week,2)<>\"-0-\",AvailabilityTable[[#This Row],[Name]]&\"-\"&RIGHT(\"0\"&WEEKNUM(AvailabilityTable[[#This Row],[Date]],2)-Start_week,2)&YEAR(AvailabilityTable[[#This Row],[Date]]),\"\")","v":"-011900"}]
[null,null,null,{"$f":"IF(AvailabilityTable[[#This Row],[Name]]&\"-\"&RIGHT(\"0\"&WEEKNUM(AvailabilityTable[[#This Row],[Date]],2)-Start_week,2)<>\"-0-\",AvailabilityTable[[#This Row],[Name]]&\"-\"&RIGHT(\"0\"&WEEKNUM(AvailabilityTable[[#This Row],[Date]],2)-Start_week,2)&YEAR(AvailabilityTable[[#This Row],[Date]]),\"\")","v":"-011900"}]
[null,null,null,{"$f":"IF(AvailabilityTable[[#This Row],[Name]]&\"-\"&RIGHT(\"0\"&WEEKNUM(AvailabilityTable[[#This Row],[Date]],2)-Start_week,2)<>\"-0-\",AvailabilityTable[[#This Row],[Name]]&\"-\"&RIGHT(\"0\"&WEEKNUM(AvailabilityTable[[#This Row],[Date]],2)-Start_week,2)&YEAR(AvailabilityTable[[#This Row],[Date]]),\"\")","v":"-011900"}]
[null,null,null,{"$f":"IF(AvailabilityTable[[#This Row],[Name]]&\"-\"&RIGHT(\"0\"&WEEKNUM(AvailabilityTable[[#This Row],[Date]],2)-Start_week,2)<>\"-0-\",AvailabilityTable[[#This Row],[Name]]&\"-\"&RIGHT(\"0\"&WEEKNUM(AvailabilityTable[[#This Row],[Date]],2)-Start_week,2)&YEAR(AvailabilityTable[[#This Row],[Date]]),\"\")","v":"-011900"}]
[null,null,null,{"$f":"IF(AvailabilityTable[[#This Row],[Name]]&\"-\"&RIGHT(\"0\"&WEEKNUM(AvailabilityTable[[#This Row],[Date]],2)-Start_week,2)<>\"-0-\",AvailabilityTable[[#This Row],[Name]]&\"-\"&RIGHT(\"0\"&WEEKNUM(AvailabilityTable[[#This Row],[Date]],2)-Start_week,2)&YEAR(AvailabilityTable[[#This Row],[Date]]),\"\")","v":"-011900"}]
[null,null,null,{"$f":"IF(AvailabilityTable[[#This Row],[Name]]&\"-\"&RIGHT(\"0\"&WEEKNUM(AvailabilityTable[[#This Row],[Date]],2)-Start_week,2)<>\"-0-\",AvailabilityTable[[#This Row],[Name]]&\"-\"&RIGHT(\"0\"&WEEKNUM(AvailabilityTable[[#This Row],[Date]],2)-Start_week,2)&YEAR(AvailabilityTable[[#This Row],[Date]]),\"\")","v":"-011900"}]
[null,null,null,{"$f":"IF(AvailabilityTable[[#This Row],[Name]]&\"-\"&RIGHT(\"0\"&WEEKNUM(AvailabilityTable[[#This Row],[Date]],2)-Start_week,2)<>\"-0-\",AvailabilityTable[[#This Row],[Name]]&\"-\"&RIGHT(\"0\"&WEEKNUM(AvailabilityTable[[#This Row],[Date]],2)-Start_week,2)&YEAR(AvailabilityTable[[#This Row],[Date]]),\"\")","v":"-011900"}]
[null,null,null,{"$f":"IF(AvailabilityTable[[#This Row],[Name]]&\"-\"&RIGHT(\"0\"&WEEKNUM(AvailabilityTable[[#This Row],[Date]],2)-Start_week,2)<>\"-0-\",AvailabilityTable[[#This Row],[Name]]&\"-\"&RIGHT(\"0\"&WEEKNUM(AvailabilityTable[[#This Row],[Date]],2)-Start_week,2)&YEAR(AvailabilityTable[[#This Row],[Date]]),\"\")","v":"-011900"}]
[null,null,null,{"$f":"IF(AvailabilityTable[[#This Row],[Name]]&\"-\"&RIGHT(\"0\"&WEEKNUM(AvailabilityTable[[#This Row],[Date]],2)-Start_week,2)<>\"-0-\",AvailabilityTable[[#This Row],[Name]]&\"-\"&RIGHT(\"0\"&WEEKNUM(AvailabilityTable[[#This Row],[Date]],2)-Start_week,2)&YEAR(AvailabilityTable[[#This Row],[Date]]),\"\")","v":"-011900"}]
[null,null,null,{"$f":"IF(AvailabilityTable[[#This Row],[Name]]&\"-\"&RIGHT(\"0\"&WEEKNUM(AvailabilityTable[[#This Row],[Date]],2)-Start_week,2)<>\"-0-\",AvailabilityTable[[#This Row],[Name]]&\"-\"&RIGHT(\"0\"&WEEKNUM(AvailabilityTable[[#This Row],[Date]],2)-Start_week,2)&YEAR(AvailabilityTable[[#This Row],[Date]]),\"\")","v":"-011900"}]
[null,null,null,{"$f":"IF(AvailabilityTable[[#This Row],[Name]]&\"-\"&RIGHT(\"0\"&WEEKNUM(AvailabilityTable[[#This Row],[Date]],2)-Start_week,2)<>\"-0-\",AvailabilityTable[[#This Row],[Name]]&\"-\"&RIGHT(\"0\"&WEEKNUM(AvailabilityTable[[#This Row],[Date]],2)-Start_week,2)&YEAR(AvailabilityTable[[#This Row],[Date]]),\"\")","v":"-011900"}]
[null,null,null,{"$f":"IF(AvailabilityTable[[#This Row],[Name]]&\"-\"&RIGHT(\"0\"&WEEKNUM(AvailabilityTable[[#This Row],[Date]],2)-Start_week,2)<>\"-0-\",AvailabilityTable[[#This Row],[Name]]&\"-\"&RIGHT(\"0\"&WEEKNUM(AvailabilityTable[[#This Row],[Date]],2)-Start_week,2)&YEAR(AvailabilityTable[[#This Row],[Date]]),\"\")","v":"-011900"}]
[null,null,null,{"$f":"IF(AvailabilityTable[[#This Row],[Name]]&\"-\"&RIGHT(\"0\"&WEEKNUM(AvailabilityTable[[#This Row],[Date]],2)-Start_week,2)<>\"-0-\",AvailabilityTable[[#This Row],[Name]]&\"-\"&RIGHT(\"0\"&WEEKNUM(AvailabilityTable[[#This Row],[Date]],2)-Start_week,2)&YEAR(AvailabilityTable[[#This Row],[Date]]),\"\")","v":"-011900"}]
[null,null,null,{"$f":"IF(AvailabilityTable[[#This Row],[Name]]&\"-\"&RIGHT(\"0\"&WEEKNUM(AvailabilityTable[[#This Row],[Date]],2)-Start_week,2)<>\"-0-\",AvailabilityTable[[#This Row],[Name]]&\"-\"&RIGHT(\"0\"&WEEKNUM(AvailabilityTable[[#This Row],[Date]],2)-Start_week,2)&YEAR(AvailabilityTable[[#This Row],[Date]]),\"\")","v":"-011900"}]
[null,null,null,{"$f":"IF(AvailabilityTable[[#This Row],[Name]]&\"-\"&RIGHT(\"0\"&WEEKNUM(AvailabilityTable[[#This Row],[Date]],2)-Start_week,2)<>\"-0-\",AvailabilityTable[[#This Row],[Name]]&\"-\"&RIGHT(\"0\"&WEEKNUM(AvailabilityTable[[#This Row],[Date]],2)-Start_week,2)&YEAR(AvailabilityTable[[#This Row],[Date]]),\"\")","v":"-011900"}]
[null,null,null,{"$f":"IF(AvailabilityTable[[#This Row],[Name]]&\"-\"&RIGHT(\"0\"&WEEKNUM(AvailabilityTable[[#This Row],[Date]],2)-Start_week,2)<>\"-0-\",AvailabilityTable[[#This Row],[Name]]&\"-\"&RIGHT(\"0\"&WEEKNUM(AvailabilityTable[[#This Row],[Date]],2)-Start_week,2)&YEAR(AvailabilityTable[[#This Row],[Date]]),\"\")","v":"-011900"}]
[null,null,null,{"$f":"IF(AvailabilityTable[[#This Row],[Name]]&\"-\"&RIGHT(\"0\"&WEEKNUM(AvailabilityTable[[#This Row],[Date]],2)-Start_week,2)<>\"-0-\",AvailabilityTable[[#This Row],[Name]]&\"-\"&RIGHT(\"0\"&WEEKNUM(AvailabilityTable[[#This Row],[Date]],2)-Start_week,2)&YEAR(AvailabilityTable[[#This Row],[Date]]),\"\")","v":"-011900"}]
[null,null,null,{"$f":"IF(AvailabilityTable[[#This Row],[Name]]&\"-\"&RIGHT(\"0\"&WEEKNUM(AvailabilityTable[[#This Row],[Date]],2)-Start_week,2)<>\"-0-\",AvailabilityTable[[#This Row],[Name]]&\"-\"&RIGHT(\"0\"&WEEKNUM(AvailabilityTable[[#This Row],[Date]],2)-Start_week,2)&YEAR(AvailabilityTable[[#This Row],[Date]]),\"\")","v":"-011900"}]
[null,null,null,{"$f":"IF(AvailabilityTable[[#This Row],[Name]]&\"-\"&RIGHT(\"0\"&WEEKNUM(AvailabilityTable[[#This Row],[Date]],2)-Start_week,2)<>\"-0-\",AvailabilityTable[[#This Row],[Name]]&\"-\"&RIGHT(\"0\"&WEEKNUM(AvailabilityTable[[#This Row],[Date]],2)-Start_week,2)&YEAR(AvailabilityTable[[#This Row],[Date]]),\"\")","v":"-011900"}]
[null,null,null,{"$f":"IF(AvailabilityTable[[#This Row],[Name]]&\"-\"&RIGHT(\"0\"&WEEKNUM(AvailabilityTable[[#This Row],[Date]],2)-Start_week,2)<>\"-0-\",AvailabilityTable[[#This Row],[Name]]&\"-\"&RIGHT(\"0\"&WEEKNUM(AvailabilityTable[[#This Row],[Date]],2)-Start_week,2)&YEAR(AvailabilityTable[[#This Row],[Date]]),\"\")","v":"-011900"}]
[null,null,null,{"$f":"IF(AvailabilityTable[[#This Row],[Name]]&\"-\"&RIGHT(\"0\"&WEEKNUM(AvailabilityTable[[#This Row],[Date]],2)-Start_week,2)<>\"-0-\",AvailabilityTable[[#This Row],[Name]]&\"-\"&RIGHT(\"0\"&WEEKNUM(AvailabilityTable[[#This Row],[Date]],2)-Start_week,2)&YEAR(AvailabilityTable[[#This Row],[Date]]),\"\")","v":"-011900"}]
[null,null,null,{"$f":"IF(AvailabilityTable[[#This Row],[Name]]&\"-\"&RIGHT(\"0\"&WEEKNUM(AvailabilityTable[[#This Row],[Date]],2)-Start_week,2)<>\"-0-\",AvailabilityTable[[#This Row],[Name]]&\"-\"&RIGHT(\"0\"&WEEKNUM(AvailabilityTable[[#This Row],[Date]],2)-Start_week,2)&YEAR(AvailabilityTable[[#This Row],[Date]]),\"\")","v":"-011900"}]
[null,null,null,{"$f":"IF(AvailabilityTable[[#This Row],[Name]]&\"-\"&RIGHT(\"0\"&WEEKNUM(AvailabilityTable[[#This Row],[Date]],2)-Start_week,2)<>\"-0-\",AvailabilityTable[[#This Row],[Name]]&\"-\"&RIGHT(\"0\"&WEEKNUM(AvailabilityTable[[#This Row],[Date]],2)-Start_week,2)&YEAR(AvailabilityTable[[#This Row],[Date]]),\"\")","v":"-011900"}]
[null,null,null,{"$f":"IF(AvailabilityTable[[#This Row],[Name]]&\"-\"&RIGHT(\"0\"&WEEKNUM(AvailabilityTable[[#This Row],[Date]],2)-Start_week,2)<>\"-0-\",AvailabilityTable[[#This Row],[Name]]&\"-\"&RIGHT(\"0\"&WEEKNUM(AvailabilityTable[[#This Row],[Date]],2)-Start_week,2)&YEAR(AvailabilityTable[[#This Row],[Date]]),\"\")","v":"-011900"}]
[null,null,null,{"$f":"IF(AvailabilityTable[[#This Row],[Name]]&\"-\"&RIGHT(\"0\"&WEEKNUM(AvailabilityTable[[#This Row],[Date]],2)-Start_week,2)<>\"-0-\",AvailabilityTable[[#This Row],[Name]]&\"-\"&RIGHT(\"0\"&WEEKNUM(AvailabilityTable[[#This Row],[Date]],2)-Start_week,2)&YEAR(AvailabilityTable[[#This Row],[Date]]),\"\")","v":"-011900"}]
[null,null,null,{"$f":"IF(AvailabilityTable[[#This Row],[Name]]&\"-\"&RIGHT(\"0\"&WEEKNUM(AvailabilityTable[[#This Row],[Date]],2)-Start_week,2)<>\"-0-\",AvailabilityTable[[#This Row],[Name]]&\"-\"&RIGHT(\"0\"&WEEKNUM(AvailabilityTable[[#This Row],[Date]],2)-Start_week,2)&YEAR(AvailabilityTable[[#This Row],[Date]]),\"\")","v":"-011900"}]
[null,null,null,{"$f":"IF(AvailabilityTable[[#This Row],[Name]]&\"-\"&RIGHT(\"0\"&WEEKNUM(AvailabilityTable[[#This Row],[Date]],2)-Start_week,2)<>\"-0-\",AvailabilityTable[[#This Row],[Name]]&\"-\"&RIGHT(\"0\"&WEEKNUM(AvailabilityTable[[#This Row],[Date]],2)-Start_week,2)&YEAR(AvailabilityTable[[#This Row],[Date]]),\"\")","v":"-011900"}]
[null,null,null,{"$f":"IF(AvailabilityTable[[#This Row],[Name]]&\"-\"&RIGHT(\"0\"&WEEKNUM(AvailabilityTable[[#This Row],[Date]],2)-Start_week,2)<>\"-0-\",AvailabilityTable[[#This Row],[Name]]&\"-\"&RIGHT(\"0\"&WEEKNUM(AvailabilityTable[[#This Row],[Date]],2)-Start_week,2)&YEAR(AvailabilityTable[[#This Row],[Date]]),\"\")","v":"-011900"}]
[null,null,null,{"$f":"IF(AvailabilityTable[[#This Row],[Name]]&\"-\"&RIGHT(\"0\"&WEEKNUM(AvailabilityTable[[#This Row],[Date]],2)-Start_week,2)<>\"-0-\",AvailabilityTable[[#This Row],[Name]]&\"-\"&RIGHT(\"0\"&WEEKNUM(AvailabilityTable[[#This Row],[Date]],2)-Start_week,2)&YEAR(AvailabilityTable[[#This Row],[Date]]),\"\")","v":"-011900"}]
[null,null,null,{"$f":"IF(AvailabilityTable[[#This Row],[Name]]&\"-\"&RIGHT(\"0\"&WEEKNUM(AvailabilityTable[[#This Row],[Date]],2)-Start_week,2)<>\"-0-\",AvailabilityTable[[#This Row],[Name]]&\"-\"&RIGHT(\"0\"&WEEKNUM(AvailabilityTable[[#This Row],[Date]],2)-Start_week,2)&YEAR(AvailabilityTable[[#This Row],[Date]]),\"\")","v":"-011900"}]
[null,null,null,{"$f":"IF(AvailabilityTable[[#This Row],[Name]]&\"-\"&RIGHT(\"0\"&WEEKNUM(AvailabilityTable[[#This Row],[Date]],2)-Start_week,2)<>\"-0-\",AvailabilityTable[[#This Row],[Name]]&\"-\"&RIGHT(\"0\"&WEEKNUM(AvailabilityTable[[#This Row],[Date]],2)-Start_week,2)&YEAR(AvailabilityTable[[#This Row],[Date]]),\"\")","v":"-011900"}]
[null,null,null,{"$f":"IF(AvailabilityTable[[#This Row],[Name]]&\"-\"&RIGHT(\"0\"&WEEKNUM(AvailabilityTable[[#This Row],[Date]],2)-Start_week,2)<>\"-0-\",AvailabilityTable[[#This Row],[Name]]&\"-\"&RIGHT(\"0\"&WEEKNUM(AvailabilityTable[[#This Row],[Date]],2)-Start_week,2)&YEAR(AvailabilityTable[[#This Row],[Date]]),\"\")","v":"-011900"}]
[null,null,null,{"$f":"IF(AvailabilityTable[[#This Row],[Name]]&\"-\"&RIGHT(\"0\"&WEEKNUM(AvailabilityTable[[#This Row],[Date]],2)-Start_week,2)<>\"-0-\",AvailabilityTable[[#This Row],[Name]]&\"-\"&RIGHT(\"0\"&WEEKNUM(AvailabilityTable[[#This Row],[Date]],2)-Start_week,2)&YEAR(AvailabilityTable[[#This Row],[Date]]),\"\")","v":"-011900"}]
[null,null,null,{"$f":"IF(AvailabilityTable[[#This Row],[Name]]&\"-\"&RIGHT(\"0\"&WEEKNUM(AvailabilityTable[[#This Row],[Date]],2)-Start_week,2)<>\"-0-\",AvailabilityTable[[#This Row],[Name]]&\"-\"&RIGHT(\"0\"&WEEKNUM(AvailabilityTable[[#This Row],[Date]],2)-Start_week,2)&YEAR(AvailabilityTable[[#This Row],[Date]]),\"\")","v":"-011900"}]
[null,null,null,{"$f":"IF(AvailabilityTable[[#This Row],[Name]]&\"-\"&RIGHT(\"0\"&WEEKNUM(AvailabilityTable[[#This Row],[Date]],2)-Start_week,2)<>\"-0-\",AvailabilityTable[[#This Row],[Name]]&\"-\"&RIGHT(\"0\"&WEEKNUM(AvailabilityTable[[#This Row],[Date]],2)-Start_week,2)&YEAR(AvailabilityTable[[#This Row],[Date]]),\"\")","v":"-011900"}]
[null,null,null,{"$f":"IF(AvailabilityTable[[#This Row],[Name]]&\"-\"&RIGHT(\"0\"&WEEKNUM(AvailabilityTable[[#This Row],[Date]],2)-Start_week,2)<>\"-0-\",AvailabilityTable[[#This Row],[Name]]&\"-\"&RIGHT(\"0\"&WEEKNUM(AvailabilityTable[[#This Row],[Date]],2)-Start_week,2)&YEAR(AvailabilityTable[[#This Row],[Date]]),\"\")","v":"-011900"}]
[null,null,null,{"$f":"IF(AvailabilityTable[[#This Row],[Name]]&\"-\"&RIGHT(\"0\"&WEEKNUM(AvailabilityTable[[#This Row],[Date]],2)-Start_week,2)<>\"-0-\",AvailabilityTable[[#This Row],[Name]]&\"-\"&RIGHT(\"0\"&WEEKNUM(AvailabilityTable[[#This Row],[Date]],2)-Start_week,2)&YEAR(AvailabilityTable[[#This Row],[Date]]),\"\")","v":"-011900"}]
[null,null,null,{"$f":"IF(AvailabilityTable[[#This Row],[Name]]&\"-\"&RIGHT(\"0\"&WEEKNUM(AvailabilityTable[[#This Row],[Date]],2)-Start_week,2)<>\"-0-\",AvailabilityTable[[#This Row],[Name]]&\"-\"&RIGHT(\"0\"&WEEKNUM(AvailabilityTable[[#This Row],[Date]],2)-Start_week,2)&YEAR(AvailabilityTable[[#This Row],[Date]]),\"\")","v":"-011900"}]
[null,null,null,{"$f":"IF(AvailabilityTable[[#This Row],[Name]]&\"-\"&RIGHT(\"0\"&WEEKNUM(AvailabilityTable[[#This Row],[Date]],2)-Start_week,2)<>\"-0-\",AvailabilityTable[[#This Row],[Name]]&\"-\"&RIGHT(\"0\"&WEEKNUM(AvailabilityTable[[#This Row],[Date]],2)-Start_week,2)&YEAR(AvailabilityTable[[#This Row],[Date]]),\"\")","v":"-011900"}]
[null,null,null,{"$f":"IF(AvailabilityTable[[#This Row],[Name]]&\"-\"&RIGHT(\"0\"&WEEKNUM(AvailabilityTable[[#This Row],[Date]],2)-Start_week,2)<>\"-0-\",AvailabilityTable[[#This Row],[Name]]&\"-\"&RIGHT(\"0\"&WEEKNUM(AvailabilityTable[[#This Row],[Date]],2)-Start_week,2)&YEAR(AvailabilityTable[[#This Row],[Date]]),\"\")","v":"-011900"}]
[null,null,null,{"$f":"IF(AvailabilityTable[[#This Row],[Name]]&\"-\"&RIGHT(\"0\"&WEEKNUM(AvailabilityTable[[#This Row],[Date]],2)-Start_week,2)<>\"-0-\",AvailabilityTable[[#This Row],[Name]]&\"-\"&RIGHT(\"0\"&WEEKNUM(AvailabilityTable[[#This Row],[Date]],2)-Start_week,2)&YEAR(AvailabilityTable[[#This Row],[Date]]),\"\")","v":"-011900"}]
[null,null,null,{"$f":"IF(AvailabilityTable[[#This Row],[Name]]&\"-\"&RIGHT(\"0\"&WEEKNUM(AvailabilityTable[[#This Row],[Date]],2)-Start_week,2)<>\"-0-\",AvailabilityTable[[#This Row],[Name]]&\"-\"&RIGHT(\"0\"&WEEKNUM(AvailabilityTable[[#This Row],[Date]],2)-Start_week,2)&YEAR(AvailabilityTable[[#This Row],[Date]]),\"\")","v":"-011900"}]
[null,null,null,{"$f":"IF(AvailabilityTable[[#This Row],[Name]]&\"-\"&RIGHT(\"0\"&WEEKNUM(AvailabilityTable[[#This Row],[Date]],2)-Start_week,2)<>\"-0-\",AvailabilityTable[[#This Row],[Name]]&\"-\"&RIGHT(\"0\"&WEEKNUM(AvailabilityTable[[#This Row],[Date]],2)-Start_week,2)&YEAR(AvailabilityTable[[#This Row],[Date]]),\"\")","v":"-011900"}]
[null,null,null,{"$f":"IF(AvailabilityTable[[#This Row],[Name]]&\"-\"&RIGHT(\"0\"&WEEKNUM(AvailabilityTable[[#This Row],[Date]],2)-Start_week,2)<>\"-0-\",AvailabilityTable[[#This Row],[Name]]&\"-\"&RIGHT(\"0\"&WEEKNUM(AvailabilityTable[[#This Row],[Date]],2)-Start_week,2)&YEAR(AvailabilityTable[[#This Row],[Date]]),\"\")","v":"-011900"}]
[null,null,null,{"$f":"IF(AvailabilityTable[[#This Row],[Name]]&\"-\"&RIGHT(\"0\"&WEEKNUM(AvailabilityTable[[#This Row],[Date]],2)-Start_week,2)<>\"-0-\",AvailabilityTable[[#This Row],[Name]]&\"-\"&RIGHT(\"0\"&WEEKNUM(AvailabilityTable[[#This Row],[Date]],2)-Start_week,2)&YEAR(AvailabilityTable[[#This Row],[Date]]),\"\")","v":"-011900"}]
[null,null,null,{"$f":"IF(AvailabilityTable[[#This Row],[Name]]&\"-\"&RIGHT(\"0\"&WEEKNUM(AvailabilityTable[[#This Row],[Date]],2)-Start_week,2)<>\"-0-\",AvailabilityTable[[#This Row],[Name]]&\"-\"&RIGHT(\"0\"&WEEKNUM(AvailabilityTable[[#This Row],[Date]],2)-Start_week,2)&YEAR(AvailabilityTable[[#This Row],[Date]]),\"\")","v":"-011900"}]
[null,null,null,{"$f":"IF(AvailabilityTable[[#This Row],[Name]]&\"-\"&RIGHT(\"0\"&WEEKNUM(AvailabilityTable[[#This Row],[Date]],2)-Start_week,2)<>\"-0-\",AvailabilityTable[[#This Row],[Name]]&\"-\"&RIGHT(\"0\"&WEEKNUM(AvailabilityTable[[#This Row],[Date]],2)-Start_week,2)&YEAR(AvailabilityTable[[#This Row],[Date]]),\"\")","v":"-011900"}]
[null,null,null,{"$f":"IF(AvailabilityTable[[#This Row],[Name]]&\"-\"&RIGHT(\"0\"&WEEKNUM(AvailabilityTable[[#This Row],[Date]],2)-Start_week,2)<>\"-0-\",AvailabilityTable[[#This Row],[Name]]&\"-\"&RIGHT(\"0\"&WEEKNUM(AvailabilityTable[[#This Row],[Date]],2)-Start_week,2)&YEAR(AvailabilityTable[[#This Row],[Date]]),\"\")","v":"-011900"}]
[null,null,null,{"$f":"IF(AvailabilityTable[[#This Row],[Name]]&\"-\"&RIGHT(\"0\"&WEEKNUM(AvailabilityTable[[#This Row],[Date]],2)-Start_week,2)<>\"-0-\",AvailabilityTable[[#This Row],[Name]]&\"-\"&RIGHT(\"0\"&WEEKNUM(AvailabilityTable[[#This Row],[Date]],2)-Start_week,2)&YEAR(AvailabilityTable[[#This Row],[Date]]),\"\")","v":"-011900"}]
[null,null,null,{"$f":"IF(AvailabilityTable[[#This Row],[Name]]&\"-\"&RIGHT(\"0\"&WEEKNUM(AvailabilityTable[[#This Row],[Date]],2)-Start_week,2)<>\"-0-\",AvailabilityTable[[#This Row],[Name]]&\"-\"&RIGHT(\"0\"&WEEKNUM(AvailabilityTable[[#This Row],[Date]],2)-Start_week,2)&YEAR(AvailabilityTable[[#This Row],[Date]]),\"\")","v":"-011900"}]
[null,null,null,{"$f":"IF(AvailabilityTable[[#This Row],[Name]]&\"-\"&RIGHT(\"0\"&WEEKNUM(AvailabilityTable[[#This Row],[Date]],2)-Start_week,2)<>\"-0-\",AvailabilityTable[[#This Row],[Name]]&\"-\"&RIGHT(\"0\"&WEEKNUM(AvailabilityTable[[#This Row],[Date]],2)-Start_week,2)&YEAR(AvailabilityTable[[#This Row],[Date]]),\"\")","v":"-011900"}]
[null,null,null,{"$f":"IF(AvailabilityTable[[#This Row],[Name]]&\"-\"&RIGHT(\"0\"&WEEKNUM(AvailabilityTable[[#This Row],[Date]],2)-Start_week,2)<>\"-0-\",AvailabilityTable[[#This Row],[Name]]&\"-\"&RIGHT(\"0\"&WEEKNUM(AvailabilityTable[[#This Row],[Date]],2)-Start_week,2)&YEAR(AvailabilityTable[[#This Row],[Date]]),\"\")","v":"-011900"}]
[null,null,null,{"$f":"IF(AvailabilityTable[[#This Row],[Name]]&\"-\"&RIGHT(\"0\"&WEEKNUM(AvailabilityTable[[#This Row],[Date]],2)-Start_week,2)<>\"-0-\",AvailabilityTable[[#This Row],[Name]]&\"-\"&RIGHT(\"0\"&WEEKNUM(AvailabilityTable[[#This Row],[Date]],2)-Start_week,2)&YEAR(AvailabilityTable[[#This Row],[Date]]),\"\")","v":"-011900"}]
[null,null,null,{"$f":"IF(AvailabilityTable[[#This Row],[Name]]&\"-\"&RIGHT(\"0\"&WEEKNUM(AvailabilityTable[[#This Row],[Date]],2)-Start_week,2)<>\"-0-\",AvailabilityTable[[#This Row],[Name]]&\"-\"&RIGHT(\"0\"&WEEKNUM(AvailabilityTable[[#This Row],[Date]],2)-Start_week,2)&YEAR(AvailabilityTable[[#This Row],[Date]]),\"\")","v":"-011900"}]
[null,null,null,{"$f":"IF(AvailabilityTable[[#This Row],[Name]]&\"-\"&RIGHT(\"0\"&WEEKNUM(AvailabilityTable[[#This Row],[Date]],2)-Start_week,2)<>\"-0-\",AvailabilityTable[[#This Row],[Name]]&\"-\"&RIGHT(\"0\"&WEEKNUM(AvailabilityTable[[#This Row],[Date]],2)-Start_week,2)&YEAR(AvailabilityTable[[#This Row],[Date]]),\"\")","v":"-011900"}]
[null,null,null,{"$f":"IF(AvailabilityTable[[#This Row],[Name]]&\"-\"&RIGHT(\"0\"&WEEKNUM(AvailabilityTable[[#This Row],[Date]],2)-Start_week,2)<>\"-0-\",AvailabilityTable[[#This Row],[Name]]&\"-\"&RIGHT(\"0\"&WEEKNUM(AvailabilityTable[[#This Row],[Date]],2)-Start_week,2)&YEAR(AvailabilityTable[[#This Row],[Date]]),\"\")","v":"-011900"}]
[null,null,null,{"$f":"IF(AvailabilityTable[[#This Row],[Name]]&\"-\"&RIGHT(\"0\"&WEEKNUM(AvailabilityTable[[#This Row],[Date]],2)-Start_week,2)<>\"-0-\",AvailabilityTable[[#This Row],[Name]]&\"-\"&RIGHT(\"0\"&WEEKNUM(AvailabilityTable[[#This Row],[Date]],2)-Start_week,2)&YEAR(AvailabilityTable[[#This Row],[Date]]),\"\")","v":"-011900"}]
[null,null,null,{"$f":"IF(AvailabilityTable[[#This Row],[Name]]&\"-\"&RIGHT(\"0\"&WEEKNUM(AvailabilityTable[[#This Row],[Date]],2)-Start_week,2)<>\"-0-\",AvailabilityTable[[#This Row],[Name]]&\"-\"&RIGHT(\"0\"&WEEKNUM(AvailabilityTable[[#This Row],[Date]],2)-Start_week,2)&YEAR(AvailabilityTable[[#This Row],[Date]]),\"\")","v":"-011900"}]
[null,null,null,{"$f":"IF(AvailabilityTable[[#This Row],[Name]]&\"-\"&RIGHT(\"0\"&WEEKNUM(AvailabilityTable[[#This Row],[Date]],2)-Start_week,2)<>\"-0-\",AvailabilityTable[[#This Row],[Name]]&\"-\"&RIGHT(\"0\"&WEEKNUM(AvailabilityTable[[#This Row],[Date]],2)-Start_week,2)&YEAR(AvailabilityTable[[#This Row],[Date]]),\"\")","v":"-011900"}]
[null,null,null,{"$f":"IF(AvailabilityTable[[#This Row],[Name]]&\"-\"&RIGHT(\"0\"&WEEKNUM(AvailabilityTable[[#This Row],[Date]],2)-Start_week,2)<>\"-0-\",AvailabilityTable[[#This Row],[Name]]&\"-\"&RIGHT(\"0\"&WEEKNUM(AvailabilityTable[[#This Row],[Date]],2)-Start_week,2)&YEAR(AvailabilityTable[[#This Row],[Date]]),\"\")","v":"-011900"}]
[null,null,null,{"$f":"IF(AvailabilityTable[[#This Row],[Name]]&\"-\"&RIGHT(\"0\"&WEEKNUM(AvailabilityTable[[#This Row],[Date]],2)-Start_week,2)<>\"-0-\",AvailabilityTable[[#This Row],[Name]]&\"-\"&RIGHT(\"0\"&WEEKNUM(AvailabilityTable[[#This Row],[Date]],2)-Start_week,2)&YEAR(AvailabilityTable[[#This Row],[Date]]),\"\")","v":"-011900"}]
[null,null,null,{"$f":"IF(AvailabilityTable[[#This Row],[Name]]&\"-\"&RIGHT(\"0\"&WEEKNUM(AvailabilityTable[[#This Row],[Date]],2)-Start_week,2)<>\"-0-\",AvailabilityTable[[#This Row],[Name]]&\"-\"&RIGHT(\"0\"&WEEKNUM(AvailabilityTable[[#This Row],[Date]],2)-Start_week,2)&YEAR(AvailabilityTable[[#This Row],[Date]]),\"\")","v":"-011900"}]
[null,null,null,{"$f":"IF(AvailabilityTable[[#This Row],[Name]]&\"-\"&RIGHT(\"0\"&WEEKNUM(AvailabilityTable[[#This Row],[Date]],2)-Start_week,2)<>\"-0-\",AvailabilityTable[[#This Row],[Name]]&\"-\"&RIGHT(\"0\"&WEEKNUM(AvailabilityTable[[#This Row],[Date]],2)-Start_week,2)&YEAR(AvailabilityTable[[#This Row],[Date]]),\"\")","v":"-011900"}]
[null,null,null,{"$f":"IF(AvailabilityTable[[#This Row],[Name]]&\"-\"&RIGHT(\"0\"&WEEKNUM(AvailabilityTable[[#This Row],[Date]],2)-Start_week,2)<>\"-0-\",AvailabilityTable[[#This Row],[Name]]&\"-\"&RIGHT(\"0\"&WEEKNUM(AvailabilityTable[[#This Row],[Date]],2)-Start_week,2)&YEAR(AvailabilityTable[[#This Row],[Date]]),\"\")","v":"-011900"}]
[null,null,null,{"$f":"IF(AvailabilityTable[[#This Row],[Name]]&\"-\"&RIGHT(\"0\"&WEEKNUM(AvailabilityTable[[#This Row],[Date]],2)-Start_week,2)<>\"-0-\",AvailabilityTable[[#This Row],[Name]]&\"-\"&RIGHT(\"0\"&WEEKNUM(AvailabilityTable[[#This Row],[Date]],2)-Start_week,2)&YEAR(AvailabilityTable[[#This Row],[Date]]),\"\")","v":"-011900"}]
[null,null,null,{"$f":"IF(AvailabilityTable[[#This Row],[Name]]&\"-\"&RIGHT(\"0\"&WEEKNUM(AvailabilityTable[[#This Row],[Date]],2)-Start_week,2)<>\"-0-\",AvailabilityTable[[#This Row],[Name]]&\"-\"&RIGHT(\"0\"&WEEKNUM(AvailabilityTable[[#This Row],[Date]],2)-Start_week,2)&YEAR(AvailabilityTable[[#This Row],[Date]]),\"\")","v":"-011900"}]
[null,null,null,{"$f":"IF(AvailabilityTable[[#This Row],[Name]]&\"-\"&RIGHT(\"0\"&WEEKNUM(AvailabilityTable[[#This Row],[Date]],2)-Start_week,2)<>\"-0-\",AvailabilityTable[[#This Row],[Name]]&\"-\"&RIGHT(\"0\"&WEEKNUM(AvailabilityTable[[#This Row],[Date]],2)-Start_week,2)&YEAR(AvailabilityTable[[#This Row],[Date]]),\"\")","v":"-011900"}]
[null,null,null,{"$f":"IF(AvailabilityTable[[#This Row],[Name]]&\"-\"&RIGHT(\"0\"&WEEKNUM(AvailabilityTable[[#This Row],[Date]],2)-Start_week,2)<>\"-0-\",AvailabilityTable[[#This Row],[Name]]&\"-\"&RIGHT(\"0\"&WEEKNUM(AvailabilityTable[[#This Row],[Date]],2)-Start_week,2)&YEAR(AvailabilityTable[[#This Row],[Date]]),\"\")","v":"-011900"}]
[null,null,null,{"$f":"IF(AvailabilityTable[[#This Row],[Name]]&\"-\"&RIGHT(\"0\"&WEEKNUM(AvailabilityTable[[#This Row],[Date]],2)-Start_week,2)<>\"-0-\",AvailabilityTable[[#This Row],[Name]]&\"-\"&RIGHT(\"0\"&WEEKNUM(AvailabilityTable[[#This Row],[Date]],2)-Start_week,2)&YEAR(AvailabilityTable[[#This Row],[Date]]),\"\")","v":"-011900"}]
[null,null,null,{"$f":"IF(AvailabilityTable[[#This Row],[Name]]&\"-\"&RIGHT(\"0\"&WEEKNUM(AvailabilityTable[[#This Row],[Date]],2)-Start_week,2)<>\"-0-\",AvailabilityTable[[#This Row],[Name]]&\"-\"&RIGHT(\"0\"&WEEKNUM(AvailabilityTable[[#This Row],[Date]],2)-Start_week,2)&YEAR(AvailabilityTable[[#This Row],[Date]]),\"\")","v":"-011900"}]
[null,null,null,{"$f":"IF(AvailabilityTable[[#This Row],[Name]]&\"-\"&RIGHT(\"0\"&WEEKNUM(AvailabilityTable[[#This Row],[Date]],2)-Start_week,2)<>\"-0-\",AvailabilityTable[[#This Row],[Name]]&\"-\"&RIGHT(\"0\"&WEEKNUM(AvailabilityTable[[#This Row],[Date]],2)-Start_week,2)&YEAR(AvailabilityTable[[#This Row],[Date]]),\"\")","v":"-011900"}]
[null,null,null,{"$f":"IF(AvailabilityTable[[#This Row],[Name]]&\"-\"&RIGHT(\"0\"&WEEKNUM(AvailabilityTable[[#This Row],[Date]],2)-Start_week,2)<>\"-0-\",AvailabilityTable[[#This Row],[Name]]&\"-\"&RIGHT(\"0\"&WEEKNUM(AvailabilityTable[[#This Row],[Date]],2)-Start_week,2)&YEAR(AvailabilityTable[[#This Row],[Date]]),\"\")","v":"-011900"}]
[null,null,null,{"$f":"IF(AvailabilityTable[[#This Row],[Name]]&\"-\"&RIGHT(\"0\"&WEEKNUM(AvailabilityTable[[#This Row],[Date]],2)-Start_week,2)<>\"-0-\",AvailabilityTable[[#This Row],[Name]]&\"-\"&RIGHT(\"0\"&WEEKNUM(AvailabilityTable[[#This Row],[Date]],2)-Start_week,2)&YEAR(AvailabilityTable[[#This Row],[Date]]),\"\")","v":"-011900"}]
[null,null,null,{"$f":"IF(AvailabilityTable[[#This Row],[Name]]&\"-\"&RIGHT(\"0\"&WEEKNUM(AvailabilityTable[[#This Row],[Date]],2)-Start_week,2)<>\"-0-\",AvailabilityTable[[#This Row],[Name]]&\"-\"&RIGHT(\"0\"&WEEKNUM(AvailabilityTable[[#This Row],[Date]],2)-Start_week,2)&YEAR(AvailabilityTable[[#This Row],[Date]]),\"\")","v":"-011900"}]
[null,null,null,{"$f":"IF(AvailabilityTable[[#This Row],[Name]]&\"-\"&RIGHT(\"0\"&WEEKNUM(AvailabilityTable[[#This Row],[Date]],2)-Start_week,2)<>\"-0-\",AvailabilityTable[[#This Row],[Name]]&\"-\"&RIGHT(\"0\"&WEEKNUM(AvailabilityTable[[#This Row],[Date]],2)-Start_week,2)&YEAR(AvailabilityTable[[#This Row],[Date]]),\"\")","v":"-011900"}]
[null,null,null,{"$f":"IF(AvailabilityTable[[#This Row],[Name]]&\"-\"&RIGHT(\"0\"&WEEKNUM(AvailabilityTable[[#This Row],[Date]],2)-Start_week,2)<>\"-0-\",AvailabilityTable[[#This Row],[Name]]&\"-\"&RIGHT(\"0\"&WEEKNUM(AvailabilityTable[[#This Row],[Date]],2)-Start_week,2)&YEAR(AvailabilityTable[[#This Row],[Date]]),\"\")","v":"-011900"}]
[null,null,null,{"$f":"IF(AvailabilityTable[[#This Row],[Name]]&\"-\"&RIGHT(\"0\"&WEEKNUM(AvailabilityTable[[#This Row],[Date]],2)-Start_week,2)<>\"-0-\",AvailabilityTable[[#This Row],[Name]]&\"-\"&RIGHT(\"0\"&WEEKNUM(AvailabilityTable[[#This Row],[Date]],2)-Start_week,2)&YEAR(AvailabilityTable[[#This Row],[Date]]),\"\")","v":"-011900"}]
[null,null,null,{"$f":"IF(AvailabilityTable[[#This Row],[Name]]&\"-\"&RIGHT(\"0\"&WEEKNUM(AvailabilityTable[[#This Row],[Date]],2)-Start_week,2)<>\"-0-\",AvailabilityTable[[#This Row],[Name]]&\"-\"&RIGHT(\"0\"&WEEKNUM(AvailabilityTable[[#This Row],[Date]],2)-Start_week,2)&YEAR(AvailabilityTable[[#This Row],[Date]]),\"\")","v":"-011900"}]
[null,null,null,{"$f":"IF(AvailabilityTable[[#This Row],[Name]]&\"-\"&RIGHT(\"0\"&WEEKNUM(AvailabilityTable[[#This Row],[Date]],2)-Start_week,2)<>\"-0-\",AvailabilityTable[[#This Row],[Name]]&\"-\"&RIGHT(\"0\"&WEEKNUM(AvailabilityTable[[#This Row],[Date]],2)-Start_week,2)&YEAR(AvailabilityTable[[#This Row],[Date]]),\"\")","v":"-011900"}]
[null,null,null,{"$f":"IF(AvailabilityTable[[#This Row],[Name]]&\"-\"&RIGHT(\"0\"&WEEKNUM(AvailabilityTable[[#This Row],[Date]],2)-Start_week,2)<>\"-0-\",AvailabilityTable[[#This Row],[Name]]&\"-\"&RIGHT(\"0\"&WEEKNUM(AvailabilityTable[[#This Row],[Date]],2)-Start_week,2)&YEAR(AvailabilityTable[[#This Row],[Date]]),\"\")","v":"-011900"}]
[null,null,null,{"$f":"IF(AvailabilityTable[[#This Row],[Name]]&\"-\"&RIGHT(\"0\"&WEEKNUM(AvailabilityTable[[#This Row],[Date]],2)-Start_week,2)<>\"-0-\",AvailabilityTable[[#This Row],[Name]]&\"-\"&RIGHT(\"0\"&WEEKNUM(AvailabilityTable[[#This Row],[Date]],2)-Start_week,2)&YEAR(AvailabilityTable[[#This Row],[Date]]),\"\")","v":"-011900"}]
[null,null,null,{"$f":"IF(AvailabilityTable[[#This Row],[Name]]&\"-\"&RIGHT(\"0\"&WEEKNUM(AvailabilityTable[[#This Row],[Date]],2)-Start_week,2)<>\"-0-\",AvailabilityTable[[#This Row],[Name]]&\"-\"&RIGHT(\"0\"&WEEKNUM(AvailabilityTable[[#This Row],[Date]],2)-Start_week,2)&YEAR(AvailabilityTable[[#This Row],[Date]]),\"\")","v":"-011900"}]
[null,null,null,{"$f":"IF(AvailabilityTable[[#This Row],[Name]]&\"-\"&RIGHT(\"0\"&WEEKNUM(AvailabilityTable[[#This Row],[Date]],2)-Start_week,2)<>\"-0-\",AvailabilityTable[[#This Row],[Name]]&\"-\"&RIGHT(\"0\"&WEEKNUM(AvailabilityTable[[#This Row],[Date]],2)-Start_week,2)&YEAR(AvailabilityTable[[#This Row],[Date]]),\"\")","v":"-011900"}]
[null,null,null,{"$f":"IF(AvailabilityTable[[#This Row],[Name]]&\"-\"&RIGHT(\"0\"&WEEKNUM(AvailabilityTable[[#This Row],[Date]],2)-Start_week,2)<>\"-0-\",AvailabilityTable[[#This Row],[Name]]&\"-\"&RIGHT(\"0\"&WEEKNUM(AvailabilityTable[[#This Row],[Date]],2)-Start_week,2)&YEAR(AvailabilityTable[[#This Row],[Date]]),\"\")","v":"-011900"}]
[null,null,null,{"$f":"IF(AvailabilityTable[[#This Row],[Name]]&\"-\"&RIGHT(\"0\"&WEEKNUM(AvailabilityTable[[#This Row],[Date]],2)-Start_week,2)<>\"-0-\",AvailabilityTable[[#This Row],[Name]]&\"-\"&RIGHT(\"0\"&WEEKNUM(AvailabilityTable[[#This Row],[Date]],2)-Start_week,2)&YEAR(AvailabilityTable[[#This Row],[Date]]),\"\")","v":"-011900"}]
[null,null,null,{"$f":"IF(AvailabilityTable[[#This Row],[Name]]&\"-\"&RIGHT(\"0\"&WEEKNUM(AvailabilityTable[[#This Row],[Date]],2)-Start_week,2)<>\"-0-\",AvailabilityTable[[#This Row],[Name]]&\"-\"&RIGHT(\"0\"&WEEKNUM(AvailabilityTable[[#This Row],[Date]],2)-Start_week,2)&YEAR(AvailabilityTable[[#This Row],[Date]]),\"\")","v":"-011900"}]
[null,null,null,{"$f":"IF(AvailabilityTable[[#This Row],[Name]]&\"-\"&RIGHT(\"0\"&WEEKNUM(AvailabilityTable[[#This Row],[Date]],2)-Start_week,2)<>\"-0-\",AvailabilityTable[[#This Row],[Name]]&\"-\"&RIGHT(\"0\"&WEEKNUM(AvailabilityTable[[#This Row],[Date]],2)-Start_week,2)&YEAR(AvailabilityTable[[#This Row],[Date]]),\"\")","v":"-011900"}]
[null,null,null,{"$f":"IF(AvailabilityTable[[#This Row],[Name]]&\"-\"&RIGHT(\"0\"&WEEKNUM(AvailabilityTable[[#This Row],[Date]],2)-Start_week,2)<>\"-0-\",AvailabilityTable[[#This Row],[Name]]&\"-\"&RIGHT(\"0\"&WEEKNUM(AvailabilityTable[[#This Row],[Date]],2)-Start_week,2)&YEAR(AvailabilityTable[[#This Row],[Date]]),\"\")","v":"-011900"}]
[null,null,null,{"$f":"IF(AvailabilityTable[[#This Row],[Name]]&\"-\"&RIGHT(\"0\"&WEEKNUM(AvailabilityTable[[#This Row],[Date]],2)-Start_week,2)<>\"-0-\",AvailabilityTable[[#This Row],[Name]]&\"-\"&RIGHT(\"0\"&WEEKNUM(AvailabilityTable[[#This Row],[Date]],2)-Start_week,2)&YEAR(AvailabilityTable[[#This Row],[Date]]),\"\")","v":"-011900"}]
[null,null,null,{"$f":"IF(AvailabilityTable[[#This Row],[Name]]&\"-\"&RIGHT(\"0\"&WEEKNUM(AvailabilityTable[[#This Row],[Date]],2)-Start_week,2)<>\"-0-\",AvailabilityTable[[#This Row],[Name]]&\"-\"&RIGHT(\"0\"&WEEKNUM(AvailabilityTable[[#This Row],[Date]],2)-Start_week,2)&YEAR(AvailabilityTable[[#This Row],[Date]]),\"\")","v":"-011900"}]
[null,null,null,{"$f":"IF(AvailabilityTable[[#This Row],[Name]]&\"-\"&RIGHT(\"0\"&WEEKNUM(AvailabilityTable[[#This Row],[Date]],2)-Start_week,2)<>\"-0-\",AvailabilityTable[[#This Row],[Name]]&\"-\"&RIGHT(\"0\"&WEEKNUM(AvailabilityTable[[#This Row],[Date]],2)-Start_week,2)&YEAR(AvailabilityTable[[#This Row],[Date]]),\"\")","v":"-011900"}]
[null,null,null,{"$f":"IF(AvailabilityTable[[#This Row],[Name]]&\"-\"&RIGHT(\"0\"&WEEKNUM(AvailabilityTable[[#This Row],[Date]],2)-Start_week,2)<>\"-0-\",AvailabilityTable[[#This Row],[Name]]&\"-\"&RIGHT(\"0\"&WEEKNUM(AvailabilityTable[[#This Row],[Date]],2)-Start_week,2)&YEAR(AvailabilityTable[[#This Row],[Date]]),\"\")","v":"-011900"}]
[null,null,null,{"$f":"IF(AvailabilityTable[[#This Row],[Name]]&\"-\"&RIGHT(\"0\"&WEEKNUM(AvailabilityTable[[#This Row],[Date]],2)-Start_week,2)<>\"-0-\",AvailabilityTable[[#This Row],[Name]]&\"-\"&RIGHT(\"0\"&WEEKNUM(AvailabilityTable[[#This Row],[Date]],2)-Start_week,2)&YEAR(AvailabilityTable[[#This Row],[Date]]),\"\")","v":"-011900"}]
[null,null,null,{"$f":"IF(AvailabilityTable[[#This Row],[Name]]&\"-\"&RIGHT(\"0\"&WEEKNUM(AvailabilityTable[[#This Row],[Date]],2)-Start_week,2)<>\"-0-\",AvailabilityTable[[#This Row],[Name]]&\"-\"&RIGHT(\"0\"&WEEKNUM(AvailabilityTable[[#This Row],[Date]],2)-Start_week,2)&YEAR(AvailabilityTable[[#This Row],[Date]]),\"\")","v":"-011900"}]
[null,null,null,{"$f":"IF(AvailabilityTable[[#This Row],[Name]]&\"-\"&RIGHT(\"0\"&WEEKNUM(AvailabilityTable[[#This Row],[Date]],2)-Start_week,2)<>\"-0-\",AvailabilityTable[[#This Row],[Name]]&\"-\"&RIGHT(\"0\"&WEEKNUM(AvailabilityTable[[#This Row],[Date]],2)-Start_week,2)&YEAR(AvailabilityTable[[#This Row],[Date]]),\"\")","v":"-011900"}]
[null,null,null,{"$f":"IF(AvailabilityTable[[#This Row],[Name]]&\"-\"&RIGHT(\"0\"&WEEKNUM(AvailabilityTable[[#This Row],[Date]],2)-Start_week,2)<>\"-0-\",AvailabilityTable[[#This Row],[Name]]&\"-\"&RIGHT(\"0\"&WEEKNUM(AvailabilityTable[[#This Row],[Date]],2)-Start_week,2)&YEAR(AvailabilityTable[[#This Row],[Date]]),\"\")","v":"-011900"}]
[null,null,null,{"$f":"IF(AvailabilityTable[[#This Row],[Name]]&\"-\"&RIGHT(\"0\"&WEEKNUM(AvailabilityTable[[#This Row],[Date]],2)-Start_week,2)<>\"-0-\",AvailabilityTable[[#This Row],[Name]]&\"-\"&RIGHT(\"0\"&WEEKNUM(AvailabilityTable[[#This Row],[Date]],2)-Start_week,2)&YEAR(AvailabilityTable[[#This Row],[Date]]),\"\")","v":"-011900"}]
[null,null,null,{"$f":"IF(AvailabilityTable[[#This Row],[Name]]&\"-\"&RIGHT(\"0\"&WEEKNUM(AvailabilityTable[[#This Row],[Date]],2)-Start_week,2)<>\"-0-\",AvailabilityTable[[#This Row],[Name]]&\"-\"&RIGHT(\"0\"&WEEKNUM(AvailabilityTable[[#This Row],[Date]],2)-Start_week,2)&YEAR(AvailabilityTable[[#This Row],[Date]]),\"\")","v":"-011900"}]
[null,null,null,{"$f":"IF(AvailabilityTable[[#This Row],[Name]]&\"-\"&RIGHT(\"0\"&WEEKNUM(AvailabilityTable[[#This Row],[Date]],2)-Start_week,2)<>\"-0-\",AvailabilityTable[[#This Row],[Name]]&\"-\"&RIGHT(\"0\"&WEEKNUM(AvailabilityTable[[#This Row],[Date]],2)-Start_week,2)&YEAR(AvailabilityTable[[#This Row],[Date]]),\"\")","v":"-011900"}]
[null,null,null,{"$f":"IF(AvailabilityTable[[#This Row],[Name]]&\"-\"&RIGHT(\"0\"&WEEKNUM(AvailabilityTable[[#This Row],[Date]],2)-Start_week,2)<>\"-0-\",AvailabilityTable[[#This Row],[Name]]&\"-\"&RIGHT(\"0\"&WEEKNUM(AvailabilityTable[[#This Row],[Date]],2)-Start_week,2)&YEAR(AvailabilityTable[[#This Row],[Date]]),\"\")","v":"-011900"}]
[null,null,null,{"$f":"IF(AvailabilityTable[[#This Row],[Name]]&\"-\"&RIGHT(\"0\"&WEEKNUM(AvailabilityTable[[#This Row],[Date]],2)-Start_week,2)<>\"-0-\",AvailabilityTable[[#This Row],[Name]]&\"-\"&RIGHT(\"0\"&WEEKNUM(AvailabilityTable[[#This Row],[Date]],2)-Start_week,2)&YEAR(AvailabilityTable[[#This Row],[Date]]),\"\")","v":"-011900"}]
[null,null,null,{"$f":"IF(AvailabilityTable[[#This Row],[Name]]&\"-\"&RIGHT(\"0\"&WEEKNUM(AvailabilityTable[[#This Row],[Date]],2)-Start_week,2)<>\"-0-\",AvailabilityTable[[#This Row],[Name]]&\"-\"&RIGHT(\"0\"&WEEKNUM(AvailabilityTable[[#This Row],[Date]],2)-Start_week,2)&YEAR(AvailabilityTable[[#This Row],[Date]]),\"\")","v":"-011900"}]
[null,null,null,{"$f":"IF(AvailabilityTable[[#This Row],[Name]]&\"-\"&RIGHT(\"0\"&WEEKNUM(AvailabilityTable[[#This Row],[Date]],2)-Start_week,2)<>\"-0-\",AvailabilityTable[[#This Row],[Name]]&\"-\"&RIGHT(\"0\"&WEEKNUM(AvailabilityTable[[#This Row],[Date]],2)-Start_week,2)&YEAR(AvailabilityTable[[#This Row],[Date]]),\"\")","v":"-011900"}]
[null,null,null,{"$f":"IF(AvailabilityTable[[#This Row],[Name]]&\"-\"&RIGHT(\"0\"&WEEKNUM(AvailabilityTable[[#This Row],[Date]],2)-Start_week,2)<>\"-0-\",AvailabilityTable[[#This Row],[Name]]&\"-\"&RIGHT(\"0\"&WEEKNUM(AvailabilityTable[[#This Row],[Date]],2)-Start_week,2)&YEAR(AvailabilityTable[[#This Row],[Date]]),\"\")","v":"-011900"}]
[null,null,null,{"$f":"IF(AvailabilityTable[[#This Row],[Name]]&\"-\"&RIGHT(\"0\"&WEEKNUM(AvailabilityTable[[#This Row],[Date]],2)-Start_week,2)<>\"-0-\",AvailabilityTable[[#This Row],[Name]]&\"-\"&RIGHT(\"0\"&WEEKNUM(AvailabilityTable[[#This Row],[Date]],2)-Start_week,2)&YEAR(AvailabilityTable[[#This Row],[Date]]),\"\")","v":"-011900"}]
[null,null,null,{"$f":"IF(AvailabilityTable[[#This Row],[Name]]&\"-\"&RIGHT(\"0\"&WEEKNUM(AvailabilityTable[[#This Row],[Date]],2)-Start_week,2)<>\"-0-\",AvailabilityTable[[#This Row],[Name]]&\"-\"&RIGHT(\"0\"&WEEKNUM(AvailabilityTable[[#This Row],[Date]],2)-Start_week,2)&YEAR(AvailabilityTable[[#This Row],[Date]]),\"\")","v":"-011900"}]
[null,null,null,{"$f":"IF(AvailabilityTable[[#This Row],[Name]]&\"-\"&RIGHT(\"0\"&WEEKNUM(AvailabilityTable[[#This Row],[Date]],2)-Start_week,2)<>\"-0-\",AvailabilityTable[[#This Row],[Name]]&\"-\"&RIGHT(\"0\"&WEEKNUM(AvailabilityTable[[#This Row],[Date]],2)-Start_week,2)&YEAR(AvailabilityTable[[#This Row],[Date]]),\"\")","v":"-011900"}]
[null,null,null,{"$f":"IF(AvailabilityTable[[#This Row],[Name]]&\"-\"&RIGHT(\"0\"&WEEKNUM(AvailabilityTable[[#This Row],[Date]],2)-Start_week,2)<>\"-0-\",AvailabilityTable[[#This Row],[Name]]&\"-\"&RIGHT(\"0\"&WEEKNUM(AvailabilityTable[[#This Row],[Date]],2)-Start_week,2)&YEAR(AvailabilityTable[[#This Row],[Date]]),\"\")","v":"-011900"}]
[null,null,null,{"$f":"IF(AvailabilityTable[[#This Row],[Name]]&\"-\"&RIGHT(\"0\"&WEEKNUM(AvailabilityTable[[#This Row],[Date]],2)-Start_week,2)<>\"-0-\",AvailabilityTable[[#This Row],[Name]]&\"-\"&RIGHT(\"0\"&WEEKNUM(AvailabilityTable[[#This Row],[Date]],2)-Start_week,2)&YEAR(AvailabilityTable[[#This Row],[Date]]),\"\")","v":"-011900"}]
[null,null,null,{"$f":"IF(AvailabilityTable[[#This Row],[Name]]&\"-\"&RIGHT(\"0\"&WEEKNUM(AvailabilityTable[[#This Row],[Date]],2)-Start_week,2)<>\"-0-\",AvailabilityTable[[#This Row],[Name]]&\"-\"&RIGHT(\"0\"&WEEKNUM(AvailabilityTable[[#This Row],[Date]],2)-Start_week,2)&YEAR(AvailabilityTable[[#This Row],[Date]]),\"\")","v":"-011900"}]
[null,null,null,{"$f":"IF(AvailabilityTable[[#This Row],[Name]]&\"-\"&RIGHT(\"0\"&WEEKNUM(AvailabilityTable[[#This Row],[Date]],2)-Start_week,2)<>\"-0-\",AvailabilityTable[[#This Row],[Name]]&\"-\"&RIGHT(\"0\"&WEEKNUM(AvailabilityTable[[#This Row],[Date]],2)-Start_week,2)&YEAR(AvailabilityTable[[#This Row],[Date]]),\"\")","v":"-011900"}]
[null,null,null,{"$f":"IF(AvailabilityTable[[#This Row],[Name]]&\"-\"&RIGHT(\"0\"&WEEKNUM(AvailabilityTable[[#This Row],[Date]],2)-Start_week,2)<>\"-0-\",AvailabilityTable[[#This Row],[Name]]&\"-\"&RIGHT(\"0\"&WEEKNUM(AvailabilityTable[[#This Row],[Date]],2)-Start_week,2)&YEAR(AvailabilityTable[[#This Row],[Date]]),\"\")","v":"-011900"}]
[null,null,null,{"$f":"IF(AvailabilityTable[[#This Row],[Name]]&\"-\"&RIGHT(\"0\"&WEEKNUM(AvailabilityTable[[#This Row],[Date]],2)-Start_week,2)<>\"-0-\",AvailabilityTable[[#This Row],[Name]]&\"-\"&RIGHT(\"0\"&WEEKNUM(AvailabilityTable[[#This Row],[Date]],2)-Start_week,2)&YEAR(AvailabilityTable[[#This Row],[Date]]),\"\")","v":"-011900"}]
[null,null,null,{"$f":"IF(AvailabilityTable[[#This Row],[Name]]&\"-\"&RIGHT(\"0\"&WEEKNUM(AvailabilityTable[[#This Row],[Date]],2)-Start_week,2)<>\"-0-\",AvailabilityTable[[#This Row],[Name]]&\"-\"&RIGHT(\"0\"&WEEKNUM(AvailabilityTable[[#This Row],[Date]],2)-Start_week,2)&YEAR(AvailabilityTable[[#This Row],[Date]]),\"\")","v":"-011900"}]
[null,null,null,{"$f":"IF(AvailabilityTable[[#This Row],[Name]]&\"-\"&RIGHT(\"0\"&WEEKNUM(AvailabilityTable[[#This Row],[Date]],2)-Start_week,2)<>\"-0-\",AvailabilityTable[[#This Row],[Name]]&\"-\"&RIGHT(\"0\"&WEEKNUM(AvailabilityTable[[#This Row],[Date]],2)-Start_week,2)&YEAR(AvailabilityTable[[#This Row],[Date]]),\"\")","v":"-011900"}]
[null,null,null,{"$f":"IF(AvailabilityTable[[#This Row],[Name]]&\"-\"&RIGHT(\"0\"&WEEKNUM(AvailabilityTable[[#This Row],[Date]],2)-Start_week,2)<>\"-0-\",AvailabilityTable[[#This Row],[Name]]&\"-\"&RIGHT(\"0\"&WEEKNUM(AvailabilityTable[[#This Row],[Date]],2)-Start_week,2)&YEAR(AvailabilityTable[[#This Row],[Date]]),\"\")","v":"-011900"}]
[null,null,null,{"$f":"IF(AvailabilityTable[[#This Row],[Name]]&\"-\"&RIGHT(\"0\"&WEEKNUM(AvailabilityTable[[#This Row],[Date]],2)-Start_week,2)<>\"-0-\",AvailabilityTable[[#This Row],[Name]]&\"-\"&RIGHT(\"0\"&WEEKNUM(AvailabilityTable[[#This Row],[Date]],2)-Start_week,2)&YEAR(AvailabilityTable[[#This Row],[Date]]),\"\")","v":"-011900"}]
[null,null,null,{"$f":"IF(AvailabilityTable[[#This Row],[Name]]&\"-\"&RIGHT(\"0\"&WEEKNUM(AvailabilityTable[[#This Row],[Date]],2)-Start_week,2)<>\"-0-\",AvailabilityTable[[#This Row],[Name]]&\"-\"&RIGHT(\"0\"&WEEKNUM(AvailabilityTable[[#This Row],[Date]],2)-Start_week,2)&YEAR(AvailabilityTable[[#This Row],[Date]]),\"\")","v":"-011900"}]
[null,null,null,{"$f":"IF(AvailabilityTable[[#This Row],[Name]]&\"-\"&RIGHT(\"0\"&WEEKNUM(AvailabilityTable[[#This Row],[Date]],2)-Start_week,2)<>\"-0-\",AvailabilityTable[[#This Row],[Name]]&\"-\"&RIGHT(\"0\"&WEEKNUM(AvailabilityTable[[#This Row],[Date]],2)-Start_week,2)&YEAR(AvailabilityTable[[#This Row],[Date]]),\"\")","v":"-011900"}]
[null,null,null,{"$f":"IF(AvailabilityTable[[#This Row],[Name]]&\"-\"&RIGHT(\"0\"&WEEKNUM(AvailabilityTable[[#This Row],[Date]],2)-Start_week,2)<>\"-0-\",AvailabilityTable[[#This Row],[Name]]&\"-\"&RIGHT(\"0\"&WEEKNUM(AvailabilityTable[[#This Row],[Date]],2)-Start_week,2)&YEAR(AvailabilityTable[[#This Row],[Date]]),\"\")","v":"-011900"}]
[null,null,null,{"$f":"IF(AvailabilityTable[[#This Row],[Name]]&\"-\"&RIGHT(\"0\"&WEEKNUM(AvailabilityTable[[#This Row],[Date]],2)-Start_week,2)<>\"-0-\",AvailabilityTable[[#This Row],[Name]]&\"-\"&RIGHT(\"0\"&WEEKNUM(AvailabilityTable[[#This Row],[Date]],2)-Start_week,2)&YEAR(AvailabilityTable[[#This Row],[Date]]),\"\")","v":"-011900"}]
[null,null,null,{"$f":"IF(AvailabilityTable[[#This Row],[Name]]&\"-\"&RIGHT(\"0\"&WEEKNUM(AvailabilityTable[[#This Row],[Date]],2)-Start_week,2)<>\"-0-\",AvailabilityTable[[#This Row],[Name]]&\"-\"&RIGHT(\"0\"&WEEKNUM(AvailabilityTable[[#This Row],[Date]],2)-Start_week,2)&YEAR(AvailabilityTable[[#This Row],[Date]]),\"\")","v":"-011900"}]
[null,null,null,{"$f":"IF(AvailabilityTable[[#This Row],[Name]]&\"-\"&RIGHT(\"0\"&WEEKNUM(AvailabilityTable[[#This Row],[Date]],2)-Start_week,2)<>\"-0-\",AvailabilityTable[[#This Row],[Name]]&\"-\"&RIGHT(\"0\"&WEEKNUM(AvailabilityTable[[#This Row],[Date]],2)-Start_week,2)&YEAR(AvailabilityTable[[#This Row],[Date]]),\"\")","v":"-011900"}]
[null,null,null,{"$f":"IF(AvailabilityTable[[#This Row],[Name]]&\"-\"&RIGHT(\"0\"&WEEKNUM(AvailabilityTable[[#This Row],[Date]],2)-Start_week,2)<>\"-0-\",AvailabilityTable[[#This Row],[Name]]&\"-\"&RIGHT(\"0\"&WEEKNUM(AvailabilityTable[[#This Row],[Date]],2)-Start_week,2)&YEAR(AvailabilityTable[[#This Row],[Date]]),\"\")","v":"-011900"}]
[null,null,null,{"$f":"IF(AvailabilityTable[[#This Row],[Name]]&\"-\"&RIGHT(\"0\"&WEEKNUM(AvailabilityTable[[#This Row],[Date]],2)-Start_week,2)<>\"-0-\",AvailabilityTable[[#This Row],[Name]]&\"-\"&RIGHT(\"0\"&WEEKNUM(AvailabilityTable[[#This Row],[Date]],2)-Start_week,2)&YEAR(AvailabilityTable[[#This Row],[Date]]),\"\")","v":"-011900"}]
[null,null,null,{"$f":"IF(AvailabilityTable[[#This Row],[Name]]&\"-\"&RIGHT(\"0\"&WEEKNUM(AvailabilityTable[[#This Row],[Date]],2)-Start_week,2)<>\"-0-\",AvailabilityTable[[#This Row],[Name]]&\"-\"&RIGHT(\"0\"&WEEKNUM(AvailabilityTable[[#This Row],[Date]],2)-Start_week,2)&YEAR(AvailabilityTable[[#This Row],[Date]]),\"\")","v":"-011900"}]
[null,null,null,{"$f":"IF(AvailabilityTable[[#This Row],[Name]]&\"-\"&RIGHT(\"0\"&WEEKNUM(AvailabilityTable[[#This Row],[Date]],2)-Start_week,2)<>\"-0-\",AvailabilityTable[[#This Row],[Name]]&\"-\"&RIGHT(\"0\"&WEEKNUM(AvailabilityTable[[#This Row],[Date]],2)-Start_week,2)&YEAR(AvailabilityTable[[#This Row],[Date]]),\"\")","v":"-011900"}]
[null,null,null,{"$f":"IF(AvailabilityTable[[#This Row],[Name]]&\"-\"&RIGHT(\"0\"&WEEKNUM(AvailabilityTable[[#This Row],[Date]],2)-Start_week,2)<>\"-0-\",AvailabilityTable[[#This Row],[Name]]&\"-\"&RIGHT(\"0\"&WEEKNUM(AvailabilityTable[[#This Row],[Date]],2)-Start_week,2)&YEAR(AvailabilityTable[[#This Row],[Date]]),\"\")","v":"-011900"}]
[null,null,null,{"$f":"IF(AvailabilityTable[[#This Row],[Name]]&\"-\"&RIGHT(\"0\"&WEEKNUM(AvailabilityTable[[#This Row],[Date]],2)-Start_week,2)<>\"-0-\",AvailabilityTable[[#This Row],[Name]]&\"-\"&RIGHT(\"0\"&WEEKNUM(AvailabilityTable[[#This Row],[Date]],2)-Start_week,2)&YEAR(AvailabilityTable[[#This Row],[Date]]),\"\")","v":"-011900"}]
[null,null,null,{"$f":"IF(AvailabilityTable[[#This Row],[Name]]&\"-\"&RIGHT(\"0\"&WEEKNUM(AvailabilityTable[[#This Row],[Date]],2)-Start_week,2)<>\"-0-\",AvailabilityTable[[#This Row],[Name]]&\"-\"&RIGHT(\"0\"&WEEKNUM(AvailabilityTable[[#This Row],[Date]],2)-Start_week,2)&YEAR(AvailabilityTable[[#This Row],[Date]]),\"\")","v":"-011900"}]
[null,null,null,{"$f":"IF(AvailabilityTable[[#This Row],[Name]]&\"-\"&RIGHT(\"0\"&WEEKNUM(AvailabilityTable[[#This Row],[Date]],2)-Start_week,2)<>\"-0-\",AvailabilityTable[[#This Row],[Name]]&\"-\"&RIGHT(\"0\"&WEEKNUM(AvailabilityTable[[#This Row],[Date]],2)-Start_week,2)&YEAR(AvailabilityTable[[#This Row],[Date]]),\"\")","v":"-011900"}]
[null,null,null,{"$f":"IF(AvailabilityTable[[#This Row],[Name]]&\"-\"&RIGHT(\"0\"&WEEKNUM(AvailabilityTable[[#This Row],[Date]],2)-Start_week,2)<>\"-0-\",AvailabilityTable[[#This Row],[Name]]&\"-\"&RIGHT(\"0\"&WEEKNUM(AvailabilityTable[[#This Row],[Date]],2)-Start_week,2)&YEAR(AvailabilityTable[[#This Row],[Date]]),\"\")","v":"-011900"}]
[null,null,null,{"$f":"IF(AvailabilityTable[[#This Row],[Name]]&\"-\"&RIGHT(\"0\"&WEEKNUM(AvailabilityTable[[#This Row],[Date]],2)-Start_week,2)<>\"-0-\",AvailabilityTable[[#This Row],[Name]]&\"-\"&RIGHT(\"0\"&WEEKNUM(AvailabilityTable[[#This Row],[Date]],2)-Start_week,2)&YEAR(AvailabilityTable[[#This Row],[Date]]),\"\")","v":"-011900"}]
[null,null,null,{"$f":"IF(AvailabilityTable[[#This Row],[Name]]&\"-\"&RIGHT(\"0\"&WEEKNUM(AvailabilityTable[[#This Row],[Date]],2)-Start_week,2)<>\"-0-\",AvailabilityTable[[#This Row],[Name]]&\"-\"&RIGHT(\"0\"&WEEKNUM(AvailabilityTable[[#This Row],[Date]],2)-Start_week,2)&YEAR(AvailabilityTable[[#This Row],[Date]]),\"\")","v":"-011900"}]
[null,null,null,{"$f":"IF(AvailabilityTable[[#This Row],[Name]]&\"-\"&RIGHT(\"0\"&WEEKNUM(AvailabilityTable[[#This Row],[Date]],2)-Start_week,2)<>\"-0-\",AvailabilityTable[[#This Row],[Name]]&\"-\"&RIGHT(\"0\"&WEEKNUM(AvailabilityTable[[#This Row],[Date]],2)-Start_week,2)&YEAR(AvailabilityTable[[#This Row],[Date]]),\"\")","v":"-011900"}]
[null,null,null,{"$f":"IF(AvailabilityTable[[#This Row],[Name]]&\"-\"&RIGHT(\"0\"&WEEKNUM(AvailabilityTable[[#This Row],[Date]],2)-Start_week,2)<>\"-0-\",AvailabilityTable[[#This Row],[Name]]&\"-\"&RIGHT(\"0\"&WEEKNUM(AvailabilityTable[[#This Row],[Date]],2)-Start_week,2)&YEAR(AvailabilityTable[[#This Row],[Date]]),\"\")","v":"-011900"}]
[null,null,null,{"$f":"IF(AvailabilityTable[[#This Row],[Name]]&\"-\"&RIGHT(\"0\"&WEEKNUM(AvailabilityTable[[#This Row],[Date]],2)-Start_week,2)<>\"-0-\",AvailabilityTable[[#This Row],[Name]]&\"-\"&RIGHT(\"0\"&WEEKNUM(AvailabilityTable[[#This Row],[Date]],2)-Start_week,2)&YEAR(AvailabilityTable[[#This Row],[Date]]),\"\")","v":"-011900"}]
[null,null,null,{"$f":"IF(AvailabilityTable[[#This Row],[Name]]&\"-\"&RIGHT(\"0\"&WEEKNUM(AvailabilityTable[[#This Row],[Date]],2)-Start_week,2)<>\"-0-\",AvailabilityTable[[#This Row],[Name]]&\"-\"&RIGHT(\"0\"&WEEKNUM(AvailabilityTable[[#This Row],[Date]],2)-Start_week,2)&YEAR(AvailabilityTable[[#This Row],[Date]]),\"\")","v":"-011900"}]
[null,null,null,{"$f":"IF(AvailabilityTable[[#This Row],[Name]]&\"-\"&RIGHT(\"0\"&WEEKNUM(AvailabilityTable[[#This Row],[Date]],2)-Start_week,2)<>\"-0-\",AvailabilityTable[[#This Row],[Name]]&\"-\"&RIGHT(\"0\"&WEEKNUM(AvailabilityTable[[#This Row],[Date]],2)-Start_week,2)&YEAR(AvailabilityTable[[#This Row],[Date]]),\"\")","v":"-011900"}]
[null,null,null,{"$f":"IF(AvailabilityTable[[#This Row],[Name]]&\"-\"&RIGHT(\"0\"&WEEKNUM(AvailabilityTable[[#This Row],[Date]],2)-Start_week,2)<>\"-0-\",AvailabilityTable[[#This Row],[Name]]&\"-\"&RIGHT(\"0\"&WEEKNUM(AvailabilityTable[[#This Row],[Date]],2)-Start_week,2)&YEAR(AvailabilityTable[[#This Row],[Date]]),\"\")","v":"-011900"}]
[null,null,null,{"$f":"IF(AvailabilityTable[[#This Row],[Name]]&\"-\"&RIGHT(\"0\"&WEEKNUM(AvailabilityTable[[#This Row],[Date]],2)-Start_week,2)<>\"-0-\",AvailabilityTable[[#This Row],[Name]]&\"-\"&RIGHT(\"0\"&WEEKNUM(AvailabilityTable[[#This Row],[Date]],2)-Start_week,2)&YEAR(AvailabilityTable[[#This Row],[Date]]),\"\")","v":"-011900"}]
[null,null,null,{"$f":"IF(AvailabilityTable[[#This Row],[Name]]&\"-\"&RIGHT(\"0\"&WEEKNUM(AvailabilityTable[[#This Row],[Date]],2)-Start_week,2)<>\"-0-\",AvailabilityTable[[#This Row],[Name]]&\"-\"&RIGHT(\"0\"&WEEKNUM(AvailabilityTable[[#This Row],[Date]],2)-Start_week,2)&YEAR(AvailabilityTable[[#This Row],[Date]]),\"\")","v":"-011900"}]
[null,null,null,{"$f":"IF(AvailabilityTable[[#This Row],[Name]]&\"-\"&RIGHT(\"0\"&WEEKNUM(AvailabilityTable[[#This Row],[Date]],2)-Start_week,2)<>\"-0-\",AvailabilityTable[[#This Row],[Name]]&\"-\"&RIGHT(\"0\"&WEEKNUM(AvailabilityTable[[#This Row],[Date]],2)-Start_week,2)&YEAR(AvailabilityTable[[#This Row],[Date]]),\"\")","v":"-011900"}]
[null,null,null,{"$f":"IF(AvailabilityTable[[#This Row],[Name]]&\"-\"&RIGHT(\"0\"&WEEKNUM(AvailabilityTable[[#This Row],[Date]],2)-Start_week,2)<>\"-0-\",AvailabilityTable[[#This Row],[Name]]&\"-\"&RIGHT(\"0\"&WEEKNUM(AvailabilityTable[[#This Row],[Date]],2)-Start_week,2)&YEAR(AvailabilityTable[[#This Row],[Date]]),\"\")","v":"-011900"}]
[null,null,null,{"$f":"IF(AvailabilityTable[[#This Row],[Name]]&\"-\"&RIGHT(\"0\"&WEEKNUM(AvailabilityTable[[#This Row],[Date]],2)-Start_week,2)<>\"-0-\",AvailabilityTable[[#This Row],[Name]]&\"-\"&RIGHT(\"0\"&WEEKNUM(AvailabilityTable[[#This Row],[Date]],2)-Start_week,2)&YEAR(AvailabilityTable[[#This Row],[Date]]),\"\")","v":"-011900"}]
[null,null,null,{"$f":"IF(AvailabilityTable[[#This Row],[Name]]&\"-\"&RIGHT(\"0\"&WEEKNUM(AvailabilityTable[[#This Row],[Date]],2)-Start_week,2)<>\"-0-\",AvailabilityTable[[#This Row],[Name]]&\"-\"&RIGHT(\"0\"&WEEKNUM(AvailabilityTable[[#This Row],[Date]],2)-Start_week,2)&YEAR(AvailabilityTable[[#This Row],[Date]]),\"\")","v":"-011900"}]
[null,null,null,{"$f":"IF(AvailabilityTable[[#This Row],[Name]]&\"-\"&RIGHT(\"0\"&WEEKNUM(AvailabilityTable[[#This Row],[Date]],2)-Start_week,2)<>\"-0-\",AvailabilityTable[[#This Row],[Name]]&\"-\"&RIGHT(\"0\"&WEEKNUM(AvailabilityTable[[#This Row],[Date]],2)-Start_week,2)&YEAR(AvailabilityTable[[#This Row],[Date]]),\"\")","v":"-011900"}]
[null,null,null,{"$f":"IF(AvailabilityTable[[#This Row],[Name]]&\"-\"&RIGHT(\"0\"&WEEKNUM(AvailabilityTable[[#This Row],[Date]],2)-Start_week,2)<>\"-0-\",AvailabilityTable[[#This Row],[Name]]&\"-\"&RIGHT(\"0\"&WEEKNUM(AvailabilityTable[[#This Row],[Date]],2)-Start_week,2)&YEAR(AvailabilityTable[[#This Row],[Date]]),\"\")","v":"-011900"}]
[null,null,null,{"$f":"IF(AvailabilityTable[[#This Row],[Name]]&\"-\"&RIGHT(\"0\"&WEEKNUM(AvailabilityTable[[#This Row],[Date]],2)-Start_week,2)<>\"-0-\",AvailabilityTable[[#This Row],[Name]]&\"-\"&RIGHT(\"0\"&WEEKNUM(AvailabilityTable[[#This Row],[Date]],2)-Start_week,2)&YEAR(AvailabilityTable[[#This Row],[Date]]),\"\")","v":"-011900"}]
[null,null,null,{"$f":"IF(AvailabilityTable[[#This Row],[Name]]&\"-\"&RIGHT(\"0\"&WEEKNUM(AvailabilityTable[[#This Row],[Date]],2)-Start_week,2)<>\"-0-\",AvailabilityTable[[#This Row],[Name]]&\"-\"&RIGHT(\"0\"&WEEKNUM(AvailabilityTable[[#This Row],[Date]],2)-Start_week,2)&YEAR(AvailabilityTable[[#This Row],[Date]]),\"\")","v":"-011900"}]
[null,null,null,{"$f":"IF(AvailabilityTable[[#This Row],[Name]]&\"-\"&RIGHT(\"0\"&WEEKNUM(AvailabilityTable[[#This Row],[Date]],2)-Start_week,2)<>\"-0-\",AvailabilityTable[[#This Row],[Name]]&\"-\"&RIGHT(\"0\"&WEEKNUM(AvailabilityTable[[#This Row],[Date]],2)-Start_week,2)&YEAR(AvailabilityTable[[#This Row],[Date]]),\"\")","v":"-011900"}]
[null,null,null,{"$f":"IF(AvailabilityTable[[#This Row],[Name]]&\"-\"&RIGHT(\"0\"&WEEKNUM(AvailabilityTable[[#This Row],[Date]],2)-Start_week,2)<>\"-0-\",AvailabilityTable[[#This Row],[Name]]&\"-\"&RIGHT(\"0\"&WEEKNUM(AvailabilityTable[[#This Row],[Date]],2)-Start_week,2)&YEAR(AvailabilityTable[[#This Row],[Date]]),\"\")","v":"-011900"}]
[null,null,null,{"$f":"IF(AvailabilityTable[[#This Row],[Name]]&\"-\"&RIGHT(\"0\"&WEEKNUM(AvailabilityTable[[#This Row],[Date]],2)-Start_week,2)<>\"-0-\",AvailabilityTable[[#This Row],[Name]]&\"-\"&RIGHT(\"0\"&WEEKNUM(AvailabilityTable[[#This Row],[Date]],2)-Start_week,2)&YEAR(AvailabilityTable[[#This Row],[Date]]),\"\")","v":"-011900"}]
[null,null,null,{"$f":"IF(AvailabilityTable[[#This Row],[Name]]&\"-\"&RIGHT(\"0\"&WEEKNUM(AvailabilityTable[[#This Row],[Date]],2)-Start_week,2)<>\"-0-\",AvailabilityTable[[#This Row],[Name]]&\"-\"&RIGHT(\"0\"&WEEKNUM(AvailabilityTable[[#This Row],[Date]],2)-Start_week,2)&YEAR(AvailabilityTable[[#This Row],[Date]]),\"\")","v":"-011900"}]
[null,null,null,{"$f":"IF(AvailabilityTable[[#This Row],[Name]]&\"-\"&RIGHT(\"0\"&WEEKNUM(AvailabilityTable[[#This Row],[Date]],2)-Start_week,2)<>\"-0-\",AvailabilityTable[[#This Row],[Name]]&\"-\"&RIGHT(\"0\"&WEEKNUM(AvailabilityTable[[#This Row],[Date]],2)-Start_week,2)&YEAR(AvailabilityTable[[#This Row],[Date]]),\"\")","v":"-011900"}]
[null,null,null,{"$f":"IF(AvailabilityTable[[#This Row],[Name]]&\"-\"&RIGHT(\"0\"&WEEKNUM(AvailabilityTable[[#This Row],[Date]],2)-Start_week,2)<>\"-0-\",AvailabilityTable[[#This Row],[Name]]&\"-\"&RIGHT(\"0\"&WEEKNUM(AvailabilityTable[[#This Row],[Date]],2)-Start_week,2)&YEAR(AvailabilityTable[[#This Row],[Date]]),\"\")","v":"-011900"}]
[null,null,null,{"$f":"IF(AvailabilityTable[[#This Row],[Name]]&\"-\"&RIGHT(\"0\"&WEEKNUM(AvailabilityTable[[#This Row],[Date]],2)-Start_week,2)<>\"-0-\",AvailabilityTable[[#This Row],[Name]]&\"-\"&RIGHT(\"0\"&WEEKNUM(AvailabilityTable[[#This Row],[Date]],2)-Start_week,2)&YEAR(AvailabilityTable[[#This Row],[Date]]),\"\")","v":"-011900"}]
[null,null,null,{"$f":"IF(AvailabilityTable[[#This Row],[Name]]&\"-\"&RIGHT(\"0\"&WEEKNUM(AvailabilityTable[[#This Row],[Date]],2)-Start_week,2)<>\"-0-\",AvailabilityTable[[#This Row],[Name]]&\"-\"&RIGHT(\"0\"&WEEKNUM(AvailabilityTable[[#This Row],[Date]],2)-Start_week,2)&YEAR(AvailabilityTable[[#This Row],[Date]]),\"\")","v":"-011900"}]
[null,null,null,{"$f":"IF(AvailabilityTable[[#This Row],[Name]]&\"-\"&RIGHT(\"0\"&WEEKNUM(AvailabilityTable[[#This Row],[Date]],2)-Start_week,2)<>\"-0-\",AvailabilityTable[[#This Row],[Name]]&\"-\"&RIGHT(\"0\"&WEEKNUM(AvailabilityTable[[#This Row],[Date]],2)-Start_week,2)&YEAR(AvailabilityTable[[#This Row],[Date]]),\"\")","v":"-011900"}]
[null,null,null,{"$f":"IF(AvailabilityTable[[#This Row],[Name]]&\"-\"&RIGHT(\"0\"&WEEKNUM(AvailabilityTable[[#This Row],[Date]],2)-Start_week,2)<>\"-0-\",AvailabilityTable[[#This Row],[Name]]&\"-\"&RIGHT(\"0\"&WEEKNUM(AvailabilityTable[[#This Row],[Date]],2)-Start_week,2)&YEAR(AvailabilityTable[[#This Row],[Date]]),\"\")","v":"-011900"}]
[null,null,null,{"$f":"IF(AvailabilityTable[[#This Row],[Name]]&\"-\"&RIGHT(\"0\"&WEEKNUM(AvailabilityTable[[#This Row],[Date]],2)-Start_week,2)<>\"-0-\",AvailabilityTable[[#This Row],[Name]]&\"-\"&RIGHT(\"0\"&WEEKNUM(AvailabilityTable[[#This Row],[Date]],2)-Start_week,2)&YEAR(AvailabilityTable[[#This Row],[Date]]),\"\")","v":"-011900"}]
[null,null,null,{"$f":"IF(AvailabilityTable[[#This Row],[Name]]&\"-\"&RIGHT(\"0\"&WEEKNUM(AvailabilityTable[[#This Row],[Date]],2)-Start_week,2)<>\"-0-\",AvailabilityTable[[#This Row],[Name]]&\"-\"&RIGHT(\"0\"&WEEKNUM(AvailabilityTable[[#This Row],[Date]],2)-Start_week,2)&YEAR(AvailabilityTable[[#This Row],[Date]]),\"\")","v":"-011900"}]
[null,null,null,{"$f":"IF(AvailabilityTable[[#This Row],[Name]]&\"-\"&RIGHT(\"0\"&WEEKNUM(AvailabilityTable[[#This Row],[Date]],2)-Start_week,2)<>\"-0-\",AvailabilityTable[[#This Row],[Name]]&\"-\"&RIGHT(\"0\"&WEEKNUM(AvailabilityTable[[#This Row],[Date]],2)-Start_week,2)&YEAR(AvailabilityTable[[#This Row],[Date]]),\"\")","v":"-011900"}]
[null,null,null,{"$f":"IF(AvailabilityTable[[#This Row],[Name]]&\"-\"&RIGHT(\"0\"&WEEKNUM(AvailabilityTable[[#This Row],[Date]],2)-Start_week,2)<>\"-0-\",AvailabilityTable[[#This Row],[Name]]&\"-\"&RIGHT(\"0\"&WEEKNUM(AvailabilityTable[[#This Row],[Date]],2)-Start_week,2)&YEAR(AvailabilityTable[[#This Row],[Date]]),\"\")","v":"-011900"}]
[null,null,null,{"$f":"IF(AvailabilityTable[[#This Row],[Name]]&\"-\"&RIGHT(\"0\"&WEEKNUM(AvailabilityTable[[#This Row],[Date]],2)-Start_week,2)<>\"-0-\",AvailabilityTable[[#This Row],[Name]]&\"-\"&RIGHT(\"0\"&WEEKNUM(AvailabilityTable[[#This Row],[Date]],2)-Start_week,2)&YEAR(AvailabilityTable[[#This Row],[Date]]),\"\")","v":"-011900"}]
[null,null,null,{"$f":"IF(AvailabilityTable[[#This Row],[Name]]&\"-\"&RIGHT(\"0\"&WEEKNUM(AvailabilityTable[[#This Row],[Date]],2)-Start_week,2)<>\"-0-\",AvailabilityTable[[#This Row],[Name]]&\"-\"&RIGHT(\"0\"&WEEKNUM(AvailabilityTable[[#This Row],[Date]],2)-Start_week,2)&YEAR(AvailabilityTable[[#This Row],[Date]]),\"\")","v":"-011900"}]
[null,null,null,{"$f":"IF(AvailabilityTable[[#This Row],[Name]]&\"-\"&RIGHT(\"0\"&WEEKNUM(AvailabilityTable[[#This Row],[Date]],2)-Start_week,2)<>\"-0-\",AvailabilityTable[[#This Row],[Name]]&\"-\"&RIGHT(\"0\"&WEEKNUM(AvailabilityTable[[#This Row],[Date]],2)-Start_week,2)&YEAR(AvailabilityTable[[#This Row],[Date]]),\"\")","v":"-011900"}]
[null,null,null,{"$f":"IF(AvailabilityTable[[#This Row],[Name]]&\"-\"&RIGHT(\"0\"&WEEKNUM(AvailabilityTable[[#This Row],[Date]],2)-Start_week,2)<>\"-0-\",AvailabilityTable[[#This Row],[Name]]&\"-\"&RIGHT(\"0\"&WEEKNUM(AvailabilityTable[[#This Row],[Date]],2)-Start_week,2)&YEAR(AvailabilityTable[[#This Row],[Date]]),\"\")","v":"-011900"}]
[null,null,null,{"$f":"IF(AvailabilityTable[[#This Row],[Name]]&\"-\"&RIGHT(\"0\"&WEEKNUM(AvailabilityTable[[#This Row],[Date]],2)-Start_week,2)<>\"-0-\",AvailabilityTable[[#This Row],[Name]]&\"-\"&RIGHT(\"0\"&WEEKNUM(AvailabilityTable[[#This Row],[Date]],2)-Start_week,2)&YEAR(AvailabilityTable[[#This Row],[Date]]),\"\")","v":"-011900"}]
[null,null,null,{"$f":"IF(AvailabilityTable[[#This Row],[Name]]&\"-\"&RIGHT(\"0\"&WEEKNUM(AvailabilityTable[[#This Row],[Date]],2)-Start_week,2)<>\"-0-\",AvailabilityTable[[#This Row],[Name]]&\"-\"&RIGHT(\"0\"&WEEKNUM(AvailabilityTable[[#This Row],[Date]],2)-Start_week,2)&YEAR(AvailabilityTable[[#This Row],[Date]]),\"\")","v":"-011900"}]
[null,null,null,{"$f":"IF(AvailabilityTable[[#This Row],[Name]]&\"-\"&RIGHT(\"0\"&WEEKNUM(AvailabilityTable[[#This Row],[Date]],2)-Start_week,2)<>\"-0-\",AvailabilityTable[[#This Row],[Name]]&\"-\"&RIGHT(\"0\"&WEEKNUM(AvailabilityTable[[#This Row],[Date]],2)-Start_week,2)&YEAR(AvailabilityTable[[#This Row],[Date]]),\"\")","v":"-011900"}]
[null,null,null,{"$f":"IF(AvailabilityTable[[#This Row],[Name]]&\"-\"&RIGHT(\"0\"&WEEKNUM(AvailabilityTable[[#This Row],[Date]],2)-Start_week,2)<>\"-0-\",AvailabilityTable[[#This Row],[Name]]&\"-\"&RIGHT(\"0\"&WEEKNUM(AvailabilityTable[[#This Row],[Date]],2)-Start_week,2)&YEAR(AvailabilityTable[[#This Row],[Date]]),\"\")","v":"-011900"}]
[null,null,null,{"$f":"IF(AvailabilityTable[[#This Row],[Name]]&\"-\"&RIGHT(\"0\"&WEEKNUM(AvailabilityTable[[#This Row],[Date]],2)-Start_week,2)<>\"-0-\",AvailabilityTable[[#This Row],[Name]]&\"-\"&RIGHT(\"0\"&WEEKNUM(AvailabilityTable[[#This Row],[Date]],2)-Start_week,2)&YEAR(AvailabilityTable[[#This Row],[Date]]),\"\")","v":"-011900"}]
[null,null,null,{"$f":"IF(AvailabilityTable[[#This Row],[Name]]&\"-\"&RIGHT(\"0\"&WEEKNUM(AvailabilityTable[[#This Row],[Date]],2)-Start_week,2)<>\"-0-\",AvailabilityTable[[#This Row],[Name]]&\"-\"&RIGHT(\"0\"&WEEKNUM(AvailabilityTable[[#This Row],[Date]],2)-Start_week,2)&YEAR(AvailabilityTable[[#This Row],[Date]]),\"\")","v":"-011900"}]
[null,null,null,{"$f":"IF(AvailabilityTable[[#This Row],[Name]]&\"-\"&RIGHT(\"0\"&WEEKNUM(AvailabilityTable[[#This Row],[Date]],2)-Start_week,2)<>\"-0-\",AvailabilityTable[[#This Row],[Name]]&\"-\"&RIGHT(\"0\"&WEEKNUM(AvailabilityTable[[#This Row],[Date]],2)-Start_week,2)&YEAR(AvailabilityTable[[#This Row],[Date]]),\"\")","v":"-011900"}]
[null,null,null,{"$f":"IF(AvailabilityTable[[#This Row],[Name]]&\"-\"&RIGHT(\"0\"&WEEKNUM(AvailabilityTable[[#This Row],[Date]],2)-Start_week,2)<>\"-0-\",AvailabilityTable[[#This Row],[Name]]&\"-\"&RIGHT(\"0\"&WEEKNUM(AvailabilityTable[[#This Row],[Date]],2)-Start_week,2)&YEAR(AvailabilityTable[[#This Row],[Date]]),\"\")","v":"-011900"}]
[null,null,null,{"$f":"IF(AvailabilityTable[[#This Row],[Name]]&\"-\"&RIGHT(\"0\"&WEEKNUM(AvailabilityTable[[#This Row],[Date]],2)-Start_week,2)<>\"-0-\",AvailabilityTable[[#This Row],[Name]]&\"-\"&RIGHT(\"0\"&WEEKNUM(AvailabilityTable[[#This Row],[Date]],2)-Start_week,2)&YEAR(AvailabilityTable[[#This Row],[Date]]),\"\")","v":"-011900"}]
[null,null,null,{"$f":"IF(AvailabilityTable[[#This Row],[Name]]&\"-\"&RIGHT(\"0\"&WEEKNUM(AvailabilityTable[[#This Row],[Date]],2)-Start_week,2)<>\"-0-\",AvailabilityTable[[#This Row],[Name]]&\"-\"&RIGHT(\"0\"&WEEKNUM(AvailabilityTable[[#This Row],[Date]],2)-Start_week,2)&YEAR(AvailabilityTable[[#This Row],[Date]]),\"\")","v":"-011900"}]
[null,null,null,{"$f":"IF(AvailabilityTable[[#This Row],[Name]]&\"-\"&RIGHT(\"0\"&WEEKNUM(AvailabilityTable[[#This Row],[Date]],2)-Start_week,2)<>\"-0-\",AvailabilityTable[[#This Row],[Name]]&\"-\"&RIGHT(\"0\"&WEEKNUM(AvailabilityTable[[#This Row],[Date]],2)-Start_week,2)&YEAR(AvailabilityTable[[#This Row],[Date]]),\"\")","v":"-011900"}]
[null,null,null,{"$f":"IF(AvailabilityTable[[#This Row],[Name]]&\"-\"&RIGHT(\"0\"&WEEKNUM(AvailabilityTable[[#This Row],[Date]],2)-Start_week,2)<>\"-0-\",AvailabilityTable[[#This Row],[Name]]&\"-\"&RIGHT(\"0\"&WEEKNUM(AvailabilityTable[[#This Row],[Date]],2)-Start_week,2)&YEAR(AvailabilityTable[[#This Row],[Date]]),\"\")","v":"-011900"}]
[null,null,null,{"$f":"IF(AvailabilityTable[[#This Row],[Name]]&\"-\"&RIGHT(\"0\"&WEEKNUM(AvailabilityTable[[#This Row],[Date]],2)-Start_week,2)<>\"-0-\",AvailabilityTable[[#This Row],[Name]]&\"-\"&RIGHT(\"0\"&WEEKNUM(AvailabilityTable[[#This Row],[Date]],2)-Start_week,2)&YEAR(AvailabilityTable[[#This Row],[Date]]),\"\")","v":"-011900"}]
[null,null,null,{"$f":"IF(AvailabilityTable[[#This Row],[Name]]&\"-\"&RIGHT(\"0\"&WEEKNUM(AvailabilityTable[[#This Row],[Date]],2)-Start_week,2)<>\"-0-\",AvailabilityTable[[#This Row],[Name]]&\"-\"&RIGHT(\"0\"&WEEKNUM(AvailabilityTable[[#This Row],[Date]],2)-Start_week,2)&YEAR(AvailabilityTable[[#This Row],[Date]]),\"\")","v":"-011900"}]
[null,null,null,{"$f":"IF(AvailabilityTable[[#This Row],[Name]]&\"-\"&RIGHT(\"0\"&WEEKNUM(AvailabilityTable[[#This Row],[Date]],2)-Start_week,2)<>\"-0-\",AvailabilityTable[[#This Row],[Name]]&\"-\"&RIGHT(\"0\"&WEEKNUM(AvailabilityTable[[#This Row],[Date]],2)-Start_week,2)&YEAR(AvailabilityTable[[#This Row],[Date]]),\"\")","v":"-011900"}]
[null,null,null,{"$f":"IF(AvailabilityTable[[#This Row],[Name]]&\"-\"&RIGHT(\"0\"&WEEKNUM(AvailabilityTable[[#This Row],[Date]],2)-Start_week,2)<>\"-0-\",AvailabilityTable[[#This Row],[Name]]&\"-\"&RIGHT(\"0\"&WEEKNUM(AvailabilityTable[[#This Row],[Date]],2)-Start_week,2)&YEAR(AvailabilityTable[[#This Row],[Date]]),\"\")","v":"-011900"}]
[null,null,null,{"$f":"IF(AvailabilityTable[[#This Row],[Name]]&\"-\"&RIGHT(\"0\"&WEEKNUM(AvailabilityTable[[#This Row],[Date]],2)-Start_week,2)<>\"-0-\",AvailabilityTable[[#This Row],[Name]]&\"-\"&RIGHT(\"0\"&WEEKNUM(AvailabilityTable[[#This Row],[Date]],2)-Start_week,2)&YEAR(AvailabilityTable[[#This Row],[Date]]),\"\")","v":"-011900"}]
[null,null,null,{"$f":"IF(AvailabilityTable[[#This Row],[Name]]&\"-\"&RIGHT(\"0\"&WEEKNUM(AvailabilityTable[[#This Row],[Date]],2)-Start_week,2)<>\"-0-\",AvailabilityTable[[#This Row],[Name]]&\"-\"&RIGHT(\"0\"&WEEKNUM(AvailabilityTable[[#This Row],[Date]],2)-Start_week,2)&YEAR(AvailabilityTable[[#This Row],[Date]]),\"\")","v":"-011900"}]
[null,null,null,{"$f":"IF(AvailabilityTable[[#This Row],[Name]]&\"-\"&RIGHT(\"0\"&WEEKNUM(AvailabilityTable[[#This Row],[Date]],2)-Start_week,2)<>\"-0-\",AvailabilityTable[[#This Row],[Name]]&\"-\"&RIGHT(\"0\"&WEEKNUM(AvailabilityTable[[#This Row],[Date]],2)-Start_week,2)&YEAR(AvailabilityTable[[#This Row],[Date]]),\"\")","v":"-011900"}]
[null,null,null,{"$f":"IF(AvailabilityTable[[#This Row],[Name]]&\"-\"&RIGHT(\"0\"&WEEKNUM(AvailabilityTable[[#This Row],[Date]],2)-Start_week,2)<>\"-0-\",AvailabilityTable[[#This Row],[Name]]&\"-\"&RIGHT(\"0\"&WEEKNUM(AvailabilityTable[[#This Row],[Date]],2)-Start_week,2)&YEAR(AvailabilityTable[[#This Row],[Date]]),\"\")","v":"-011900"}]
[null,null,null,{"$f":"IF(AvailabilityTable[[#This Row],[Name]]&\"-\"&RIGHT(\"0\"&WEEKNUM(AvailabilityTable[[#This Row],[Date]],2)-Start_week,2)<>\"-0-\",AvailabilityTable[[#This Row],[Name]]&\"-\"&RIGHT(\"0\"&WEEKNUM(AvailabilityTable[[#This Row],[Date]],2)-Start_week,2)&YEAR(AvailabilityTable[[#This Row],[Date]]),\"\")","v":"-011900"}]
[null,null,null,{"$f":"IF(AvailabilityTable[[#This Row],[Name]]&\"-\"&RIGHT(\"0\"&WEEKNUM(AvailabilityTable[[#This Row],[Date]],2)-Start_week,2)<>\"-0-\",AvailabilityTable[[#This Row],[Name]]&\"-\"&RIGHT(\"0\"&WEEKNUM(AvailabilityTable[[#This Row],[Date]],2)-Start_week,2)&YEAR(AvailabilityTable[[#This Row],[Date]]),\"\")","v":"-011900"}]
[null,null,null,{"$f":"IF(AvailabilityTable[[#This Row],[Name]]&\"-\"&RIGHT(\"0\"&WEEKNUM(AvailabilityTable[[#This Row],[Date]],2)-Start_week,2)<>\"-0-\",AvailabilityTable[[#This Row],[Name]]&\"-\"&RIGHT(\"0\"&WEEKNUM(AvailabilityTable[[#This Row],[Date]],2)-Start_week,2)&YEAR(AvailabilityTable[[#This Row],[Date]]),\"\")","v":"-011900"}]
[null,null,null,{"$f":"IF(AvailabilityTable[[#This Row],[Name]]&\"-\"&RIGHT(\"0\"&WEEKNUM(AvailabilityTable[[#This Row],[Date]],2)-Start_week,2)<>\"-0-\",AvailabilityTable[[#This Row],[Name]]&\"-\"&RIGHT(\"0\"&WEEKNUM(AvailabilityTable[[#This Row],[Date]],2)-Start_week,2)&YEAR(AvailabilityTable[[#This Row],[Date]]),\"\")","v":"-011900"}]
[null,null,null,{"$f":"IF(AvailabilityTable[[#This Row],[Name]]&\"-\"&RIGHT(\"0\"&WEEKNUM(AvailabilityTable[[#This Row],[Date]],2)-Start_week,2)<>\"-0-\",AvailabilityTable[[#This Row],[Name]]&\"-\"&RIGHT(\"0\"&WEEKNUM(AvailabilityTable[[#This Row],[Date]],2)-Start_week,2)&YEAR(AvailabilityTable[[#This Row],[Date]]),\"\")","v":"-011900"}]
[null,null,null,{"$f":"IF(AvailabilityTable[[#This Row],[Name]]&\"-\"&RIGHT(\"0\"&WEEKNUM(AvailabilityTable[[#This Row],[Date]],2)-Start_week,2)<>\"-0-\",AvailabilityTable[[#This Row],[Name]]&\"-\"&RIGHT(\"0\"&WEEKNUM(AvailabilityTable[[#This Row],[Date]],2)-Start_week,2)&YEAR(AvailabilityTable[[#This Row],[Date]]),\"\")","v":"-011900"}]
[null,null,null,{"$f":"IF(AvailabilityTable[[#This Row],[Name]]&\"-\"&RIGHT(\"0\"&WEEKNUM(AvailabilityTable[[#This Row],[Date]],2)-Start_week,2)<>\"-0-\",AvailabilityTable[[#This Row],[Name]]&\"-\"&RIGHT(\"0\"&WEEKNUM(AvailabilityTable[[#This Row],[Date]],2)-Start_week,2)&YEAR(AvailabilityTable[[#This Row],[Date]]),\"\")","v":"-011900"}]
[null,null,null,{"$f":"IF(AvailabilityTable[[#This Row],[Name]]&\"-\"&RIGHT(\"0\"&WEEKNUM(AvailabilityTable[[#This Row],[Date]],2)-Start_week,2)<>\"-0-\",AvailabilityTable[[#This Row],[Name]]&\"-\"&RIGHT(\"0\"&WEEKNUM(AvailabilityTable[[#This Row],[Date]],2)-Start_week,2)&YEAR(AvailabilityTable[[#This Row],[Date]]),\"\")","v":"-011900"}]
[null,null,null,{"$f":"IF(AvailabilityTable[[#This Row],[Name]]&\"-\"&RIGHT(\"0\"&WEEKNUM(AvailabilityTable[[#This Row],[Date]],2)-Start_week,2)<>\"-0-\",AvailabilityTable[[#This Row],[Name]]&\"-\"&RIGHT(\"0\"&WEEKNUM(AvailabilityTable[[#This Row],[Date]],2)-Start_week,2)&YEAR(AvailabilityTable[[#This Row],[Date]]),\"\")","v":"-011900"}]
[null,null,null,{"$f":"IF(AvailabilityTable[[#This Row],[Name]]&\"-\"&RIGHT(\"0\"&WEEKNUM(AvailabilityTable[[#This Row],[Date]],2)-Start_week,2)<>\"-0-\",AvailabilityTable[[#This Row],[Name]]&\"-\"&RIGHT(\"0\"&WEEKNUM(AvailabilityTable[[#This Row],[Date]],2)-Start_week,2)&YEAR(AvailabilityTable[[#This Row],[Date]]),\"\")","v":"-011900"}]
[null,null,null,{"$f":"IF(AvailabilityTable[[#This Row],[Name]]&\"-\"&RIGHT(\"0\"&WEEKNUM(AvailabilityTable[[#This Row],[Date]],2)-Start_week,2)<>\"-0-\",AvailabilityTable[[#This Row],[Name]]&\"-\"&RIGHT(\"0\"&WEEKNUM(AvailabilityTable[[#This Row],[Date]],2)-Start_week,2)&YEAR(AvailabilityTable[[#This Row],[Date]]),\"\")","v":"-011900"}]
[null,null,null,{"$f":"IF(AvailabilityTable[[#This Row],[Name]]&\"-\"&RIGHT(\"0\"&WEEKNUM(AvailabilityTable[[#This Row],[Date]],2)-Start_week,2)<>\"-0-\",AvailabilityTable[[#This Row],[Name]]&\"-\"&RIGHT(\"0\"&WEEKNUM(AvailabilityTable[[#This Row],[Date]],2)-Start_week,2)&YEAR(AvailabilityTable[[#This Row],[Date]]),\"\")","v":"-011900"}]
[null,null,null,{"$f":"IF(AvailabilityTable[[#This Row],[Name]]&\"-\"&RIGHT(\"0\"&WEEKNUM(AvailabilityTable[[#This Row],[Date]],2)-Start_week,2)<>\"-0-\",AvailabilityTable[[#This Row],[Name]]&\"-\"&RIGHT(\"0\"&WEEKNUM(AvailabilityTable[[#This Row],[Date]],2)-Start_week,2)&YEAR(AvailabilityTable[[#This Row],[Date]]),\"\")","v":"-011900"}]
[null,null,null,{"$f":"IF(AvailabilityTable[[#This Row],[Name]]&\"-\"&RIGHT(\"0\"&WEEKNUM(AvailabilityTable[[#This Row],[Date]],2)-Start_week,2)<>\"-0-\",AvailabilityTable[[#This Row],[Name]]&\"-\"&RIGHT(\"0\"&WEEKNUM(AvailabilityTable[[#This Row],[Date]],2)-Start_week,2)&YEAR(AvailabilityTable[[#This Row],[Date]]),\"\")","v":"-011900"}]
[null,null,null,{"$f":"IF(AvailabilityTable[[#This Row],[Name]]&\"-\"&RIGHT(\"0\"&WEEKNUM(AvailabilityTable[[#This Row],[Date]],2)-Start_week,2)<>\"-0-\",AvailabilityTable[[#This Row],[Name]]&\"-\"&RIGHT(\"0\"&WEEKNUM(AvailabilityTable[[#This Row],[Date]],2)-Start_week,2)&YEAR(AvailabilityTable[[#This Row],[Date]]),\"\")","v":"-011900"}]
[null,null,null,{"$f":"IF(AvailabilityTable[[#This Row],[Name]]&\"-\"&RIGHT(\"0\"&WEEKNUM(AvailabilityTable[[#This Row],[Date]],2)-Start_week,2)<>\"-0-\",AvailabilityTable[[#This Row],[Name]]&\"-\"&RIGHT(\"0\"&WEEKNUM(AvailabilityTable[[#This Row],[Date]],2)-Start_week,2)&YEAR(AvailabilityTable[[#This Row],[Date]]),\"\")","v":"-011900"}]
[null,null,null,{"$f":"IF(AvailabilityTable[[#This Row],[Name]]&\"-\"&RIGHT(\"0\"&WEEKNUM(AvailabilityTable[[#This Row],[Date]],2)-Start_week,2)<>\"-0-\",AvailabilityTable[[#This Row],[Name]]&\"-\"&RIGHT(\"0\"&WEEKNUM(AvailabilityTable[[#This Row],[Date]],2)-Start_week,2)&YEAR(AvailabilityTable[[#This Row],[Date]]),\"\")","v":"-011900"}]
[null,null,null,{"$f":"IF(AvailabilityTable[[#This Row],[Name]]&\"-\"&RIGHT(\"0\"&WEEKNUM(AvailabilityTable[[#This Row],[Date]],2)-Start_week,2)<>\"-0-\",AvailabilityTable[[#This Row],[Name]]&\"-\"&RIGHT(\"0\"&WEEKNUM(AvailabilityTable[[#This Row],[Date]],2)-Start_week,2)&YEAR(AvailabilityTable[[#This Row],[Date]]),\"\")","v":"-011900"}]
[null,null,null,{"$f":"IF(AvailabilityTable[[#This Row],[Name]]&\"-\"&RIGHT(\"0\"&WEEKNUM(AvailabilityTable[[#This Row],[Date]],2)-Start_week,2)<>\"-0-\",AvailabilityTable[[#This Row],[Name]]&\"-\"&RIGHT(\"0\"&WEEKNUM(AvailabilityTable[[#This Row],[Date]],2)-Start_week,2)&YEAR(AvailabilityTable[[#This Row],[Date]]),\"\")","v":"-011900"}]
[null,null,null,{"$f":"IF(AvailabilityTable[[#This Row],[Name]]&\"-\"&RIGHT(\"0\"&WEEKNUM(AvailabilityTable[[#This Row],[Date]],2)-Start_week,2)<>\"-0-\",AvailabilityTable[[#This Row],[Name]]&\"-\"&RIGHT(\"0\"&WEEKNUM(AvailabilityTable[[#This Row],[Date]],2)-Start_week,2)&YEAR(AvailabilityTable[[#This Row],[Date]]),\"\")","v":"-011900"}]
[null,null,null,{"$f":"IF(AvailabilityTable[[#This Row],[Name]]&\"-\"&RIGHT(\"0\"&WEEKNUM(AvailabilityTable[[#This Row],[Date]],2)-Start_week,2)<>\"-0-\",AvailabilityTable[[#This Row],[Name]]&\"-\"&RIGHT(\"0\"&WEEKNUM(AvailabilityTable[[#This Row],[Date]],2)-Start_week,2)&YEAR(AvailabilityTable[[#This Row],[Date]]),\"\")","v":"-011900"}]
[null,null,null,{"$f":"IF(AvailabilityTable[[#This Row],[Name]]&\"-\"&RIGHT(\"0\"&WEEKNUM(AvailabilityTable[[#This Row],[Date]],2)-Start_week,2)<>\"-0-\",AvailabilityTable[[#This Row],[Name]]&\"-\"&RIGHT(\"0\"&WEEKNUM(AvailabilityTable[[#This Row],[Date]],2)-Start_week,2)&YEAR(AvailabilityTable[[#This Row],[Date]]),\"\")","v":"-011900"}]
[null,null,null,{"$f":"IF(AvailabilityTable[[#This Row],[Name]]&\"-\"&RIGHT(\"0\"&WEEKNUM(AvailabilityTable[[#This Row],[Date]],2)-Start_week,2)<>\"-0-\",AvailabilityTable[[#This Row],[Name]]&\"-\"&RIGHT(\"0\"&WEEKNUM(AvailabilityTable[[#This Row],[Date]],2)-Start_week,2)&YEAR(AvailabilityTable[[#This Row],[Date]]),\"\")","v":"-011900"}]
[null,null,null,{"$f":"IF(AvailabilityTable[[#This Row],[Name]]&\"-\"&RIGHT(\"0\"&WEEKNUM(AvailabilityTable[[#This Row],[Date]],2)-Start_week,2)<>\"-0-\",AvailabilityTable[[#This Row],[Name]]&\"-\"&RIGHT(\"0\"&WEEKNUM(AvailabilityTable[[#This Row],[Date]],2)-Start_week,2)&YEAR(AvailabilityTable[[#This Row],[Date]]),\"\")","v":"-011900"}]
[null,null,null,{"$f":"IF(AvailabilityTable[[#This Row],[Name]]&\"-\"&RIGHT(\"0\"&WEEKNUM(AvailabilityTable[[#This Row],[Date]],2)-Start_week,2)<>\"-0-\",AvailabilityTable[[#This Row],[Name]]&\"-\"&RIGHT(\"0\"&WEEKNUM(AvailabilityTable[[#This Row],[Date]],2)-Start_week,2)&YEAR(AvailabilityTable[[#This Row],[Date]]),\"\")","v":"-011900"}]
[null,null,null,{"$f":"IF(AvailabilityTable[[#This Row],[Name]]&\"-\"&RIGHT(\"0\"&WEEKNUM(AvailabilityTable[[#This Row],[Date]],2)-Start_week,2)<>\"-0-\",AvailabilityTable[[#This Row],[Name]]&\"-\"&RIGHT(\"0\"&WEEKNUM(AvailabilityTable[[#This Row],[Date]],2)-Start_week,2)&YEAR(AvailabilityTable[[#This Row],[Date]]),\"\")","v":"-011900"}]
[null,null,null,{"$f":"IF(AvailabilityTable[[#This Row],[Name]]&\"-\"&RIGHT(\"0\"&WEEKNUM(AvailabilityTable[[#This Row],[Date]],2)-Start_week,2)<>\"-0-\",AvailabilityTable[[#This Row],[Name]]&\"-\"&RIGHT(\"0\"&WEEKNUM(AvailabilityTable[[#This Row],[Date]],2)-Start_week,2)&YEAR(AvailabilityTable[[#This Row],[Date]]),\"\")","v":"-011900"}]
[null,null,null,{"$f":"IF(AvailabilityTable[[#This Row],[Name]]&\"-\"&RIGHT(\"0\"&WEEKNUM(AvailabilityTable[[#This Row],[Date]],2)-Start_week,2)<>\"-0-\",AvailabilityTable[[#This Row],[Name]]&\"-\"&RIGHT(\"0\"&WEEKNUM(AvailabilityTable[[#This Row],[Date]],2)-Start_week,2)&YEAR(AvailabilityTable[[#This Row],[Date]]),\"\")","v":"-011900"}]
[null,null,null,{"$f":"IF(AvailabilityTable[[#This Row],[Name]]&\"-\"&RIGHT(\"0\"&WEEKNUM(AvailabilityTable[[#This Row],[Date]],2)-Start_week,2)<>\"-0-\",AvailabilityTable[[#This Row],[Name]]&\"-\"&RIGHT(\"0\"&WEEKNUM(AvailabilityTable[[#This Row],[Date]],2)-Start_week,2)&YEAR(AvailabilityTable[[#This Row],[Date]]),\"\")","v":"-011900"}]
[null,null,null,{"$f":"IF(AvailabilityTable[[#This Row],[Name]]&\"-\"&RIGHT(\"0\"&WEEKNUM(AvailabilityTable[[#This Row],[Date]],2)-Start_week,2)<>\"-0-\",AvailabilityTable[[#This Row],[Name]]&\"-\"&RIGHT(\"0\"&WEEKNUM(AvailabilityTable[[#This Row],[Date]],2)-Start_week,2)&YEAR(AvailabilityTable[[#This Row],[Date]]),\"\")","v":"-011900"}]
[null,null,null,{"$f":"IF(AvailabilityTable[[#This Row],[Name]]&\"-\"&RIGHT(\"0\"&WEEKNUM(AvailabilityTable[[#This Row],[Date]],2)-Start_week,2)<>\"-0-\",AvailabilityTable[[#This Row],[Name]]&\"-\"&RIGHT(\"0\"&WEEKNUM(AvailabilityTable[[#This Row],[Date]],2)-Start_week,2)&YEAR(AvailabilityTable[[#This Row],[Date]]),\"\")","v":"-011900"}]
[null,null,null,{"$f":"IF(AvailabilityTable[[#This Row],[Name]]&\"-\"&RIGHT(\"0\"&WEEKNUM(AvailabilityTable[[#This Row],[Date]],2)-Start_week,2)<>\"-0-\",AvailabilityTable[[#This Row],[Name]]&\"-\"&RIGHT(\"0\"&WEEKNUM(AvailabilityTable[[#This Row],[Date]],2)-Start_week,2)&YEAR(AvailabilityTable[[#This Row],[Date]]),\"\")","v":"-011900"}]
[null,null,null,{"$f":"IF(AvailabilityTable[[#This Row],[Name]]&\"-\"&RIGHT(\"0\"&WEEKNUM(AvailabilityTable[[#This Row],[Date]],2)-Start_week,2)<>\"-0-\",AvailabilityTable[[#This Row],[Name]]&\"-\"&RIGHT(\"0\"&WEEKNUM(AvailabilityTable[[#This Row],[Date]],2)-Start_week,2)&YEAR(AvailabilityTable[[#This Row],[Date]]),\"\")","v":"-011900"}]
[null,null,null,{"$f":"IF(AvailabilityTable[[#This Row],[Name]]&\"-\"&RIGHT(\"0\"&WEEKNUM(AvailabilityTable[[#This Row],[Date]],2)-Start_week,2)<>\"-0-\",AvailabilityTable[[#This Row],[Name]]&\"-\"&RIGHT(\"0\"&WEEKNUM(AvailabilityTable[[#This Row],[Date]],2)-Start_week,2)&YEAR(AvailabilityTable[[#This Row],[Date]]),\"\")","v":"-011900"}]
[null,null,null,{"$f":"IF(AvailabilityTable[[#This Row],[Name]]&\"-\"&RIGHT(\"0\"&WEEKNUM(AvailabilityTable[[#This Row],[Date]],2)-Start_week,2)<>\"-0-\",AvailabilityTable[[#This Row],[Name]]&\"-\"&RIGHT(\"0\"&WEEKNUM(AvailabilityTable[[#This Row],[Date]],2)-Start_week,2)&YEAR(AvailabilityTable[[#This Row],[Date]]),\"\")","v":"-011900"}]
[null,null,null,{"$f":"IF(AvailabilityTable[[#This Row],[Name]]&\"-\"&RIGHT(\"0\"&WEEKNUM(AvailabilityTable[[#This Row],[Date]],2)-Start_week,2)<>\"-0-\",AvailabilityTable[[#This Row],[Name]]&\"-\"&RIGHT(\"0\"&WEEKNUM(AvailabilityTable[[#This Row],[Date]],2)-Start_week,2)&YEAR(AvailabilityTable[[#This Row],[Date]]),\"\")","v":"-011900"}]
[null,null,null,{"$f":"IF(AvailabilityTable[[#This Row],[Name]]&\"-\"&RIGHT(\"0\"&WEEKNUM(AvailabilityTable[[#This Row],[Date]],2)-Start_week,2)<>\"-0-\",AvailabilityTable[[#This Row],[Name]]&\"-\"&RIGHT(\"0\"&WEEKNUM(AvailabilityTable[[#This Row],[Date]],2)-Start_week,2)&YEAR(AvailabilityTable[[#This Row],[Date]]),\"\")","v":"-011900"}]
[null,null,null,{"$f":"IF(AvailabilityTable[[#This Row],[Name]]&\"-\"&RIGHT(\"0\"&WEEKNUM(AvailabilityTable[[#This Row],[Date]],2)-Start_week,2)<>\"-0-\",AvailabilityTable[[#This Row],[Name]]&\"-\"&RIGHT(\"0\"&WEEKNUM(AvailabilityTable[[#This Row],[Date]],2)-Start_week,2)&YEAR(AvailabilityTable[[#This Row],[Date]]),\"\")","v":"-011900"}]
[null,null,null,{"$f":"IF(AvailabilityTable[[#This Row],[Name]]&\"-\"&RIGHT(\"0\"&WEEKNUM(AvailabilityTable[[#This Row],[Date]],2)-Start_week,2)<>\"-0-\",AvailabilityTable[[#This Row],[Name]]&\"-\"&RIGHT(\"0\"&WEEKNUM(AvailabilityTable[[#This Row],[Date]],2)-Start_week,2)&YEAR(AvailabilityTable[[#This Row],[Date]]),\"\")","v":"-011900"}]
[null,null,null,{"$f":"IF(AvailabilityTable[[#This Row],[Name]]&\"-\"&RIGHT(\"0\"&WEEKNUM(AvailabilityTable[[#This Row],[Date]],2)-Start_week,2)<>\"-0-\",AvailabilityTable[[#This Row],[Name]]&\"-\"&RIGHT(\"0\"&WEEKNUM(AvailabilityTable[[#This Row],[Date]],2)-Start_week,2)&YEAR(AvailabilityTable[[#This Row],[Date]]),\"\")","v":"-011900"}]
[null,null,null,{"$f":"IF(AvailabilityTable[[#This Row],[Name]]&\"-\"&RIGHT(\"0\"&WEEKNUM(AvailabilityTable[[#This Row],[Date]],2)-Start_week,2)<>\"-0-\",AvailabilityTable[[#This Row],[Name]]&\"-\"&RIGHT(\"0\"&WEEKNUM(AvailabilityTable[[#This Row],[Date]],2)-Start_week,2)&YEAR(AvailabilityTable[[#This Row],[Date]]),\"\")","v":"-011900"}]
[null,null,null,{"$f":"IF(AvailabilityTable[[#This Row],[Name]]&\"-\"&RIGHT(\"0\"&WEEKNUM(AvailabilityTable[[#This Row],[Date]],2)-Start_week,2)<>\"-0-\",AvailabilityTable[[#This Row],[Name]]&\"-\"&RIGHT(\"0\"&WEEKNUM(AvailabilityTable[[#This Row],[Date]],2)-Start_week,2)&YEAR(AvailabilityTable[[#This Row],[Date]]),\"\")","v":"-011900"}]
[null,null,null,{"$f":"IF(AvailabilityTable[[#This Row],[Name]]&\"-\"&RIGHT(\"0\"&WEEKNUM(AvailabilityTable[[#This Row],[Date]],2)-Start_week,2)<>\"-0-\",AvailabilityTable[[#This Row],[Name]]&\"-\"&RIGHT(\"0\"&WEEKNUM(AvailabilityTable[[#This Row],[Date]],2)-Start_week,2)&YEAR(AvailabilityTable[[#This Row],[Date]]),\"\")","v":"-011900"}]
[null,null,null,{"$f":"IF(AvailabilityTable[[#This Row],[Name]]&\"-\"&RIGHT(\"0\"&WEEKNUM(AvailabilityTable[[#This Row],[Date]],2)-Start_week,2)<>\"-0-\",AvailabilityTable[[#This Row],[Name]]&\"-\"&RIGHT(\"0\"&WEEKNUM(AvailabilityTable[[#This Row],[Date]],2)-Start_week,2)&YEAR(AvailabilityTable[[#This Row],[Date]]),\"\")","v":"-011900"}]
[null,null,null,{"$f":"IF(AvailabilityTable[[#This Row],[Name]]&\"-\"&RIGHT(\"0\"&WEEKNUM(AvailabilityTable[[#This Row],[Date]],2)-Start_week,2)<>\"-0-\",AvailabilityTable[[#This Row],[Name]]&\"-\"&RIGHT(\"0\"&WEEKNUM(AvailabilityTable[[#This Row],[Date]],2)-Start_week,2)&YEAR(AvailabilityTable[[#This Row],[Date]]),\"\")","v":"-011900"}]
[null,null,null,{"$f":"IF(AvailabilityTable[[#This Row],[Name]]&\"-\"&RIGHT(\"0\"&WEEKNUM(AvailabilityTable[[#This Row],[Date]],2)-Start_week,2)<>\"-0-\",AvailabilityTable[[#This Row],[Name]]&\"-\"&RIGHT(\"0\"&WEEKNUM(AvailabilityTable[[#This Row],[Date]],2)-Start_week,2)&YEAR(AvailabilityTable[[#This Row],[Date]]),\"\")","v":"-011900"}]
[null,null,null,{"$f":"IF(AvailabilityTable[[#This Row],[Name]]&\"-\"&RIGHT(\"0\"&WEEKNUM(AvailabilityTable[[#This Row],[Date]],2)-Start_week,2)<>\"-0-\",AvailabilityTable[[#This Row],[Name]]&\"-\"&RIGHT(\"0\"&WEEKNUM(AvailabilityTable[[#This Row],[Date]],2)-Start_week,2)&YEAR(AvailabilityTable[[#This Row],[Date]]),\"\")","v":"-011900"}]
[null,null,null,{"$f":"IF(AvailabilityTable[[#This Row],[Name]]&\"-\"&RIGHT(\"0\"&WEEKNUM(AvailabilityTable[[#This Row],[Date]],2)-Start_week,2)<>\"-0-\",AvailabilityTable[[#This Row],[Name]]&\"-\"&RIGHT(\"0\"&WEEKNUM(AvailabilityTable[[#This Row],[Date]],2)-Start_week,2)&YEAR(AvailabilityTable[[#This Row],[Date]]),\"\")","v":"-011900"}]
[null,null,null,{"$f":"IF(AvailabilityTable[[#This Row],[Name]]&\"-\"&RIGHT(\"0\"&WEEKNUM(AvailabilityTable[[#This Row],[Date]],2)-Start_week,2)<>\"-0-\",AvailabilityTable[[#This Row],[Name]]&\"-\"&RIGHT(\"0\"&WEEKNUM(AvailabilityTable[[#This Row],[Date]],2)-Start_week,2)&YEAR(AvailabilityTable[[#This Row],[Date]]),\"\")","v":"-011900"}]
[null,null,null,{"$f":"IF(AvailabilityTable[[#This Row],[Name]]&\"-\"&RIGHT(\"0\"&WEEKNUM(AvailabilityTable[[#This Row],[Date]],2)-Start_week,2)<>\"-0-\",AvailabilityTable[[#This Row],[Name]]&\"-\"&RIGHT(\"0\"&WEEKNUM(AvailabilityTable[[#This Row],[Date]],2)-Start_week,2)&YEAR(AvailabilityTable[[#This Row],[Date]]),\"\")","v":"-011900"}]
[null,null,null,{"$f":"IF(AvailabilityTable[[#This Row],[Name]]&\"-\"&RIGHT(\"0\"&WEEKNUM(AvailabilityTable[[#This Row],[Date]],2)-Start_week,2)<>\"-0-\",AvailabilityTable[[#This Row],[Name]]&\"-\"&RIGHT(\"0\"&WEEKNUM(AvailabilityTable[[#This Row],[Date]],2)-Start_week,2)&YEAR(AvailabilityTable[[#This Row],[Date]]),\"\")","v":"-011900"}]
[null,null,null,{"$f":"IF(AvailabilityTable[[#This Row],[Name]]&\"-\"&RIGHT(\"0\"&WEEKNUM(AvailabilityTable[[#This Row],[Date]],2)-Start_week,2)<>\"-0-\",AvailabilityTable[[#This Row],[Name]]&\"-\"&RIGHT(\"0\"&WEEKNUM(AvailabilityTable[[#This Row],[Date]],2)-Start_week,2)&YEAR(AvailabilityTable[[#This Row],[Date]]),\"\")","v":"-011900"}]
[null,null,null,{"$f":"IF(AvailabilityTable[[#This Row],[Name]]&\"-\"&RIGHT(\"0\"&WEEKNUM(AvailabilityTable[[#This Row],[Date]],2)-Start_week,2)<>\"-0-\",AvailabilityTable[[#This Row],[Name]]&\"-\"&RIGHT(\"0\"&WEEKNUM(AvailabilityTable[[#This Row],[Date]],2)-Start_week,2)&YEAR(AvailabilityTable[[#This Row],[Date]]),\"\")","v":"-011900"}]
[null,null,null,{"$f":"IF(AvailabilityTable[[#This Row],[Name]]&\"-\"&RIGHT(\"0\"&WEEKNUM(AvailabilityTable[[#This Row],[Date]],2)-Start_week,2)<>\"-0-\",AvailabilityTable[[#This Row],[Name]]&\"-\"&RIGHT(\"0\"&WEEKNUM(AvailabilityTable[[#This Row],[Date]],2)-Start_week,2)&YEAR(AvailabilityTable[[#This Row],[Date]]),\"\")","v":"-011900"}]
[null,null,null,{"$f":"IF(AvailabilityTable[[#This Row],[Name]]&\"-\"&RIGHT(\"0\"&WEEKNUM(AvailabilityTable[[#This Row],[Date]],2)-Start_week,2)<>\"-0-\",AvailabilityTable[[#This Row],[Name]]&\"-\"&RIGHT(\"0\"&WEEKNUM(AvailabilityTable[[#This Row],[Date]],2)-Start_week,2)&YEAR(AvailabilityTable[[#This Row],[Date]]),\"\")","v":"-011900"}]
[null,null,null,{"$f":"IF(AvailabilityTable[[#This Row],[Name]]&\"-\"&RIGHT(\"0\"&WEEKNUM(AvailabilityTable[[#This Row],[Date]],2)-Start_week,2)<>\"-0-\",AvailabilityTable[[#This Row],[Name]]&\"-\"&RIGHT(\"0\"&WEEKNUM(AvailabilityTable[[#This Row],[Date]],2)-Start_week,2)&YEAR(AvailabilityTable[[#This Row],[Date]]),\"\")","v":"-011900"}]
[null,null,null,{"$f":"IF(AvailabilityTable[[#This Row],[Name]]&\"-\"&RIGHT(\"0\"&WEEKNUM(AvailabilityTable[[#This Row],[Date]],2)-Start_week,2)<>\"-0-\",AvailabilityTable[[#This Row],[Name]]&\"-\"&RIGHT(\"0\"&WEEKNUM(AvailabilityTable[[#This Row],[Date]],2)-Start_week,2)&YEAR(AvailabilityTable[[#This Row],[Date]]),\"\")","v":"-011900"}]
[null,null,null,{"$f":"IF(AvailabilityTable[[#This Row],[Name]]&\"-\"&RIGHT(\"0\"&WEEKNUM(AvailabilityTable[[#This Row],[Date]],2)-Start_week,2)<>\"-0-\",AvailabilityTable[[#This Row],[Name]]&\"-\"&RIGHT(\"0\"&WEEKNUM(AvailabilityTable[[#This Row],[Date]],2)-Start_week,2)&YEAR(AvailabilityTable[[#This Row],[Date]]),\"\")","v":"-011900"}]
[null,null,null,{"$f":"IF(AvailabilityTable[[#This Row],[Name]]&\"-\"&RIGHT(\"0\"&WEEKNUM(AvailabilityTable[[#This Row],[Date]],2)-Start_week,2)<>\"-0-\",AvailabilityTable[[#This Row],[Name]]&\"-\"&RIGHT(\"0\"&WEEKNUM(AvailabilityTable[[#This Row],[Date]],2)-Start_week,2)&YEAR(AvailabilityTable[[#This Row],[Date]]),\"\")","v":"-011900"}]
[null,null,null,{"$f":"IF(AvailabilityTable[[#This Row],[Name]]&\"-\"&RIGHT(\"0\"&WEEKNUM(AvailabilityTable[[#This Row],[Date]],2)-Start_week,2)<>\"-0-\",AvailabilityTable[[#This Row],[Name]]&\"-\"&RIGHT(\"0\"&WEEKNUM(AvailabilityTable[[#This Row],[Date]],2)-Start_week,2)&YEAR(AvailabilityTable[[#This Row],[Date]]),\"\")","v":"-011900"}]
[null,null,null,{"$f":"IF(AvailabilityTable[[#This Row],[Name]]&\"-\"&RIGHT(\"0\"&WEEKNUM(AvailabilityTable[[#This Row],[Date]],2)-Start_week,2)<>\"-0-\",AvailabilityTable[[#This Row],[Name]]&\"-\"&RIGHT(\"0\"&WEEKNUM(AvailabilityTable[[#This Row],[Date]],2)-Start_week,2)&YEAR(AvailabilityTable[[#This Row],[Date]]),\"\")","v":"-011900"}]
[null,null,null,{"$f":"IF(AvailabilityTable[[#This Row],[Name]]&\"-\"&RIGHT(\"0\"&WEEKNUM(AvailabilityTable[[#This Row],[Date]],2)-Start_week,2)<>\"-0-\",AvailabilityTable[[#This Row],[Name]]&\"-\"&RIGHT(\"0\"&WEEKNUM(AvailabilityTable[[#This Row],[Date]],2)-Start_week,2)&YEAR(AvailabilityTable[[#This Row],[Date]]),\"\")","v":"-011900"}]
[null,null,null,{"$f":"IF(AvailabilityTable[[#This Row],[Name]]&\"-\"&RIGHT(\"0\"&WEEKNUM(AvailabilityTable[[#This Row],[Date]],2)-Start_week,2)<>\"-0-\",AvailabilityTable[[#This Row],[Name]]&\"-\"&RIGHT(\"0\"&WEEKNUM(AvailabilityTable[[#This Row],[Date]],2)-Start_week,2)&YEAR(AvailabilityTable[[#This Row],[Date]]),\"\")","v":"-011900"}]
[null,null,null,{"$f":"IF(AvailabilityTable[[#This Row],[Name]]&\"-\"&RIGHT(\"0\"&WEEKNUM(AvailabilityTable[[#This Row],[Date]],2)-Start_week,2)<>\"-0-\",AvailabilityTable[[#This Row],[Name]]&\"-\"&RIGHT(\"0\"&WEEKNUM(AvailabilityTable[[#This Row],[Date]],2)-Start_week,2)&YEAR(AvailabilityTable[[#This Row],[Date]]),\"\")","v":"-011900"}]
[null,null,null,{"$f":"IF(AvailabilityTable[[#This Row],[Name]]&\"-\"&RIGHT(\"0\"&WEEKNUM(AvailabilityTable[[#This Row],[Date]],2)-Start_week,2)<>\"-0-\",AvailabilityTable[[#This Row],[Name]]&\"-\"&RIGHT(\"0\"&WEEKNUM(AvailabilityTable[[#This Row],[Date]],2)-Start_week,2)&YEAR(AvailabilityTable[[#This Row],[Date]]),\"\")","v":"-011900"}]
[null,null,null,{"$f":"IF(AvailabilityTable[[#This Row],[Name]]&\"-\"&RIGHT(\"0\"&WEEKNUM(AvailabilityTable[[#This Row],[Date]],2)-Start_week,2)<>\"-0-\",AvailabilityTable[[#This Row],[Name]]&\"-\"&RIGHT(\"0\"&WEEKNUM(AvailabilityTable[[#This Row],[Date]],2)-Start_week,2)&YEAR(AvailabilityTable[[#This Row],[Date]]),\"\")","v":"-011900"}]
[null,null,null,{"$f":"IF(AvailabilityTable[[#This Row],[Name]]&\"-\"&RIGHT(\"0\"&WEEKNUM(AvailabilityTable[[#This Row],[Date]],2)-Start_week,2)<>\"-0-\",AvailabilityTable[[#This Row],[Name]]&\"-\"&RIGHT(\"0\"&WEEKNUM(AvailabilityTable[[#This Row],[Date]],2)-Start_week,2)&YEAR(AvailabilityTable[[#This Row],[Date]]),\"\")","v":"-011900"}]
[null,null,null,{"$f":"IF(AvailabilityTable[[#This Row],[Name]]&\"-\"&RIGHT(\"0\"&WEEKNUM(AvailabilityTable[[#This Row],[Date]],2)-Start_week,2)<>\"-0-\",AvailabilityTable[[#This Row],[Name]]&\"-\"&RIGHT(\"0\"&WEEKNUM(AvailabilityTable[[#This Row],[Date]],2)-Start_week,2)&YEAR(AvailabilityTable[[#This Row],[Date]]),\"\")","v":"-011900"}]
[null,null,null,{"$f":"IF(AvailabilityTable[[#This Row],[Name]]&\"-\"&RIGHT(\"0\"&WEEKNUM(AvailabilityTable[[#This Row],[Date]],2)-Start_week,2)<>\"-0-\",AvailabilityTable[[#This Row],[Name]]&\"-\"&RIGHT(\"0\"&WEEKNUM(AvailabilityTable[[#This Row],[Date]],2)-Start_week,2)&YEAR(AvailabilityTable[[#This Row],[Date]]),\"\")","v":"-011900"}]
[null,null,null,{"$f":"IF(AvailabilityTable[[#This Row],[Name]]&\"-\"&RIGHT(\"0\"&WEEKNUM(AvailabilityTable[[#This Row],[Date]],2)-Start_week,2)<>\"-0-\",AvailabilityTable[[#This Row],[Name]]&\"-\"&RIGHT(\"0\"&WEEKNUM(AvailabilityTable[[#This Row],[Date]],2)-Start_week,2)&YEAR(AvailabilityTable[[#This Row],[Date]]),\"\")","v":"-011900"}]
[null,null,null,{"$f":"IF(AvailabilityTable[[#This Row],[Name]]&\"-\"&RIGHT(\"0\"&WEEKNUM(AvailabilityTable[[#This Row],[Date]],2)-Start_week,2)<>\"-0-\",AvailabilityTable[[#This Row],[Name]]&\"-\"&RIGHT(\"0\"&WEEKNUM(AvailabilityTable[[#This Row],[Date]],2)-Start_week,2)&YEAR(AvailabilityTable[[#This Row],[Date]]),\"\")","v":"-011900"}]
[null,null,null,{"$f":"IF(AvailabilityTable[[#This Row],[Name]]&\"-\"&RIGHT(\"0\"&WEEKNUM(AvailabilityTable[[#This Row],[Date]],2)-Start_week,2)<>\"-0-\",AvailabilityTable[[#This Row],[Name]]&\"-\"&RIGHT(\"0\"&WEEKNUM(AvailabilityTable[[#This Row],[Date]],2)-Start_week,2)&YEAR(AvailabilityTable[[#This Row],[Date]]),\"\")","v":"-011900"}]
[null,null,null,{"$f":"IF(AvailabilityTable[[#This Row],[Name]]&\"-\"&RIGHT(\"0\"&WEEKNUM(AvailabilityTable[[#This Row],[Date]],2)-Start_week,2)<>\"-0-\",AvailabilityTable[[#This Row],[Name]]&\"-\"&RIGHT(\"0\"&WEEKNUM(AvailabilityTable[[#This Row],[Date]],2)-Start_week,2)&YEAR(AvailabilityTable[[#This Row],[Date]]),\"\")","v":"-011900"}]
[null,null,null,{"$f":"IF(AvailabilityTable[[#This Row],[Name]]&\"-\"&RIGHT(\"0\"&WEEKNUM(AvailabilityTable[[#This Row],[Date]],2)-Start_week,2)<>\"-0-\",AvailabilityTable[[#This Row],[Name]]&\"-\"&RIGHT(\"0\"&WEEKNUM(AvailabilityTable[[#This Row],[Date]],2)-Start_week,2)&YEAR(AvailabilityTable[[#This Row],[Date]]),\"\")","v":"-011900"}]
[null,null,null,{"$f":"IF(AvailabilityTable[[#This Row],[Name]]&\"-\"&RIGHT(\"0\"&WEEKNUM(AvailabilityTable[[#This Row],[Date]],2)-Start_week,2)<>\"-0-\",AvailabilityTable[[#This Row],[Name]]&\"-\"&RIGHT(\"0\"&WEEKNUM(AvailabilityTable[[#This Row],[Date]],2)-Start_week,2)&YEAR(AvailabilityTable[[#This Row],[Date]]),\"\")","v":"-011900"}]
[null,null,null,{"$f":"IF(AvailabilityTable[[#This Row],[Name]]&\"-\"&RIGHT(\"0\"&WEEKNUM(AvailabilityTable[[#This Row],[Date]],2)-Start_week,2)<>\"-0-\",AvailabilityTable[[#This Row],[Name]]&\"-\"&RIGHT(\"0\"&WEEKNUM(AvailabilityTable[[#This Row],[Date]],2)-Start_week,2)&YEAR(AvailabilityTable[[#This Row],[Date]]),\"\")","v":"-011900"}]
[null,null,null,{"$f":"IF(AvailabilityTable[[#This Row],[Name]]&\"-\"&RIGHT(\"0\"&WEEKNUM(AvailabilityTable[[#This Row],[Date]],2)-Start_week,2)<>\"-0-\",AvailabilityTable[[#This Row],[Name]]&\"-\"&RIGHT(\"0\"&WEEKNUM(AvailabilityTable[[#This Row],[Date]],2)-Start_week,2)&YEAR(AvailabilityTable[[#This Row],[Date]]),\"\")","v":"-011900"}]
[null,null,null,{"$f":"IF(AvailabilityTable[[#This Row],[Name]]&\"-\"&RIGHT(\"0\"&WEEKNUM(AvailabilityTable[[#This Row],[Date]],2)-Start_week,2)<>\"-0-\",AvailabilityTable[[#This Row],[Name]]&\"-\"&RIGHT(\"0\"&WEEKNUM(AvailabilityTable[[#This Row],[Date]],2)-Start_week,2)&YEAR(AvailabilityTable[[#This Row],[Date]]),\"\")","v":"-011900"}]
[null,null,null,{"$f":"IF(AvailabilityTable[[#This Row],[Name]]&\"-\"&RIGHT(\"0\"&WEEKNUM(AvailabilityTable[[#This Row],[Date]],2)-Start_week,2)<>\"-0-\",AvailabilityTable[[#This Row],[Name]]&\"-\"&RIGHT(\"0\"&WEEKNUM(AvailabilityTable[[#This Row],[Date]],2)-Start_week,2)&YEAR(AvailabilityTable[[#This Row],[Date]]),\"\")","v":"-011900"}]
[null,null,null,{"$f":"IF(AvailabilityTable[[#This Row],[Name]]&\"-\"&RIGHT(\"0\"&WEEKNUM(AvailabilityTable[[#This Row],[Date]],2)-Start_week,2)<>\"-0-\",AvailabilityTable[[#This Row],[Name]]&\"-\"&RIGHT(\"0\"&WEEKNUM(AvailabilityTable[[#This Row],[Date]],2)-Start_week,2)&YEAR(AvailabilityTable[[#This Row],[Date]]),\"\")","v":"-011900"}]
[null,null,null,{"$f":"IF(AvailabilityTable[[#This Row],[Name]]&\"-\"&RIGHT(\"0\"&WEEKNUM(AvailabilityTable[[#This Row],[Date]],2)-Start_week,2)<>\"-0-\",AvailabilityTable[[#This Row],[Name]]&\"-\"&RIGHT(\"0\"&WEEKNUM(AvailabilityTable[[#This Row],[Date]],2)-Start_week,2)&YEAR(AvailabilityTable[[#This Row],[Date]]),\"\")","v":"-011900"}]
[null,null,null,{"$f":"IF(AvailabilityTable[[#This Row],[Name]]&\"-\"&RIGHT(\"0\"&WEEKNUM(AvailabilityTable[[#This Row],[Date]],2)-Start_week,2)<>\"-0-\",AvailabilityTable[[#This Row],[Name]]&\"-\"&RIGHT(\"0\"&WEEKNUM(AvailabilityTable[[#This Row],[Date]],2)-Start_week,2)&YEAR(AvailabilityTable[[#This Row],[Date]]),\"\")","v":"-011900"}]
[null,null,null,{"$f":"IF(AvailabilityTable[[#This Row],[Name]]&\"-\"&RIGHT(\"0\"&WEEKNUM(AvailabilityTable[[#This Row],[Date]],2)-Start_week,2)<>\"-0-\",AvailabilityTable[[#This Row],[Name]]&\"-\"&RIGHT(\"0\"&WEEKNUM(AvailabilityTable[[#This Row],[Date]],2)-Start_week,2)&YEAR(AvailabilityTable[[#This Row],[Date]]),\"\")","v":"-011900"}]
[null,null,null,{"$f":"IF(AvailabilityTable[[#This Row],[Name]]&\"-\"&RIGHT(\"0\"&WEEKNUM(AvailabilityTable[[#This Row],[Date]],2)-Start_week,2)<>\"-0-\",AvailabilityTable[[#This Row],[Name]]&\"-\"&RIGHT(\"0\"&WEEKNUM(AvailabilityTable[[#This Row],[Date]],2)-Start_week,2)&YEAR(AvailabilityTable[[#This Row],[Date]]),\"\")","v":"-011900"}]
[null,null,null,{"$f":"IF(AvailabilityTable[[#This Row],[Name]]&\"-\"&RIGHT(\"0\"&WEEKNUM(AvailabilityTable[[#This Row],[Date]],2)-Start_week,2)<>\"-0-\",AvailabilityTable[[#This Row],[Name]]&\"-\"&RIGHT(\"0\"&WEEKNUM(AvailabilityTable[[#This Row],[Date]],2)-Start_week,2)&YEAR(AvailabilityTable[[#This Row],[Date]]),\"\")","v":"-011900"}]
[null,null,null,{"$f":"IF(AvailabilityTable[[#This Row],[Name]]&\"-\"&RIGHT(\"0\"&WEEKNUM(AvailabilityTable[[#This Row],[Date]],2)-Start_week,2)<>\"-0-\",AvailabilityTable[[#This Row],[Name]]&\"-\"&RIGHT(\"0\"&WEEKNUM(AvailabilityTable[[#This Row],[Date]],2)-Start_week,2)&YEAR(AvailabilityTable[[#This Row],[Date]]),\"\")","v":"-011900"}]
[null,null,null,{"$f":"IF(AvailabilityTable[[#This Row],[Name]]&\"-\"&RIGHT(\"0\"&WEEKNUM(AvailabilityTable[[#This Row],[Date]],2)-Start_week,2)<>\"-0-\",AvailabilityTable[[#This Row],[Name]]&\"-\"&RIGHT(\"0\"&WEEKNUM(AvailabilityTable[[#This Row],[Date]],2)-Start_week,2)&YEAR(AvailabilityTable[[#This Row],[Date]]),\"\")","v":"-011900"}]
[null,null,null,{"$f":"IF(AvailabilityTable[[#This Row],[Name]]&\"-\"&RIGHT(\"0\"&WEEKNUM(AvailabilityTable[[#This Row],[Date]],2)-Start_week,2)<>\"-0-\",AvailabilityTable[[#This Row],[Name]]&\"-\"&RIGHT(\"0\"&WEEKNUM(AvailabilityTable[[#This Row],[Date]],2)-Start_week,2)&YEAR(AvailabilityTable[[#This Row],[Date]]),\"\")","v":"-011900"}]
[null,null,null,{"$f":"IF(AvailabilityTable[[#This Row],[Name]]&\"-\"&RIGHT(\"0\"&WEEKNUM(AvailabilityTable[[#This Row],[Date]],2)-Start_week,2)<>\"-0-\",AvailabilityTable[[#This Row],[Name]]&\"-\"&RIGHT(\"0\"&WEEKNUM(AvailabilityTable[[#This Row],[Date]],2)-Start_week,2)&YEAR(AvailabilityTable[[#This Row],[Date]]),\"\")","v":"-011900"}]
[null,null,null,{"$f":"IF(AvailabilityTable[[#This Row],[Name]]&\"-\"&RIGHT(\"0\"&WEEKNUM(AvailabilityTable[[#This Row],[Date]],2)-Start_week,2)<>\"-0-\",AvailabilityTable[[#This Row],[Name]]&\"-\"&RIGHT(\"0\"&WEEKNUM(AvailabilityTable[[#This Row],[Date]],2)-Start_week,2)&YEAR(AvailabilityTable[[#This Row],[Date]]),\"\")","v":"-011900"}]
[null,null,null,{"$f":"IF(AvailabilityTable[[#This Row],[Name]]&\"-\"&RIGHT(\"0\"&WEEKNUM(AvailabilityTable[[#This Row],[Date]],2)-Start_week,2)<>\"-0-\",AvailabilityTable[[#This Row],[Name]]&\"-\"&RIGHT(\"0\"&WEEKNUM(AvailabilityTable[[#This Row],[Date]],2)-Start_week,2)&YEAR(AvailabilityTable[[#This Row],[Date]]),\"\")","v":"-011900"}]
[null,null,null,{"$f":"IF(AvailabilityTable[[#This Row],[Name]]&\"-\"&RIGHT(\"0\"&WEEKNUM(AvailabilityTable[[#This Row],[Date]],2)-Start_week,2)<>\"-0-\",AvailabilityTable[[#This Row],[Name]]&\"-\"&RIGHT(\"0\"&WEEKNUM(AvailabilityTable[[#This Row],[Date]],2)-Start_week,2)&YEAR(AvailabilityTable[[#This Row],[Date]]),\"\")","v":"-011900"}]
[null,null,null,{"$f":"IF(AvailabilityTable[[#This Row],[Name]]&\"-\"&RIGHT(\"0\"&WEEKNUM(AvailabilityTable[[#This Row],[Date]],2)-Start_week,2)<>\"-0-\",AvailabilityTable[[#This Row],[Name]]&\"-\"&RIGHT(\"0\"&WEEKNUM(AvailabilityTable[[#This Row],[Date]],2)-Start_week,2)&YEAR(AvailabilityTable[[#This Row],[Date]]),\"\")","v":"-011900"}]
[null,null,null,{"$f":"IF(AvailabilityTable[[#This Row],[Name]]&\"-\"&RIGHT(\"0\"&WEEKNUM(AvailabilityTable[[#This Row],[Date]],2)-Start_week,2)<>\"-0-\",AvailabilityTable[[#This Row],[Name]]&\"-\"&RIGHT(\"0\"&WEEKNUM(AvailabilityTable[[#This Row],[Date]],2)-Start_week,2)&YEAR(AvailabilityTable[[#This Row],[Date]]),\"\")","v":"-011900"}]
[null,null,null,{"$f":"IF(AvailabilityTable[[#This Row],[Name]]&\"-\"&RIGHT(\"0\"&WEEKNUM(AvailabilityTable[[#This Row],[Date]],2)-Start_week,2)<>\"-0-\",AvailabilityTable[[#This Row],[Name]]&\"-\"&RIGHT(\"0\"&WEEKNUM(AvailabilityTable[[#This Row],[Date]],2)-Start_week,2)&YEAR(AvailabilityTable[[#This Row],[Date]]),\"\")","v":"-011900"}]
[null,null,null,{"$f":"IF(AvailabilityTable[[#This Row],[Name]]&\"-\"&RIGHT(\"0\"&WEEKNUM(AvailabilityTable[[#This Row],[Date]],2)-Start_week,2)<>\"-0-\",AvailabilityTable[[#This Row],[Name]]&\"-\"&RIGHT(\"0\"&WEEKNUM(AvailabilityTable[[#This Row],[Date]],2)-Start_week,2)&YEAR(AvailabilityTable[[#This Row],[Date]]),\"\")","v":"-011900"}]
[null,null,null,{"$f":"IF(AvailabilityTable[[#This Row],[Name]]&\"-\"&RIGHT(\"0\"&WEEKNUM(AvailabilityTable[[#This Row],[Date]],2)-Start_week,2)<>\"-0-\",AvailabilityTable[[#This Row],[Name]]&\"-\"&RIGHT(\"0\"&WEEKNUM(AvailabilityTable[[#This Row],[Date]],2)-Start_week,2)&YEAR(AvailabilityTable[[#This Row],[Date]]),\"\")","v":"-011900"}]
[null,null,null,{"$f":"IF(AvailabilityTable[[#This Row],[Name]]&\"-\"&RIGHT(\"0\"&WEEKNUM(AvailabilityTable[[#This Row],[Date]],2)-Start_week,2)<>\"-0-\",AvailabilityTable[[#This Row],[Name]]&\"-\"&RIGHT(\"0\"&WEEKNUM(AvailabilityTable[[#This Row],[Date]],2)-Start_week,2)&YEAR(AvailabilityTable[[#This Row],[Date]]),\"\")","v":"-011900"}]
[null,null,null,{"$f":"IF(AvailabilityTable[[#This Row],[Name]]&\"-\"&RIGHT(\"0\"&WEEKNUM(AvailabilityTable[[#This Row],[Date]],2)-Start_week,2)<>\"-0-\",AvailabilityTable[[#This Row],[Name]]&\"-\"&RIGHT(\"0\"&WEEKNUM(AvailabilityTable[[#This Row],[Date]],2)-Start_week,2)&YEAR(AvailabilityTable[[#This Row],[Date]]),\"\")","v":"-011900"}]
[null,null,null,{"$f":"IF(AvailabilityTable[[#This Row],[Name]]&\"-\"&RIGHT(\"0\"&WEEKNUM(AvailabilityTable[[#This Row],[Date]],2)-Start_week,2)<>\"-0-\",AvailabilityTable[[#This Row],[Name]]&\"-\"&RIGHT(\"0\"&WEEKNUM(AvailabilityTable[[#This Row],[Date]],2)-Start_week,2)&YEAR(AvailabilityTable[[#This Row],[Date]]),\"\")","v":"-011900"}]
[null,null,null,{"$f":"IF(AvailabilityTable[[#This Row],[Name]]&\"-\"&RIGHT(\"0\"&WEEKNUM(AvailabilityTable[[#This Row],[Date]],2)-Start_week,2)<>\"-0-\",AvailabilityTable[[#This Row],[Name]]&\"-\"&RIGHT(\"0\"&WEEKNUM(AvailabilityTable[[#This Row],[Date]],2)-Start_week,2)&YEAR(AvailabilityTable[[#This Row],[Date]]),\"\")","v":"-011900"}]
[null,null,null,{"$f":"IF(AvailabilityTable[[#This Row],[Name]]&\"-\"&RIGHT(\"0\"&WEEKNUM(AvailabilityTable[[#This Row],[Date]],2)-Start_week,2)<>\"-0-\",AvailabilityTable[[#This Row],[Name]]&\"-\"&RIGHT(\"0\"&WEEKNUM(AvailabilityTable[[#This Row],[Date]],2)-Start_week,2)&YEAR(AvailabilityTable[[#This Row],[Date]]),\"\")","v":"-011900"}]
[null,null,null,{"$f":"IF(AvailabilityTable[[#This Row],[Name]]&\"-\"&RIGHT(\"0\"&WEEKNUM(AvailabilityTable[[#This Row],[Date]],2)-Start_week,2)<>\"-0-\",AvailabilityTable[[#This Row],[Name]]&\"-\"&RIGHT(\"0\"&WEEKNUM(AvailabilityTable[[#This Row],[Date]],2)-Start_week,2)&YEAR(AvailabilityTable[[#This Row],[Date]]),\"\")","v":"-011900"}]
[null,null,null,{"$f":"IF(AvailabilityTable[[#This Row],[Name]]&\"-\"&RIGHT(\"0\"&WEEKNUM(AvailabilityTable[[#This Row],[Date]],2)-Start_week,2)<>\"-0-\",AvailabilityTable[[#This Row],[Name]]&\"-\"&RIGHT(\"0\"&WEEKNUM(AvailabilityTable[[#This Row],[Date]],2)-Start_week,2)&YEAR(AvailabilityTable[[#This Row],[Date]]),\"\")","v":"-011900"}]
[null,null,null,{"$f":"IF(AvailabilityTable[[#This Row],[Name]]&\"-\"&RIGHT(\"0\"&WEEKNUM(AvailabilityTable[[#This Row],[Date]],2)-Start_week,2)<>\"-0-\",AvailabilityTable[[#This Row],[Name]]&\"-\"&RIGHT(\"0\"&WEEKNUM(AvailabilityTable[[#This Row],[Date]],2)-Start_week,2)&YEAR(AvailabilityTable[[#This Row],[Date]]),\"\")","v":"-011900"}]
[null,null,null,{"$f":"IF(AvailabilityTable[[#This Row],[Name]]&\"-\"&RIGHT(\"0\"&WEEKNUM(AvailabilityTable[[#This Row],[Date]],2)-Start_week,2)<>\"-0-\",AvailabilityTable[[#This Row],[Name]]&\"-\"&RIGHT(\"0\"&WEEKNUM(AvailabilityTable[[#This Row],[Date]],2)-Start_week,2)&YEAR(AvailabilityTable[[#This Row],[Date]]),\"\")","v":"-011900"}]
[null,null,null,{"$f":"IF(AvailabilityTable[[#This Row],[Name]]&\"-\"&RIGHT(\"0\"&WEEKNUM(AvailabilityTable[[#This Row],[Date]],2)-Start_week,2)<>\"-0-\",AvailabilityTable[[#This Row],[Name]]&\"-\"&RIGHT(\"0\"&WEEKNUM(AvailabilityTable[[#This Row],[Date]],2)-Start_week,2)&YEAR(AvailabilityTable[[#This Row],[Date]]),\"\")","v":"-011900"}]
[null,null,null,{"$f":"IF(AvailabilityTable[[#This Row],[Name]]&\"-\"&RIGHT(\"0\"&WEEKNUM(AvailabilityTable[[#This Row],[Date]],2)-Start_week,2)<>\"-0-\",AvailabilityTable[[#This Row],[Name]]&\"-\"&RIGHT(\"0\"&WEEKNUM(AvailabilityTable[[#This Row],[Date]],2)-Start_week,2)&YEAR(AvailabilityTable[[#This Row],[Date]]),\"\")","v":"-011900"}]
[null,null,null,{"$f":"IF(AvailabilityTable[[#This Row],[Name]]&\"-\"&RIGHT(\"0\"&WEEKNUM(AvailabilityTable[[#This Row],[Date]],2)-Start_week,2)<>\"-0-\",AvailabilityTable[[#This Row],[Name]]&\"-\"&RIGHT(\"0\"&WEEKNUM(AvailabilityTable[[#This Row],[Date]],2)-Start_week,2)&YEAR(AvailabilityTable[[#This Row],[Date]]),\"\")","v":"-011900"}]
[null,null,null,{"$f":"IF(AvailabilityTable[[#This Row],[Name]]&\"-\"&RIGHT(\"0\"&WEEKNUM(AvailabilityTable[[#This Row],[Date]],2)-Start_week,2)<>\"-0-\",AvailabilityTable[[#This Row],[Name]]&\"-\"&RIGHT(\"0\"&WEEKNUM(AvailabilityTable[[#This Row],[Date]],2)-Start_week,2)&YEAR(AvailabilityTable[[#This Row],[Date]]),\"\")","v":"-011900"}]
[null,null,null,{"$f":"IF(AvailabilityTable[[#This Row],[Name]]&\"-\"&RIGHT(\"0\"&WEEKNUM(AvailabilityTable[[#This Row],[Date]],2)-Start_week,2)<>\"-0-\",AvailabilityTable[[#This Row],[Name]]&\"-\"&RIGHT(\"0\"&WEEKNUM(AvailabilityTable[[#This Row],[Date]],2)-Start_week,2)&YEAR(AvailabilityTable[[#This Row],[Date]]),\"\")","v":"-011900"}]
[null,null,null,{"$f":"IF(AvailabilityTable[[#This Row],[Name]]&\"-\"&RIGHT(\"0\"&WEEKNUM(AvailabilityTable[[#This Row],[Date]],2)-Start_week,2)<>\"-0-\",AvailabilityTable[[#This Row],[Name]]&\"-\"&RIGHT(\"0\"&WEEKNUM(AvailabilityTable[[#This Row],[Date]],2)-Start_week,2)&YEAR(AvailabilityTable[[#This Row],[Date]]),\"\")","v":"-011900"}]
[null,null,null,{"$f":"IF(AvailabilityTable[[#This Row],[Name]]&\"-\"&RIGHT(\"0\"&WEEKNUM(AvailabilityTable[[#This Row],[Date]],2)-Start_week,2)<>\"-0-\",AvailabilityTable[[#This Row],[Name]]&\"-\"&RIGHT(\"0\"&WEEKNUM(AvailabilityTable[[#This Row],[Date]],2)-Start_week,2)&YEAR(AvailabilityTable[[#This Row],[Date]]),\"\")","v":"-011900"}]
[null,null,null,{"$f":"IF(AvailabilityTable[[#This Row],[Name]]&\"-\"&RIGHT(\"0\"&WEEKNUM(AvailabilityTable[[#This Row],[Date]],2)-Start_week,2)<>\"-0-\",AvailabilityTable[[#This Row],[Name]]&\"-\"&RIGHT(\"0\"&WEEKNUM(AvailabilityTable[[#This Row],[Date]],2)-Start_week,2)&YEAR(AvailabilityTable[[#This Row],[Date]]),\"\")","v":"-011900"}]
[null,null,null,{"$f":"IF(AvailabilityTable[[#This Row],[Name]]&\"-\"&RIGHT(\"0\"&WEEKNUM(AvailabilityTable[[#This Row],[Date]],2)-Start_week,2)<>\"-0-\",AvailabilityTable[[#This Row],[Name]]&\"-\"&RIGHT(\"0\"&WEEKNUM(AvailabilityTable[[#This Row],[Date]],2)-Start_week,2)&YEAR(AvailabilityTable[[#This Row],[Date]]),\"\")","v":"-011900"}]
[null,null,null,{"$f":"IF(AvailabilityTable[[#This Row],[Name]]&\"-\"&RIGHT(\"0\"&WEEKNUM(AvailabilityTable[[#This Row],[Date]],2)-Start_week,2)<>\"-0-\",AvailabilityTable[[#This Row],[Name]]&\"-\"&RIGHT(\"0\"&WEEKNUM(AvailabilityTable[[#This Row],[Date]],2)-Start_week,2)&YEAR(AvailabilityTable[[#This Row],[Date]]),\"\")","v":"-011900"}]
[null,null,null,{"$f":"IF(AvailabilityTable[[#This Row],[Name]]&\"-\"&RIGHT(\"0\"&WEEKNUM(AvailabilityTable[[#This Row],[Date]],2)-Start_week,2)<>\"-0-\",AvailabilityTable[[#This Row],[Name]]&\"-\"&RIGHT(\"0\"&WEEKNUM(AvailabilityTable[[#This Row],[Date]],2)-Start_week,2)&YEAR(AvailabilityTable[[#This Row],[Date]]),\"\")","v":"-011900"}]
[null,null,null,{"$f":"IF(AvailabilityTable[[#This Row],[Name]]&\"-\"&RIGHT(\"0\"&WEEKNUM(AvailabilityTable[[#This Row],[Date]],2)-Start_week,2)<>\"-0-\",AvailabilityTable[[#This Row],[Name]]&\"-\"&RIGHT(\"0\"&WEEKNUM(AvailabilityTable[[#This Row],[Date]],2)-Start_week,2)&YEAR(AvailabilityTable[[#This Row],[Date]]),\"\")","v":"-011900"}]
[null,null,null,{"$f":"IF(AvailabilityTable[[#This Row],[Name]]&\"-\"&RIGHT(\"0\"&WEEKNUM(AvailabilityTable[[#This Row],[Date]],2)-Start_week,2)<>\"-0-\",AvailabilityTable[[#This Row],[Name]]&\"-\"&RIGHT(\"0\"&WEEKNUM(AvailabilityTable[[#This Row],[Date]],2)-Start_week,2)&YEAR(AvailabilityTable[[#This Row],[Date]]),\"\")","v":"-011900"}]
[null,null,null,{"$f":"IF(AvailabilityTable[[#This Row],[Name]]&\"-\"&RIGHT(\"0\"&WEEKNUM(AvailabilityTable[[#This Row],[Date]],2)-Start_week,2)<>\"-0-\",AvailabilityTable[[#This Row],[Name]]&\"-\"&RIGHT(\"0\"&WEEKNUM(AvailabilityTable[[#This Row],[Date]],2)-Start_week,2)&YEAR(AvailabilityTable[[#This Row],[Date]]),\"\")","v":"-011900"}]
[null,null,null,{"$f":"IF(AvailabilityTable[[#This Row],[Name]]&\"-\"&RIGHT(\"0\"&WEEKNUM(AvailabilityTable[[#This Row],[Date]],2)-Start_week,2)<>\"-0-\",AvailabilityTable[[#This Row],[Name]]&\"-\"&RIGHT(\"0\"&WEEKNUM(AvailabilityTable[[#This Row],[Date]],2)-Start_week,2)&YEAR(AvailabilityTable[[#This Row],[Date]]),\"\")","v":"-011900"}]
[null,null,null,{"$f":"IF(AvailabilityTable[[#This Row],[Name]]&\"-\"&RIGHT(\"0\"&WEEKNUM(AvailabilityTable[[#This Row],[Date]],2)-Start_week,2)<>\"-0-\",AvailabilityTable[[#This Row],[Name]]&\"-\"&RIGHT(\"0\"&WEEKNUM(AvailabilityTable[[#This Row],[Date]],2)-Start_week,2)&YEAR(AvailabilityTable[[#This Row],[Date]]),\"\")","v":"-011900"}]
[null,null,null,{"$f":"IF(AvailabilityTable[[#This Row],[Name]]&\"-\"&RIGHT(\"0\"&WEEKNUM(AvailabilityTable[[#This Row],[Date]],2)-Start_week,2)<>\"-0-\",AvailabilityTable[[#This Row],[Name]]&\"-\"&RIGHT(\"0\"&WEEKNUM(AvailabilityTable[[#This Row],[Date]],2)-Start_week,2)&YEAR(AvailabilityTable[[#This Row],[Date]]),\"\")","v":"-011900"}]
[null,null,null,{"$f":"IF(AvailabilityTable[[#This Row],[Name]]&\"-\"&RIGHT(\"0\"&WEEKNUM(AvailabilityTable[[#This Row],[Date]],2)-Start_week,2)<>\"-0-\",AvailabilityTable[[#This Row],[Name]]&\"-\"&RIGHT(\"0\"&WEEKNUM(AvailabilityTable[[#This Row],[Date]],2)-Start_week,2)&YEAR(AvailabilityTable[[#This Row],[Date]]),\"\")","v":"-011900"}]
[null,null,null,{"$f":"IF(AvailabilityTable[[#This Row],[Name]]&\"-\"&RIGHT(\"0\"&WEEKNUM(AvailabilityTable[[#This Row],[Date]],2)-Start_week,2)<>\"-0-\",AvailabilityTable[[#This Row],[Name]]&\"-\"&RIGHT(\"0\"&WEEKNUM(AvailabilityTable[[#This Row],[Date]],2)-Start_week,2)&YEAR(AvailabilityTable[[#This Row],[Date]]),\"\")","v":"-011900"}]
[null,null,null,{"$f":"IF(AvailabilityTable[[#This Row],[Name]]&\"-\"&RIGHT(\"0\"&WEEKNUM(AvailabilityTable[[#This Row],[Date]],2)-Start_week,2)<>\"-0-\",AvailabilityTable[[#This Row],[Name]]&\"-\"&RIGHT(\"0\"&WEEKNUM(AvailabilityTable[[#This Row],[Date]],2)-Start_week,2)&YEAR(AvailabilityTable[[#This Row],[Date]]),\"\")","v":"-011900"}]
[null,null,null,{"$f":"IF(AvailabilityTable[[#This Row],[Name]]&\"-\"&RIGHT(\"0\"&WEEKNUM(AvailabilityTable[[#This Row],[Date]],2)-Start_week,2)<>\"-0-\",AvailabilityTable[[#This Row],[Name]]&\"-\"&RIGHT(\"0\"&WEEKNUM(AvailabilityTable[[#This Row],[Date]],2)-Start_week,2)&YEAR(AvailabilityTable[[#This Row],[Date]]),\"\")","v":"-011900"}]
[null,null,null,{"$f":"IF(AvailabilityTable[[#This Row],[Name]]&\"-\"&RIGHT(\"0\"&WEEKNUM(AvailabilityTable[[#This Row],[Date]],2)-Start_week,2)<>\"-0-\",AvailabilityTable[[#This Row],[Name]]&\"-\"&RIGHT(\"0\"&WEEKNUM(AvailabilityTable[[#This Row],[Date]],2)-Start_week,2)&YEAR(AvailabilityTable[[#This Row],[Date]]),\"\")","v":"-011900"}]
[null,null,null,{"$f":"IF(AvailabilityTable[[#This Row],[Name]]&\"-\"&RIGHT(\"0\"&WEEKNUM(AvailabilityTable[[#This Row],[Date]],2)-Start_week,2)<>\"-0-\",AvailabilityTable[[#This Row],[Name]]&\"-\"&RIGHT(\"0\"&WEEKNUM(AvailabilityTable[[#This Row],[Date]],2)-Start_week,2)&YEAR(AvailabilityTable[[#This Row],[Date]]),\"\")","v":"-011900"}]
[null,null,null,{"$f":"IF(AvailabilityTable[[#This Row],[Name]]&\"-\"&RIGHT(\"0\"&WEEKNUM(AvailabilityTable[[#This Row],[Date]],2)-Start_week,2)<>\"-0-\",AvailabilityTable[[#This Row],[Name]]&\"-\"&RIGHT(\"0\"&WEEKNUM(AvailabilityTable[[#This Row],[Date]],2)-Start_week,2)&YEAR(AvailabilityTable[[#This Row],[Date]]),\"\")","v":"-011900"}]
[null,null,null,{"$f":"IF(AvailabilityTable[[#This Row],[Name]]&\"-\"&RIGHT(\"0\"&WEEKNUM(AvailabilityTable[[#This Row],[Date]],2)-Start_week,2)<>\"-0-\",AvailabilityTable[[#This Row],[Name]]&\"-\"&RIGHT(\"0\"&WEEKNUM(AvailabilityTable[[#This Row],[Date]],2)-Start_week,2)&YEAR(AvailabilityTable[[#This Row],[Date]]),\"\")","v":"-011900"}]
[null,null,null,{"$f":"IF(AvailabilityTable[[#This Row],[Name]]&\"-\"&RIGHT(\"0\"&WEEKNUM(AvailabilityTable[[#This Row],[Date]],2)-Start_week,2)<>\"-0-\",AvailabilityTable[[#This Row],[Name]]&\"-\"&RIGHT(\"0\"&WEEKNUM(AvailabilityTable[[#This Row],[Date]],2)-Start_week,2)&YEAR(AvailabilityTable[[#This Row],[Date]]),\"\")","v":"-011900"}]
[null,null,null,{"$f":"IF(AvailabilityTable[[#This Row],[Name]]&\"-\"&RIGHT(\"0\"&WEEKNUM(AvailabilityTable[[#This Row],[Date]],2)-Start_week,2)<>\"-0-\",AvailabilityTable[[#This Row],[Name]]&\"-\"&RIGHT(\"0\"&WEEKNUM(AvailabilityTable[[#This Row],[Date]],2)-Start_week,2)&YEAR(AvailabilityTable[[#This Row],[Date]]),\"\")","v":"-011900"}]
[null,null,null,{"$f":"IF(AvailabilityTable[[#This Row],[Name]]&\"-\"&RIGHT(\"0\"&WEEKNUM(AvailabilityTable[[#This Row],[Date]],2)-Start_week,2)<>\"-0-\",AvailabilityTable[[#This Row],[Name]]&\"-\"&RIGHT(\"0\"&WEEKNUM(AvailabilityTable[[#This Row],[Date]],2)-Start_week,2)&YEAR(AvailabilityTable[[#This Row],[Date]]),\"\")","v":"-011900"}]
[null,null,null,{"$f":"IF(AvailabilityTable[[#This Row],[Name]]&\"-\"&RIGHT(\"0\"&WEEKNUM(AvailabilityTable[[#This Row],[Date]],2)-Start_week,2)<>\"-0-\",AvailabilityTable[[#This Row],[Name]]&\"-\"&RIGHT(\"0\"&WEEKNUM(AvailabilityTable[[#This Row],[Date]],2)-Start_week,2)&YEAR(AvailabilityTable[[#This Row],[Date]]),\"\")","v":"-011900"}]
[null,null,null,{"$f":"IF(AvailabilityTable[[#This Row],[Name]]&\"-\"&RIGHT(\"0\"&WEEKNUM(AvailabilityTable[[#This Row],[Date]],2)-Start_week,2)<>\"-0-\",AvailabilityTable[[#This Row],[Name]]&\"-\"&RIGHT(\"0\"&WEEKNUM(AvailabilityTable[[#This Row],[Date]],2)-Start_week,2)&YEAR(AvailabilityTable[[#This Row],[Date]]),\"\")","v":"-011900"}]
[null,null,null,{"$f":"IF(AvailabilityTable[[#This Row],[Name]]&\"-\"&RIGHT(\"0\"&WEEKNUM(AvailabilityTable[[#This Row],[Date]],2)-Start_week,2)<>\"-0-\",AvailabilityTable[[#This Row],[Name]]&\"-\"&RIGHT(\"0\"&WEEKNUM(AvailabilityTable[[#This Row],[Date]],2)-Start_week,2)&YEAR(AvailabilityTable[[#This Row],[Date]]),\"\")","v":"-011900"}]
[null,null,null,{"$f":"IF(AvailabilityTable[[#This Row],[Name]]&\"-\"&RIGHT(\"0\"&WEEKNUM(AvailabilityTable[[#This Row],[Date]],2)-Start_week,2)<>\"-0-\",AvailabilityTable[[#This Row],[Name]]&\"-\"&RIGHT(\"0\"&WEEKNUM(AvailabilityTable[[#This Row],[Date]],2)-Start_week,2)&YEAR(AvailabilityTable[[#This Row],[Date]]),\"\")","v":"-011900"}]
[null,null,null,{"$f":"IF(AvailabilityTable[[#This Row],[Name]]&\"-\"&RIGHT(\"0\"&WEEKNUM(AvailabilityTable[[#This Row],[Date]],2)-Start_week,2)<>\"-0-\",AvailabilityTable[[#This Row],[Name]]&\"-\"&RIGHT(\"0\"&WEEKNUM(AvailabilityTable[[#This Row],[Date]],2)-Start_week,2)&YEAR(AvailabilityTable[[#This Row],[Date]]),\"\")","v":"-011900"}]
[null,null,null,{"$f":"IF(AvailabilityTable[[#This Row],[Name]]&\"-\"&RIGHT(\"0\"&WEEKNUM(AvailabilityTable[[#This Row],[Date]],2)-Start_week,2)<>\"-0-\",AvailabilityTable[[#This Row],[Name]]&\"-\"&RIGHT(\"0\"&WEEKNUM(AvailabilityTable[[#This Row],[Date]],2)-Start_week,2)&YEAR(AvailabilityTable[[#This Row],[Date]]),\"\")","v":"-011900"}]
[null,null,null,{"$f":"IF(AvailabilityTable[[#This Row],[Name]]&\"-\"&RIGHT(\"0\"&WEEKNUM(AvailabilityTable[[#This Row],[Date]],2)-Start_week,2)<>\"-0-\",AvailabilityTable[[#This Row],[Name]]&\"-\"&RIGHT(\"0\"&WEEKNUM(AvailabilityTable[[#This Row],[Date]],2)-Start_week,2)&YEAR(AvailabilityTable[[#This Row],[Date]]),\"\")","v":"-011900"}]
[null,null,null,{"$f":"IF(AvailabilityTable[[#This Row],[Name]]&\"-\"&RIGHT(\"0\"&WEEKNUM(AvailabilityTable[[#This Row],[Date]],2)-Start_week,2)<>\"-0-\",AvailabilityTable[[#This Row],[Name]]&\"-\"&RIGHT(\"0\"&WEEKNUM(AvailabilityTable[[#This Row],[Date]],2)-Start_week,2)&YEAR(AvailabilityTable[[#This Row],[Date]]),\"\")","v":"-011900"}]
[null,null,null,{"$f":"IF(AvailabilityTable[[#This Row],[Name]]&\"-\"&RIGHT(\"0\"&WEEKNUM(AvailabilityTable[[#This Row],[Date]],2)-Start_week,2)<>\"-0-\",AvailabilityTable[[#This Row],[Name]]&\"-\"&RIGHT(\"0\"&WEEKNUM(AvailabilityTable[[#This Row],[Date]],2)-Start_week,2)&YEAR(AvailabilityTable[[#This Row],[Date]]),\"\")","v":"-011900"}]
[null,null,null,{"$f":"IF(AvailabilityTable[[#This Row],[Name]]&\"-\"&RIGHT(\"0\"&WEEKNUM(AvailabilityTable[[#This Row],[Date]],2)-Start_week,2)<>\"-0-\",AvailabilityTable[[#This Row],[Name]]&\"-\"&RIGHT(\"0\"&WEEKNUM(AvailabilityTable[[#This Row],[Date]],2)-Start_week,2)&YEAR(AvailabilityTable[[#This Row],[Date]]),\"\")","v":"-011900"}]
[null,null,null,{"$f":"IF(AvailabilityTable[[#This Row],[Name]]&\"-\"&RIGHT(\"0\"&WEEKNUM(AvailabilityTable[[#This Row],[Date]],2)-Start_week,2)<>\"-0-\",AvailabilityTable[[#This Row],[Name]]&\"-\"&RIGHT(\"0\"&WEEKNUM(AvailabilityTable[[#This Row],[Date]],2)-Start_week,2)&YEAR(AvailabilityTable[[#This Row],[Date]]),\"\")","v":"-011900"}]
[null,null,null,{"$f":"IF(AvailabilityTable[[#This Row],[Name]]&\"-\"&RIGHT(\"0\"&WEEKNUM(AvailabilityTable[[#This Row],[Date]],2)-Start_week,2)<>\"-0-\",AvailabilityTable[[#This Row],[Name]]&\"-\"&RIGHT(\"0\"&WEEKNUM(AvailabilityTable[[#This Row],[Date]],2)-Start_week,2)&YEAR(AvailabilityTable[[#This Row],[Date]]),\"\")","v":"-011900"}]
[null,null,null,{"$f":"IF(AvailabilityTable[[#This Row],[Name]]&\"-\"&RIGHT(\"0\"&WEEKNUM(AvailabilityTable[[#This Row],[Date]],2)-Start_week,2)<>\"-0-\",AvailabilityTable[[#This Row],[Name]]&\"-\"&RIGHT(\"0\"&WEEKNUM(AvailabilityTable[[#This Row],[Date]],2)-Start_week,2)&YEAR(AvailabilityTable[[#This Row],[Date]]),\"\")","v":"-011900"}]
[null,null,null,{"$f":"IF(AvailabilityTable[[#This Row],[Name]]&\"-\"&RIGHT(\"0\"&WEEKNUM(AvailabilityTable[[#This Row],[Date]],2)-Start_week,2)<>\"-0-\",AvailabilityTable[[#This Row],[Name]]&\"-\"&RIGHT(\"0\"&WEEKNUM(AvailabilityTable[[#This Row],[Date]],2)-Start_week,2)&YEAR(AvailabilityTable[[#This Row],[Date]]),\"\")","v":"-011900"}]
[null,null,null,{"$f":"IF(AvailabilityTable[[#This Row],[Name]]&\"-\"&RIGHT(\"0\"&WEEKNUM(AvailabilityTable[[#This Row],[Date]],2)-Start_week,2)<>\"-0-\",AvailabilityTable[[#This Row],[Name]]&\"-\"&RIGHT(\"0\"&WEEKNUM(AvailabilityTable[[#This Row],[Date]],2)-Start_week,2)&YEAR(AvailabilityTable[[#This Row],[Date]]),\"\")","v":"-011900"}]
[null,null,null,{"$f":"IF(AvailabilityTable[[#This Row],[Name]]&\"-\"&RIGHT(\"0\"&WEEKNUM(AvailabilityTable[[#This Row],[Date]],2)-Start_week,2)<>\"-0-\",AvailabilityTable[[#This Row],[Name]]&\"-\"&RIGHT(\"0\"&WEEKNUM(AvailabilityTable[[#This Row],[Date]],2)-Start_week,2)&YEAR(AvailabilityTable[[#This Row],[Date]]),\"\")","v":"-011900"}]
[null,null,null,{"$f":"IF(AvailabilityTable[[#This Row],[Name]]&\"-\"&RIGHT(\"0\"&WEEKNUM(AvailabilityTable[[#This Row],[Date]],2)-Start_week,2)<>\"-0-\",AvailabilityTable[[#This Row],[Name]]&\"-\"&RIGHT(\"0\"&WEEKNUM(AvailabilityTable[[#This Row],[Date]],2)-Start_week,2)&YEAR(AvailabilityTable[[#This Row],[Date]]),\"\")","v":"-011900"}]
[null,null,null,{"$f":"IF(AvailabilityTable[[#This Row],[Name]]&\"-\"&RIGHT(\"0\"&WEEKNUM(AvailabilityTable[[#This Row],[Date]],2)-Start_week,2)<>\"-0-\",AvailabilityTable[[#This Row],[Name]]&\"-\"&RIGHT(\"0\"&WEEKNUM(AvailabilityTable[[#This Row],[Date]],2)-Start_week,2)&YEAR(AvailabilityTable[[#This Row],[Date]]),\"\")","v":"-011900"}]
[null,null,null,{"$f":"IF(AvailabilityTable[[#This Row],[Name]]&\"-\"&RIGHT(\"0\"&WEEKNUM(AvailabilityTable[[#This Row],[Date]],2)-Start_week,2)<>\"-0-\",AvailabilityTable[[#This Row],[Name]]&\"-\"&RIGHT(\"0\"&WEEKNUM(AvailabilityTable[[#This Row],[Date]],2)-Start_week,2)&YEAR(AvailabilityTable[[#This Row],[Date]]),\"\")","v":"-011900"}]
[null,null,null,{"$f":"IF(AvailabilityTable[[#This Row],[Name]]&\"-\"&RIGHT(\"0\"&WEEKNUM(AvailabilityTable[[#This Row],[Date]],2)-Start_week,2)<>\"-0-\",AvailabilityTable[[#This Row],[Name]]&\"-\"&RIGHT(\"0\"&WEEKNUM(AvailabilityTable[[#This Row],[Date]],2)-Start_week,2)&YEAR(AvailabilityTable[[#This Row],[Date]]),\"\")","v":"-011900"}]
[null,null,null,{"$f":"IF(AvailabilityTable[[#This Row],[Name]]&\"-\"&RIGHT(\"0\"&WEEKNUM(AvailabilityTable[[#This Row],[Date]],2)-Start_week,2)<>\"-0-\",AvailabilityTable[[#This Row],[Name]]&\"-\"&RIGHT(\"0\"&WEEKNUM(AvailabilityTable[[#This Row],[Date]],2)-Start_week,2)&YEAR(AvailabilityTable[[#This Row],[Date]]),\"\")","v":"-011900"}]
[null,null,null,{"$f":"IF(AvailabilityTable[[#This Row],[Name]]&\"-\"&RIGHT(\"0\"&WEEKNUM(AvailabilityTable[[#This Row],[Date]],2)-Start_week,2)<>\"-0-\",AvailabilityTable[[#This Row],[Name]]&\"-\"&RIGHT(\"0\"&WEEKNUM(AvailabilityTable[[#This Row],[Date]],2)-Start_week,2)&YEAR(AvailabilityTable[[#This Row],[Date]]),\"\")","v":"-011900"}]
[null,null,null,{"$f":"IF(AvailabilityTable[[#This Row],[Name]]&\"-\"&RIGHT(\"0\"&WEEKNUM(AvailabilityTable[[#This Row],[Date]],2)-Start_week,2)<>\"-0-\",AvailabilityTable[[#This Row],[Name]]&\"-\"&RIGHT(\"0\"&WEEKNUM(AvailabilityTable[[#This Row],[Date]],2)-Start_week,2)&YEAR(AvailabilityTable[[#This Row],[Date]]),\"\")","v":"-011900"}]
[null,null,null,{"$f":"IF(AvailabilityTable[[#This Row],[Name]]&\"-\"&RIGHT(\"0\"&WEEKNUM(AvailabilityTable[[#This Row],[Date]],2)-Start_week,2)<>\"-0-\",AvailabilityTable[[#This Row],[Name]]&\"-\"&RIGHT(\"0\"&WEEKNUM(AvailabilityTable[[#This Row],[Date]],2)-Start_week,2)&YEAR(AvailabilityTable[[#This Row],[Date]]),\"\")","v":"-011900"}]
[null,null,null,{"$f":"IF(AvailabilityTable[[#This Row],[Name]]&\"-\"&RIGHT(\"0\"&WEEKNUM(AvailabilityTable[[#This Row],[Date]],2)-Start_week,2)<>\"-0-\",AvailabilityTable[[#This Row],[Name]]&\"-\"&RIGHT(\"0\"&WEEKNUM(AvailabilityTable[[#This Row],[Date]],2)-Start_week,2)&YEAR(AvailabilityTable[[#This Row],[Date]]),\"\")","v":"-011900"}]
[null,null,null,{"$f":"IF(AvailabilityTable[[#This Row],[Name]]&\"-\"&RIGHT(\"0\"&WEEKNUM(AvailabilityTable[[#This Row],[Date]],2)-Start_week,2)<>\"-0-\",AvailabilityTable[[#This Row],[Name]]&\"-\"&RIGHT(\"0\"&WEEKNUM(AvailabilityTable[[#This Row],[Date]],2)-Start_week,2)&YEAR(AvailabilityTable[[#This Row],[Date]]),\"\")","v":"-011900"}]
[null,null,null,{"$f":"IF(AvailabilityTable[[#This Row],[Name]]&\"-\"&RIGHT(\"0\"&WEEKNUM(AvailabilityTable[[#This Row],[Date]],2)-Start_week,2)<>\"-0-\",AvailabilityTable[[#This Row],[Name]]&\"-\"&RIGHT(\"0\"&WEEKNUM(AvailabilityTable[[#This Row],[Date]],2)-Start_week,2)&YEAR(AvailabilityTable[[#This Row],[Date]]),\"\")","v":"-011900"}]
[null,null,null,{"$f":"IF(AvailabilityTable[[#This Row],[Name]]&\"-\"&RIGHT(\"0\"&WEEKNUM(AvailabilityTable[[#This Row],[Date]],2)-Start_week,2)<>\"-0-\",AvailabilityTable[[#This Row],[Name]]&\"-\"&RIGHT(\"0\"&WEEKNUM(AvailabilityTable[[#This Row],[Date]],2)-Start_week,2)&YEAR(AvailabilityTable[[#This Row],[Date]]),\"\")","v":"-011900"}]
[null,null,null,{"$f":"IF(AvailabilityTable[[#This Row],[Name]]&\"-\"&RIGHT(\"0\"&WEEKNUM(AvailabilityTable[[#This Row],[Date]],2)-Start_week,2)<>\"-0-\",AvailabilityTable[[#This Row],[Name]]&\"-\"&RIGHT(\"0\"&WEEKNUM(AvailabilityTable[[#This Row],[Date]],2)-Start_week,2)&YEAR(AvailabilityTable[[#This Row],[Date]]),\"\")","v":"-011900"}]
[null,null,null,{"$f":"IF(AvailabilityTable[[#This Row],[Name]]&\"-\"&RIGHT(\"0\"&WEEKNUM(AvailabilityTable[[#This Row],[Date]],2)-Start_week,2)<>\"-0-\",AvailabilityTable[[#This Row],[Name]]&\"-\"&RIGHT(\"0\"&WEEKNUM(AvailabilityTable[[#This Row],[Date]],2)-Start_week,2)&YEAR(AvailabilityTable[[#This Row],[Date]]),\"\")","v":"-011900"}]
[null,null,null,{"$f":"IF(AvailabilityTable[[#This Row],[Name]]&\"-\"&RIGHT(\"0\"&WEEKNUM(AvailabilityTable[[#This Row],[Date]],2)-Start_week,2)<>\"-0-\",AvailabilityTable[[#This Row],[Name]]&\"-\"&RIGHT(\"0\"&WEEKNUM(AvailabilityTable[[#This Row],[Date]],2)-Start_week,2)&YEAR(AvailabilityTable[[#This Row],[Date]]),\"\")","v":"-011900"}]
[null,null,null,{"$f":"IF(AvailabilityTable[[#This Row],[Name]]&\"-\"&RIGHT(\"0\"&WEEKNUM(AvailabilityTable[[#This Row],[Date]],2)-Start_week,2)<>\"-0-\",AvailabilityTable[[#This Row],[Name]]&\"-\"&RIGHT(\"0\"&WEEKNUM(AvailabilityTable[[#This Row],[Date]],2)-Start_week,2)&YEAR(AvailabilityTable[[#This Row],[Date]]),\"\")","v":"-011900"}]
[null,null,null,{"$f":"IF(AvailabilityTable[[#This Row],[Name]]&\"-\"&RIGHT(\"0\"&WEEKNUM(AvailabilityTable[[#This Row],[Date]],2)-Start_week,2)<>\"-0-\",AvailabilityTable[[#This Row],[Name]]&\"-\"&RIGHT(\"0\"&WEEKNUM(AvailabilityTable[[#This Row],[Date]],2)-Start_week,2)&YEAR(AvailabilityTable[[#This Row],[Date]]),\"\")","v":"-011900"}]
[null,null,null,{"$f":"IF(AvailabilityTable[[#This Row],[Name]]&\"-\"&RIGHT(\"0\"&WEEKNUM(AvailabilityTable[[#This Row],[Date]],2)-Start_week,2)<>\"-0-\",AvailabilityTable[[#This Row],[Name]]&\"-\"&RIGHT(\"0\"&WEEKNUM(AvailabilityTable[[#This Row],[Date]],2)-Start_week,2)&YEAR(AvailabilityTable[[#This Row],[Date]]),\"\")","v":"-011900"}]
[null,null,null,{"$f":"IF(AvailabilityTable[[#This Row],[Name]]&\"-\"&RIGHT(\"0\"&WEEKNUM(AvailabilityTable[[#This Row],[Date]],2)-Start_week,2)<>\"-0-\",AvailabilityTable[[#This Row],[Name]]&\"-\"&RIGHT(\"0\"&WEEKNUM(AvailabilityTable[[#This Row],[Date]],2)-Start_week,2)&YEAR(AvailabilityTable[[#This Row],[Date]]),\"\")","v":"-011900"}]
[null,null,null,{"$f":"IF(AvailabilityTable[[#This Row],[Name]]&\"-\"&RIGHT(\"0\"&WEEKNUM(AvailabilityTable[[#This Row],[Date]],2)-Start_week,2)<>\"-0-\",AvailabilityTable[[#This Row],[Name]]&\"-\"&RIGHT(\"0\"&WEEKNUM(AvailabilityTable[[#This Row],[Date]],2)-Start_week,2)&YEAR(AvailabilityTable[[#This Row],[Date]]),\"\")","v":"-011900"}]
[null,null,null,{"$f":"IF(AvailabilityTable[[#This Row],[Name]]&\"-\"&RIGHT(\"0\"&WEEKNUM(AvailabilityTable[[#This Row],[Date]],2)-Start_week,2)<>\"-0-\",AvailabilityTable[[#This Row],[Name]]&\"-\"&RIGHT(\"0\"&WEEKNUM(AvailabilityTable[[#This Row],[Date]],2)-Start_week,2)&YEAR(AvailabilityTable[[#This Row],[Date]]),\"\")","v":"-011900"}]
[null,null,null,{"$f":"IF(AvailabilityTable[[#This Row],[Name]]&\"-\"&RIGHT(\"0\"&WEEKNUM(AvailabilityTable[[#This Row],[Date]],2)-Start_week,2)<>\"-0-\",AvailabilityTable[[#This Row],[Name]]&\"-\"&RIGHT(\"0\"&WEEKNUM(AvailabilityTable[[#This Row],[Date]],2)-Start_week,2)&YEAR(AvailabilityTable[[#This Row],[Date]]),\"\")","v":"-011900"}]
[null,null,null,{"$f":"IF(AvailabilityTable[[#This Row],[Name]]&\"-\"&RIGHT(\"0\"&WEEKNUM(AvailabilityTable[[#This Row],[Date]],2)-Start_week,2)<>\"-0-\",AvailabilityTable[[#This Row],[Name]]&\"-\"&RIGHT(\"0\"&WEEKNUM(AvailabilityTable[[#This Row],[Date]],2)-Start_week,2)&YEAR(AvailabilityTable[[#This Row],[Date]]),\"\")","v":"-011900"}]
[null,null,null,{"$f":"IF(AvailabilityTable[[#This Row],[Name]]&\"-\"&RIGHT(\"0\"&WEEKNUM(AvailabilityTable[[#This Row],[Date]],2)-Start_week,2)<>\"-0-\",AvailabilityTable[[#This Row],[Name]]&\"-\"&RIGHT(\"0\"&WEEKNUM(AvailabilityTable[[#This Row],[Date]],2)-Start_week,2)&YEAR(AvailabilityTable[[#This Row],[Date]]),\"\")","v":"-011900"}]
[null,null,null,{"$f":"IF(AvailabilityTable[[#This Row],[Name]]&\"-\"&RIGHT(\"0\"&WEEKNUM(AvailabilityTable[[#This Row],[Date]],2)-Start_week,2)<>\"-0-\",AvailabilityTable[[#This Row],[Name]]&\"-\"&RIGHT(\"0\"&WEEKNUM(AvailabilityTable[[#This Row],[Date]],2)-Start_week,2)&YEAR(AvailabilityTable[[#This Row],[Date]]),\"\")","v":"-011900"}]
[null,null,null,{"$f":"IF(AvailabilityTable[[#This Row],[Name]]&\"-\"&RIGHT(\"0\"&WEEKNUM(AvailabilityTable[[#This Row],[Date]],2)-Start_week,2)<>\"-0-\",AvailabilityTable[[#This Row],[Name]]&\"-\"&RIGHT(\"0\"&WEEKNUM(AvailabilityTable[[#This Row],[Date]],2)-Start_week,2)&YEAR(AvailabilityTable[[#This Row],[Date]]),\"\")","v":"-011900"}]
[null,null,null,{"$f":"IF(AvailabilityTable[[#This Row],[Name]]&\"-\"&RIGHT(\"0\"&WEEKNUM(AvailabilityTable[[#This Row],[Date]],2)-Start_week,2)<>\"-0-\",AvailabilityTable[[#This Row],[Name]]&\"-\"&RIGHT(\"0\"&WEEKNUM(AvailabilityTable[[#This Row],[Date]],2)-Start_week,2)&YEAR(AvailabilityTable[[#This Row],[Date]]),\"\")","v":"-011900"}]
[null,null,null,{"$f":"IF(AvailabilityTable[[#This Row],[Name]]&\"-\"&RIGHT(\"0\"&WEEKNUM(AvailabilityTable[[#This Row],[Date]],2)-Start_week,2)<>\"-0-\",AvailabilityTable[[#This Row],[Name]]&\"-\"&RIGHT(\"0\"&WEEKNUM(AvailabilityTable[[#This Row],[Date]],2)-Start_week,2)&YEAR(AvailabilityTable[[#This Row],[Date]]),\"\")","v":"-011900"}]
[null,null,null,{"$f":"IF(AvailabilityTable[[#This Row],[Name]]&\"-\"&RIGHT(\"0\"&WEEKNUM(AvailabilityTable[[#This Row],[Date]],2)-Start_week,2)<>\"-0-\",AvailabilityTable[[#This Row],[Name]]&\"-\"&RIGHT(\"0\"&WEEKNUM(AvailabilityTable[[#This Row],[Date]],2)-Start_week,2)&YEAR(AvailabilityTable[[#This Row],[Date]]),\"\")","v":"-011900"}]
[null,null,null,{"$f":"IF(AvailabilityTable[[#This Row],[Name]]&\"-\"&RIGHT(\"0\"&WEEKNUM(AvailabilityTable[[#This Row],[Date]],2)-Start_week,2)<>\"-0-\",AvailabilityTable[[#This Row],[Name]]&\"-\"&RIGHT(\"0\"&WEEKNUM(AvailabilityTable[[#This Row],[Date]],2)-Start_week,2)&YEAR(AvailabilityTable[[#This Row],[Date]]),\"\")","v":"-011900"}]
[null,null,null,{"$f":"IF(AvailabilityTable[[#This Row],[Name]]&\"-\"&RIGHT(\"0\"&WEEKNUM(AvailabilityTable[[#This Row],[Date]],2)-Start_week,2)<>\"-0-\",AvailabilityTable[[#This Row],[Name]]&\"-\"&RIGHT(\"0\"&WEEKNUM(AvailabilityTable[[#This Row],[Date]],2)-Start_week,2)&YEAR(AvailabilityTable[[#This Row],[Date]]),\"\")","v":"-011900"}]
[null,null,null,{"$f":"IF(AvailabilityTable[[#This Row],[Name]]&\"-\"&RIGHT(\"0\"&WEEKNUM(AvailabilityTable[[#This Row],[Date]],2)-Start_week,2)<>\"-0-\",AvailabilityTable[[#This Row],[Name]]&\"-\"&RIGHT(\"0\"&WEEKNUM(AvailabilityTable[[#This Row],[Date]],2)-Start_week,2)&YEAR(AvailabilityTable[[#This Row],[Date]]),\"\")","v":"-011900"}]
[null,null,null,{"$f":"IF(AvailabilityTable[[#This Row],[Name]]&\"-\"&RIGHT(\"0\"&WEEKNUM(AvailabilityTable[[#This Row],[Date]],2)-Start_week,2)<>\"-0-\",AvailabilityTable[[#This Row],[Name]]&\"-\"&RIGHT(\"0\"&WEEKNUM(AvailabilityTable[[#This Row],[Date]],2)-Start_week,2)&YEAR(AvailabilityTable[[#This Row],[Date]]),\"\")","v":"-011900"}]
[null,null,null,{"$f":"IF(AvailabilityTable[[#This Row],[Name]]&\"-\"&RIGHT(\"0\"&WEEKNUM(AvailabilityTable[[#This Row],[Date]],2)-Start_week,2)<>\"-0-\",AvailabilityTable[[#This Row],[Name]]&\"-\"&RIGHT(\"0\"&WEEKNUM(AvailabilityTable[[#This Row],[Date]],2)-Start_week,2)&YEAR(AvailabilityTable[[#This Row],[Date]]),\"\")","v":"-011900"}]
[null,null,null,{"$f":"IF(AvailabilityTable[[#This Row],[Name]]&\"-\"&RIGHT(\"0\"&WEEKNUM(AvailabilityTable[[#This Row],[Date]],2)-Start_week,2)<>\"-0-\",AvailabilityTable[[#This Row],[Name]]&\"-\"&RIGHT(\"0\"&WEEKNUM(AvailabilityTable[[#This Row],[Date]],2)-Start_week,2)&YEAR(AvailabilityTable[[#This Row],[Date]]),\"\")","v":"-011900"}]
[null,null,null,{"$f":"IF(AvailabilityTable[[#This Row],[Name]]&\"-\"&RIGHT(\"0\"&WEEKNUM(AvailabilityTable[[#This Row],[Date]],2)-Start_week,2)<>\"-0-\",AvailabilityTable[[#This Row],[Name]]&\"-\"&RIGHT(\"0\"&WEEKNUM(AvailabilityTable[[#This Row],[Date]],2)-Start_week,2)&YEAR(AvailabilityTable[[#This Row],[Date]]),\"\")","v":"-011900"}]
[null,null,null,{"$f":"IF(AvailabilityTable[[#This Row],[Name]]&\"-\"&RIGHT(\"0\"&WEEKNUM(AvailabilityTable[[#This Row],[Date]],2)-Start_week,2)<>\"-0-\",AvailabilityTable[[#This Row],[Name]]&\"-\"&RIGHT(\"0\"&WEEKNUM(AvailabilityTable[[#This Row],[Date]],2)-Start_week,2)&YEAR(AvailabilityTable[[#This Row],[Date]]),\"\")","v":"-011900"}]
[null,null,null,{"$f":"IF(AvailabilityTable[[#This Row],[Name]]&\"-\"&RIGHT(\"0\"&WEEKNUM(AvailabilityTable[[#This Row],[Date]],2)-Start_week,2)<>\"-0-\",AvailabilityTable[[#This Row],[Name]]&\"-\"&RIGHT(\"0\"&WEEKNUM(AvailabilityTable[[#This Row],[Date]],2)-Start_week,2)&YEAR(AvailabilityTable[[#This Row],[Date]]),\"\")","v":"-011900"}]
[null,null,null,{"$f":"IF(AvailabilityTable[[#This Row],[Name]]&\"-\"&RIGHT(\"0\"&WEEKNUM(AvailabilityTable[[#This Row],[Date]],2)-Start_week,2)<>\"-0-\",AvailabilityTable[[#This Row],[Name]]&\"-\"&RIGHT(\"0\"&WEEKNUM(AvailabilityTable[[#This Row],[Date]],2)-Start_week,2)&YEAR(AvailabilityTable[[#This Row],[Date]]),\"\")","v":"-011900"}]
[null,null,null,{"$f":"IF(AvailabilityTable[[#This Row],[Name]]&\"-\"&RIGHT(\"0\"&WEEKNUM(AvailabilityTable[[#This Row],[Date]],2)-Start_week,2)<>\"-0-\",AvailabilityTable[[#This Row],[Name]]&\"-\"&RIGHT(\"0\"&WEEKNUM(AvailabilityTable[[#This Row],[Date]],2)-Start_week,2)&YEAR(AvailabilityTable[[#This Row],[Date]]),\"\")","v":"-011900"}]
[null,null,null,{"$f":"IF(AvailabilityTable[[#This Row],[Name]]&\"-\"&RIGHT(\"0\"&WEEKNUM(AvailabilityTable[[#This Row],[Date]],2)-Start_week,2)<>\"-0-\",AvailabilityTable[[#This Row],[Name]]&\"-\"&RIGHT(\"0\"&WEEKNUM(AvailabilityTable[[#This Row],[Date]],2)-Start_week,2)&YEAR(AvailabilityTable[[#This Row],[Date]]),\"\")","v":"-011900"}]
[null,null,null,{"$f":"IF(AvailabilityTable[[#This Row],[Name]]&\"-\"&RIGHT(\"0\"&WEEKNUM(AvailabilityTable[[#This Row],[Date]],2)-Start_week,2)<>\"-0-\",AvailabilityTable[[#This Row],[Name]]&\"-\"&RIGHT(\"0\"&WEEKNUM(AvailabilityTable[[#This Row],[Date]],2)-Start_week,2)&YEAR(AvailabilityTable[[#This Row],[Date]]),\"\")","v":"-011900"}]
[null,null,null,{"$f":"IF(AvailabilityTable[[#This Row],[Name]]&\"-\"&RIGHT(\"0\"&WEEKNUM(AvailabilityTable[[#This Row],[Date]],2)-Start_week,2)<>\"-0-\",AvailabilityTable[[#This Row],[Name]]&\"-\"&RIGHT(\"0\"&WEEKNUM(AvailabilityTable[[#This Row],[Date]],2)-Start_week,2)&YEAR(AvailabilityTable[[#This Row],[Date]]),\"\")","v":"-011900"}]
[null,null,null,{"$f":"IF(AvailabilityTable[[#This Row],[Name]]&\"-\"&RIGHT(\"0\"&WEEKNUM(AvailabilityTable[[#This Row],[Date]],2)-Start_week,2)<>\"-0-\",AvailabilityTable[[#This Row],[Name]]&\"-\"&RIGHT(\"0\"&WEEKNUM(AvailabilityTable[[#This Row],[Date]],2)-Start_week,2)&YEAR(AvailabilityTable[[#This Row],[Date]]),\"\")","v":"-011900"}]
[null,null,null,{"$f":"IF(AvailabilityTable[[#This Row],[Name]]&\"-\"&RIGHT(\"0\"&WEEKNUM(AvailabilityTable[[#This Row],[Date]],2)-Start_week,2)<>\"-0-\",AvailabilityTable[[#This Row],[Name]]&\"-\"&RIGHT(\"0\"&WEEKNUM(AvailabilityTable[[#This Row],[Date]],2)-Start_week,2)&YEAR(AvailabilityTable[[#This Row],[Date]]),\"\")","v":"-011900"}]
[null,null,null,{"$f":"IF(AvailabilityTable[[#This Row],[Name]]&\"-\"&RIGHT(\"0\"&WEEKNUM(AvailabilityTable[[#This Row],[Date]],2)-Start_week,2)<>\"-0-\",AvailabilityTable[[#This Row],[Name]]&\"-\"&RIGHT(\"0\"&WEEKNUM(AvailabilityTable[[#This Row],[Date]],2)-Start_week,2)&YEAR(AvailabilityTable[[#This Row],[Date]]),\"\")","v":"-011900"}]
[null,null,null,{"$f":"IF(AvailabilityTable[[#This Row],[Name]]&\"-\"&RIGHT(\"0\"&WEEKNUM(AvailabilityTable[[#This Row],[Date]],2)-Start_week,2)<>\"-0-\",AvailabilityTable[[#This Row],[Name]]&\"-\"&RIGHT(\"0\"&WEEKNUM(AvailabilityTable[[#This Row],[Date]],2)-Start_week,2)&YEAR(AvailabilityTable[[#This Row],[Date]]),\"\")","v":"-011900"}]
[null,null,null,{"$f":"IF(AvailabilityTable[[#This Row],[Name]]&\"-\"&RIGHT(\"0\"&WEEKNUM(AvailabilityTable[[#This Row],[Date]],2)-Start_week,2)<>\"-0-\",AvailabilityTable[[#This Row],[Name]]&\"-\"&RIGHT(\"0\"&WEEKNUM(AvailabilityTable[[#This Row],[Date]],2)-Start_week,2)&YEAR(AvailabilityTable[[#This Row],[Date]]),\"\")","v":"-011900"}]
[null,null,null,{"$f":"IF(AvailabilityTable[[#This Row],[Name]]&\"-\"&RIGHT(\"0\"&WEEKNUM(AvailabilityTable[[#This Row],[Date]],2)-Start_week,2)<>\"-0-\",AvailabilityTable[[#This Row],[Name]]&\"-\"&RIGHT(\"0\"&WEEKNUM(AvailabilityTable[[#This Row],[Date]],2)-Start_week,2)&YEAR(AvailabilityTable[[#This Row],[Date]]),\"\")","v":"-011900"}]
[null,null,null,{"$f":"IF(AvailabilityTable[[#This Row],[Name]]&\"-\"&RIGHT(\"0\"&WEEKNUM(AvailabilityTable[[#This Row],[Date]],2)-Start_week,2)<>\"-0-\",AvailabilityTable[[#This Row],[Name]]&\"-\"&RIGHT(\"0\"&WEEKNUM(AvailabilityTable[[#This Row],[Date]],2)-Start_week,2)&YEAR(AvailabilityTable[[#This Row],[Date]]),\"\")","v":"-011900"}]
[null,null,null,{"$f":"IF(AvailabilityTable[[#This Row],[Name]]&\"-\"&RIGHT(\"0\"&WEEKNUM(AvailabilityTable[[#This Row],[Date]],2)-Start_week,2)<>\"-0-\",AvailabilityTable[[#This Row],[Name]]&\"-\"&RIGHT(\"0\"&WEEKNUM(AvailabilityTable[[#This Row],[Date]],2)-Start_week,2)&YEAR(AvailabilityTable[[#This Row],[Date]]),\"\")","v":"-011900"}]
[null,null,null,{"$f":"IF(AvailabilityTable[[#This Row],[Name]]&\"-\"&RIGHT(\"0\"&WEEKNUM(AvailabilityTable[[#This Row],[Date]],2)-Start_week,2)<>\"-0-\",AvailabilityTable[[#This Row],[Name]]&\"-\"&RIGHT(\"0\"&WEEKNUM(AvailabilityTable[[#This Row],[Date]],2)-Start_week,2)&YEAR(AvailabilityTable[[#This Row],[Date]]),\"\")","v":"-011900"}]
[null,null,null,{"$f":"IF(AvailabilityTable[[#This Row],[Name]]&\"-\"&RIGHT(\"0\"&WEEKNUM(AvailabilityTable[[#This Row],[Date]],2)-Start_week,2)<>\"-0-\",AvailabilityTable[[#This Row],[Name]]&\"-\"&RIGHT(\"0\"&WEEKNUM(AvailabilityTable[[#This Row],[Date]],2)-Start_week,2)&YEAR(AvailabilityTable[[#This Row],[Date]]),\"\")","v":"-011900"}]
[null,null,null,{"$f":"IF(AvailabilityTable[[#This Row],[Name]]&\"-\"&RIGHT(\"0\"&WEEKNUM(AvailabilityTable[[#This Row],[Date]],2)-Start_week,2)<>\"-0-\",AvailabilityTable[[#This Row],[Name]]&\"-\"&RIGHT(\"0\"&WEEKNUM(AvailabilityTable[[#This Row],[Date]],2)-Start_week,2)&YEAR(AvailabilityTable[[#This Row],[Date]]),\"\")","v":"-011900"}]
[null,null,null,{"$f":"IF(AvailabilityTable[[#This Row],[Name]]&\"-\"&RIGHT(\"0\"&WEEKNUM(AvailabilityTable[[#This Row],[Date]],2)-Start_week,2)<>\"-0-\",AvailabilityTable[[#This Row],[Name]]&\"-\"&RIGHT(\"0\"&WEEKNUM(AvailabilityTable[[#This Row],[Date]],2)-Start_week,2)&YEAR(AvailabilityTable[[#This Row],[Date]]),\"\")","v":"-011900"}]
[null,null,null,{"$f":"IF(AvailabilityTable[[#This Row],[Name]]&\"-\"&RIGHT(\"0\"&WEEKNUM(AvailabilityTable[[#This Row],[Date]],2)-Start_week,2)<>\"-0-\",AvailabilityTable[[#This Row],[Name]]&\"-\"&RIGHT(\"0\"&WEEKNUM(AvailabilityTable[[#This Row],[Date]],2)-Start_week,2)&YEAR(AvailabilityTable[[#This Row],[Date]]),\"\")","v":"-011900"}]
[null,null,null,{"$f":"IF(AvailabilityTable[[#This Row],[Name]]&\"-\"&RIGHT(\"0\"&WEEKNUM(AvailabilityTable[[#This Row],[Date]],2)-Start_week,2)<>\"-0-\",AvailabilityTable[[#This Row],[Name]]&\"-\"&RIGHT(\"0\"&WEEKNUM(AvailabilityTable[[#This Row],[Date]],2)-Start_week,2)&YEAR(AvailabilityTable[[#This Row],[Date]]),\"\")","v":"-011900"}]
[null,null,null,{"$f":"IF(AvailabilityTable[[#This Row],[Name]]&\"-\"&RIGHT(\"0\"&WEEKNUM(AvailabilityTable[[#This Row],[Date]],2)-Start_week,2)<>\"-0-\",AvailabilityTable[[#This Row],[Name]]&\"-\"&RIGHT(\"0\"&WEEKNUM(AvailabilityTable[[#This Row],[Date]],2)-Start_week,2)&YEAR(AvailabilityTable[[#This Row],[Date]]),\"\")","v":"-011900"}]
[null,null,null,{"$f":"IF(AvailabilityTable[[#This Row],[Name]]&\"-\"&RIGHT(\"0\"&WEEKNUM(AvailabilityTable[[#This Row],[Date]],2)-Start_week,2)<>\"-0-\",AvailabilityTable[[#This Row],[Name]]&\"-\"&RIGHT(\"0\"&WEEKNUM(AvailabilityTable[[#This Row],[Date]],2)-Start_week,2)&YEAR(AvailabilityTable[[#This Row],[Date]]),\"\")","v":"-011900"}]
[null,null,null,{"$f":"IF(AvailabilityTable[[#This Row],[Name]]&\"-\"&RIGHT(\"0\"&WEEKNUM(AvailabilityTable[[#This Row],[Date]],2)-Start_week,2)<>\"-0-\",AvailabilityTable[[#This Row],[Name]]&\"-\"&RIGHT(\"0\"&WEEKNUM(AvailabilityTable[[#This Row],[Date]],2)-Start_week,2)&YEAR(AvailabilityTable[[#This Row],[Date]]),\"\")","v":"-011900"}]
[null,null,null,{"$f":"IF(AvailabilityTable[[#This Row],[Name]]&\"-\"&RIGHT(\"0\"&WEEKNUM(AvailabilityTable[[#This Row],[Date]],2)-Start_week,2)<>\"-0-\",AvailabilityTable[[#This Row],[Name]]&\"-\"&RIGHT(\"0\"&WEEKNUM(AvailabilityTable[[#This Row],[Date]],2)-Start_week,2)&YEAR(AvailabilityTable[[#This Row],[Date]]),\"\")","v":"-011900"}]
[null,null,null,{"$f":"IF(AvailabilityTable[[#This Row],[Name]]&\"-\"&RIGHT(\"0\"&WEEKNUM(AvailabilityTable[[#This Row],[Date]],2)-Start_week,2)<>\"-0-\",AvailabilityTable[[#This Row],[Name]]&\"-\"&RIGHT(\"0\"&WEEKNUM(AvailabilityTable[[#This Row],[Date]],2)-Start_week,2)&YEAR(AvailabilityTable[[#This Row],[Date]]),\"\")","v":"-011900"}]
[null,null,null,{"$f":"IF(AvailabilityTable[[#This Row],[Name]]&\"-\"&RIGHT(\"0\"&WEEKNUM(AvailabilityTable[[#This Row],[Date]],2)-Start_week,2)<>\"-0-\",AvailabilityTable[[#This Row],[Name]]&\"-\"&RIGHT(\"0\"&WEEKNUM(AvailabilityTable[[#This Row],[Date]],2)-Start_week,2)&YEAR(AvailabilityTable[[#This Row],[Date]]),\"\")","v":"-011900"}]
[null,null,null,{"$f":"IF(AvailabilityTable[[#This Row],[Name]]&\"-\"&RIGHT(\"0\"&WEEKNUM(AvailabilityTable[[#This Row],[Date]],2)-Start_week,2)<>\"-0-\",AvailabilityTable[[#This Row],[Name]]&\"-\"&RIGHT(\"0\"&WEEKNUM(AvailabilityTable[[#This Row],[Date]],2)-Start_week,2)&YEAR(AvailabilityTable[[#This Row],[Date]]),\"\")","v":"-011900"}]
[null,null,null,{"$f":"IF(AvailabilityTable[[#This Row],[Name]]&\"-\"&RIGHT(\"0\"&WEEKNUM(AvailabilityTable[[#This Row],[Date]],2)-Start_week,2)<>\"-0-\",AvailabilityTable[[#This Row],[Name]]&\"-\"&RIGHT(\"0\"&WEEKNUM(AvailabilityTable[[#This Row],[Date]],2)-Start_week,2)&YEAR(AvailabilityTable[[#This Row],[Date]]),\"\")","v":"-011900"}]
[null,null,null,{"$f":"IF(AvailabilityTable[[#This Row],[Name]]&\"-\"&RIGHT(\"0\"&WEEKNUM(AvailabilityTable[[#This Row],[Date]],2)-Start_week,2)<>\"-0-\",AvailabilityTable[[#This Row],[Name]]&\"-\"&RIGHT(\"0\"&WEEKNUM(AvailabilityTable[[#This Row],[Date]],2)-Start_week,2)&YEAR(AvailabilityTable[[#This Row],[Date]]),\"\")","v":"-011900"}]
[null,null,null,{"$f":"IF(AvailabilityTable[[#This Row],[Name]]&\"-\"&RIGHT(\"0\"&WEEKNUM(AvailabilityTable[[#This Row],[Date]],2)-Start_week,2)<>\"-0-\",AvailabilityTable[[#This Row],[Name]]&\"-\"&RIGHT(\"0\"&WEEKNUM(AvailabilityTable[[#This Row],[Date]],2)-Start_week,2)&YEAR(AvailabilityTable[[#This Row],[Date]]),\"\")","v":"-011900"}]
[null,null,null,{"$f":"IF(AvailabilityTable[[#This Row],[Name]]&\"-\"&RIGHT(\"0\"&WEEKNUM(AvailabilityTable[[#This Row],[Date]],2)-Start_week,2)<>\"-0-\",AvailabilityTable[[#This Row],[Name]]&\"-\"&RIGHT(\"0\"&WEEKNUM(AvailabilityTable[[#This Row],[Date]],2)-Start_week,2)&YEAR(AvailabilityTable[[#This Row],[Date]]),\"\")","v":"-011900"}]
[null,null,null,{"$f":"IF(AvailabilityTable[[#This Row],[Name]]&\"-\"&RIGHT(\"0\"&WEEKNUM(AvailabilityTable[[#This Row],[Date]],2)-Start_week,2)<>\"-0-\",AvailabilityTable[[#This Row],[Name]]&\"-\"&RIGHT(\"0\"&WEEKNUM(AvailabilityTable[[#This Row],[Date]],2)-Start_week,2)&YEAR(AvailabilityTable[[#This Row],[Date]]),\"\")","v":"-011900"}]
[null,null,null,{"$f":"IF(AvailabilityTable[[#This Row],[Name]]&\"-\"&RIGHT(\"0\"&WEEKNUM(AvailabilityTable[[#This Row],[Date]],2)-Start_week,2)<>\"-0-\",AvailabilityTable[[#This Row],[Name]]&\"-\"&RIGHT(\"0\"&WEEKNUM(AvailabilityTable[[#This Row],[Date]],2)-Start_week,2)&YEAR(AvailabilityTable[[#This Row],[Date]]),\"\")","v":"-011900"}]
[null,null,null,{"$f":"IF(AvailabilityTable[[#This Row],[Name]]&\"-\"&RIGHT(\"0\"&WEEKNUM(AvailabilityTable[[#This Row],[Date]],2)-Start_week,2)<>\"-0-\",AvailabilityTable[[#This Row],[Name]]&\"-\"&RIGHT(\"0\"&WEEKNUM(AvailabilityTable[[#This Row],[Date]],2)-Start_week,2)&YEAR(AvailabilityTable[[#This Row],[Date]]),\"\")","v":"-011900"}]
[null,null,null,{"$f":"IF(AvailabilityTable[[#This Row],[Name]]&\"-\"&RIGHT(\"0\"&WEEKNUM(AvailabilityTable[[#This Row],[Date]],2)-Start_week,2)<>\"-0-\",AvailabilityTable[[#This Row],[Name]]&\"-\"&RIGHT(\"0\"&WEEKNUM(AvailabilityTable[[#This Row],[Date]],2)-Start_week,2)&YEAR(AvailabilityTable[[#This Row],[Date]]),\"\")","v":"-011900"}]
[null,null,null,{"$f":"IF(AvailabilityTable[[#This Row],[Name]]&\"-\"&RIGHT(\"0\"&WEEKNUM(AvailabilityTable[[#This Row],[Date]],2)-Start_week,2)<>\"-0-\",AvailabilityTable[[#This Row],[Name]]&\"-\"&RIGHT(\"0\"&WEEKNUM(AvailabilityTable[[#This Row],[Date]],2)-Start_week,2)&YEAR(AvailabilityTable[[#This Row],[Date]]),\"\")","v":"-011900"}]
[null,null,null,{"$f":"IF(AvailabilityTable[[#This Row],[Name]]&\"-\"&RIGHT(\"0\"&WEEKNUM(AvailabilityTable[[#This Row],[Date]],2)-Start_week,2)<>\"-0-\",AvailabilityTable[[#This Row],[Name]]&\"-\"&RIGHT(\"0\"&WEEKNUM(AvailabilityTable[[#This Row],[Date]],2)-Start_week,2)&YEAR(AvailabilityTable[[#This Row],[Date]]),\"\")","v":"-011900"}]
[null,null,null,{"$f":"IF(AvailabilityTable[[#This Row],[Name]]&\"-\"&RIGHT(\"0\"&WEEKNUM(AvailabilityTable[[#This Row],[Date]],2)-Start_week,2)<>\"-0-\",AvailabilityTable[[#This Row],[Name]]&\"-\"&RIGHT(\"0\"&WEEKNUM(AvailabilityTable[[#This Row],[Date]],2)-Start_week,2)&YEAR(AvailabilityTable[[#This Row],[Date]]),\"\")","v":"-011900"}]
[null,null,null,{"$f":"IF(AvailabilityTable[[#This Row],[Name]]&\"-\"&RIGHT(\"0\"&WEEKNUM(AvailabilityTable[[#This Row],[Date]],2)-Start_week,2)<>\"-0-\",AvailabilityTable[[#This Row],[Name]]&\"-\"&RIGHT(\"0\"&WEEKNUM(AvailabilityTable[[#This Row],[Date]],2)-Start_week,2)&YEAR(AvailabilityTable[[#This Row],[Date]]),\"\")","v":"-011900"}]
[null,null,null,{"$f":"IF(AvailabilityTable[[#This Row],[Name]]&\"-\"&RIGHT(\"0\"&WEEKNUM(AvailabilityTable[[#This Row],[Date]],2)-Start_week,2)<>\"-0-\",AvailabilityTable[[#This Row],[Name]]&\"-\"&RIGHT(\"0\"&WEEKNUM(AvailabilityTable[[#This Row],[Date]],2)-Start_week,2)&YEAR(AvailabilityTable[[#This Row],[Date]]),\"\")","v":"-011900"}]
[null,null,null,{"$f":"IF(AvailabilityTable[[#This Row],[Name]]&\"-\"&RIGHT(\"0\"&WEEKNUM(AvailabilityTable[[#This Row],[Date]],2)-Start_week,2)<>\"-0-\",AvailabilityTable[[#This Row],[Name]]&\"-\"&RIGHT(\"0\"&WEEKNUM(AvailabilityTable[[#This Row],[Date]],2)-Start_week,2)&YEAR(AvailabilityTable[[#This Row],[Date]]),\"\")","v":"-011900"}]
[null,null,null,{"$f":"IF(AvailabilityTable[[#This Row],[Name]]&\"-\"&RIGHT(\"0\"&WEEKNUM(AvailabilityTable[[#This Row],[Date]],2)-Start_week,2)<>\"-0-\",AvailabilityTable[[#This Row],[Name]]&\"-\"&RIGHT(\"0\"&WEEKNUM(AvailabilityTable[[#This Row],[Date]],2)-Start_week,2)&YEAR(AvailabilityTable[[#This Row],[Date]]),\"\")","v":"-011900"}]
[null,null,null,{"$f":"IF(AvailabilityTable[[#This Row],[Name]]&\"-\"&RIGHT(\"0\"&WEEKNUM(AvailabilityTable[[#This Row],[Date]],2)-Start_week,2)<>\"-0-\",AvailabilityTable[[#This Row],[Name]]&\"-\"&RIGHT(\"0\"&WEEKNUM(AvailabilityTable[[#This Row],[Date]],2)-Start_week,2)&YEAR(AvailabilityTable[[#This Row],[Date]]),\"\")","v":"-011900"}]
[null,null,null,{"$f":"IF(AvailabilityTable[[#This Row],[Name]]&\"-\"&RIGHT(\"0\"&WEEKNUM(AvailabilityTable[[#This Row],[Date]],2)-Start_week,2)<>\"-0-\",AvailabilityTable[[#This Row],[Name]]&\"-\"&RIGHT(\"0\"&WEEKNUM(AvailabilityTable[[#This Row],[Date]],2)-Start_week,2)&YEAR(AvailabilityTable[[#This Row],[Date]]),\"\")","v":"-011900"}]
[null,null,null,{"$f":"IF(AvailabilityTable[[#This Row],[Name]]&\"-\"&RIGHT(\"0\"&WEEKNUM(AvailabilityTable[[#This Row],[Date]],2)-Start_week,2)<>\"-0-\",AvailabilityTable[[#This Row],[Name]]&\"-\"&RIGHT(\"0\"&WEEKNUM(AvailabilityTable[[#This Row],[Date]],2)-Start_week,2)&YEAR(AvailabilityTable[[#This Row],[Date]]),\"\")","v":"-011900"}]
[null,null,null,{"$f":"IF(AvailabilityTable[[#This Row],[Name]]&\"-\"&RIGHT(\"0\"&WEEKNUM(AvailabilityTable[[#This Row],[Date]],2)-Start_week,2)<>\"-0-\",AvailabilityTable[[#This Row],[Name]]&\"-\"&RIGHT(\"0\"&WEEKNUM(AvailabilityTable[[#This Row],[Date]],2)-Start_week,2)&YEAR(AvailabilityTable[[#This Row],[Date]]),\"\")","v":"-011900"}]
[null,null,null,{"$f":"IF(AvailabilityTable[[#This Row],[Name]]&\"-\"&RIGHT(\"0\"&WEEKNUM(AvailabilityTable[[#This Row],[Date]],2)-Start_week,2)<>\"-0-\",AvailabilityTable[[#This Row],[Name]]&\"-\"&RIGHT(\"0\"&WEEKNUM(AvailabilityTable[[#This Row],[Date]],2)-Start_week,2)&YEAR(AvailabilityTable[[#This Row],[Date]]),\"\")","v":"-011900"}]
[null,null,null,{"$f":"IF(AvailabilityTable[[#This Row],[Name]]&\"-\"&RIGHT(\"0\"&WEEKNUM(AvailabilityTable[[#This Row],[Date]],2)-Start_week,2)<>\"-0-\",AvailabilityTable[[#This Row],[Name]]&\"-\"&RIGHT(\"0\"&WEEKNUM(AvailabilityTable[[#This Row],[Date]],2)-Start_week,2)&YEAR(AvailabilityTable[[#This Row],[Date]]),\"\")","v":"-011900"}]
[null,null,null,{"$f":"IF(AvailabilityTable[[#This Row],[Name]]&\"-\"&RIGHT(\"0\"&WEEKNUM(AvailabilityTable[[#This Row],[Date]],2)-Start_week,2)<>\"-0-\",AvailabilityTable[[#This Row],[Name]]&\"-\"&RIGHT(\"0\"&WEEKNUM(AvailabilityTable[[#This Row],[Date]],2)-Start_week,2)&YEAR(AvailabilityTable[[#This Row],[Date]]),\"\")","v":"-011900"}]
[null,null,null,{"$f":"IF(AvailabilityTable[[#This Row],[Name]]&\"-\"&RIGHT(\"0\"&WEEKNUM(AvailabilityTable[[#This Row],[Date]],2)-Start_week,2)<>\"-0-\",AvailabilityTable[[#This Row],[Name]]&\"-\"&RIGHT(\"0\"&WEEKNUM(AvailabilityTable[[#This Row],[Date]],2)-Start_week,2)&YEAR(AvailabilityTable[[#This Row],[Date]]),\"\")","v":"-011900"}]
[null,null,null,{"$f":"IF(AvailabilityTable[[#This Row],[Name]]&\"-\"&RIGHT(\"0\"&WEEKNUM(AvailabilityTable[[#This Row],[Date]],2)-Start_week,2)<>\"-0-\",AvailabilityTable[[#This Row],[Name]]&\"-\"&RIGHT(\"0\"&WEEKNUM(AvailabilityTable[[#This Row],[Date]],2)-Start_week,2)&YEAR(AvailabilityTable[[#This Row],[Date]]),\"\")","v":"-011900"}]
[null,null,null,{"$f":"IF(AvailabilityTable[[#This Row],[Name]]&\"-\"&RIGHT(\"0\"&WEEKNUM(AvailabilityTable[[#This Row],[Date]],2)-Start_week,2)<>\"-0-\",AvailabilityTable[[#This Row],[Name]]&\"-\"&RIGHT(\"0\"&WEEKNUM(AvailabilityTable[[#This Row],[Date]],2)-Start_week,2)&YEAR(AvailabilityTable[[#This Row],[Date]]),\"\")","v":"-011900"}]
[null,null,null,{"$f":"IF(AvailabilityTable[[#This Row],[Name]]&\"-\"&RIGHT(\"0\"&WEEKNUM(AvailabilityTable[[#This Row],[Date]],2)-Start_week,2)<>\"-0-\",AvailabilityTable[[#This Row],[Name]]&\"-\"&RIGHT(\"0\"&WEEKNUM(AvailabilityTable[[#This Row],[Date]],2)-Start_week,2)&YEAR(AvailabilityTable[[#This Row],[Date]]),\"\")","v":"-011900"}]
[null,null,null,{"$f":"IF(AvailabilityTable[[#This Row],[Name]]&\"-\"&RIGHT(\"0\"&WEEKNUM(AvailabilityTable[[#This Row],[Date]],2)-Start_week,2)<>\"-0-\",AvailabilityTable[[#This Row],[Name]]&\"-\"&RIGHT(\"0\"&WEEKNUM(AvailabilityTable[[#This Row],[Date]],2)-Start_week,2)&YEAR(AvailabilityTable[[#This Row],[Date]]),\"\")","v":"-011900"}]
[null,null,null,{"$f":"IF(AvailabilityTable[[#This Row],[Name]]&\"-\"&RIGHT(\"0\"&WEEKNUM(AvailabilityTable[[#This Row],[Date]],2)-Start_week,2)<>\"-0-\",AvailabilityTable[[#This Row],[Name]]&\"-\"&RIGHT(\"0\"&WEEKNUM(AvailabilityTable[[#This Row],[Date]],2)-Start_week,2)&YEAR(AvailabilityTable[[#This Row],[Date]]),\"\")","v":"-011900"}]
[null,null,null,{"$f":"IF(AvailabilityTable[[#This Row],[Name]]&\"-\"&RIGHT(\"0\"&WEEKNUM(AvailabilityTable[[#This Row],[Date]],2)-Start_week,2)<>\"-0-\",AvailabilityTable[[#This Row],[Name]]&\"-\"&RIGHT(\"0\"&WEEKNUM(AvailabilityTable[[#This Row],[Date]],2)-Start_week,2)&YEAR(AvailabilityTable[[#This Row],[Date]]),\"\")","v":"-011900"}]
[null,null,null,{"$f":"IF(AvailabilityTable[[#This Row],[Name]]&\"-\"&RIGHT(\"0\"&WEEKNUM(AvailabilityTable[[#This Row],[Date]],2)-Start_week,2)<>\"-0-\",AvailabilityTable[[#This Row],[Name]]&\"-\"&RIGHT(\"0\"&WEEKNUM(AvailabilityTable[[#This Row],[Date]],2)-Start_week,2)&YEAR(AvailabilityTable[[#This Row],[Date]]),\"\")","v":"-011900"}]
[null,null,null,{"$f":"IF(AvailabilityTable[[#This Row],[Name]]&\"-\"&RIGHT(\"0\"&WEEKNUM(AvailabilityTable[[#This Row],[Date]],2)-Start_week,2)<>\"-0-\",AvailabilityTable[[#This Row],[Name]]&\"-\"&RIGHT(\"0\"&WEEKNUM(AvailabilityTable[[#This Row],[Date]],2)-Start_week,2)&YEAR(AvailabilityTable[[#This Row],[Date]]),\"\")","v":"-011900"}]
[null,null,null,{"$f":"IF(AvailabilityTable[[#This Row],[Name]]&\"-\"&RIGHT(\"0\"&WEEKNUM(AvailabilityTable[[#This Row],[Date]],2)-Start_week,2)<>\"-0-\",AvailabilityTable[[#This Row],[Name]]&\"-\"&RIGHT(\"0\"&WEEKNUM(AvailabilityTable[[#This Row],[Date]],2)-Start_week,2)&YEAR(AvailabilityTable[[#This Row],[Date]]),\"\")","v":"-011900"}]
[null,null,null,{"$f":"IF(AvailabilityTable[[#This Row],[Name]]&\"-\"&RIGHT(\"0\"&WEEKNUM(AvailabilityTable[[#This Row],[Date]],2)-Start_week,2)<>\"-0-\",AvailabilityTable[[#This Row],[Name]]&\"-\"&RIGHT(\"0\"&WEEKNUM(AvailabilityTable[[#This Row],[Date]],2)-Start_week,2)&YEAR(AvailabilityTable[[#This Row],[Date]]),\"\")","v":"-011900"}]
[null,null,null,{"$f":"IF(AvailabilityTable[[#This Row],[Name]]&\"-\"&RIGHT(\"0\"&WEEKNUM(AvailabilityTable[[#This Row],[Date]],2)-Start_week,2)<>\"-0-\",AvailabilityTable[[#This Row],[Name]]&\"-\"&RIGHT(\"0\"&WEEKNUM(AvailabilityTable[[#This Row],[Date]],2)-Start_week,2)&YEAR(AvailabilityTable[[#This Row],[Date]]),\"\")","v":"-011900"}]
[null,null,null,{"$f":"IF(AvailabilityTable[[#This Row],[Name]]&\"-\"&RIGHT(\"0\"&WEEKNUM(AvailabilityTable[[#This Row],[Date]],2)-Start_week,2)<>\"-0-\",AvailabilityTable[[#This Row],[Name]]&\"-\"&RIGHT(\"0\"&WEEKNUM(AvailabilityTable[[#This Row],[Date]],2)-Start_week,2)&YEAR(AvailabilityTable[[#This Row],[Date]]),\"\")","v":"-011900"}]
[null,null,null,{"$f":"IF(AvailabilityTable[[#This Row],[Name]]&\"-\"&RIGHT(\"0\"&WEEKNUM(AvailabilityTable[[#This Row],[Date]],2)-Start_week,2)<>\"-0-\",AvailabilityTable[[#This Row],[Name]]&\"-\"&RIGHT(\"0\"&WEEKNUM(AvailabilityTable[[#This Row],[Date]],2)-Start_week,2)&YEAR(AvailabilityTable[[#This Row],[Date]]),\"\")","v":"-011900"}]
[null,null,null,{"$f":"IF(AvailabilityTable[[#This Row],[Name]]&\"-\"&RIGHT(\"0\"&WEEKNUM(AvailabilityTable[[#This Row],[Date]],2)-Start_week,2)<>\"-0-\",AvailabilityTable[[#This Row],[Name]]&\"-\"&RIGHT(\"0\"&WEEKNUM(AvailabilityTable[[#This Row],[Date]],2)-Start_week,2)&YEAR(AvailabilityTable[[#This Row],[Date]]),\"\")","v":"-011900"}]
[null,null,null,{"$f":"IF(AvailabilityTable[[#This Row],[Name]]&\"-\"&RIGHT(\"0\"&WEEKNUM(AvailabilityTable[[#This Row],[Date]],2)-Start_week,2)<>\"-0-\",AvailabilityTable[[#This Row],[Name]]&\"-\"&RIGHT(\"0\"&WEEKNUM(AvailabilityTable[[#This Row],[Date]],2)-Start_week,2)&YEAR(AvailabilityTable[[#This Row],[Date]]),\"\")","v":"-011900"}]
[null,null,null,{"$f":"IF(AvailabilityTable[[#This Row],[Name]]&\"-\"&RIGHT(\"0\"&WEEKNUM(AvailabilityTable[[#This Row],[Date]],2)-Start_week,2)<>\"-0-\",AvailabilityTable[[#This Row],[Name]]&\"-\"&RIGHT(\"0\"&WEEKNUM(AvailabilityTable[[#This Row],[Date]],2)-Start_week,2)&YEAR(AvailabilityTable[[#This Row],[Date]]),\"\")","v":"-011900"}]
[null,null,null,{"$f":"IF(AvailabilityTable[[#This Row],[Name]]&\"-\"&RIGHT(\"0\"&WEEKNUM(AvailabilityTable[[#This Row],[Date]],2)-Start_week,2)<>\"-0-\",AvailabilityTable[[#This Row],[Name]]&\"-\"&RIGHT(\"0\"&WEEKNUM(AvailabilityTable[[#This Row],[Date]],2)-Start_week,2)&YEAR(AvailabilityTable[[#This Row],[Date]]),\"\")","v":"-011900"}]
[null,null,null,{"$f":"IF(AvailabilityTable[[#This Row],[Name]]&\"-\"&RIGHT(\"0\"&WEEKNUM(AvailabilityTable[[#This Row],[Date]],2)-Start_week,2)<>\"-0-\",AvailabilityTable[[#This Row],[Name]]&\"-\"&RIGHT(\"0\"&WEEKNUM(AvailabilityTable[[#This Row],[Date]],2)-Start_week,2)&YEAR(AvailabilityTable[[#This Row],[Date]]),\"\")","v":"-011900"}]
[null,null,null,{"$f":"IF(AvailabilityTable[[#This Row],[Name]]&\"-\"&RIGHT(\"0\"&WEEKNUM(AvailabilityTable[[#This Row],[Date]],2)-Start_week,2)<>\"-0-\",AvailabilityTable[[#This Row],[Name]]&\"-\"&RIGHT(\"0\"&WEEKNUM(AvailabilityTable[[#This Row],[Date]],2)-Start_week,2)&YEAR(AvailabilityTable[[#This Row],[Date]]),\"\")","v":"-011900"}]
[null,null,null,{"$f":"IF(AvailabilityTable[[#This Row],[Name]]&\"-\"&RIGHT(\"0\"&WEEKNUM(AvailabilityTable[[#This Row],[Date]],2)-Start_week,2)<>\"-0-\",AvailabilityTable[[#This Row],[Name]]&\"-\"&RIGHT(\"0\"&WEEKNUM(AvailabilityTable[[#This Row],[Date]],2)-Start_week,2)&YEAR(AvailabilityTable[[#This Row],[Date]]),\"\")","v":"-011900"}]
[null,null,null,{"$f":"IF(AvailabilityTable[[#This Row],[Name]]&\"-\"&RIGHT(\"0\"&WEEKNUM(AvailabilityTable[[#This Row],[Date]],2)-Start_week,2)<>\"-0-\",AvailabilityTable[[#This Row],[Name]]&\"-\"&RIGHT(\"0\"&WEEKNUM(AvailabilityTable[[#This Row],[Date]],2)-Start_week,2)&YEAR(AvailabilityTable[[#This Row],[Date]]),\"\")","v":"-011900"}]
[null,null,null,{"$f":"IF(AvailabilityTable[[#This Row],[Name]]&\"-\"&RIGHT(\"0\"&WEEKNUM(AvailabilityTable[[#This Row],[Date]],2)-Start_week,2)<>\"-0-\",AvailabilityTable[[#This Row],[Name]]&\"-\"&RIGHT(\"0\"&WEEKNUM(AvailabilityTable[[#This Row],[Date]],2)-Start_week,2)&YEAR(AvailabilityTable[[#This Row],[Date]]),\"\")","v":"-011900"}]
[null,null,null,{"$f":"IF(AvailabilityTable[[#This Row],[Name]]&\"-\"&RIGHT(\"0\"&WEEKNUM(AvailabilityTable[[#This Row],[Date]],2)-Start_week,2)<>\"-0-\",AvailabilityTable[[#This Row],[Name]]&\"-\"&RIGHT(\"0\"&WEEKNUM(AvailabilityTable[[#This Row],[Date]],2)-Start_week,2)&YEAR(AvailabilityTable[[#This Row],[Date]]),\"\")","v":"-011900"}]
[null,null,null,{"$f":"IF(AvailabilityTable[[#This Row],[Name]]&\"-\"&RIGHT(\"0\"&WEEKNUM(AvailabilityTable[[#This Row],[Date]],2)-Start_week,2)<>\"-0-\",AvailabilityTable[[#This Row],[Name]]&\"-\"&RIGHT(\"0\"&WEEKNUM(AvailabilityTable[[#This Row],[Date]],2)-Start_week,2)&YEAR(AvailabilityTable[[#This Row],[Date]]),\"\")","v":"-011900"}]
[null,null,null,{"$f":"IF(AvailabilityTable[[#This Row],[Name]]&\"-\"&RIGHT(\"0\"&WEEKNUM(AvailabilityTable[[#This Row],[Date]],2)-Start_week,2)<>\"-0-\",AvailabilityTable[[#This Row],[Name]]&\"-\"&RIGHT(\"0\"&WEEKNUM(AvailabilityTable[[#This Row],[Date]],2)-Start_week,2)&YEAR(AvailabilityTable[[#This Row],[Date]]),\"\")","v":"-011900"}]
[null,null,null,{"$f":"IF(AvailabilityTable[[#This Row],[Name]]&\"-\"&RIGHT(\"0\"&WEEKNUM(AvailabilityTable[[#This Row],[Date]],2)-Start_week,2)<>\"-0-\",AvailabilityTable[[#This Row],[Name]]&\"-\"&RIGHT(\"0\"&WEEKNUM(AvailabilityTable[[#This Row],[Date]],2)-Start_week,2)&YEAR(AvailabilityTable[[#This Row],[Date]]),\"\")","v":"-011900"}]
[null,null,null,{"$f":"IF(AvailabilityTable[[#This Row],[Name]]&\"-\"&RIGHT(\"0\"&WEEKNUM(AvailabilityTable[[#This Row],[Date]],2)-Start_week,2)<>\"-0-\",AvailabilityTable[[#This Row],[Name]]&\"-\"&RIGHT(\"0\"&WEEKNUM(AvailabilityTable[[#This Row],[Date]],2)-Start_week,2)&YEAR(AvailabilityTable[[#This Row],[Date]]),\"\")","v":"-011900"}]
[null,null,null,{"$f":"IF(AvailabilityTable[[#This Row],[Name]]&\"-\"&RIGHT(\"0\"&WEEKNUM(AvailabilityTable[[#This Row],[Date]],2)-Start_week,2)<>\"-0-\",AvailabilityTable[[#This Row],[Name]]&\"-\"&RIGHT(\"0\"&WEEKNUM(AvailabilityTable[[#This Row],[Date]],2)-Start_week,2)&YEAR(AvailabilityTable[[#This Row],[Date]]),\"\")","v":"-011900"}]
[null,null,null,{"$f":"IF(AvailabilityTable[[#This Row],[Name]]&\"-\"&RIGHT(\"0\"&WEEKNUM(AvailabilityTable[[#This Row],[Date]],2)-Start_week,2)<>\"-0-\",AvailabilityTable[[#This Row],[Name]]&\"-\"&RIGHT(\"0\"&WEEKNUM(AvailabilityTable[[#This Row],[Date]],2)-Start_week,2)&YEAR(AvailabilityTable[[#This Row],[Date]]),\"\")","v":"-011900"}]
[null,null,null,{"$f":"IF(AvailabilityTable[[#This Row],[Name]]&\"-\"&RIGHT(\"0\"&WEEKNUM(AvailabilityTable[[#This Row],[Date]],2)-Start_week,2)<>\"-0-\",AvailabilityTable[[#This Row],[Name]]&\"-\"&RIGHT(\"0\"&WEEKNUM(AvailabilityTable[[#This Row],[Date]],2)-Start_week,2)&YEAR(AvailabilityTable[[#This Row],[Date]]),\"\")","v":"-011900"}]
[null,null,null,{"$f":"IF(AvailabilityTable[[#This Row],[Name]]&\"-\"&RIGHT(\"0\"&WEEKNUM(AvailabilityTable[[#This Row],[Date]],2)-Start_week,2)<>\"-0-\",AvailabilityTable[[#This Row],[Name]]&\"-\"&RIGHT(\"0\"&WEEKNUM(AvailabilityTable[[#This Row],[Date]],2)-Start_week,2)&YEAR(AvailabilityTable[[#This Row],[Date]]),\"\")","v":"-011900"}]
[null,null,null,{"$f":"IF(AvailabilityTable[[#This Row],[Name]]&\"-\"&RIGHT(\"0\"&WEEKNUM(AvailabilityTable[[#This Row],[Date]],2)-Start_week,2)<>\"-0-\",AvailabilityTable[[#This Row],[Name]]&\"-\"&RIGHT(\"0\"&WEEKNUM(AvailabilityTable[[#This Row],[Date]],2)-Start_week,2)&YEAR(AvailabilityTable[[#This Row],[Date]]),\"\")","v":"-011900"}]
[null,null,null,{"$f":"IF(AvailabilityTable[[#This Row],[Name]]&\"-\"&RIGHT(\"0\"&WEEKNUM(AvailabilityTable[[#This Row],[Date]],2)-Start_week,2)<>\"-0-\",AvailabilityTable[[#This Row],[Name]]&\"-\"&RIGHT(\"0\"&WEEKNUM(AvailabilityTable[[#This Row],[Date]],2)-Start_week,2)&YEAR(AvailabilityTable[[#This Row],[Date]]),\"\")","v":"-011900"}]
[null,null,null,{"$f":"IF(AvailabilityTable[[#This Row],[Name]]&\"-\"&RIGHT(\"0\"&WEEKNUM(AvailabilityTable[[#This Row],[Date]],2)-Start_week,2)<>\"-0-\",AvailabilityTable[[#This Row],[Name]]&\"-\"&RIGHT(\"0\"&WEEKNUM(AvailabilityTable[[#This Row],[Date]],2)-Start_week,2)&YEAR(AvailabilityTable[[#This Row],[Date]]),\"\")","v":"-011900"}]
[null,null,null,{"$f":"IF(AvailabilityTable[[#This Row],[Name]]&\"-\"&RIGHT(\"0\"&WEEKNUM(AvailabilityTable[[#This Row],[Date]],2)-Start_week,2)<>\"-0-\",AvailabilityTable[[#This Row],[Name]]&\"-\"&RIGHT(\"0\"&WEEKNUM(AvailabilityTable[[#This Row],[Date]],2)-Start_week,2)&YEAR(AvailabilityTable[[#This Row],[Date]]),\"\")","v":"-011900"}]
[null,null,null,{"$f":"IF(AvailabilityTable[[#This Row],[Name]]&\"-\"&RIGHT(\"0\"&WEEKNUM(AvailabilityTable[[#This Row],[Date]],2)-Start_week,2)<>\"-0-\",AvailabilityTable[[#This Row],[Name]]&\"-\"&RIGHT(\"0\"&WEEKNUM(AvailabilityTable[[#This Row],[Date]],2)-Start_week,2)&YEAR(AvailabilityTable[[#This Row],[Date]]),\"\")","v":"-011900"}]
[null,null,null,{"$f":"IF(AvailabilityTable[[#This Row],[Name]]&\"-\"&RIGHT(\"0\"&WEEKNUM(AvailabilityTable[[#This Row],[Date]],2)-Start_week,2)<>\"-0-\",AvailabilityTable[[#This Row],[Name]]&\"-\"&RIGHT(\"0\"&WEEKNUM(AvailabilityTable[[#This Row],[Date]],2)-Start_week,2)&YEAR(AvailabilityTable[[#This Row],[Date]]),\"\")","v":"-011900"}]
[null,null,null,{"$f":"IF(AvailabilityTable[[#This Row],[Name]]&\"-\"&RIGHT(\"0\"&WEEKNUM(AvailabilityTable[[#This Row],[Date]],2)-Start_week,2)<>\"-0-\",AvailabilityTable[[#This Row],[Name]]&\"-\"&RIGHT(\"0\"&WEEKNUM(AvailabilityTable[[#This Row],[Date]],2)-Start_week,2)&YEAR(AvailabilityTable[[#This Row],[Date]]),\"\")","v":"-011900"}]
[null,null,null,{"$f":"IF(AvailabilityTable[[#This Row],[Name]]&\"-\"&RIGHT(\"0\"&WEEKNUM(AvailabilityTable[[#This Row],[Date]],2)-Start_week,2)<>\"-0-\",AvailabilityTable[[#This Row],[Name]]&\"-\"&RIGHT(\"0\"&WEEKNUM(AvailabilityTable[[#This Row],[Date]],2)-Start_week,2)&YEAR(AvailabilityTable[[#This Row],[Date]]),\"\")","v":"-011900"}]
[null,null,null,{"$f":"IF(AvailabilityTable[[#This Row],[Name]]&\"-\"&RIGHT(\"0\"&WEEKNUM(AvailabilityTable[[#This Row],[Date]],2)-Start_week,2)<>\"-0-\",AvailabilityTable[[#This Row],[Name]]&\"-\"&RIGHT(\"0\"&WEEKNUM(AvailabilityTable[[#This Row],[Date]],2)-Start_week,2)&YEAR(AvailabilityTable[[#This Row],[Date]]),\"\")","v":"-011900"}]
[null,null,null,{"$f":"IF(AvailabilityTable[[#This Row],[Name]]&\"-\"&RIGHT(\"0\"&WEEKNUM(AvailabilityTable[[#This Row],[Date]],2)-Start_week,2)<>\"-0-\",AvailabilityTable[[#This Row],[Name]]&\"-\"&RIGHT(\"0\"&WEEKNUM(AvailabilityTable[[#This Row],[Date]],2)-Start_week,2)&YEAR(AvailabilityTable[[#This Row],[Date]]),\"\")","v":"-011900"}]
[null,null,null,{"$f":"IF(AvailabilityTable[[#This Row],[Name]]&\"-\"&RIGHT(\"0\"&WEEKNUM(AvailabilityTable[[#This Row],[Date]],2)-Start_week,2)<>\"-0-\",AvailabilityTable[[#This Row],[Name]]&\"-\"&RIGHT(\"0\"&WEEKNUM(AvailabilityTable[[#This Row],[Date]],2)-Start_week,2)&YEAR(AvailabilityTable[[#This Row],[Date]]),\"\")","v":"-011900"}]
[null,null,null,{"$f":"IF(AvailabilityTable[[#This Row],[Name]]&\"-\"&RIGHT(\"0\"&WEEKNUM(AvailabilityTable[[#This Row],[Date]],2)-Start_week,2)<>\"-0-\",AvailabilityTable[[#This Row],[Name]]&\"-\"&RIGHT(\"0\"&WEEKNUM(AvailabilityTable[[#This Row],[Date]],2)-Start_week,2)&YEAR(AvailabilityTable[[#This Row],[Date]]),\"\")","v":"-011900"}]
[null,null,null,{"$f":"IF(AvailabilityTable[[#This Row],[Name]]&\"-\"&RIGHT(\"0\"&WEEKNUM(AvailabilityTable[[#This Row],[Date]],2)-Start_week,2)<>\"-0-\",AvailabilityTable[[#This Row],[Name]]&\"-\"&RIGHT(\"0\"&WEEKNUM(AvailabilityTable[[#This Row],[Date]],2)-Start_week,2)&YEAR(AvailabilityTable[[#This Row],[Date]]),\"\")","v":"-011900"}]
[null,null,null,{"$f":"IF(AvailabilityTable[[#This Row],[Name]]&\"-\"&RIGHT(\"0\"&WEEKNUM(AvailabilityTable[[#This Row],[Date]],2)-Start_week,2)<>\"-0-\",AvailabilityTable[[#This Row],[Name]]&\"-\"&RIGHT(\"0\"&WEEKNUM(AvailabilityTable[[#This Row],[Date]],2)-Start_week,2)&YEAR(AvailabilityTable[[#This Row],[Date]]),\"\")","v":"-011900"}]
[null,null,null,{"$f":"IF(AvailabilityTable[[#This Row],[Name]]&\"-\"&RIGHT(\"0\"&WEEKNUM(AvailabilityTable[[#This Row],[Date]],2)-Start_week,2)<>\"-0-\",AvailabilityTable[[#This Row],[Name]]&\"-\"&RIGHT(\"0\"&WEEKNUM(AvailabilityTable[[#This Row],[Date]],2)-Start_week,2)&YEAR(AvailabilityTable[[#This Row],[Date]]),\"\")","v":"-011900"}]
[null,null,null,{"$f":"IF(AvailabilityTable[[#This Row],[Name]]&\"-\"&RIGHT(\"0\"&WEEKNUM(AvailabilityTable[[#This Row],[Date]],2)-Start_week,2)<>\"-0-\",AvailabilityTable[[#This Row],[Name]]&\"-\"&RIGHT(\"0\"&WEEKNUM(AvailabilityTable[[#This Row],[Date]],2)-Start_week,2)&YEAR(AvailabilityTable[[#This Row],[Date]]),\"\")","v":"-011900"}]
[null,null,null,{"$f":"IF(AvailabilityTable[[#This Row],[Name]]&\"-\"&RIGHT(\"0\"&WEEKNUM(AvailabilityTable[[#This Row],[Date]],2)-Start_week,2)<>\"-0-\",AvailabilityTable[[#This Row],[Name]]&\"-\"&RIGHT(\"0\"&WEEKNUM(AvailabilityTable[[#This Row],[Date]],2)-Start_week,2)&YEAR(AvailabilityTable[[#This Row],[Date]]),\"\")","v":"-011900"}]
[null,null,null,{"$f":"IF(AvailabilityTable[[#This Row],[Name]]&\"-\"&RIGHT(\"0\"&WEEKNUM(AvailabilityTable[[#This Row],[Date]],2)-Start_week,2)<>\"-0-\",AvailabilityTable[[#This Row],[Name]]&\"-\"&RIGHT(\"0\"&WEEKNUM(AvailabilityTable[[#This Row],[Date]],2)-Start_week,2)&YEAR(AvailabilityTable[[#This Row],[Date]]),\"\")","v":"-011900"}]
[null,null,null,{"$f":"IF(AvailabilityTable[[#This Row],[Name]]&\"-\"&RIGHT(\"0\"&WEEKNUM(AvailabilityTable[[#This Row],[Date]],2)-Start_week,2)<>\"-0-\",AvailabilityTable[[#This Row],[Name]]&\"-\"&RIGHT(\"0\"&WEEKNUM(AvailabilityTable[[#This Row],[Date]],2)-Start_week,2)&YEAR(AvailabilityTable[[#This Row],[Date]]),\"\")","v":"-011900"}]
[null,null,null,{"$f":"IF(AvailabilityTable[[#This Row],[Name]]&\"-\"&RIGHT(\"0\"&WEEKNUM(AvailabilityTable[[#This Row],[Date]],2)-Start_week,2)<>\"-0-\",AvailabilityTable[[#This Row],[Name]]&\"-\"&RIGHT(\"0\"&WEEKNUM(AvailabilityTable[[#This Row],[Date]],2)-Start_week,2)&YEAR(AvailabilityTable[[#This Row],[Date]]),\"\")","v":"-011900"}]
[null,null,null,{"$f":"IF(AvailabilityTable[[#This Row],[Name]]&\"-\"&RIGHT(\"0\"&WEEKNUM(AvailabilityTable[[#This Row],[Date]],2)-Start_week,2)<>\"-0-\",AvailabilityTable[[#This Row],[Name]]&\"-\"&RIGHT(\"0\"&WEEKNUM(AvailabilityTable[[#This Row],[Date]],2)-Start_week,2)&YEAR(AvailabilityTable[[#This Row],[Date]]),\"\")","v":"-011900"}]
[null,null,null,{"$f":"IF(AvailabilityTable[[#This Row],[Name]]&\"-\"&RIGHT(\"0\"&WEEKNUM(AvailabilityTable[[#This Row],[Date]],2)-Start_week,2)<>\"-0-\",AvailabilityTable[[#This Row],[Name]]&\"-\"&RIGHT(\"0\"&WEEKNUM(AvailabilityTable[[#This Row],[Date]],2)-Start_week,2)&YEAR(AvailabilityTable[[#This Row],[Date]]),\"\")","v":"-011900"}]
[null,null,null,{"$f":"IF(AvailabilityTable[[#This Row],[Name]]&\"-\"&RIGHT(\"0\"&WEEKNUM(AvailabilityTable[[#This Row],[Date]],2)-Start_week,2)<>\"-0-\",AvailabilityTable[[#This Row],[Name]]&\"-\"&RIGHT(\"0\"&WEEKNUM(AvailabilityTable[[#This Row],[Date]],2)-Start_week,2)&YEAR(AvailabilityTable[[#This Row],[Date]]),\"\")","v":"-011900"}]
[null,null,null,{"$f":"IF(AvailabilityTable[[#This Row],[Name]]&\"-\"&RIGHT(\"0\"&WEEKNUM(AvailabilityTable[[#This Row],[Date]],2)-Start_week,2)<>\"-0-\",AvailabilityTable[[#This Row],[Name]]&\"-\"&RIGHT(\"0\"&WEEKNUM(AvailabilityTable[[#This Row],[Date]],2)-Start_week,2)&YEAR(AvailabilityTable[[#This Row],[Date]]),\"\")","v":"-011900"}]
[null,null,null,{"$f":"IF(AvailabilityTable[[#This Row],[Name]]&\"-\"&RIGHT(\"0\"&WEEKNUM(AvailabilityTable[[#This Row],[Date]],2)-Start_week,2)<>\"-0-\",AvailabilityTable[[#This Row],[Name]]&\"-\"&RIGHT(\"0\"&WEEKNUM(AvailabilityTable[[#This Row],[Date]],2)-Start_week,2)&YEAR(AvailabilityTable[[#This Row],[Date]]),\"\")","v":"-011900"}]
[null,null,null,{"$f":"IF(AvailabilityTable[[#This Row],[Name]]&\"-\"&RIGHT(\"0\"&WEEKNUM(AvailabilityTable[[#This Row],[Date]],2)-Start_week,2)<>\"-0-\",AvailabilityTable[[#This Row],[Name]]&\"-\"&RIGHT(\"0\"&WEEKNUM(AvailabilityTable[[#This Row],[Date]],2)-Start_week,2)&YEAR(AvailabilityTable[[#This Row],[Date]]),\"\")","v":"-011900"}]
[null,null,null,{"$f":"IF(AvailabilityTable[[#This Row],[Name]]&\"-\"&RIGHT(\"0\"&WEEKNUM(AvailabilityTable[[#This Row],[Date]],2)-Start_week,2)<>\"-0-\",AvailabilityTable[[#This Row],[Name]]&\"-\"&RIGHT(\"0\"&WEEKNUM(AvailabilityTable[[#This Row],[Date]],2)-Start_week,2)&YEAR(AvailabilityTable[[#This Row],[Date]]),\"\")","v":"-011900"}]
[null,null,null,{"$f":"IF(AvailabilityTable[[#This Row],[Name]]&\"-\"&RIGHT(\"0\"&WEEKNUM(AvailabilityTable[[#This Row],[Date]],2)-Start_week,2)<>\"-0-\",AvailabilityTable[[#This Row],[Name]]&\"-\"&RIGHT(\"0\"&WEEKNUM(AvailabilityTable[[#This Row],[Date]],2)-Start_week,2)&YEAR(AvailabilityTable[[#This Row],[Date]]),\"\")","v":"-011900"}]
[null,null,null,{"$f":"IF(AvailabilityTable[[#This Row],[Name]]&\"-\"&RIGHT(\"0\"&WEEKNUM(AvailabilityTable[[#This Row],[Date]],2)-Start_week,2)<>\"-0-\",AvailabilityTable[[#This Row],[Name]]&\"-\"&RIGHT(\"0\"&WEEKNUM(AvailabilityTable[[#This Row],[Date]],2)-Start_week,2)&YEAR(AvailabilityTable[[#This Row],[Date]]),\"\")","v":"-011900"}]
[null,null,null,{"$f":"IF(AvailabilityTable[[#This Row],[Name]]&\"-\"&RIGHT(\"0\"&WEEKNUM(AvailabilityTable[[#This Row],[Date]],2)-Start_week,2)<>\"-0-\",AvailabilityTable[[#This Row],[Name]]&\"-\"&RIGHT(\"0\"&WEEKNUM(AvailabilityTable[[#This Row],[Date]],2)-Start_week,2)&YEAR(AvailabilityTable[[#This Row],[Date]]),\"\")","v":"-011900"}]
[null,null,null,{"$f":"IF(AvailabilityTable[[#This Row],[Name]]&\"-\"&RIGHT(\"0\"&WEEKNUM(AvailabilityTable[[#This Row],[Date]],2)-Start_week,2)<>\"-0-\",AvailabilityTable[[#This Row],[Name]]&\"-\"&RIGHT(\"0\"&WEEKNUM(AvailabilityTable[[#This Row],[Date]],2)-Start_week,2)&YEAR(AvailabilityTable[[#This Row],[Date]]),\"\")","v":"-011900"}]
[null,null,null,{"$f":"IF(AvailabilityTable[[#This Row],[Name]]&\"-\"&RIGHT(\"0\"&WEEKNUM(AvailabilityTable[[#This Row],[Date]],2)-Start_week,2)<>\"-0-\",AvailabilityTable[[#This Row],[Name]]&\"-\"&RIGHT(\"0\"&WEEKNUM(AvailabilityTable[[#This Row],[Date]],2)-Start_week,2)&YEAR(AvailabilityTable[[#This Row],[Date]]),\"\")","v":"-011900"}]
[null,null,null,{"$f":"IF(AvailabilityTable[[#This Row],[Name]]&\"-\"&RIGHT(\"0\"&WEEKNUM(AvailabilityTable[[#This Row],[Date]],2)-Start_week,2)<>\"-0-\",AvailabilityTable[[#This Row],[Name]]&\"-\"&RIGHT(\"0\"&WEEKNUM(AvailabilityTable[[#This Row],[Date]],2)-Start_week,2)&YEAR(AvailabilityTable[[#This Row],[Date]]),\"\")","v":"-011900"}]
[null,null,null,{"$f":"IF(AvailabilityTable[[#This Row],[Name]]&\"-\"&RIGHT(\"0\"&WEEKNUM(AvailabilityTable[[#This Row],[Date]],2)-Start_week,2)<>\"-0-\",AvailabilityTable[[#This Row],[Name]]&\"-\"&RIGHT(\"0\"&WEEKNUM(AvailabilityTable[[#This Row],[Date]],2)-Start_week,2)&YEAR(AvailabilityTable[[#This Row],[Date]]),\"\")","v":"-011900"}]
[null,null,null,{"$f":"IF(AvailabilityTable[[#This Row],[Name]]&\"-\"&RIGHT(\"0\"&WEEKNUM(AvailabilityTable[[#This Row],[Date]],2)-Start_week,2)<>\"-0-\",AvailabilityTable[[#This Row],[Name]]&\"-\"&RIGHT(\"0\"&WEEKNUM(AvailabilityTable[[#This Row],[Date]],2)-Start_week,2)&YEAR(AvailabilityTable[[#This Row],[Date]]),\"\")","v":"-011900"}]
[null,null,null,{"$f":"IF(AvailabilityTable[[#This Row],[Name]]&\"-\"&RIGHT(\"0\"&WEEKNUM(AvailabilityTable[[#This Row],[Date]],2)-Start_week,2)<>\"-0-\",AvailabilityTable[[#This Row],[Name]]&\"-\"&RIGHT(\"0\"&WEEKNUM(AvailabilityTable[[#This Row],[Date]],2)-Start_week,2)&YEAR(AvailabilityTable[[#This Row],[Date]]),\"\")","v":"-011900"}]
[null,null,null,{"$f":"IF(AvailabilityTable[[#This Row],[Name]]&\"-\"&RIGHT(\"0\"&WEEKNUM(AvailabilityTable[[#This Row],[Date]],2)-Start_week,2)<>\"-0-\",AvailabilityTable[[#This Row],[Name]]&\"-\"&RIGHT(\"0\"&WEEKNUM(AvailabilityTable[[#This Row],[Date]],2)-Start_week,2)&YEAR(AvailabilityTable[[#This Row],[Date]]),\"\")","v":"-011900"}]

{"sheet":"Settings","index":4,"n_rows":33,"n_cols":4,"rows_kept":33,"cut":false,"hidden":false,"merged":[[1,0,1,3]]}
[]
["Settings"]
[]
["Employees",null,null,"Version 1.23"]
[]
[null,"Weekly Hours","Productivity","Actual Hours"]
["Defaults",38,0.8,{"$f":"B7*C7","v":30.400000000000002}]
[]
["Reconciliation"]
[]
[null,"Task Table","Allocated","Variance"]
["Time Totals",{"$f":"SUM(TaskTable[Time])","v":0},{"$f":"GETPIVOTDATA(\" Allocated\",'Capacity Summary'!$A$6)","v":0},{"$f":"B12-C12","v":0}]
[]
["Start Week",{"$f":"MIN(TaskTable[Due date])","v":"00:00:00"},0]
[]
["Change Log"]
[]
["Date","Change"]
["2022-09-26","Added Job Link column and renamed Default time to Time"]
["2022-09-26","Removed Week, Month, Leave and Availability formulas"]
["2022-09-15","Change column \"Name\" from \"Employee Name\" on leave"]
["2022-08-18","Made all vlookups to be specific"]
["2022-08-15","Leave is now proportioned based on availability"]
["2022-08-15","Resized columns in capacity summary to being 14"]
["2022-08-15","Enabled field headers in both reports by default"]
["2022-08-15","Resized columns in \"Data - Tasks\" and made hidden"]
["2022-08-11","Added \"Capacity By Day\""]
["2022-08-11","Added \"Tasks List\""]
["2022-08-11","Restricted access to the \"Task - Data\""]
["2022-08-10","Reduced the Tasks table to 1"]
["2022-08-09","Increased the Leave table to 1,000 rows"]
["2022-08-09","Increased the Employees table to 500 rows"]
["2022-08-08","Added column for \"Group\" in Tasks table"]

{"sheet":"Data - Tasks","index":5,"n_rows":1,"n_cols":18,"rows_kept":1,"cut":false,"hidden":true,"merged":[]}
["Assignee","Subject","Due date","Time","Group","Client","Job","Job Link","User Role","Job State","Job Category","Job Manager","Job Partner","Month","Week","Availability","Leave","Temp"]